Workbook

Sheet Management Input
B1: Black Walnut Economic Model for Nut Production
D2: Version 2.1
B3: Establishment Decisions: | K3: Harvesting and Marketing Decisions:
B4: Site Prep: | C4: Herbicide only (1 qt/ac.) | L4: Harvest Method: | N4: Hand pickup
B6: Spacing (Ft): | C6: 42 | D6: x | E6: 42 | G6: UMCA Black Walnut Guide | L6: Percent Nutmeat: | N6: 0.16
B8: Layout/Design: | C8: Rectangular/Square | L8: Nutmeat Grade: | N8: Grade 4 | Q8: Standards
B10: Site Index: | C10: 80 | D10: (Average tree height in feet 50 years after planting) | L10: Hulling Method: | N10: Manual (improvised)
E11: Graft Technique:
B12: Planting Stock: | C12: Grafted Seedlings | F12: Nursery Grafted | L12: Drying Method: | N12: Air Dry
B14: Fertilization: | C14: Good early growth (> 8") | L14: Distance to Market: | N14: 70 | P14: Enter a distance in miles to the nearest buying station
B16: Tree Staking: | C16: User Defined | L16: Discount Rate: | O16: 0.03 | P16: Enter a percentage that reflects the opportunity cost of capital for this investment
L18: Total Acres Planted: | O18: 10
B20: Management Decisions: | E20: Enter a % of trees removed (i.e. 50%, 33%) | H20: Financial Results
B21: Thinning: | C21: 0.5 | H21: Based on the information that was entered in the model, this Black Walnut Orchard will have the following financial performance over a 70 year period:
B23: Fertilization: | C23: Bearing trees (33% N)
R24: =TEXT(O18,"0")&" Acres" -> 10 Acres
B25: Pruning: | C25: Spring prune | H25: Initial Number of Trees/ac | L25: ='Cost Budgets'!C3 -> 24.69387755 | O25: Initial Number of Trees | R25: =O18*L25 -> 246.9387755
H26: Expected Price/lb for nuts | L26: ='Financial Analysis'!C31 -> 0.288
B27: Weed Control: | C27: Mowing | H27: ="PV of Revenues/ac @ "&TEXT(O16,"0%") -> PV of Revenues/ac @ 3% | L27: ='Financial Analysis'!D97 -> 4417.108998 | O27: ="PV of Revenues @ "&TEXT(O16,"0%") -> PV of Revenues @ 3% | R27: =O18*L27 -> 44171.08998
H28: ="PV of Costs /ac @ "&TEXT(O16,"0%") -> PV of Costs /ac @ 3% | L28: ='Financial Analysis'!D99 -> 2422.160319 | O28: ="PV of Costs @ "&TEXT(O16,"0%") -> PV of Costs @ 3% | R28: =O18*L28 -> 24221.60319
B29: Pest Control: | C29: None | H29: ="NPV/ac @ "&TEXT(O16,"0%") -> NPV/ac @ 3% | L29: ='Financial Analysis'!D101 -> 1994.948678 | O29: ="NPV @ "&TEXT(O16,"0%") -> NPV @ 3% | R29: =O18*L29 -> 19949.48678
H30: Rate of Return (MIRR) | L30: ='Financial Analysis'!D103 -> 0.05098201034
B31: Disease Control: | C31: None | H31: Years to Break Even | L31: ='Financial Analysis'!D105 -> 14
H32: ="AEV/ac @ "&TEXT(O16,"0%") -> AEV/ac @ 3% | L32: ='Financial Analysis'!D107 -> 68.49980482 | O32: ="AEV @ "&TEXT(O16,"0%") -> AEV @ 3% | R32: =O18*L32 -> 684.9980482
B33: Deer Control: | C33: None
J77: =IF('Cost Budgets'!C101=0,1,0) -> 0

Sheet Input Tables
A1: Site Prep | B1: Estimated Cost/ac | C1: Cost per Tree | D1: Occurrence
A2: Discing only | B2: 10 | C2: =B2/'Cost Budgets'!$C$3 -> 0.4049586777 | D2: 1
A3: Herbicide only (1 qt/ac.) | B3: 13 | C3: =B3/'Cost Budgets'!$C$3 -> 0.526446281 | D3: 1
A4: Herbicide with Discing | B4: 23 | C4: =B4/'Cost Budgets'!$C$3 -> 0.9314049587 | D4: 1
A5: User Defined | B5: 0 | C5: 0
A7: Layout/Design | B7: Estimated Cost/ac | C7: Cost per Tree | D7: Occurrence
A8: Diamond
A9: Hexagonal | E9: No Cost
A10: Rectangular/Square
A12: Planting Stock | B12: Estimated Cost/ac | C12: Cost per Tree | D12: Occurrence
A13: Grafted Seedlings | B13: =C13*'Cost Budgets'!$C$3 -> 555.6122449 | C13: 22.5 | D13: 1
A14: Seed | B14: =C14*'Cost Budgets'!$C$3 -> 12.34693878 | C14: 0.5 | D14: 1
A15: Seedlings (bare root) | B15: =C15*'Cost Budgets'!$C$3 -> 172.8571429 | C15: 7 | D15: 1
A16: Seedlings (RPM™) | B16: =C16*'Cost Budgets'!$C$3 -> 321.0204082 | C16: 13 | D16: 1
A17: User Defined | B17: =C17*'Cost Budgets'!$C$3 -> 0 | C17: 0 | D17: 1
A19: Fertilization (initial) | B19: Estimated Cost/ac | C19: Cost per Tree | D19: Occurrence
A20: Good early growth (> 8") | B20: =C20*'Cost Budgets'!C3 -> 25.1877551 | C20: 1.02 | D20: 1
A21: Slow early growth (< 8") | B21: 0 | C21: 0 | D21: 1
A22: User Defined | B22: 0 | C22: 0 | D22: 1
A24: Thinning | B24: Estimated Cost/ac | C24: Cost per Dbh | D24: Occurrence
A25: ='Management Input'!C21 -> 0.5 | B25: 0 | C25: 0.042 | F25: As per model
A27: Tree Staking | B27: Estimated Cost/ac | C27: Cost per Tree | D27: Occurrence
A28: Re-Bar | B28: =C28*'Cost Budgets'!$C$3 -> 34.3244898 | C28: 1.39 | D28: 1
A29: Steel conduit pipe | B29: =C29*'Cost Budgets'!$C$3 -> 49.3877551 | C29: 2 | D29: 1
A30: T-posts | B30: =C30*'Cost Budgets'!$C$3 -> 172.8571429 | C30: 7 | D30: 1
A31: User Defined | B31: 0 | C31: 0 | D31: 1
A32: Wooden stakes | B32: =C32*'Cost Budgets'!$C$3 -> 9.87755102 | C32: 0.4
A34: Fertilization (maintenance) | B34: Estimated Cost/ac | C34: Cost per Tree | D34: Occurrence
A35: Bearing trees (33% N) | B35: 23.13 | C35: =B35/'Cost Budgets'!$C$3 -> 0.9366694215 | D35: Fertilizer applied every | G35: 2 | H35: years, until year | J35: 30 | BA35: =G36 -> 2 | BB35: =G36+G35 -> 4 | BC35: =IF(AND((BB35+$G$35)<$J$35,BB35>0),BB35+$G$35,0) -> 6 | BD35: 8 | BE35: 10 | BF35: 12 | BG35: 14 | BH35: 16 | BI35: 18 | BJ35: 20 | BK35: 22 | BL35: 24 | BM35: 26 | BN35: 28 | BO35: 0 | BP35: 0 | BQ35: 0 | BR35: 0 | BS35: 0 | BT35: 0 | BU35: 0 | BV35: 0 | BW35: 0 | BX35: 0 | BY35: 0 | BZ35: 0 | CA35: 0 | CB35: 0 | CC35: 0 | CD35: 0 | CE35: 0 | CF35: 0 | CG35: 0 | CH35: 0 | CI35: 0 | CJ35: 0 | CK35: 0 | CL35: 0 | CM35: 0
A36: Bearing trees (46% N) | B36: 25 | C36: =B36/'Cost Budgets'!$C$3 -> 1.012396694 | E36: First Year of Application | G36: 2
A37: Non-bearing tree | B37: =C37*'Cost Budgets'!C3 -> 25.1877551 | C37: 1.02
A38: User Defined | B38: 0 | C38: 0
A40: Pruning | B40: Estimated Cost/ac | C40: Cost per Tree | D40: Occurrence
A41: Spring prune | B41: =C41*'Cost Budgets'!$C$3 -> 12.34693878 | C41: 0.5 | D41: Pruning conducted every | G41: 2 | H41: years, until year | J41: 12 | BA41: =G42 -> 5 | BB41: =G42+G41 -> 7 | BC41: =IF(AND((BB41+$G$41)<$J$41,BB41>0),BB41+$G$41,0) -> 9 | BD41: =IF(AND((BC41+$G$41)<$J$41,BC41>0),BC41+$G$41,0) -> 11 | BE41: 0 | BF41: 0 | BG41: 0 | BH41: 0 | BI41: 0 | BJ41: 0 | BK41: 0 | BL41: 0 | BM41: 0 | BN41: 0 | BO41: 0 | BP41: 0 | BQ41: 0 | BR41: 0 | BS41: 0 | BT41: 0 | BU41: 0 | BV41: 0 | BW41: 0 | BX41: 0 | BY41: 0 | BZ41: 0 | CA41: 0 | CB41: 0 | CC41: 0 | CD41: 0 | CE41: 0 | CF41: 0 | CG41: 0 | CH41: 0 | CI41: 0 | CJ41: 0 | CK41: 0 | CL41: 0 | CM41: 0
A42: Spring & Summer Prune | B42: =C42*'Cost Budgets'!$C$3 -> 24.69387755 | C42: 1 | E42: First Year of Application | G42: 5
A43: Summer/Fall prune | B43: =C43*'Cost Budgets'!$C$3 -> 12.34693878 | C43: 0.5
A44: User Defined | B44: 0 | C44: 0
A46: Weed control | B46: Estimated Cost/ac | C46: Cost per Tree | D46: Occurrence
A47: Discing | B47: 10 | C47: =B47/'Cost Budgets'!$C$3 -> 0.4049586777 | D47: Weed control conducted every | G47: 5 | H47: years, until year | J47: 10 | BA47: =G48 -> 2 | BB47: =G48+G47 -> 7 | BC47: =IF(AND((BB47+$G$47)<$J$47,BB47>0),BB47+$G$47,0) -> 0 | BD47: =IF(AND((BC47+$G$47)<$J$47,BC47>0),BC47+$G$47,0) -> 0 | BE47: 0 | BF47: 0 | BG47: 0 | BH47: 0 | BI47: 0 | BJ47: 0 | BK47: 0 | BL47: 0 | BM47: 0 | BN47: 0 | BO47: 0 | BP47: 0 | BQ47: 0 | BR47: 0 | BS47: 0 | BT47: 0 | BU47: 0 | BV47: 0 | BW47: 0 | BX47: 0 | BY47: 0 | BZ47: 0 | CA47: 0 | CB47: 0 | CC47: 0 | CD47: 0 | CE47: 0 | CF47: 0 | CG47: 0 | CH47: 0 | CI47: 0 | CJ47: 0 | CK47: 0 | CL47: 0 | CM47: 0
A48: Herbicide (Roundup TM) | B48: 8 | C48: =B48/'Cost Budgets'!$C$3 -> 0.3239669421 | E48: First Year of Application | G48: 2
A49: Mats (weed) | B49: =C49*'Cost Budgets'!C3 -> 32.10204082 | C49: 1.3
A50: Mowing | B50: 10 | C50: =B50/'Cost Budgets'!$C$3 -> 0.4049586777
A51: User Defined | B51: 0 | C51: 0
A53: Pest Control | B53: Estimated Cost/ac | C53: Cost per Tree | D53: Occurrence
A54: Asana XL | B54: =H2 -> 7.40383319 | C54: =B54/'Cost Budgets'!$C$3 -> 0.2998246498 | D54: Pest control applied every | G54: 3 | H54: years, until year | J54: 15 | BA54: =G55 -> 5 | BB54: =G55+G54 -> 8 | BC54: =IF(AND((BB54+$G$54)<$J$54,BB54>0),BB54+$G$54,0) -> 11 | BD54: =IF(AND((BC54+$G$54)<$J$54,BC54>0),BC54+$G$54,0) -> 14 | BE54: 0 | BF54: 0 | BG54: 0 | BH54: 0 | BI54: 0 | BJ54: 0 | BK54: 0 | BL54: 0 | BM54: 0 | BN54: 0 | BO54: 0 | BP54: 0 | BQ54: 0 | BR54: 0 | BS54: 0 | BT54: 0 | BU54: 0 | BV54: 0 | BW54: 0 | BX54: 0 | BY54: 0 | BZ54: 0 | CA54: 0 | CB54: 0 | CC54: 0 | CD54: 0 | CE54: 0 | CF54: 0 | CG54: 0 | CH54: 0 | CI54: 0 | CJ54: 0 | CK54: 0 | CL54: 0 | CM54: 0
A55: Confirm 2F | B55: =H3 -> 0 | C55: =B55/'Cost Budgets'!$C$3 -> 0 | E55: First Year of Application | G55: 5
A56: Dipel ES | B56: =H8 -> 30 | C56: =B56/'Cost Budgets'!$C$3 -> 1.214876033
A57: Guthion 2L | B57: =H10 -> 81.2 | C57: =B57/'Cost Budgets'!$C$3 -> 3.288264463
A58: Imidian 70 WSB | B58: =H6 -> 18.3975 | C58: =B58/'Cost Budgets'!$C$3 -> 0.7450227273
A59: Javelin WG | B59: =H9 -> 0 | C59: =B59/'Cost Budgets'!$C$3 -> 0
A60: Lorsban 4E/Nufos 4E | B60: =H4 -> 14.96 | C60: =B60/'Cost Budgets'!$C$3 -> 0.6058181818
A61: None | B61: 0 | C61: =B61/'Cost Budgets'!$C$3 -> 0
A62: Sevin 80W | B62: =H7 -> 31.15 | C62: =B62/'Cost Budgets'!$C$3 -> 1.261446281
A63: Sniper 2E | B63: =H11 -> 0 | C63: =B63/'Cost Budgets'!$C$3 -> 0
A64: User Defined | B64: 0 | C64: 0
A65: Warrior | B65: =H5 -> 8.5632 | C65: =B65/'Cost Budgets'!$C$3 -> 0.3467742149
A67: Disease Control | B67: Estimated Cost/ac | C67: Cost per Tree | D67: Occurrence
A68: Abound | B68: =H12 -> 0 | C68: =B68/'Cost Budgets'!$C$3 -> 0 | D68: Disease control applied every | G68: 3 | H68: years, until year | J68: 15 | BA68: =G69 -> 2 | BB68: =G69+G68 -> 5 | BC68: =IF(AND((BB68+$G$68)<$J$68,BB68>0),BB68+$G$68,0) -> 8 | BD68: =IF(AND((BC68+$G$68)<$J$68,BC68>0),BC68+$G$68,0) -> 11 | BE68: 14 | BF68: 0 | BG68: 0 | BH68: 0 | BI68: 0 | BJ68: 0 | BK68: 0 | BL68: 0 | BM68: 0 | BN68: 0 | BO68: 0 | BP68: 0 | BQ68: 0 | BR68: 0 | BS68: 0 | BT68: 0 | BU68: 0 | BV68: 0 | BW68: 0 | BX68: 0 | BY68: 0 | BZ68: 0 | CA68: 0 | CB68: 0 | CC68: 0 | CD68: 0 | CE68: 0 | CF68: 0 | CG68: 0 | CH68: 0 | CI68: 0 | CJ68: 0 | CK68: 0 | CL68: 0 | CM68: 0
A69: Flint | B69: =H13 -> 0 | C69: =B69/'Cost Budgets'!$C$3 -> 0 | E69: First Year of Application | G69: 2
A70: None | B70: 0 | C70: =B70/'Cost Budgets'!$C$3 -> 0
A71: Pristine | B71: =H14 -> 0 | C71: =B71/'Cost Budgets'!$C$3 -> 0
A72: Syllit | B72: =H15 -> 50.8 | C72: =B72/'Cost Budgets'!$C$3 -> 2.057190083
A73: User Defined | B73: 0 | C73: 0
A75: Deer Control | B75: Estimated Cost/ac | C75: Cost per Tree | D75: Occurrence
A76: Game Deterrent Fencing | B76: 349.44 | C76: =B76/'Cost Budgets'!$C$3 -> 14.15087603 | D76: Deer Control measures used every | G76: 3 | H76: years, until year | J76: 15 | BA76: =G77 -> 2 | BB76: =G77+G76 -> 5 | BC76: =IF(AND((BB76+$G$76)<$J$76,BB76>0),BB76+$G$76,0) -> 8 | BD76: =IF(AND((BC76+$G$76)<$J$76,BC76>0),BC76+$G$76,0) -> 11 | BE76: 14 | BF76: 0 | BG76: 0 | BH76: 0 | BI76: 0 | BJ76: 0 | BK76: 0 | BL76: 0 | BM76: 0 | BN76: 0 | BO76: 0 | BP76: 0 | BQ76: 0 | BR76: 0 | BS76: 0 | BT76: 0 | BU76: 0 | BV76: 0 | BW76: 0 | BX76: 0 | BY76: 0 | BZ76: 0 | CA76: 0 | CB76: 0 | CC76: 0 | CD76: 0 | CE76: 0 | CF76: 0 | CG76: 0 | CH76: 0 | CI76: 0 | CJ76: 0 | CK76: 0 | CL76: 0 | CM76: 0
A77: None | B77: 0 | C77: 0 | E77: First Year of Application | G77: 2
A78: Plantskydd® Repellent | B78: =C78*'Cost Budgets'!$C$3 -> 2.469387755 | C78: 0.1
A79: Plotsaver Ribbon | B79: 47.5 | C79: =B79/'Cost Budgets'!$C$3 -> 1.923553719
A80: Tree Guard® Deer Repellent | B80: =C80*'Cost Budgets'!$C$3 -> 1.11122449 | C80: 0.045
A81: Tube Tree Shelters | B81: =C81*'Cost Budgets'!C3 -> 24.69387755 | C81: 1
A82: User Defined | B82: 0 | C82: 0
A84: Grafting Technique | B84: Estimated Cost/ac | C84: Cost per Tree | D84: Occurrence
A85: Not Grafted | B85: 0 | C85: 0
A86: Nursery Grafted | B86: =C86*'Cost Budgets'!$C$3 -> 296.3265306 | C86: 12
A87: Professionally Grafted | B87: =C87*'Cost Budgets'!$C$3 -> 296.3265306 | C87: 12 | D87: Grafting conducted every | G87: 1 | H87: years, until year | J87: 5 | BA87: =1+G87 -> 2 | BB87: =IF(AND((BA87+$G$87)<$J$87,BA87>0),BA87+$G$87,0) -> 3 | BC87: =IF(AND((BB87+$G$87)<$J$87,BB87>0),BB87+$G$87,0) -> 4 | BD87: 0 | BE87: 0 | BF87: 0 | BG87: 0 | BH87: 0 | BI87: 0 | BJ87: 0 | BK87: 0 | BL87: 0 | BM87: 0 | BN87: 0 | BO87: 0 | BP87: 0 | BQ87: 0 | BR87: 0 | BS87: 0 | BT87: 0 | BU87: 0 | BV87: 0 | BW87: 0 | BX87: 0 | BY87: 0 | BZ87: 0 | CA87: 0 | CB87: 0 | CC87: 0 | CD87: 0 | CE87: 0 | CF87: 0 | CG87: 0 | CH87: 0 | CI87: 0 | CJ87: 0 | CK87: 0 | CL87: 0
A88: Self Grafted (Bench) | B88: =C88*'Cost Budgets'!$C$3 -> 148.1632653 | C88: 6
A89: Self Grafted (Field) | B89: =C89*'Cost Budgets'!$C$3 -> 148.1632653 | C89: 6 | D89: Grafting conducted every | G89: 1 | H89: years, until year | J89: 5 | BA89: =1+G89 -> 2 | BB89: =IF(AND((BA89+$G$89)<$J$89,BA89>0),BA89+$G$89,0) -> 3 | BC89: =IF(AND((BB89+$G$89)<$J$89,BB89>0),BB89+$G$89,0) -> 4 | BD89: 0 | BE89: 0 | BF89: 0 | BG89: 0 | BH89: 0 | BI89: 0 | BJ89: 0 | BK89: 0 | BL89: 0 | BM89: 0 | BN89: 0 | BO89: 0 | BP89: 0 | BQ89: 0 | BR89: 0 | BS89: 0 | BT89: 0 | BU89: 0 | BV89: 0 | BW89: 0 | BX89: 0 | BY89: 0 | BZ89: 0 | CA89: 0 | CB89: 0 | CC89: 0 | CD89: 0 | CE89: 0 | CF89: 0 | CG89: 0 | CH89: 0 | CI89: 0 | CJ89: 0 | CK89: 0 | CL89: 0
A91: Nutmeat Quality | B91: $/% | C91: $/lb
A92: Grade 1 | B92: 0.024 | C92: =B92*('Management Input'!$N$6*100) -> 0.384
A93: Grade 2 | B93: 0.022 | C93: =B93*('Management Input'!$N$6*100) -> 0.352
A94: Grade 3 | B94: 0.02 | C94: =B94*('Management Input'!$N$6*100) -> 0.32
A95: Grade 4 | B95: 0.018 | C95: =B95*('Management Input'!$N$6*100) -> 0.288
A96: Grade 5 | B96: 0.016 | C96: =B96*('Management Input'!$N$6*100) -> 0.256
A98: Harvest Techniques | B98: Estimated Cost/ac | C98: Cost per Tree
A99: Hand pickup | B99: 20 | C99: =B99/'Cost Budgets'!$C$3 -> 0.8099173554 | D99: PV | E99: N | F99: I | G99: PMT
A100: Mechanized (unspecified) | B100: =IF(K101=0,(-1*G100)/'Financial Analysis'!$D$112,(-1*G100)/K101) -> 22.86115577 | C100: =B100/'Cost Budgets'!$C$3 -> 0.925782341 | D100: 1500 | E100: 10 | F100: 0.085 | G100: =PMT(F100,E100,D100) -> -228.6115577 | M100: Harvesting starts in the | P100: =LOOKUP(0,'Financial Analysis'!D35:BU35,'Financial Analysis'!D1:BU1)+1 -> 4 | Q100: year, until year | S100: =P100+E100 -> 14 | BA100: =P100 -> 4 | BB100: =IF(BA100>$S$100,0,BA100+1) -> 5 | BC100: =IF(OR(BB100>$S$100,BB100=0),0,BB100+1) -> 6 | BD100: =IF(OR(BC100>$S$100,BC100=0),0,BC100+1) -> 7 | BE100: =IF(OR(BD100>$S$100,BD100=0),0,BD100+1) -> 8 | BF100: =IF(OR(BE100>$S$100,BE100=0),0,BE100+1) -> 9 | BG100: 10 | BH100: 11 | BI100: 12 | BJ100: 13 | BK100: 14 | BL100: 15 | BM100: 0 | BN100: 0 | BO100: 0 | BP100: 0 | BQ100: 0 | BR100: 0 | BS100: 0 | BT100: 0 | BU100: 0 | BV100: 0 | BW100: 0
A101: Modified Pecan Harvestor | B101: =IF(K101=0,(-1*G101)/'Financial Analysis'!$D$112,(-1*G101)/K101) -> 68.5834673 | C101: =B101/'Cost Budgets'!$C$3 -> 2.777347023 | D101: 4500 | E101: 10 | F101: 0.085 | G101: =PMT(F101,E101,D101) -> -685.834673 | I101: Number of Acres: | K101: 10 | M101: Harvesting starts in the | P101: =LOOKUP(1,'Financial Analysis'!D70:BU70,'Financial Analysis'!D1:BU1)+1 -> 4 | Q101: year, until year | S101: =P101+E101 -> 14 | BA101: =P101 -> 4 | BB101: =IF(BA101>$S$100,0,BA101+1) -> 5 | BC101: =IF(OR(BB101>$S$100,BB101=0),0,BB101+1) -> 6 | BD101: =IF(OR(BC101>$S$100,BC101=0),0,BC101+1) -> 7 | BE101: 8 | BF101: 9 | BG101: 10 | BH101: 11 | BI101: 12 | BJ101: 13 | BK101: 14 | BL101: 15 | BM101: 0 | BN101: 0 | BO101: 0 | BP101: 0 | BQ101: 0 | BR101: 0 | BS101: 0 | BT101: 0 | BU101: 0 | BV101: 0 | BW101: 0
A102: Nut wizard | B102: 15 | C102: =B102/'Cost Budgets'!$C$3 -> 0.6074380165
A103: User Defined | B103: 0 | C103: 0
A105: Hulling Methods | B105: $/acre | C105: $/lb
A106: Contracted | C106: 0.05 | D106: PV | E106: N | F106: I | G106: PMT
A107: On Farm Huller | C107: 0.03 | D107: 1500 | E107: 10 | F107: 0.085 | G107: =PMT(F107,E107,D107) -> -228.6115577 | I107: Number of Acres: | K107: 10
A108: User Defined | B108: 0 | C108: 0
A110: Drying Methods | B110: $/acre | C110: $/lb
A111: Air Dry | C111: 0.01
A112: Mechanized | C112: 0.15
A113: User Defined | B113: 0 | C113: 0
A115: Site Index | B115: Ave DBH/year | C115: DBH @ Year 5
A116: 50 | B116: =A116*($B$131/$A$131) -> 0.3125 | C116: =A116*($C$131/$A$131) -> 1.875
A117: 52 | B117: =A117*($B$131/$A$131) -> 0.325 | C117: =A117*($C$131/$A$131) -> 1.95
A118: 54 | B118: 0.3375 | C118: 2.025
A119: 56 | B119: 0.35 | C119: 2.1
A120: 58 | B120: 0.3625 | C120: 2.175
A121: 60 | B121: 0.375 | C121: 2.25
A122: 62 | B122: 0.3875 | C122: 2.325
A123: 64 | B123: 0.4 | C123: 2.4
A124: 66 | B124: 0.4125 | C124: 2.475
A125: 68 | B125: 0.425 | C125: 2.55
A126: 70 | B126: 0.4375 | C126: 2.625
A127: 72 | B127: 0.45 | C127: 2.7
A128: 74 | B128: 0.4625 | C128: 2.775
A129: 76 | B129: 0.475 | C129: 2.85
A130: 78 | B130: 0.4875 | C130: 2.925
A131: 80 | B131: 0.5 | C131: 3

Sheet Cost Budgets
B1: Establishment Costs: | G1: Cost /acre | H1: Cost/tree | I1: Total Cost
B2: Site Prep | C2: ='Management Input'!C4 -> Herbicide only (1 qt/ac.) | G2: =LOOKUP($C$2,'Input Tables'!$A$2:$A$5,'Input Tables'!B2:B5) -> 13 | H2: =LOOKUP($C$2,'Input Tables'!$A$2:$A$5,'Input Tables'!C2:C5) -> 0.526446281 | I2: =G2*'Management Input'!O18 -> 130
B3: Initial # of Stems | C3: ='Cost Budgets'!C97 -> 24.69387755 | I3: =C3*'Management Input'!O18 -> 246.9387755
B4: Planting Stock | C4: ='Management Input'!C12 -> Grafted Seedlings
B5: Graft Technique | C5: ='Management Input'!F12 -> Nursery Grafted | G5: ='Cost Budgets'!D101 -> 555.6122449 | H5: ='Cost Budgets'!C101 -> 22.5 | I5: =G5*'Management Input'!$O$18 -> 5556.122449
B6: Fertilization | C6: ='Management Input'!C14 -> Good early growth (> 8") | G6: =LOOKUP($C$6,Fert,'Input Tables'!B20:B22) -> 25.1877551 | H6: =LOOKUP($C$6,Fert,'Input Tables'!C20:C22) -> 1.02 | I6: =G6*'Management Input'!$O$18 -> 251.877551
B7: Tree Staking | C7: ='Management Input'!C16 -> User Defined | G7: =LOOKUP($C$7,'Input Tables'!$A$28:$A$32,'Input Tables'!B28:B32) -> 0 | H7: =LOOKUP($C$7,'Input Tables'!$A$28:$A$32,'Input Tables'!C28:C32) -> 0 | I7: =G7*'Management Input'!$O$18 -> 0
B9: Management Costs:
B10: Thinning | C10: ='Management Input'!C21 -> 0.5
B11: Fertilization | C11: ='Management Input'!C23 -> Bearing trees (33% N) | G11: =LOOKUP($C$11,ManFert,'Input Tables'!B35:B38) -> 23.13 | H11: =LOOKUP($C$11,ManFert,'Input Tables'!C35:C38) -> 0.9366694215 | I11: =G11*'Management Input'!$O$18 -> 231.3
B12: Pruning | C12: ='Management Input'!C25 -> Spring prune | G12: =LOOKUP($C$12,Prune1,'Input Tables'!B41:B44) -> 24.69387755 | H12: =LOOKUP($C$12,Prune1,'Input Tables'!C41:C44) -> 1 | I12: =G12*'Management Input'!$O$18 -> 246.9387755
B13: Weed Control | C13: ='Management Input'!C27 -> Mowing | G13: =LOOKUP($C$13,Weed,'Input Tables'!B47:B51) -> 10 | H13: =LOOKUP($C$13,Weed,'Input Tables'!C47:C51) -> 0.4049586777 | I13: =G13*'Management Input'!$O$18 -> 100
B14: Pest Control | C14: ='Management Input'!C29 -> None | G14: =LOOKUP($C$14,PestC,'Input Tables'!B54:B65) -> 0 | H14: =LOOKUP($C$14,PestC,'Input Tables'!C54:C65) -> 0 | I14: =G14*'Management Input'!$O$18 -> 0
B15: Disease Control | C15: ='Management Input'!C31 -> None | G15: =LOOKUP($C$15,DiseaseC,'Input Tables'!B68:B73) -> 0 | H15: =LOOKUP($C$15,DiseaseC,'Input Tables'!C68:C73) -> 0 | I15: =G15*'Management Input'!$O$18 -> 0
B16: Deer Control | C16: ='Management Input'!C33 -> None | G16: =LOOKUP($C$16,DeerC,'Input Tables'!B76:B82) -> 0 | H16: =LOOKUP($C$16,DeerC,'Input Tables'!C76:C82) -> 0 | I16: =G16*'Management Input'!$O$18 -> 0
B18: Harvesting Costs: | H18: Cost/lb
B19: Harvesting Method | C19: ='Management Input'!N4 -> Hand pickup | G19: =LOOKUP($C$19,Harvest,'Input Tables'!B99:B103) -> 20 | I19: =G19*'Management Input'!$O$18 -> 200
B20: Hulling | C20: ='Management Input'!N10 -> Manual (improvised) | G20: =LOOKUP($C$20,Hull,'Input Tables'!B106:B108) -> 0 | H20: =LOOKUP($C$20,Hull,'Input Tables'!C106:C108) -> 0.05 | I20: =G20*'Management Input'!$O$18 -> 0
B21: Drying | C21: ='Management Input'!N12 -> Air Dry | G21: =LOOKUP($C$21,DryM,'Input Tables'!B111:B113) -> 0 | H21: =LOOKUP($C$21,DryM,'Input Tables'!C111:C113) -> 0.01 | I21: =G21*'Management Input'!$O$18 -> 0
B23: Marketing Costs: | H23: Cost/1000 lb Load
B24: Transportation | H24: =C25*('Management Input'!N14*2) -> 4.2
B25: Cost per mile | C25: 0.03
B95: Spacing
B96: ='Management Input'!C8 -> Rectangular/Square | C96: # of Stems/ac
B97: =TEXT('Management Input'!C6,"0")&" x "&TEXT('Management Input'!E6,"0") -> 42 x 42 | C97: =IF(OR(B96="rectangular/square",B96="diamond"),43560/('Management Input'!C6*'Management Input'!E6),(43560/((('Management Input'!C6/2)^2)*3.14))) -> 24.69387755
B99: Seedling Costs | C99: $/Stem | D99: $/Acre
B100: ='Management Input'!C12 -> Grafted Seedlings
B101: ='Management Input'!F12 -> Nursery Grafted | C101: =VLOOKUP(B100,J106:O110,(IF(B101="Not Grafted",2,IF(B101="Nursery Grafted",3,IF(B101="Professionally Grafted",4,IF(B101="Self Grafted (Bench)",5,6)))))) -> 22.5 | D101: =C101*'Cost Budgets'!C3 -> 555.6122449
B103: Nut Price
B104: ='Management Input'!N6 -> 0.16 | C104: Kernel | J104: Grafting Cost Table
B105: ='Management Input'!N8 -> Grade 4 | D105: =LOOKUP('Cost Budgets'!B105,Grade,'Input Tables'!C92:C96) -> 0.288 | E105: per lb. | K105: Not Grafted | L105: Nursery Grafted | M105: Professionally Grafted | N105: Self Grafted (Bench) | O105: Self Grafted (Field)
J106: Grafted Seedlings | L106: ='Input Tables'!C13 -> 22.5 | M106: ='Input Tables'!C13 -> 22.5 | N106: ='Input Tables'!C88+'Input Tables'!C14 -> 6.5 | O106: =K107+'Input Tables'!C89 -> 6.5
J107: Seed | K107: ='Input Tables'!C14 -> 0.5 | M107: =K107+'Input Tables'!C87 -> 12.5 | N107: =K107+'Input Tables'!C88 -> 6.5 | O107: =K107+'Input Tables'!C89 -> 6.5
J108: Seedlings (bare root) | K108: ='Input Tables'!C15 -> 7 | M108: =K108+'Input Tables'!C87 -> 19 | N108: =K108+'Input Tables'!C88 -> 13 | O108: =K108+'Input Tables'!C89 -> 13
J109: Seedlings (RPM™) | K109: ='Input Tables'!C16 -> 13 | L109: =K109+'Input Tables'!C86 -> 25 | M109: =K109+'Input Tables'!C87 -> 25 | O109: =K109+'Input Tables'!C89 -> 19
J110: User Defined | K110: ='Input Tables'!C17 -> 0

Sheet Financial Analysis
A1: Tree Growth Estimations | C1: Site Index | D1: 1 | E1: =D1+1 -> 2 | F1: =E1+1 -> 3 | G1: 4 | H1: 5 | I1: 6 | J1: 7 | K1: 8 | L1: 9 | M1: 10 | N1: 11 | O1: 12 | P1: 13 | Q1: 14 | R1: 15 | S1: 16 | T1: 17 | U1: 18 | V1: 19 | W1: 20 | X1: 21 | Y1: 22 | Z1: 23 | AA1: 24 | AB1: 25 | AC1: 26 | AD1: 27 | AE1: 28 | AF1: 29 | AG1: 30 | AH1: 31 | AI1: 32 | AJ1: 33 | AK1: 34 | AL1: 35 | AM1: 36 | AN1: 37 | AO1: 38 | AP1: 39 | AQ1: 40 | AR1: 41 | AS1: 42 | AT1: 43 | AU1: 44 | AV1: 45 | AW1: 46 | AX1: 47 | AY1: 48 | AZ1: 49 | BA1: 50 | BB1: 51 | BC1: 52 | BD1: 53 | BE1: 54 | BF1: 55 | BG1: 56 | BH1: 57 | BI1: 58 | BJ1: 59 | BK1: 60 | BL1: 61 | BM1: 62 | BN1: 63 | BO1: 64 | BP1: 65 | BQ1: 66 | BR1: =BQ1+1 -> 67 | BS1: =BR1+1 -> 68 | BT1: =BS1+1 -> 69 | BU1: =BT1+1 -> 70
B2: DBH per Stem | C2: 70 | D2: =E2-$I$29 -> 0.875 | E2: =F2-$I$29 -> 1.3125 | F2: =G2-$I$29 -> 1.75 | G2: =H2-$I$29 -> 2.1875 | H2: =LOOKUP(C2,SI,'Input Tables'!C116:C131) -> 2.625 | I2: =H2+(H29*H28) -> 3.0625 | J2: =I2+(I29*I28) -> 3.5 | K2: 3.9375 | L2: 4.375 | M2: 4.8125 | N2: 5.25 | O2: 5.6875 | P2: 6.125 | Q2: 6.5625 | R2: 7 | S2: 7.4375 | T2: 7.875 | U2: 8.3125 | V2: 8.75 | W2: 9.1875 | X2: 9.579259742 | Y2: 9.954974664 | Z2: 10.31364983 | AA2: 10.65456717 | AB2: 11.09206717 | AC2: 11.52956717 | AD2: 11.96706717 | AE2: 12.40456717 | AF2: 12.84206717 | AG2: 13.27956717 | AH2: 13.71706717 | AI2: 14.1164637 | AJ2: 14.50514235 | AK2: 14.88250004 | AL2: 15.24803743 | AM2: 15.60135349 | AN2: 15.94214 | AO2: 16.37964 | AP2: 16.81714 | AQ2: 17.25464 | AR2: 17.69214 | AS2: 18.12964 | AT2: 18.56714 | AU2: 19.00464 | AV2: 19.44214 | AW2: 19.87964 | AX2: 20.31714 | AY2: 20.71822515 | AZ2: 21.11190651 | BA2: 21.49786233 | BB2: 21.87580851 | BC2: 22.24549707 | BD2: 22.60671485 | BE2: 22.95928201 | BF2: 23.30305077 | BG2: 23.74055077 | BH2: 24.17805077 | BI2: 24.61555077 | BJ2: 25.05305077 | BK2: 25.49055077 | BL2: 25.92805077 | BM2: 26.36555077 | BN2: 26.80305077 | BO2: 27.24055077 | BP2: 27.67805077 | BQ2: 28.11555077 | BR2: 28.55305077 | BS2: 28.99055077 | BT2: 29.42805077 | BU2: 29.83306323
C3: Initial Tree Height
B4: Tree Height | C4: =IF('Management Input'!C12="Seed", 0,IF('Management Input'!C12="Seedlings (bare root)", 1.5,2.5)) -> 2.5 | D4: =C4 -> 2.5 | E4: =D4+(('Management Input'!$C$10-$D$4)/50) -> 4.05 | F4: =E4+(('Management Input'!$C$10-$D$4)/50) -> 5.6 | G4: =F4+(('Management Input'!$C$10-$D$4)/50) -> 7.15 | H4: =G4+(('Management Input'!$C$10-$D$4)/50) -> 8.7 | I4: =H4+(('Management Input'!$C$10-$D$4)/50) -> 10.25 | J4: =I4+(('Management Input'!$C$10-$D$4)/50) -> 11.8 | K4: =J4+(('Management Input'!$C$10-$D$4)/50) -> 13.35 | L4: =K4+(('Management Input'!$C$10-$D$4)/50) -> 14.9 | M4: =L4+(('Management Input'!$C$10-$D$4)/50) -> 16.45 | N4: =M4+(('Management Input'!$C$10-$D$4)/50) -> 18 | O4: =N4+(('Management Input'!$C$10-$D$4)/50) -> 19.55 | P4: =O4+(('Management Input'!$C$10-$D$4)/50) -> 21.1 | Q4: =P4+(('Management Input'!$C$10-$D$4)/50) -> 22.65 | R4: =Q4+(('Management Input'!$C$10-$D$4)/50) -> 24.2 | S4: =R4+(('Management Input'!$C$10-$D$4)/50) -> 25.75 | T4: =S4+(('Management Input'!$C$10-$D$4)/50) -> 27.3 | U4: =T4+(('Management Input'!$C$10-$D$4)/50) -> 28.85 | V4: =U4+(('Management Input'!$C$10-$D$4)/50) -> 30.4 | W4: =V4+(('Management Input'!$C$10-$D$4)/50) -> 31.95 | X4: =W4+(('Management Input'!$C$10-$D$4)/50) -> 33.5 | Y4: =X4+(('Management Input'!$C$10-$D$4)/50) -> 35.05 | Z4: =Y4+(('Management Input'!$C$10-$D$4)/50) -> 36.6 | AA4: =Z4+(('Management Input'!$C$10-$D$4)/50) -> 38.15 | AB4: =AA4+(('Management Input'!$C$10-$D$4)/50) -> 39.7 | AC4: =AB4+(('Management Input'!$C$10-$D$4)/50) -> 41.25 | AD4: =AC4+(('Management Input'!$C$10-$D$4)/50) -> 42.8 | AE4: =AD4+(('Management Input'!$C$10-$D$4)/50) -> 44.35 | AF4: =AE4+(('Management Input'!$C$10-$D$4)/50) -> 45.9 | AG4: =AF4+(('Management Input'!$C$10-$D$4)/50) -> 47.45 | AH4: =AG4+(('Management Input'!$C$10-$D$4)/50) -> 49 | AI4: =AH4+(('Management Input'!$C$10-$D$4)/50) -> 50.55 | AJ4: =AI4+(('Management Input'!$C$10-$D$4)/50) -> 52.1 | AK4: =AJ4+(('Management Input'!$C$10-$D$4)/50) -> 53.65 | AL4: =AK4+(('Management Input'!$C$10-$D$4)/50) -> 55.2 | AM4: =AL4+(('Management Input'!$C$10-$D$4)/50) -> 56.75 | AN4: =AM4+(('Management Input'!$C$10-$D$4)/50) -> 58.3 | AO4: =AN4+(('Management Input'!$C$10-$D$4)/50) -> 59.85 | AP4: =AO4+(('Management Input'!$C$10-$D$4)/50) -> 61.4 | AQ4: =AP4+(('Management Input'!$C$10-$D$4)/50) -> 62.95 | AR4: =AQ4+(('Management Input'!$C$10-$D$4)/50) -> 64.5 | AS4: =AR4+(('Management Input'!$C$10-$D$4)/50) -> 66.05 | AT4: =AS4+(('Management Input'!$C$10-$D$4)/50) -> 67.6 | AU4: =AT4+(('Management Input'!$C$10-$D$4)/50) -> 69.15 | AV4: =AU4+(('Management Input'!$C$10-$D$4)/50) -> 70.7 | AW4: =AV4+(('Management Input'!$C$10-$D$4)/50) -> 72.25 | AX4: =AW4+(('Management Input'!$C$10-$D$4)/50) -> 73.8 | AY4: =AX4+(('Management Input'!$C$10-$D$4)/50) -> 75.35 | AZ4: =AY4+(('Management Input'!$C$10-$D$4)/50) -> 76.9 | BA4: =AZ4+(('Management Input'!$C$10-$D$4)/50) -> 78.45 | BB4: =BA4+(('Management Input'!$C$10-$D$4)/50) -> 80 | BC4: =BB4+(('Management Input'!$C$10-$D$4)/50) -> 81.55 | BD4: =BC4+(('Management Input'!$C$10-$D$4)/50) -> 83.1 | BE4: =BD4+(('Management Input'!$C$10-$D$4)/50) -> 84.65 | BF4: =BE4+(('Management Input'!$C$10-$D$4)/50) -> 86.2 | BG4: =BF4+(('Management Input'!$C$10-$D$4)/50) -> 87.75 | BH4: =BG4+(('Management Input'!$C$10-$D$4)/50) -> 89.3 | BI4: =BH4+(('Management Input'!$C$10-$D$4)/50) -> 90.85 | BJ4: =BI4+(('Management Input'!$C$10-$D$4)/50) -> 92.4 | BK4: =BJ4+(('Management Input'!$C$10-$D$4)/50) -> 93.95 | BL4: =BK4+(('Management Input'!$C$10-$D$4)/50) -> 95.5 | BM4: =BL4+(('Management Input'!$C$10-$D$4)/50) -> 97.05 | BN4: =BM4+(('Management Input'!$C$10-$D$4)/50) -> 98.6 | BO4: =BN4+(('Management Input'!$C$10-$D$4)/50) -> 100.15 | BP4: =BO4+(('Management Input'!$C$10-$D$4)/50) -> 101.7 | BQ4: =BP4+(('Management Input'!$C$10-$D$4)/50) -> 103.25 | BR4: =BQ4+(('Management Input'!$C$10-$D$4)/50) -> 104.8 | BS4: =BR4+(('Management Input'!$C$10-$D$4)/50) -> 106.35 | BT4: =BS4+(('Management Input'!$C$10-$D$4)/50) -> 107.9 | BU4: =BT4+(('Management Input'!$C$10-$D$4)/50) -> 109.45
B6: Basal Area per Stem (in2) | D6: =3.14*(D2/2)^2 -> 0.601015625 | E6: =3.14*(E2/2)^2 -> 1.352285156 | F6: 2.4040625 | G6: 3.756347656 | H6: 5.409140625 | I6: 7.362441406 | J6: 9.61625 | K6: 12.17056641 | L6: 15.02539062 | M6: 18.18072266 | N6: 21.6365625 | O6: 25.39291016 | P6: 29.44976563 | Q6: 33.80712891 | R6: 38.465 | S6: 43.42337891 | T6: 48.68226562 | U6: 54.24166016 | V6: 60.1015625 | W6: 66.26197266 | X6: 72.0333405 | Y6: 77.79469364 | Z6: 83.50152759 | AA6: 89.11304423 | AB6: 96.58165396 | AC6: 104.3507715 | AD6: 112.4203969 | AE6: 120.79053 | AF6: 129.461171 | AG6: 138.4323198 | AH6: 147.7039764 | AI6: 156.4305197 | AJ6: 165.1633365 | AK6: 173.8687138 | AL6: 182.5145768 | AM6: 191.0707511 | AN6: 199.5091849 | AO6: 210.6096962 | AP6: 222.0107154 | AQ6: 233.7122423 | AR6: 245.7142771 | AS6: 258.0168197 | AT6: 270.61987 | AU6: 283.5234282 | AV6: 296.7274943 | AW6: 310.2320681 | AX6: 324.0371497 | AY6: 336.9572099 | AZ6: 349.8843881 | BA6: 362.7940966 | BB6: 375.6625333 | BC6: 388.4667799 | BD6: 401.1848915 | BE6: 413.7959749 | BF6: 426.2802574 | BG6: 442.4367943 | BH6: 458.893839 | BI6: 475.6513915 | BJ6: 492.7094519 | BK6: 510.06802 | BL6: 527.727096 | BM6: 545.6866798 | BN6: 563.9467713 | BO6: 582.5073707 | BP6: 601.368478 | BQ6: =3.14*(BQ2/2)^2 -> 620.530093 | BR6: =3.14*(BR2/2)^2 -> 639.9922158 | BS6: =3.14*(BS2/2)^2 -> 659.7548465 | BT6: =3.14*(BT2/2)^2 -> 679.8179849 | BU6: =3.14*(BU2/2)^2 -> 698.6591544
B8: Basal Area per Acre (ft2) | D8: =D6*D13/144 -> 0.1030653212 | E8: =E6*E13/144 -> 0.2318969727 | F8: 0.4122612847 | G8: 0.6441582574 | H8: 0.8900244141 | I8: 1.160294054 | J8: 1.515486111 | K8: 1.833519287 | L8: 2.159261068 | M8: 2.612705892 | N8: 3.109335938 | O8: 3.649151204 | P8: 4.232151693 | Q8: 4.858337402 | R8: 5.527708333 | S8: 6.240264486 | T8: 6.996005859 | U8: 7.794932454 | V8: 8.637044271 | W8: 9.522341309 | X8: 10.35173006 | Y8: 11.17967961 | Z8: 5.999897178 | AA8: 6.403105644 | AB8: 6.939753197 | AC8: 7.497993361 | AD8: 8.077826135 | AE8: 8.67925152 | AF8: 9.302269516 | AG8: 9.946880122 | AH8: 10.61308334 | AI8: 11.24011812 | AJ8: 11.86760368 | AK8: 12.49311762 | AL8: 13.11435522 | AM8: 6.86457418 | AN8: 7.1677407 | AO8: 7.566547335 | AP8: 7.976150276 | AQ8: 8.396549522 | AR8: 8.827745074 | AS8: 9.269736931 | AT8: 9.722525093 | AU8: 10.18610956 | AV8: 10.66049033 | AW8: 11.14566741 | AX8: 11.6416408 | AY8: 12.10581813 | AZ8: 12.57025119 | BA8: 13.03405662 | BB8: 13.49637928 | BC8: 13.95639579 | BD8: 14.41331774 | BE8: 7.433197254 | BF8: 7.657457855 | BG8: 7.947684761 | BH8: 8.24330982 | BI8: 8.544333032 | BJ8: 8.850754397 | BK8: 9.162573914 | BL8: 9.479791584 | BM8: 9.802407406 | BN8: 10.13042138 | BO8: 10.46383351 | BP8: 10.80264379 | BQ8: =BQ6*BQ13/144 -> 11.14685222 | BR8: =BR6*BR13/144 -> 11.49645881 | BS8: =BS6*BS13/144 -> 11.85146355 | BT8: =BT6*BT13/144 -> 12.21186644 | BU8: =BU6*BU13/144 -> 12.55031857
B10: Crown Competition Factor 1 | D10: =((C13*3.14*(0.997*(D2)+2.436)^2)/44000)*100 -> 1.928837863 | E10: 2.470975443 | F10: 3.080169802 | G10: 3.75642094 | H10: 4.499728857 | I10: 5.095056707 | J10: 5.686377448 | K10: 6.554360769 | L10: 7.154190579 | M10: 7.728289099 | N10: 8.688361555 | O10: 9.7046287 | P10: 10.77709053 | Q10: 11.90574706 | R10: 13.09059827 | S10: 14.33164417 | T10: 15.62888476 | U10: 16.98232004 | V10: 18.39195001 | W10: 19.85777467 | X10: 21.21803774 | Y10: 22.56491857 | Z10: 23.88938117 | AA10: 12.59164062 | AB10: 13.44686902 | AC10: 14.33019476 | AD10: 15.24161785 | AE10: 16.18113828 | AF10: 17.14875605 | AG10: 18.14447117 | AH10: 19.16828364 | AI10: 20.1274618 | AJ10: =((AI13*3.14*(0.997*(AJ2)+2.436)^2)/44000)*100 -> 21.08338239 | AK10: 22.03267694 | AL10: 22.97216738 | AM10: 23.89888859 | AN10: 12.40505359 | AO10: 13.00245836 | AP10: 13.61391181 | AQ10: 14.23941393 | AR10: 14.87896473 | AS10: 15.5325642 | AT10: 16.20021233 | AU10: 16.88190915 | AV10: 17.57765463 | AW10: 18.28744878 | AX10: 19.01129161 | AY10: 19.68722949 | AZ10: 20.36217238 | BA10: 21.03491312 | BB10: 21.70428802 | BC10: 22.36918118 | BD10: 23.02852845 | BE10: 23.68132083 | BF10: 12.16330372 | BG10: 12.58019014 | BH10: 13.00410089 | BI10: 13.43503598 | BJ10: 13.8729954 | BK10: 14.31797916 | BL10: 14.76998726 | BM10: 15.22901969 | BN10: 15.69507646 | BO10: 16.16815756 | BP10: =((BO13*3.14*(0.997*(BP2)+2.436)^2)/44000)*100 -> 16.648263 | BQ10: 17.13539278 | BR10: 17.62954689 | BS10: 18.13072534 | BT10: 18.63892812 | BU10: 19.11565447
B11: Crown Competition Factor 2 | D11: =(((C13*3.14*(0.997*(D2)+2.436)^2)/44000)*100)^1.5 -> 2.678820316 | E11: =(((D13*3.14*(0.997*(E2)+2.436)^2)/44000)*100)^1.5 -> 3.884209481 | F11: 5.405825071 | G11: 7.280502902 | H11: 9.545078789 | I11: 11.50068035 | J11: 13.55980754 | K11: 16.78013744 | L11: 19.13554155 | M11: 21.48448955 | N11: 25.6098378 | O11: 30.2321049 | P11: 35.37954936 | Q11: 41.08042967 | R11: 47.36300434 | S11: 54.25553188 | T11: 61.78627079 | U11: 69.98347958 | V11: 78.87541674 | W11: 88.49034078 | X11: 97.73673486 | Y11: 107.1891078 | Z11: 116.763566 | AA11: 44.68106125 | AB11: 49.30963204 | AC11: 54.24730149 | AD11: 59.50406049 | AE11: 65.08989992 | AF11: 71.01481069 | AG11: 77.28878367 | AH11: 83.92180976 | AI11: 90.29911973 | AJ11: 96.80781732 | AK11: 103.4191347 | AL11: 110.1039648 | AM11: 116.8332767 | AN11: 43.6916018 | AO11: 46.88546284 | AP11: 50.23129787 | AQ11: 53.7326392 | AR11: 57.39301916 | AS11: 61.21597004 | AT11: 65.20502417 | AU11: 69.36371386 | AV11: 73.69557141 | AW11: 78.20412916 | AX11: 82.89291939 | AY11: 87.35281514 | AZ11: 91.88321116 | BA11: 96.47417735 | BB11: 101.1156355 | BC11: 105.7974331 | BD11: 110.5094151 | BE11: 115.2414947 | BF11: 42.42065082 | BG11: 44.62012758 | BH11: 46.89434729 | BI11: 49.24455878 | BJ11: 51.67201094 | BK11: 54.17795261 | BL11: 56.76363266 | BM11: 59.43029996 | BN11: 62.17920335 | BO11: 65.01159171 | BP11: 67.92871389 | BQ11: =(((BP13*3.14*(0.997*(BQ2)+2.436)^2)/44000)*100)^1.5 -> 70.93181876 | BR11: =(((BQ13*3.14*(0.997*(BR2)+2.436)^2)/44000)*100)^1.5 -> 74.02215517 | BS11: =(((BR13*3.14*(0.997*(BS2)+2.436)^2)/44000)*100)^1.5 -> 77.20097199 | BT11: =(((BS13*3.14*(0.997*(BT2)+2.436)^2)/44000)*100)^1.5 -> 80.46951808 | BU11: =(((BT13*3.14*(0.997*(BU2)+2.436)^2)/44000)*100)^1.5 -> 83.57641874
C12: Initial Density
B13: Stems per Acre | C13: ='Cost Budgets'!C3 -> 24.69387755 | D13: =C13 -> 24.69387755 | E13: =D13-E17 -> 24.69387755 | F13: =E13-F17 -> 24.69387755 | G13: =F13-G17 -> 24.69387755 | H13: =G13-(G15+H17) -> 23.69387755 | I13: 22.69387755 | J13: 22.69387755 | K13: 21.69387755 | L13: 20.69387755 | M13: 20.69387755 | N13: 20.69387755 | O13: 20.69387755 | P13: 20.69387755 | Q13: 20.69387755 | R13: 20.69387755 | S13: 20.69387755 | T13: 20.69387755 | U13: 20.69387755 | V13: 20.69387755 | W13: 20.69387755 | X13: 20.69387755 | Y13: 20.69387755 | Z13: 10.34693878 | AA13: 10.34693878 | AB13: 10.34693878 | AC13: 10.34693878 | AD13: 10.34693878 | AE13: 10.34693878 | AF13: 10.34693878 | AG13: 10.34693878 | AH13: 10.34693878 | AI13: 10.34693878 | AJ13: 10.34693878 | AK13: 10.34693878 | AL13: 10.34693878 | AM13: 5.173469388 | AN13: 5.173469388 | AO13: 5.173469388 | AP13: 5.173469388 | AQ13: 5.173469388 | AR13: 5.173469388 | AS13: 5.173469388 | AT13: 5.173469388 | AU13: 5.173469388 | AV13: 5.173469388 | AW13: 5.173469388 | AX13: 5.173469388 | AY13: 5.173469388 | AZ13: 5.173469388 | BA13: 5.173469388 | BB13: 5.173469388 | BC13: 5.173469388 | BD13: 5.173469388 | BE13: 2.586734694 | BF13: 2.586734694 | BG13: 2.586734694 | BH13: 2.586734694 | BI13: 2.586734694 | BJ13: 2.586734694 | BK13: 2.586734694 | BL13: 2.586734694 | BM13: 2.586734694 | BN13: 2.586734694 | BO13: 2.586734694 | BP13: 2.586734694 | BQ13: 2.586734694 | BR13: =BQ13-(BQ15+BR17) -> 2.586734694 | BS13: =BR13-(BR15+BS17) -> 2.586734694 | BT13: =BS13-(BS15+BT17) -> 2.586734694 | BU13: =BT13-(BT15+BU17) -> 2.586734694
B15: Mortality Loss (1st 10 years) | C15: 0.08 | D15: =IF(D1<10,RANDBETWEEN(0,($C$15*C13)),0) -> 0 | E15: =IF(E1<10,RANDBETWEEN(0,($C$15*D13)),0) -> 1 | F15: 1 | G15: 1 | H15: 1 | I15: 0 | J15: 1 | K15: 1 | L15: 0 | M15: 0 | N15: 0 | O15: 0 | P15: 0 | Q15: 0 | R15: 0 | S15: 0 | T15: 0 | U15: 0 | V15: 0 | W15: 0 | X15: 0 | Y15: 0 | Z15: 0 | AA15: 0 | AB15: 0 | AC15: 0 | AD15: 0 | AE15: 0 | AF15: 0 | AG15: 0 | AH15: 0 | AI15: 0 | AJ15: 0 | AK15: 0 | AL15: 0 | AM15: 0 | AN15: 0 | AO15: 0 | AP15: 0 | AQ15: 0 | AR15: 0 | AS15: 0 | AT15: 0 | AU15: 0 | AV15: 0 | AW15: 0 | AX15: 0 | AY15: 0 | AZ15: 0 | BA15: 0 | BB15: 0 | BC15: 0 | BD15: 0 | BE15: 0 | BF15: 0 | BG15: 0 | BH15: 0 | BI15: 0 | BJ15: 0 | BK15: 0 | BL15: 0 | BM15: 0 | BN15: 0 | BO15: 0 | BP15: 0 | BQ15: =IF(BQ1<10,RANDBETWEEN(0,($C$15*BP13)),0) -> 0 | BR15: =IF(BR1<10,RANDBETWEEN(0,($C$15*BQ13)),0) -> 0 | BS15: =IF(BS1<10,RANDBETWEEN(0,($C$15*BR13)),0) -> 0 | BT15: =IF(BT1<10,RANDBETWEEN(0,($C$15*BS13)),0) -> 0 | BU15: =IF(BU1<10,RANDBETWEEN(0,($C$15*BT13)),0) -> 0
C16: Removal %
B17: Thinnings (# of stems removed) | C17: ='Management Input'!C21 -> 0.5 | D17: =IF(D28>0.8,0,(D13*($C$17))) -> 0 | E17: =IF(E28>0.8,0,((D13-D15)*($C$17))) -> 0 | F17: =IF(F28>0.8,0,((E13-E15)*($C$17))) -> 0 | G17: 0 | H17: 0 | I17: 0 | J17: 0 | K17: 0 | L17: 0 | M17: 0 | N17: 0 | O17: 0 | P17: 0 | Q17: 0 | R17: 0 | S17: 0 | T17: 0 | U17: 0 | V17: 0 | W17: 0 | X17: 0 | Y17: 0 | Z17: 10.34693878 | AA17: 0 | AB17: 0 | AC17: 0 | AD17: 0 | AE17: 0 | AF17: 0 | AG17: 0 | AH17: 0 | AI17: 0 | AJ17: 0 | AK17: 0 | AL17: 0 | AM17: 5.173469388 | AN17: 0 | AO17: 0 | AP17: 0 | AQ17: 0 | AR17: 0 | AS17: 0 | AT17: 0 | AU17: 0 | AV17: 0 | AW17: 0 | AX17: 0 | AY17: 0 | AZ17: 0 | BA17: 0 | BB17: 0 | BC17: 0 | BD17: 0 | BE17: 2.586734694 | BF17: 0 | BG17: 0 | BH17: 0 | BI17: 0 | BJ17: 0 | BK17: 0 | BL17: 0 | BM17: 0 | BN17: 0 | BO17: 0 | BP17: 0 | BQ17: 0 | BR17: =IF(BR28>0.8,0,((BQ13-BQ15)*($C$17))) -> 0 | BS17: =IF(BS28>0.8,0,((BR13-BR15)*($C$17))) -> 0 | BT17: =IF(BT28>0.8,0,((BS13-BS15)*($C$17))) -> 0 | BU17: =IF(BU28>0.8,0,((BT13-BT15)*($C$17))) -> 0
B19: Basal Area Removed | D19: 0 | E19: =IF(D8-E8>0,D8-E8,0) -> 0 | F19: =IF(E8-F8>0,E8-F8,0) -> 0 | G19: 0 | H19: 0 | I19: 0 | J19: 0 | K19: 0 | L19: 0 | M19: 0 | N19: 0 | O19: 0 | P19: 0 | Q19: 0 | R19: 0 | S19: 0 | T19: 0 | U19: 0 | V19: 0 | W19: 0 | X19: 0 | Y19: 0 | Z19: 5.179782436 | AA19: 0 | AB19: 0 | AC19: 0 | AD19: 0 | AE19: 0 | AF19: 0 | AG19: 0 | AH19: 0 | AI19: 0 | AJ19: 0 | AK19: 0 | AL19: 0 | AM19: 6.249781039 | AN19: 0 | AO19: 0 | AP19: 0 | AQ19: 0 | AR19: 0 | AS19: 0 | AT19: 0 | AU19: 0 | AV19: 0 | AW19: 0 | AX19: 0 | AY19: 0 | AZ19: 0 | BA19: 0 | BB19: 0 | BC19: 0 | BD19: 0 | BE19: 6.98012049 | BF19: 0 | BG19: 0 | BH19: 0 | BI19: 0 | BJ19: 0 | BK19: 0 | BL19: 0 | BM19: 0 | BN19: 0 | BO19: 0 | BP19: 0 | BQ19: 0 | BR19: =IF(BQ8-BR8>0,BQ8-BR8,0) -> 0 | BS19: =IF(BR8-BS8>0,BR8-BS8,0) -> 0 | BT19: =IF(BS8-BT8>0,BS8-BT8,0) -> 0 | BU19: =IF(BT8-BU8>0,BT8-BU8,0) -> 0
B21: Nut Yield/tree (No Fert) | D21: =(6*(D2)-8.304) -> -3.054 | E21: -0.429 | F21: 2.196 | G21: 4.821 | H21: 7.446 | I21: 10.071 | J21: 12.696 | K21: 15.321 | L21: 17.946 | M21: 20.571 | N21: 23.196 | O21: 25.821 | P21: 28.446 | Q21: 31.071 | R21: 33.696 | S21: 36.321 | T21: 38.946 | U21: 41.571 | V21: 44.196 | W21: 46.821 | X21: 49.17155845 | Y21: 51.42584799 | Z21: 53.57789895 | AA21: 55.62340302 | AB21: 58.24840302 | AC21: 60.87340302 | AD21: 63.49840302 | AE21: 66.12340302 | AF21: 68.74840302 | AG21: 71.37340302 | AH21: 73.99840302 | AI21: 76.39478219 | AJ21: =(6*(AJ2)-8.304) -> 78.72685413 | AK21: 80.99100024 | AL21: 83.1842246 | AM21: 85.30412095 | AN21: 87.34884003 | AO21: 89.97384003 | AP21: 92.59884003 | AQ21: 95.22384003 | AR21: 97.84884003 | AS21: 100.47384 | AT21: 103.09884 | AU21: 105.72384 | AV21: 108.34884 | AW21: 110.97384 | AX21: 113.59884 | AY21: 116.0053509 | AZ21: 118.367439 | BA21: 120.683174 | BB21: 122.950851 | BC21: 125.1689824 | BD21: 127.3362891 | BE21: 129.4516921 | BF21: 131.5143046 | BG21: 134.1393046 | BH21: 136.7643046 | BI21: 139.3893046 | BJ21: 142.0143046 | BK21: 144.6393046 | BL21: 147.2643046 | BM21: 149.8893046 | BN21: 152.5143046 | BO21: 155.1393046 | BP21: =(6*(BP2)-8.304) -> 157.7643046 | BQ21: 160.3893046 | BR21: 163.0143046 | BS21: 165.6393046 | BT21: 168.2643046 | BU21: 170.6943794
B22: Fertilizer Impact (Direct) | D22: =IF(D45>0,(D21*0.1),0) -> -0.3054 | E22: =IF(D45>0, (E21*0.1),0) -> -0.0429 | F22: =IF(E53>0, (F21*0.1),0) -> 0.2196 | G22: =IF(F53>0, (G21*0.1),0) -> 0 | H22: 0.7446 | I22: 0 | J22: 1.2696 | K22: 0 | L22: 1.7946 | M22: 0 | N22: 2.3196 | O22: 0 | P22: 2.8446 | Q22: 0 | R22: 3.3696 | S22: 0 | T22: 3.8946 | U22: 0 | V22: 4.4196 | W22: 0 | X22: 4.917155845 | Y22: 0 | Z22: 5.357789895 | AA22: 0 | AB22: 5.824840302 | AC22: 0 | AD22: 0 | AE22: 0 | AF22: 0 | AG22: 0 | AH22: 0 | AI22: 0 | AJ22: 0 | AK22: 0 | AL22: 0 | AM22: 0 | AN22: 0 | AO22: 0 | AP22: 0 | AQ22: 0 | AR22: 0 | AS22: 0 | AT22: 0 | AU22: 0 | AV22: 0 | AW22: 0 | AX22: 0 | AY22: 0 | AZ22: 0 | BA22: 0 | BB22: 0 | BC22: 0 | BD22: 0 | BE22: 0 | BF22: 0 | BG22: 0 | BH22: 0 | BI22: 0 | BJ22: 0 | BK22: 0 | BL22: 0 | BM22: 0 | BN22: 0 | BO22: 0 | BP22: 0 | BQ22: 0 | BR22: 0 | BS22: =IF(BR53>0, (BS21*0.1),0) -> 0 | BT22: =IF(BS53>0, (BT21*0.1),0) -> 0 | BU22: =IF(BT53>0, (BU21*0.1),0) -> 0
B23: Fertilizer Impact (Indirect) | E23: =IF(D22>0,(D22*0.5),0) -> 0 | F23: 0 | G23: 0.1098 | H23: 0 | I23: 0.3723 | J23: 0 | K23: 0.6348 | L23: 0 | M23: 0.8973 | N23: 0 | O23: 1.1598 | P23: 0 | Q23: 1.4223 | R23: 0 | S23: 1.6848 | T23: 0 | U23: 1.9473 | V23: 0 | W23: 2.2098 | X23: 0 | Y23: 2.458577923 | Z23: 0 | AA23: 2.678894948 | AB23: 0 | AC23: 2.912420151 | AD23: 0 | AE23: 0 | AF23: 0 | AG23: 0 | AH23: 0 | AI23: 0 | AJ23: 0 | AK23: =IF(AJ22>0,(AJ22*0.5),0) -> 0 | AL23: 0 | AM23: 0 | AN23: 0 | AO23: 0 | AP23: 0 | AQ23: 0 | AR23: 0 | AS23: 0 | AT23: 0 | AU23: 0 | AV23: 0 | AW23: 0 | AX23: 0 | AY23: 0 | AZ23: 0 | BA23: 0 | BB23: 0 | BC23: 0 | BD23: 0 | BE23: 0 | BF23: 0 | BG23: 0 | BH23: 0 | BI23: 0 | BJ23: 0 | BK23: 0 | BL23: 0 | BM23: 0 | BN23: 0 | BO23: 0 | BP23: 0 | BQ23: 0 | BR23: 0 | BS23: 0 | BT23: 0 | BU23: 0
B24: Nut Yield/tree (Fert) | D24: =SUM(D21:D23) -> -3.3594 | E24: =SUM(E21:E23) -> -0.4719 | F24: 2.4156 | G24: 4.9308 | H24: 8.1906 | I24: 10.4433 | J24: 13.9656 | K24: 15.9558 | L24: 19.7406 | M24: 21.4683 | N24: 25.5156 | O24: 26.9808 | P24: 31.2906 | Q24: 32.4933 | R24: 37.0656 | S24: 38.0058 | T24: 42.8406 | U24: 43.5183 | V24: 48.6156 | W24: 49.0308 | X24: 54.0887143 | Y24: 53.88442591 | Z24: 58.93568885 | AA24: 58.30229796 | AB24: 64.07324332 | AC24: 63.78582317 | AD24: 63.49840302 | AE24: 66.12340302 | AF24: 68.74840302 | AG24: 71.37340302 | AH24: 73.99840302 | AI24: 76.39478219 | AJ24: 78.72685413 | AK24: 80.99100024 | AL24: 83.1842246 | AM24: 85.30412095 | AN24: 87.34884003 | AO24: 89.97384003 | AP24: 92.59884003 | AQ24: 95.22384003 | AR24: 97.84884003 | AS24: 100.47384 | AT24: 103.09884 | AU24: 105.72384 | AV24: 108.34884 | AW24: 110.97384 | AX24: 113.59884 | AY24: 116.0053509 | AZ24: 118.367439 | BA24: 120.683174 | BB24: 122.950851 | BC24: 125.1689824 | BD24: 127.3362891 | BE24: 129.4516921 | BF24: 131.5143046 | BG24: 134.1393046 | BH24: 136.7643046 | BI24: 139.3893046 | BJ24: 142.0143046 | BK24: 144.6393046 | BL24: 147.2643046 | BM24: 149.8893046 | BN24: 152.5143046 | BO24: 155.1393046 | BP24: 157.7643046 | BQ24: =SUM(BQ21:BQ23) -> 160.3893046 | BR24: =SUM(BR21:BR23) -> 163.0143046 | BS24: =SUM(BS21:BS23) -> 165.6393046 | BT24: =SUM(BT21:BT23) -> 168.2643046 | BU24: =SUM(BU21:BU23) -> 170.6943794
B27: Nut Yield/Acre | D27: =D24*D13 -> -82.95661224 | E27: =E24*E13 -> -11.65304082 | F27: 59.65053061 | G27: 121.7605714 | H27: 194.0670735 | I27: 236.9989714 | J27: 316.9336163 | K27: 346.1431714 | L27: 408.5095592 | M27: 444.2623714 | N27: 528.016702 | O27: 558.3373714 | P27: 647.5238449 | Q27: 672.4123714 | R27: 767.0309878 | S27: 786.4873714 | T27: 886.5381306 | U27: 900.5623714 | V27: 1006.045273 | W27: 1014.637371 | X27: 1119.305231 | Y27: 1115.077712 | Z27: 609.8039642 | AA27: 603.2503075 | AB27: 662.9619258 | AC27: 659.9880071 | AD27: 657.0140884 | AE27: 684.1748026 | AF27: 711.3355169 | AG27: 738.4962312 | AH27: 765.6569455 | AI27: 790.4521341 | AJ27: 814.5819397 | AK27: 838.0089208 | AL27: 860.7020791 | AM27: 441.3182584 | AN27: 451.8965499 | AO27: 465.4769071 | AP27: 479.0572642 | AQ27: 492.6376214 | AR27: 506.2179785 | AS27: 519.7983357 | AT27: 533.3786928 | AU27: 546.9590499 | AV27: 560.5394071 | AW27: 574.1197642 | AX27: 587.7001214 | AY27: 600.1501317 | AZ27: 612.3703224 | BA27: 624.3507063 | BB27: 636.082464 | BC27: 647.5578989 | BD27: 658.7703935 | BE27: 334.8571831 | BF27: 340.1926144 | BG27: 346.982793 | BH27: 353.7729716 | BI27: 360.5631502 | BJ27: 367.3533287 | BK27: 374.1435073 | BL27: 380.9336859 | BM27: 387.7238644 | BN27: 394.514043 | BO27: 401.3042216 | BP27: 408.0944002 | BQ27: =BQ24*BQ13 -> 414.8845787 | BR27: =BR24*BR13 -> 421.6747573 | BS27: =BS24*BS13 -> 428.4649359 | BT27: =BT24*BT13 -> 435.2551144 | BU27: =BU24*BU13 -> 441.5410732
A28: Growth Ratio | D28: 1 | E28: =IF(E11<80,1,(1.411-(0.00485*E11)-(7.643/E11))) -> 1 | F28: =IF(F11<80,1,(1.411-(0.00485*F11)-(7.643/F11))) -> 1 | G28: 1 | H28: 1 | I28: 1 | J28: 1 | K28: 1 | L28: 1 | M28: 1 | N28: 1 | O28: 1 | P28: 1 | Q28: 1 | R28: 1 | S28: 1 | T28: 1 | U28: 1 | V28: 1 | W28: 0.8954508384 | X28: 0.8587769655 | Y28: 0.8198289405 | Z28: 0.7792396429 | AA28: 1 | AB28: 1 | AC28: 1 | AD28: 1 | AE28: 1 | AF28: 1 | AG28: 1 | AH28: 0.9129063535 | AI28: 0.8884083556 | AJ28: 0.8625318502 | AK28: 0.8355140449 | AL28: 0.8075795602 | AM28: 0.778940602 | AN28: 1 | AO28: 1 | AP28: 1 | AQ28: 1 | AR28: 1 | AS28: 1 | AT28: 1 | AU28: 1 | AV28: 1 | AW28: 1 | AX28: 0.9167660496 | AY28: 0.8998430974 | AZ28: 0.8821847444 | BA28: 0.8638769678 | BB28: 0.8450024401 | BC28: 0.8256406213 | BD28: 0.8058678088 | BE28: 0.7857571536 | BF28: 1 | BG28: 1 | BH28: 1 | BI28: 1 | BJ28: 1 | BK28: 1 | BL28: 1 | BM28: 1 | BN28: 1 | BO28: 1 | BP28: 1 | BQ28: 1 | BR28: =IF(BR11<80,1,(1.411-(0.00485*BR11)-(7.643/BR11))) -> 1 | BS28: =IF(BS11<80,1,(1.411-(0.00485*BS11)-(7.643/BS11))) -> 1 | BT28: =IF(BT11<80,1,(1.411-(0.00485*BT11)-(7.643/BT11))) -> 0.925742773 | BU28: =IF(BU11<80,1,(1.411-(0.00485*BU11)-(7.643/BU11))) -> 0.9142051288
A29: Expected Growth Rate | E29: =F29 -> 0.4375 | F29: =G29 -> 0.4375 | G29: =H29 -> 0.4375 | H29: =I29 -> 0.4375 | I29: =LOOKUP(C2,SI,'Input Tables'!B116:B131) -> 0.4375 | J29: =I29 -> 0.4375 | K29: =J29 -> 0.4375 | L29: 0.4375 | M29: 0.4375 | N29: 0.4375 | O29: 0.4375 | P29: 0.4375 | Q29: 0.4375 | R29: 0.4375 | S29: 0.4375 | T29: 0.4375 | U29: 0.4375 | V29: 0.4375 | W29: 0.4375 | X29: 0.4375 | Y29: 0.4375 | Z29: 0.4375 | AA29: 0.4375 | AB29: 0.4375 | AC29: 0.4375 | AD29: 0.4375 | AE29: 0.4375 | AF29: 0.4375 | AG29: 0.4375 | AH29: 0.4375 | AI29: 0.4375 | AJ29: 0.4375 | AK29: 0.4375 | AL29: 0.4375 | AM29: 0.4375 | AN29: 0.4375 | AO29: 0.4375 | AP29: 0.4375 | AQ29: 0.4375 | AR29: 0.4375 | AS29: 0.4375 | AT29: 0.4375 | AU29: 0.4375 | AV29: 0.4375 | AW29: 0.4375 | AX29: 0.4375 | AY29: 0.4375 | AZ29: 0.4375 | BA29: 0.4375 | BB29: 0.4375 | BC29: 0.4375 | BD29: 0.4375 | BE29: 0.4375 | BF29: 0.4375 | BG29: 0.4375 | BH29: 0.4375 | BI29: 0.4375 | BJ29: 0.4375 | BK29: 0.4375 | BL29: 0.4375 | BM29: 0.4375 | BN29: 0.4375 | BO29: 0.4375 | BP29: 0.4375 | BQ29: 0.4375 | BR29: 0.4375 | BS29: 0.4375 | BT29: 0.4375 | BU29: 0.4375
A30: Nut Revenue | C30: Nut Price/lb
B31: Gross Revenue per Tree | C31: =LOOKUP('Management Input'!N8,Grade,'Input Tables'!C92:C96) -> 0.288 | D31: =IF(D24<0,0,(D24*$C$31)) -> 0 | E31: =IF(E24<0,0,(E24*$C$31)) -> 0 | F31: 0.6956928 | G31: 1.4200704 | H31: 2.3588928 | I31: 3.0076704 | J31: 4.0220928 | K31: 4.5952704 | L31: 5.6852928 | M31: 6.1828704 | N31: 7.3484928 | O31: 7.7704704 | P31: 9.0116928 | Q31: 9.3580704 | R31: 10.6748928 | S31: 10.9456704 | T31: 12.3380928 | U31: 12.5332704 | V31: 14.0012928 | W31: 14.1208704 | X31: 15.57754972 | Y31: 15.51871466 | Z31: 16.97347839 | AA31: 16.79106181 | AB31: 18.45309408 | AC31: 18.37031707 | AD31: 18.28754007 | AE31: 19.04354007 | AF31: 19.79954007 | AG31: 20.55554007 | AH31: 21.31154007 | AI31: 22.00169727 | AJ31: 22.67333399 | AK31: 23.32540807 | AL31: 23.95705669 | AM31: 24.56758683 | AN31: 25.15646593 | AO31: 25.91246593 | AP31: 26.66846593 | AQ31: 27.42446593 | AR31: 28.18046593 | AS31: 28.93646593 | AT31: 29.69246593 | AU31: 30.44846593 | AV31: 31.20446593 | AW31: 31.96046593 | AX31: 32.71646593 | AY31: 33.40954106 | AZ31: 34.08982244 | BA31: 34.75675411 | BB31: 35.4098451 | BC31: 36.04866694 | BD31: 36.67285125 | BE31: 37.28208732 | BF31: 37.87611972 | BG31: 38.63211972 | BH31: 39.38811972 | BI31: 40.14411972 | BJ31: 40.90011972 | BK31: 41.65611972 | BL31: 42.41211972 | BM31: 43.16811972 | BN31: 43.92411972 | BO31: 44.68011972 | BP31: 45.43611972 | BQ31: =IF(BQ24<0,0,(BQ24*$C$31)) -> 46.19211972 | BR31: =IF(BR24<0,0,(BR24*$C$31)) -> 46.94811972 | BS31: =IF(BS24<0,0,(BS24*$C$31)) -> 47.70411972 | BT31: =IF(BT24<0,0,(BT24*$C$31)) -> 48.46011972 | BU31: =IF(BU24<0,0,(BU24*$C$31)) -> 49.15998126
B33: Gross Revenue per Acre (Potential) | D33: =D31*D13 -> 0 | E33: =E31*E13 -> 0 | F33: 17.17935282 | G33: 35.06704457 | H33: 55.89131716 | I33: 68.25570377 | J33: 91.2768815 | K33: 99.68923337 | L33: 117.650753 | M33: 127.947563 | N33: 152.0688102 | O33: 160.801163 | P33: 186.4868673 | Q33: 193.654763 | R33: 220.9049245 | S33: 226.508363 | T33: 255.3229816 | U33: 259.361963 | V33: 289.7410388 | W33: 292.215563 | X33: 322.3599064 | Y33: 321.142381 | Z33: 175.6235417 | AA33: 173.7360886 | AB33: 190.9330346 | AC33: 190.076546 | AD33: 189.2200574 | AE33: 197.0423432 | AF33: 204.8646289 | AG33: 212.6869146 | AH33: 220.5092003 | AI33: 227.6502146 | AJ33: 234.5995986 | AK33: 241.3465692 | AL33: 247.8821988 | AM33: 127.0996584 | AN33: 130.1462064 | AO33: 134.0573492 | AP33: 137.9684921 | AQ33: 141.879635 | AR33: 145.7907778 | AS33: 149.7019207 | AT33: 153.6130635 | AU33: 157.5242064 | AV33: 161.4353492 | AW33: 165.3464921 | AX33: 169.257635 | AY33: 172.8432379 | AZ33: 176.3626528 | BA33: 179.8130034 | BB33: 183.1917496 | BC33: 186.4966749 | BD33: 189.7258733 | BE33: 96.43886872 | BF33: 97.97547296 | BG33: 99.93104439 | BH33: 101.8866158 | BI33: 103.8421872 | BJ33: 105.7977587 | BK33: 107.7533301 | BL33: 109.7089015 | BM33: 111.664473 | BN33: 113.6200444 | BO33: 115.5756158 | BP33: 117.5311872 | BQ33: =BQ31*BQ13 -> 119.4867587 | BR33: =BR31*BR13 -> 121.4423301 | BS33: =BS31*BS13 -> 123.3979015 | BT33: =BT31*BT13 -> 125.353473 | BU33: =BU31*BU13 -> 127.1638291
B35: Gross Revenue per Acre (Actual) | D35: =IF(D82=0,0,D33) -> 0 | E35: 0 | F35: 0 | G35: 35.06704457 | H35: 55.89131716 | I35: 68.25570377 | J35: 91.2768815 | K35: 99.68923337 | L35: 117.650753 | M35: 127.947563 | N35: 152.0688102 | O35: 160.801163 | P35: 186.4868673 | Q35: 193.654763 | R35: 220.9049245 | S35: 226.508363 | T35: 255.3229816 | U35: 259.361963 | V35: 289.7410388 | W35: 292.215563 | X35: 322.3599064 | Y35: 321.142381 | Z35: 175.6235417 | AA35: 173.7360886 | AB35: 190.9330346 | AC35: 190.076546 | AD35: 189.2200574 | AE35: 197.0423432 | AF35: 204.8646289 | AG35: 212.6869146 | AH35: 220.5092003 | AI35: 227.6502146 | AJ35: =IF(AJ82=0,0,AJ33) -> 234.5995986 | AK35: 241.3465692 | AL35: 247.8821988 | AM35: 127.0996584 | AN35: 130.1462064 | AO35: 134.0573492 | AP35: 137.9684921 | AQ35: 141.879635 | AR35: 145.7907778 | AS35: 149.7019207 | AT35: 153.6130635 | AU35: 157.5242064 | AV35: 161.4353492 | AW35: 165.3464921 | AX35: 169.257635 | AY35: 172.8432379 | AZ35: 176.3626528 | BA35: 179.8130034 | BB35: 183.1917496 | BC35: 186.4966749 | BD35: 189.7258733 | BE35: 96.43886872 | BF35: 97.97547296 | BG35: 99.93104439 | BH35: 101.8866158 | BI35: 103.8421872 | BJ35: 105.7977587 | BK35: 107.7533301 | BL35: 109.7089015 | BM35: 111.664473 | BN35: 113.6200444 | BO35: 115.5756158 | BP35: =IF(BP82=0,0,BP33) -> 117.5311872 | BQ35: 119.4867587 | BR35: 121.4423301 | BS35: 123.3979015 | BT35: 125.353473 | BU35: 127.1638291
A38: Establishment Costs
B39: Site Prep | D39: ='Cost Budgets'!G2 -> 13
E40: Replant based on Mortality Loss
B41: Planting Stock/Grafting | D41: ='Cost Budgets'!G5 -> 555.6122449 | E41: =D15*'Cost Budgets'!$H$5 -> 0 | F41: =E15*'Cost Budgets'!$H$5 -> 22.5 | G41: =F15*'Cost Budgets'!$H$5 -> 22.5
B43: Field Grafting
B45: Fertilization (establishment) | D45: ='Cost Budgets'!G6 -> 25.1877551
B47: Tree Staking | D47: ='Cost Budgets'!G7 -> 0
B48: Potential Revenue less Est. costs | D48: =D33-D39-D41-D43-D45-D47 -> -593.8 | E48: =E33-E39-E41-E43-E45-E47 -> 0 | F48: -5.320647184 | G48: 12.56704457 | H48: 55.89131716 | I48: 68.25570377 | J48: 91.2768815 | K48: 99.68923337 | L48: 117.650753 | M48: 127.947563 | N48: 152.0688102 | O48: 160.801163 | P48: 186.4868673 | Q48: 193.654763 | R48: 220.9049245 | S48: 226.508363 | T48: 255.3229816 | U48: 259.361963 | V48: 289.7410388 | W48: 292.215563 | X48: 322.3599064 | Y48: 321.142381 | Z48: 175.6235417 | AA48: 173.7360886 | AB48: 190.9330346 | AC48: 190.076546 | AD48: 189.2200574 | AE48: 197.0423432 | AF48: 204.8646289 | AG48: 212.6869146 | AH48: 220.5092003 | AI48: 227.6502146 | AJ48: 234.5995986 | AK48: 241.3465692 | AL48: 247.8821988 | AM48: 127.0996584 | AN48: 130.1462064 | AO48: 134.0573492 | AP48: 137.9684921 | AQ48: 141.879635 | AR48: 145.7907778 | AS48: 149.7019207 | AT48: 153.6130635 | AU48: 157.5242064 | AV48: 161.4353492 | AW48: 165.3464921 | AX48: 169.257635 | AY48: 172.8432379 | AZ48: 176.3626528 | BA48: 179.8130034 | BB48: 183.1917496 | BC48: 186.4966749 | BD48: 189.7258733 | BE48: 96.43886872 | BF48: 97.97547296 | BG48: 99.93104439 | BH48: 101.8866158 | BI48: 103.8421872 | BJ48: 105.7977587 | BK48: 107.7533301 | BL48: 109.7089015 | BM48: 111.664473 | BN48: 113.6200444 | BO48: 115.5756158 | BP48: 117.5311872 | BQ48: =BQ33-BQ39-BQ41-BQ43-BQ45-BQ47 -> 119.4867587 | BR48: =BR33-BR39-BR41-BR43-BR45-BR47 -> 121.4423301 | BS48: =BS33-BS39-BS41-BS43-BS45-BS47 -> 123.3979015 | BT48: =BT33-BT39-BT41-BT43-BT45-BT47 -> 125.353473 | BU48: =BU33-BU39-BU41-BU43-BU45-BU47 -> 127.1638291
B49: Actual Revenue less Est. costs | D49: =D35-D39-D41-D43-D45-D47 -> -593.8 | E49: =E35-E39-E41-E43-E45-E47 -> 0 | F49: =F35-F39-F41-F43-F45-F47 -> -22.5 | G49: =G35-G39-G41-G43-G45-G47 -> 12.56704457 | H49: =H35-H39-H41-H43-H45-H47 -> 55.89131716 | I49: 68.25570377 | J49: 91.2768815 | K49: 99.68923337 | L49: 117.650753 | M49: 127.947563 | N49: 152.0688102 | O49: 160.801163 | P49: 186.4868673 | Q49: 193.654763 | R49: 220.9049245 | S49: 226.508363 | T49: 255.3229816 | U49: 259.361963 | V49: 289.7410388 | W49: 292.215563 | X49: 322.3599064 | Y49: 321.142381 | Z49: 175.6235417 | AA49: 173.7360886 | AB49: 190.9330346 | AC49: 190.076546 | AD49: 189.2200574 | AE49: 197.0423432 | AF49: 204.8646289 | AG49: 212.6869146 | AH49: 220.5092003 | AI49: 227.6502146 | AJ49: 234.5995986 | AK49: 241.3465692 | AL49: 247.8821988 | AM49: 127.0996584 | AN49: 130.1462064 | AO49: 134.0573492 | AP49: 137.9684921 | AQ49: 141.879635 | AR49: 145.7907778 | AS49: 149.7019207 | AT49: 153.6130635 | AU49: 157.5242064 | AV49: 161.4353492 | AW49: 165.3464921 | AX49: 169.257635 | AY49: 172.8432379 | AZ49: 176.3626528 | BA49: 179.8130034 | BB49: 183.1917496 | BC49: 186.4966749 | BD49: 189.7258733 | BE49: 96.43886872 | BF49: 97.97547296 | BG49: 99.93104439 | BH49: 101.8866158 | BI49: 103.8421872 | BJ49: 105.7977587 | BK49: 107.7533301 | BL49: 109.7089015 | BM49: 111.664473 | BN49: 113.6200444 | BO49: 115.5756158 | BP49: 117.5311872 | BQ49: =BQ35-BQ39-BQ41-BQ43-BQ45-BQ47 -> 119.4867587 | BR49: =BR35-BR39-BR41-BR43-BR45-BR47 -> 121.4423301 | BS49: =BS35-BS39-BS41-BS43-BS45-BS47 -> 123.3979015 | BT49: =BT35-BT39-BT41-BT43-BT45-BT47 -> 125.353473 | BU49: =BU35-BU39-BU41-BU43-BU45-BU47 -> 127.1638291
A50: Management Costs
B51: Thinning | D51: ='Input Tables'!$C$25*D17*D6 -> 0 | E51: ='Input Tables'!$C$25*E17*E6 -> 0 | F51: ='Input Tables'!$C$25*F17*F6 -> 0 | G51: ='Input Tables'!$C$25*G17*G6 -> 0 | H51: ='Input Tables'!$C$25*H17*H6 -> 0 | I51: ='Input Tables'!$C$25*I17*I6 -> 0 | J51: ='Input Tables'!$C$25*J17*J6 -> 0 | K51: ='Input Tables'!$C$25*K17*K6 -> 0 | L51: ='Input Tables'!$C$25*L17*L6 -> 0 | M51: ='Input Tables'!$C$25*M17*M6 -> 0 | N51: ='Input Tables'!$C$25*N17*N6 -> 0 | O51: ='Input Tables'!$C$25*O17*O6 -> 0 | P51: ='Input Tables'!$C$25*P17*P6 -> 0 | Q51: ='Input Tables'!$C$25*Q17*Q6 -> 0 | R51: ='Input Tables'!$C$25*R17*R6 -> 0 | S51: ='Input Tables'!$C$25*S17*S6 -> 0 | T51: ='Input Tables'!$C$25*T17*T6 -> 0 | U51: ='Input Tables'!$C$25*U17*U6 -> 0 | V51: ='Input Tables'!$C$25*V17*V6 -> 0 | W51: ='Input Tables'!$C$25*W17*W6 -> 0 | X51: ='Input Tables'!$C$25*X17*X6 -> 0 | Y51: ='Input Tables'!$C$25*Y17*Y6 -> 0 | Z51: ='Input Tables'!$C$25*Z17*Z6 -> 36.28737813 | AA51: ='Input Tables'!$C$25*AA17*AA6 -> 0 | AB51: ='Input Tables'!$C$25*AB17*AB6 -> 0 | AC51: ='Input Tables'!$C$25*AC17*AC6 -> 0 | AD51: ='Input Tables'!$C$25*AD17*AD6 -> 0 | AE51: ='Input Tables'!$C$25*AE17*AE6 -> 0 | AF51: ='Input Tables'!$C$25*AF17*AF6 -> 0 | AG51: ='Input Tables'!$C$25*AG17*AG6 -> 0 | AH51: ='Input Tables'!$C$25*AH17*AH6 -> 0 | AI51: ='Input Tables'!$C$25*AI17*AI6 -> 0 | AJ51: ='Input Tables'!$C$25*AJ17*AJ6 -> 0 | AK51: ='Input Tables'!$C$25*AK17*AK6 -> 0 | AL51: ='Input Tables'!$C$25*AL17*AL6 -> 0 | AM51: ='Input Tables'!$C$25*AM17*AM6 -> 41.51694464 | AN51: ='Input Tables'!$C$25*AN17*AN6 -> 0 | AO51: ='Input Tables'!$C$25*AO17*AO6 -> 0 | AP51: ='Input Tables'!$C$25*AP17*AP6 -> 0 | AQ51: ='Input Tables'!$C$25*AQ17*AQ6 -> 0 | AR51: ='Input Tables'!$C$25*AR17*AR6 -> 0 | AS51: ='Input Tables'!$C$25*AS17*AS6 -> 0 | AT51: ='Input Tables'!$C$25*AT17*AT6 -> 0 | AU51: ='Input Tables'!$C$25*AU17*AU6 -> 0 | AV51: ='Input Tables'!$C$25*AV17*AV6 -> 0 | AW51: ='Input Tables'!$C$25*AW17*AW6 -> 0 | AX51: ='Input Tables'!$C$25*AX17*AX6 -> 0 | AY51: ='Input Tables'!$C$25*AY17*AY6 -> 0 | AZ51: ='Input Tables'!$C$25*AZ17*AZ6 -> 0 | BA51: ='Input Tables'!$C$25*BA17*BA6 -> 0 | BB51: ='Input Tables'!$C$25*BB17*BB6 -> 0 | BC51: ='Input Tables'!$C$25*BC17*BC6 -> 0 | BD51: ='Input Tables'!$C$25*BD17*BD6 -> 0 | BE51: ='Input Tables'!$C$25*BE17*BE6 -> 44.95597699 | BF51: ='Input Tables'!$C$25*BF17*BF6 -> 0 | BG51: ='Input Tables'!$C$25*BG17*BG6 -> 0 | BH51: ='Input Tables'!$C$25*BH17*BH6 -> 0 | BI51: ='Input Tables'!$C$25*BI17*BI6 -> 0 | BJ51: ='Input Tables'!$C$25*BJ17*BJ6 -> 0 | BK51: ='Input Tables'!$C$25*BK17*BK6 -> 0 | BL51: ='Input Tables'!$C$25*BL17*BL6 -> 0 | BM51: ='Input Tables'!$C$25*BM17*BM6 -> 0 | BN51: ='Input Tables'!$C$25*BN17*BN6 -> 0 | BO51: ='Input Tables'!$C$25*BO17*BO6 -> 0 | BP51: ='Input Tables'!$C$25*BP17*BP6 -> 0 | BQ51: ='Input Tables'!$C$25*BQ17*BQ6 -> 0 | BR51: ='Input Tables'!$C$25*BR17*BR6 -> 0 | BS51: ='Input Tables'!$C$25*BS17*BS6 -> 0 | BT51: ='Input Tables'!$C$25*BT17*BT6 -> 0 | BU51: ='Input Tables'!$C$25*BU17*BU6 -> 0
B53: Fertilization (maintenance) | E53: =IF(OR(E1='Input Tables'!$BA$35,E1='Input Tables'!$BB$35, E1='Input Tables'!$BC$35,E1='Input Tables'!$BD$35, E1='Input Tables'!$BE$35,E1='Input Tables'!$BF$35,E1='Input Tables'!$BG$35,E1='Input Tables'!$BH$35,E1='Input Tables'!$BI$35,E1='Input Tables'!$BJ$35,E1='Input Tables'!$BK$35,E1='Input Tables'!$BL$35),('Cost Budgets'!$H$11*E13),0) -> 23.13 | F53: =IF(OR(F1='Input Tables'!$BA$35,F1='Input Tables'!$BB$35, F1='Input Tables'!$BC$35,F1='Input Tables'!$BD$35, F1='Input Tables'!$BE$35,F1='Input Tables'!$BF$35,F1='Input Tables'!$BG$35,F1='Input Tables'!$BH$35,F1='Input Tables'!$BI$35,F1='Input Tables'!$BJ$35,F1='Input Tables'!$BK$35,F1='Input Tables'!$BL$35),('Cost Budgets'!$H$11*F13),0) -> 0 | G53: =IF(OR(G1='Input Tables'!$BA$35,G1='Input Tables'!$BB$35, G1='Input Tables'!$BC$35,G1='Input Tables'!$BD$35, G1='Input Tables'!$BE$35,G1='Input Tables'!$BF$35,G1='Input Tables'!$BG$35,G1='Input Tables'!$BH$35,G1='Input Tables'!$BI$35,G1='Input Tables'!$BJ$35,G1='Input Tables'!$BK$35,G1='Input Tables'!$BL$35),('Cost Budgets'!$H$11*G13),0) -> 23.13 | H53: =IF(OR(H1='Input Tables'!$BA$35,H1='Input Tables'!$BB$35, H1='Input Tables'!$BC$35,H1='Input Tables'!$BD$35, H1='Input Tables'!$BE$35,H1='Input Tables'!$BF$35,H1='Input Tables'!$BG$35,H1='Input Tables'!$BH$35,H1='Input Tables'!$BI$35,H1='Input Tables'!$BJ$35,H1='Input Tables'!$BK$35,H1='Input Tables'!$BL$35),('Cost Budgets'!$H$11*H13),0) -> 0 | I53: =IF(OR(I1='Input Tables'!$BA$35,I1='Input Tables'!$BB$35, I1='Input Tables'!$BC$35,I1='Input Tables'!$BD$35, I1='Input Tables'!$BE$35,I1='Input Tables'!$BF$35,I1='Input Tables'!$BG$35,I1='Input Tables'!$BH$35,I1='Input Tables'!$BI$35,I1='Input Tables'!$BJ$35,I1='Input Tables'!$BK$35,I1='Input Tables'!$BL$35),('Cost Budgets'!$H$11*I13),0) -> 21.25666116 | J53: =IF(OR(J1='Input Tables'!$BA$35,J1='Input Tables'!$BB$35, J1='Input Tables'!$BC$35,J1='Input Tables'!$BD$35, J1='Input Tables'!$BE$35,J1='Input Tables'!$BF$35,J1='Input Tables'!$BG$35,J1='Input Tables'!$BH$35,J1='Input Tables'!$BI$35,J1='Input Tables'!$BJ$35,J1='Input Tables'!$BK$35,J1='Input Tables'!$BL$35),('Cost Budgets'!$H$11*J13),0) -> 0 | K53: =IF(OR(K1='Input Tables'!$BA$35,K1='Input Tables'!$BB$35, K1='Input Tables'!$BC$35,K1='Input Tables'!$BD$35, K1='Input Tables'!$BE$35,K1='Input Tables'!$BF$35,K1='Input Tables'!$BG$35,K1='Input Tables'!$BH$35,K1='Input Tables'!$BI$35,K1='Input Tables'!$BJ$35,K1='Input Tables'!$BK$35,K1='Input Tables'!$BL$35),('Cost Budgets'!$H$11*K13),0) -> 20.31999174 | L53: =IF(OR(L1='Input Tables'!$BA$35,L1='Input Tables'!$BB$35, L1='Input Tables'!$BC$35,L1='Input Tables'!$BD$35, L1='Input Tables'!$BE$35,L1='Input Tables'!$BF$35,L1='Input Tables'!$BG$35,L1='Input Tables'!$BH$35,L1='Input Tables'!$BI$35,L1='Input Tables'!$BJ$35,L1='Input Tables'!$BK$35,L1='Input Tables'!$BL$35),('Cost Budgets'!$H$11*L13),0) -> 0 | M53: =IF(OR(M1='Input Tables'!$BA$35,M1='Input Tables'!$BB$35, M1='Input Tables'!$BC$35,M1='Input Tables'!$BD$35, M1='Input Tables'!$BE$35,M1='Input Tables'!$BF$35,M1='Input Tables'!$BG$35,M1='Input Tables'!$BH$35,M1='Input Tables'!$BI$35,M1='Input Tables'!$BJ$35,M1='Input Tables'!$BK$35,M1='Input Tables'!$BL$35),('Cost Budgets'!$H$11*M13),0) -> 19.38332231 | N53: =IF(OR(N1='Input Tables'!$BA$35,N1='Input Tables'!$BB$35, N1='Input Tables'!$BC$35,N1='Input Tables'!$BD$35, N1='Input Tables'!$BE$35,N1='Input Tables'!$BF$35,N1='Input Tables'!$BG$35,N1='Input Tables'!$BH$35,N1='Input Tables'!$BI$35,N1='Input Tables'!$BJ$35,N1='Input Tables'!$BK$35,N1='Input Tables'!$BL$35),('Cost Budgets'!$H$11*N13),0) -> 0 | O53: =IF(OR(O1='Input Tables'!$BA$35,O1='Input Tables'!$BB$35, O1='Input Tables'!$BC$35,O1='Input Tables'!$BD$35, O1='Input Tables'!$BE$35,O1='Input Tables'!$BF$35,O1='Input Tables'!$BG$35,O1='Input Tables'!$BH$35,O1='Input Tables'!$BI$35,O1='Input Tables'!$BJ$35,O1='Input Tables'!$BK$35,O1='Input Tables'!$BL$35),('Cost Budgets'!$H$11*O13),0) -> 19.38332231 | P53: =IF(OR(P1='Input Tables'!$BA$35,P1='Input Tables'!$BB$35, P1='Input Tables'!$BC$35,P1='Input Tables'!$BD$35, P1='Input Tables'!$BE$35,P1='Input Tables'!$BF$35,P1='Input Tables'!$BG$35,P1='Input Tables'!$BH$35,P1='Input Tables'!$BI$35,P1='Input Tables'!$BJ$35,P1='Input Tables'!$BK$35,P1='Input Tables'!$BL$35),('Cost Budgets'!$H$11*P13),0) -> 0 | Q53: =IF(OR(Q1='Input Tables'!$BA$35,Q1='Input Tables'!$BB$35, Q1='Input Tables'!$BC$35,Q1='Input Tables'!$BD$35, Q1='Input Tables'!$BE$35,Q1='Input Tables'!$BF$35,Q1='Input Tables'!$BG$35,Q1='Input Tables'!$BH$35,Q1='Input Tables'!$BI$35,Q1='Input Tables'!$BJ$35,Q1='Input Tables'!$BK$35,Q1='Input Tables'!$BL$35),('Cost Budgets'!$H$11*Q13),0) -> 19.38332231 | R53: =IF(OR(R1='Input Tables'!$BA$35,R1='Input Tables'!$BB$35, R1='Input Tables'!$BC$35,R1='Input Tables'!$BD$35, R1='Input Tables'!$BE$35,R1='Input Tables'!$BF$35,R1='Input Tables'!$BG$35,R1='Input Tables'!$BH$35,R1='Input Tables'!$BI$35,R1='Input Tables'!$BJ$35,R1='Input Tables'!$BK$35,R1='Input Tables'!$BL$35),('Cost Budgets'!$H$11*R13),0) -> 0 | S53: =IF(OR(S1='Input Tables'!$BA$35,S1='Input Tables'!$BB$35, S1='Input Tables'!$BC$35,S1='Input Tables'!$BD$35, S1='Input Tables'!$BE$35,S1='Input Tables'!$BF$35,S1='Input Tables'!$BG$35,S1='Input Tables'!$BH$35,S1='Input Tables'!$BI$35,S1='Input Tables'!$BJ$35,S1='Input Tables'!$BK$35,S1='Input Tables'!$BL$35),('Cost Budgets'!$H$11*S13),0) -> 19.38332231 | T53: =IF(OR(T1='Input Tables'!$BA$35,T1='Input Tables'!$BB$35, T1='Input Tables'!$BC$35,T1='Input Tables'!$BD$35, T1='Input Tables'!$BE$35,T1='Input Tables'!$BF$35,T1='Input Tables'!$BG$35,T1='Input Tables'!$BH$35,T1='Input Tables'!$BI$35,T1='Input Tables'!$BJ$35,T1='Input Tables'!$BK$35,T1='Input Tables'!$BL$35),('Cost Budgets'!$H$11*T13),0) -> 0 | U53: =IF(OR(U1='Input Tables'!$BA$35,U1='Input Tables'!$BB$35, U1='Input Tables'!$BC$35,U1='Input Tables'!$BD$35, U1='Input Tables'!$BE$35,U1='Input Tables'!$BF$35,U1='Input Tables'!$BG$35,U1='Input Tables'!$BH$35,U1='Input Tables'!$BI$35,U1='Input Tables'!$BJ$35,U1='Input Tables'!$BK$35,U1='Input Tables'!$BL$35),('Cost Budgets'!$H$11*U13),0) -> 19.38332231 | V53: =IF(OR(V1='Input Tables'!$BA$35,V1='Input Tables'!$BB$35, V1='Input Tables'!$BC$35,V1='Input Tables'!$BD$35, V1='Input Tables'!$BE$35,V1='Input Tables'!$BF$35,V1='Input Tables'!$BG$35,V1='Input Tables'!$BH$35,V1='Input Tables'!$BI$35,V1='Input Tables'!$BJ$35,V1='Input Tables'!$BK$35,V1='Input Tables'!$BL$35),('Cost Budgets'!$H$11*V13),0) -> 0 | W53: =IF(OR(W1='Input Tables'!$BA$35,W1='Input Tables'!$BB$35, W1='Input Tables'!$BC$35,W1='Input Tables'!$BD$35, W1='Input Tables'!$BE$35,W1='Input Tables'!$BF$35,W1='Input Tables'!$BG$35,W1='Input Tables'!$BH$35,W1='Input Tables'!$BI$35,W1='Input Tables'!$BJ$35,W1='Input Tables'!$BK$35,W1='Input Tables'!$BL$35),('Cost Budgets'!$H$11*W13),0) -> 19.38332231 | X53: =IF(OR(X1='Input Tables'!$BA$35,X1='Input Tables'!$BB$35, X1='Input Tables'!$BC$35,X1='Input Tables'!$BD$35, X1='Input Tables'!$BE$35,X1='Input Tables'!$BF$35,X1='Input Tables'!$BG$35,X1='Input Tables'!$BH$35,X1='Input Tables'!$BI$35,X1='Input Tables'!$BJ$35,X1='Input Tables'!$BK$35,X1='Input Tables'!$BL$35),('Cost Budgets'!$H$11*X13),0) -> 0 | Y53: =IF(OR(Y1='Input Tables'!$BA$35,Y1='Input Tables'!$BB$35, Y1='Input Tables'!$BC$35,Y1='Input Tables'!$BD$35, Y1='Input Tables'!$BE$35,Y1='Input Tables'!$BF$35,Y1='Input Tables'!$BG$35,Y1='Input Tables'!$BH$35,Y1='Input Tables'!$BI$35,Y1='Input Tables'!$BJ$35,Y1='Input Tables'!$BK$35,Y1='Input Tables'!$BL$35),('Cost Budgets'!$H$11*Y13),0) -> 19.38332231 | Z53: =IF(OR(Z1='Input Tables'!$BA$35,Z1='Input Tables'!$BB$35, Z1='Input Tables'!$BC$35,Z1='Input Tables'!$BD$35, Z1='Input Tables'!$BE$35,Z1='Input Tables'!$BF$35,Z1='Input Tables'!$BG$35,Z1='Input Tables'!$BH$35,Z1='Input Tables'!$BI$35,Z1='Input Tables'!$BJ$35,Z1='Input Tables'!$BK$35,Z1='Input Tables'!$BL$35),('Cost Budgets'!$H$11*Z13),0) -> 0 | AA53: =IF(OR(AA1='Input Tables'!$BA$35,AA1='Input Tables'!$BB$35, AA1='Input Tables'!$BC$35,AA1='Input Tables'!$BD$35, AA1='Input Tables'!$BE$35,AA1='Input Tables'!$BF$35,AA1='Input Tables'!$BG$35,AA1='Input Tables'!$BH$35,AA1='Input Tables'!$BI$35,AA1='Input Tables'!$BJ$35,AA1='Input Tables'!$BK$35,AA1='Input Tables'!$BL$35),('Cost Budgets'!$H$11*AA13),0) -> 9.691661157 | AB53: =IF(OR(AB1='Input Tables'!$BA$35,AB1='Input Tables'!$BB$35, AB1='Input Tables'!$BC$35,AB1='Input Tables'!$BD$35, AB1='Input Tables'!$BE$35,AB1='Input Tables'!$BF$35,AB1='Input Tables'!$BG$35,AB1='Input Tables'!$BH$35,AB1='Input Tables'!$BI$35,AB1='Input Tables'!$BJ$35,AB1='Input Tables'!$BK$35,AB1='Input Tables'!$BL$35),('Cost Budgets'!$H$11*AB13),0) -> 0 | AC53: =IF(OR(AC1='Input Tables'!$BA$35,AC1='Input Tables'!$BB$35, AC1='Input Tables'!$BC$35,AC1='Input Tables'!$BD$35, AC1='Input Tables'!$BE$35,AC1='Input Tables'!$BF$35,AC1='Input Tables'!$BG$35,AC1='Input Tables'!$BH$35,AC1='Input Tables'!$BI$35,AC1='Input Tables'!$BJ$35,AC1='Input Tables'!$BK$35,AC1='Input Tables'!$BL$35),('Cost Budgets'!$H$11*AC13),0) -> 0 | AD53: =IF(OR(AD1='Input Tables'!$BA$35,AD1='Input Tables'!$BB$35, AD1='Input Tables'!$BC$35,AD1='Input Tables'!$BD$35, AD1='Input Tables'!$BE$35,AD1='Input Tables'!$BF$35,AD1='Input Tables'!$BG$35,AD1='Input Tables'!$BH$35,AD1='Input Tables'!$BI$35,AD1='Input Tables'!$BJ$35,AD1='Input Tables'!$BK$35,AD1='Input Tables'!$BL$35),('Cost Budgets'!$H$11*AD13),0) -> 0 | AE53: =IF(OR(AE1='Input Tables'!$BA$35,AE1='Input Tables'!$BB$35, AE1='Input Tables'!$BC$35,AE1='Input Tables'!$BD$35, AE1='Input Tables'!$BE$35,AE1='Input Tables'!$BF$35,AE1='Input Tables'!$BG$35,AE1='Input Tables'!$BH$35,AE1='Input Tables'!$BI$35,AE1='Input Tables'!$BJ$35,AE1='Input Tables'!$BK$35,AE1='Input Tables'!$BL$35),('Cost Budgets'!$H$11*AE13),0) -> 0 | AF53: =IF(OR(AF1='Input Tables'!$BA$35,AF1='Input Tables'!$BB$35, AF1='Input Tables'!$BC$35,AF1='Input Tables'!$BD$35, AF1='Input Tables'!$BE$35,AF1='Input Tables'!$BF$35,AF1='Input Tables'!$BG$35,AF1='Input Tables'!$BH$35,AF1='Input Tables'!$BI$35,AF1='Input Tables'!$BJ$35,AF1='Input Tables'!$BK$35,AF1='Input Tables'!$BL$35),('Cost Budgets'!$H$11*AF13),0) -> 0 | AG53: =IF(OR(AG1='Input Tables'!$BA$35,AG1='Input Tables'!$BB$35, AG1='Input Tables'!$BC$35,AG1='Input Tables'!$BD$35, AG1='Input Tables'!$BE$35,AG1='Input Tables'!$BF$35,AG1='Input Tables'!$BG$35,AG1='Input Tables'!$BH$35,AG1='Input Tables'!$BI$35,AG1='Input Tables'!$BJ$35,AG1='Input Tables'!$BK$35,AG1='Input Tables'!$BL$35),('Cost Budgets'!$H$11*AG13),0) -> 0 | AH53: =IF(OR(AH1='Input Tables'!$BA$35,AH1='Input Tables'!$BB$35, AH1='Input Tables'!$BC$35,AH1='Input Tables'!$BD$35, AH1='Input Tables'!$BE$35,AH1='Input Tables'!$BF$35,AH1='Input Tables'!$BG$35,AH1='Input Tables'!$BH$35,AH1='Input Tables'!$BI$35,AH1='Input Tables'!$BJ$35,AH1='Input Tables'!$BK$35,AH1='Input Tables'!$BL$35),('Cost Budgets'!$H$11*AH13),0) -> 0 | AI53: =IF(OR(AI1='Input Tables'!$BA$35,AI1='Input Tables'!$BB$35, AI1='Input Tables'!$BC$35,AI1='Input Tables'!$BD$35, AI1='Input Tables'!$BE$35,AI1='Input Tables'!$BF$35,AI1='Input Tables'!$BG$35,AI1='Input Tables'!$BH$35,AI1='Input Tables'!$BI$35,AI1='Input Tables'!$BJ$35,AI1='Input Tables'!$BK$35,AI1='Input Tables'!$BL$35),('Cost Budgets'!$H$11*AI13),0) -> 0 | AJ53: =IF(OR(AJ1='Input Tables'!$BA$35,AJ1='Input Tables'!$BB$35, AJ1='Input Tables'!$BC$35,AJ1='Input Tables'!$BD$35, AJ1='Input Tables'!$BE$35,AJ1='Input Tables'!$BF$35,AJ1='Input Tables'!$BG$35,AJ1='Input Tables'!$BH$35,AJ1='Input Tables'!$BI$35,AJ1='Input Tables'!$BJ$35,AJ1='Input Tables'!$BK$35,AJ1='Input Tables'!$BL$35),('Cost Budgets'!$H$11*AJ13),0) -> 0 | AK53: =IF(OR(AK1='Input Tables'!$BA$35,AK1='Input Tables'!$BB$35, AK1='Input Tables'!$BC$35,AK1='Input Tables'!$BD$35, AK1='Input Tables'!$BE$35,AK1='Input Tables'!$BF$35,AK1='Input Tables'!$BG$35,AK1='Input Tables'!$BH$35,AK1='Input Tables'!$BI$35,AK1='Input Tables'!$BJ$35,AK1='Input Tables'!$BK$35,AK1='Input Tables'!$BL$35),('Cost Budgets'!$H$11*AK13),0) -> 0 | AL53: =IF(OR(AL1='Input Tables'!$BA$35,AL1='Input Tables'!$BB$35, AL1='Input Tables'!$BC$35,AL1='Input Tables'!$BD$35, AL1='Input Tables'!$BE$35,AL1='Input Tables'!$BF$35,AL1='Input Tables'!$BG$35,AL1='Input Tables'!$BH$35,AL1='Input Tables'!$BI$35,AL1='Input Tables'!$BJ$35,AL1='Input Tables'!$BK$35,AL1='Input Tables'!$BL$35),('Cost Budgets'!$H$11*AL13),0) -> 0 | AM53: =IF(OR(AM1='Input Tables'!$BA$35,AM1='Input Tables'!$BB$35, AM1='Input Tables'!$BC$35,AM1='Input Tables'!$BD$35, AM1='Input Tables'!$BE$35,AM1='Input Tables'!$BF$35,AM1='Input Tables'!$BG$35,AM1='Input Tables'!$BH$35,AM1='Input Tables'!$BI$35,AM1='Input Tables'!$BJ$35,AM1='Input Tables'!$BK$35,AM1='Input Tables'!$BL$35),('Cost Budgets'!$H$11*AM13),0) -> 0 | AN53: =IF(OR(AN1='Input Tables'!$BA$35,AN1='Input Tables'!$BB$35, AN1='Input Tables'!$BC$35,AN1='Input Tables'!$BD$35, AN1='Input Tables'!$BE$35,AN1='Input Tables'!$BF$35,AN1='Input Tables'!$BG$35,AN1='Input Tables'!$BH$35,AN1='Input Tables'!$BI$35,AN1='Input Tables'!$BJ$35,AN1='Input Tables'!$BK$35,AN1='Input Tables'!$BL$35),('Cost Budgets'!$H$11*AN13),0) -> 0 | AO53: =IF(OR(AO1='Input Tables'!$BA$35,AO1='Input Tables'!$BB$35, AO1='Input Tables'!$BC$35,AO1='Input Tables'!$BD$35, AO1='Input Tables'!$BE$35,AO1='Input Tables'!$BF$35,AO1='Input Tables'!$BG$35,AO1='Input Tables'!$BH$35,AO1='Input Tables'!$BI$35,AO1='Input Tables'!$BJ$35,AO1='Input Tables'!$BK$35,AO1='Input Tables'!$BL$35),('Cost Budgets'!$H$11*AO13),0) -> 0 | AP53: =IF(OR(AP1='Input Tables'!$BA$35,AP1='Input Tables'!$BB$35, AP1='Input Tables'!$BC$35,AP1='Input Tables'!$BD$35, AP1='Input Tables'!$BE$35,AP1='Input Tables'!$BF$35,AP1='Input Tables'!$BG$35,AP1='Input Tables'!$BH$35,AP1='Input Tables'!$BI$35,AP1='Input Tables'!$BJ$35,AP1='Input Tables'!$BK$35,AP1='Input Tables'!$BL$35),('Cost Budgets'!$H$11*AP13),0) -> 0 | AQ53: =IF(OR(AQ1='Input Tables'!$BA$35,AQ1='Input Tables'!$BB$35, AQ1='Input Tables'!$BC$35,AQ1='Input Tables'!$BD$35, AQ1='Input Tables'!$BE$35,AQ1='Input Tables'!$BF$35,AQ1='Input Tables'!$BG$35,AQ1='Input Tables'!$BH$35,AQ1='Input Tables'!$BI$35,AQ1='Input Tables'!$BJ$35,AQ1='Input Tables'!$BK$35,AQ1='Input Tables'!$BL$35),('Cost Budgets'!$H$11*AQ13),0) -> 0 | AR53: =IF(OR(AR1='Input Tables'!$BA$35,AR1='Input Tables'!$BB$35, AR1='Input Tables'!$BC$35,AR1='Input Tables'!$BD$35, AR1='Input Tables'!$BE$35,AR1='Input Tables'!$BF$35,AR1='Input Tables'!$BG$35,AR1='Input Tables'!$BH$35,AR1='Input Tables'!$BI$35,AR1='Input Tables'!$BJ$35,AR1='Input Tables'!$BK$35,AR1='Input Tables'!$BL$35),('Cost Budgets'!$H$11*AR13),0) -> 0 | AS53: =IF(OR(AS1='Input Tables'!$BA$35,AS1='Input Tables'!$BB$35, AS1='Input Tables'!$BC$35,AS1='Input Tables'!$BD$35, AS1='Input Tables'!$BE$35,AS1='Input Tables'!$BF$35,AS1='Input Tables'!$BG$35,AS1='Input Tables'!$BH$35,AS1='Input Tables'!$BI$35,AS1='Input Tables'!$BJ$35,AS1='Input Tables'!$BK$35,AS1='Input Tables'!$BL$35),('Cost Budgets'!$H$11*AS13),0) -> 0 | AT53: =IF(OR(AT1='Input Tables'!$BA$35,AT1='Input Tables'!$BB$35, AT1='Input Tables'!$BC$35,AT1='Input Tables'!$BD$35, AT1='Input Tables'!$BE$35,AT1='Input Tables'!$BF$35,AT1='Input Tables'!$BG$35,AT1='Input Tables'!$BH$35,AT1='Input Tables'!$BI$35,AT1='Input Tables'!$BJ$35,AT1='Input Tables'!$BK$35,AT1='Input Tables'!$BL$35),('Cost Budgets'!$H$11*AT13),0) -> 0 | AU53: =IF(OR(AU1='Input Tables'!$BA$35,AU1='Input Tables'!$BB$35, AU1='Input Tables'!$BC$35,AU1='Input Tables'!$BD$35, AU1='Input Tables'!$BE$35,AU1='Input Tables'!$BF$35,AU1='Input Tables'!$BG$35,AU1='Input Tables'!$BH$35,AU1='Input Tables'!$BI$35,AU1='Input Tables'!$BJ$35,AU1='Input Tables'!$BK$35,AU1='Input Tables'!$BL$35),('Cost Budgets'!$H$11*AU13),0) -> 0 | AV53: =IF(OR(AV1='Input Tables'!$BA$35,AV1='Input Tables'!$BB$35, AV1='Input Tables'!$BC$35,AV1='Input Tables'!$BD$35, AV1='Input Tables'!$BE$35,AV1='Input Tables'!$BF$35,AV1='Input Tables'!$BG$35,AV1='Input Tables'!$BH$35,AV1='Input Tables'!$BI$35,AV1='Input Tables'!$BJ$35,AV1='Input Tables'!$BK$35,AV1='Input Tables'!$BL$35),('Cost Budgets'!$H$11*AV13),0) -> 0 | AW53: =IF(OR(AW1='Input Tables'!$BA$35,AW1='Input Tables'!$BB$35, AW1='Input Tables'!$BC$35,AW1='Input Tables'!$BD$35, AW1='Input Tables'!$BE$35,AW1='Input Tables'!$BF$35,AW1='Input Tables'!$BG$35,AW1='Input Tables'!$BH$35,AW1='Input Tables'!$BI$35,AW1='Input Tables'!$BJ$35,AW1='Input Tables'!$BK$35,AW1='Input Tables'!$BL$35),('Cost Budgets'!$H$11*AW13),0) -> 0 | AX53: =IF(OR(AX1='Input Tables'!$BA$35,AX1='Input Tables'!$BB$35, AX1='Input Tables'!$BC$35,AX1='Input Tables'!$BD$35, AX1='Input Tables'!$BE$35,AX1='Input Tables'!$BF$35,AX1='Input Tables'!$BG$35,AX1='Input Tables'!$BH$35,AX1='Input Tables'!$BI$35,AX1='Input Tables'!$BJ$35,AX1='Input Tables'!$BK$35,AX1='Input Tables'!$BL$35),('Cost Budgets'!$H$11*AX13),0) -> 0 | AY53: =IF(OR(AY1='Input Tables'!$BA$35,AY1='Input Tables'!$BB$35, AY1='Input Tables'!$BC$35,AY1='Input Tables'!$BD$35, AY1='Input Tables'!$BE$35,AY1='Input Tables'!$BF$35,AY1='Input Tables'!$BG$35,AY1='Input Tables'!$BH$35,AY1='Input Tables'!$BI$35,AY1='Input Tables'!$BJ$35,AY1='Input Tables'!$BK$35,AY1='Input Tables'!$BL$35),('Cost Budgets'!$H$11*AY13),0) -> 0 | AZ53: =IF(OR(AZ1='Input Tables'!$BA$35,AZ1='Input Tables'!$BB$35, AZ1='Input Tables'!$BC$35,AZ1='Input Tables'!$BD$35, AZ1='Input Tables'!$BE$35,AZ1='Input Tables'!$BF$35,AZ1='Input Tables'!$BG$35,AZ1='Input Tables'!$BH$35,AZ1='Input Tables'!$BI$35,AZ1='Input Tables'!$BJ$35,AZ1='Input Tables'!$BK$35,AZ1='Input Tables'!$BL$35),('Cost Budgets'!$H$11*AZ13),0) -> 0 | BA53: =IF(OR(BA1='Input Tables'!$BA$35,BA1='Input Tables'!$BB$35, BA1='Input Tables'!$BC$35,BA1='Input Tables'!$BD$35, BA1='Input Tables'!$BE$35,BA1='Input Tables'!$BF$35,BA1='Input Tables'!$BG$35,BA1='Input Tables'!$BH$35,BA1='Input Tables'!$BI$35,BA1='Input Tables'!$BJ$35,BA1='Input Tables'!$BK$35,BA1='Input Tables'!$BL$35),('Cost Budgets'!$H$11*BA13),0) -> 0 | BB53: =IF(OR(BB1='Input Tables'!$BA$35,BB1='Input Tables'!$BB$35, BB1='Input Tables'!$BC$35,BB1='Input Tables'!$BD$35, BB1='Input Tables'!$BE$35,BB1='Input Tables'!$BF$35,BB1='Input Tables'!$BG$35,BB1='Input Tables'!$BH$35,BB1='Input Tables'!$BI$35,BB1='Input Tables'!$BJ$35,BB1='Input Tables'!$BK$35,BB1='Input Tables'!$BL$35),('Cost Budgets'!$H$11*BB13),0) -> 0 | BC53: =IF(OR(BC1='Input Tables'!$BA$35,BC1='Input Tables'!$BB$35, BC1='Input Tables'!$BC$35,BC1='Input Tables'!$BD$35, BC1='Input Tables'!$BE$35,BC1='Input Tables'!$BF$35,BC1='Input Tables'!$BG$35,BC1='Input Tables'!$BH$35,BC1='Input Tables'!$BI$35,BC1='Input Tables'!$BJ$35,BC1='Input Tables'!$BK$35,BC1='Input Tables'!$BL$35),('Cost Budgets'!$H$11*BC13),0) -> 0 | BD53: =IF(OR(BD1='Input Tables'!$BA$35,BD1='Input Tables'!$BB$35, BD1='Input Tables'!$BC$35,BD1='Input Tables'!$BD$35, BD1='Input Tables'!$BE$35,BD1='Input Tables'!$BF$35,BD1='Input Tables'!$BG$35,BD1='Input Tables'!$BH$35,BD1='Input Tables'!$BI$35,BD1='Input Tables'!$BJ$35,BD1='Input Tables'!$BK$35,BD1='Input Tables'!$BL$35),('Cost Budgets'!$H$11*BD13),0) -> 0 | BE53: =IF(OR(BE1='Input Tables'!$BA$35,BE1='Input Tables'!$BB$35, BE1='Input Tables'!$BC$35,BE1='Input Tables'!$BD$35, BE1='Input Tables'!$BE$35,BE1='Input Tables'!$BF$35,BE1='Input Tables'!$BG$35,BE1='Input Tables'!$BH$35,BE1='Input Tables'!$BI$35,BE1='Input Tables'!$BJ$35,BE1='Input Tables'!$BK$35,BE1='Input Tables'!$BL$35),('Cost Budgets'!$H$11*BE13),0) -> 0 | BF53: =IF(OR(BF1='Input Tables'!$BA$35,BF1='Input Tables'!$BB$35, BF1='Input Tables'!$BC$35,BF1='Input Tables'!$BD$35, BF1='Input Tables'!$BE$35,BF1='Input Tables'!$BF$35,BF1='Input Tables'!$BG$35,BF1='Input Tables'!$BH$35,BF1='Input Tables'!$BI$35,BF1='Input Tables'!$BJ$35,BF1='Input Tables'!$BK$35,BF1='Input Tables'!$BL$35),('Cost Budgets'!$H$11*BF13),0) -> 0 | BG53: =IF(OR(BG1='Input Tables'!$BA$35,BG1='Input Tables'!$BB$35, BG1='Input Tables'!$BC$35,BG1='Input Tables'!$BD$35, BG1='Input Tables'!$BE$35,BG1='Input Tables'!$BF$35,BG1='Input Tables'!$BG$35,BG1='Input Tables'!$BH$35,BG1='Input Tables'!$BI$35,BG1='Input Tables'!$BJ$35,BG1='Input Tables'!$BK$35,BG1='Input Tables'!$BL$35),('Cost Budgets'!$H$11*BG13),0) -> 0 | BH53: =IF(OR(BH1='Input Tables'!$BA$35,BH1='Input Tables'!$BB$35, BH1='Input Tables'!$BC$35,BH1='Input Tables'!$BD$35, BH1='Input Tables'!$BE$35,BH1='Input Tables'!$BF$35,BH1='Input Tables'!$BG$35,BH1='Input Tables'!$BH$35,BH1='Input Tables'!$BI$35,BH1='Input Tables'!$BJ$35,BH1='Input Tables'!$BK$35,BH1='Input Tables'!$BL$35),('Cost Budgets'!$H$11*BH13),0) -> 0 | BI53: =IF(OR(BI1='Input Tables'!$BA$35,BI1='Input Tables'!$BB$35, BI1='Input Tables'!$BC$35,BI1='Input Tables'!$BD$35, BI1='Input Tables'!$BE$35,BI1='Input Tables'!$BF$35,BI1='Input Tables'!$BG$35,BI1='Input Tables'!$BH$35,BI1='Input Tables'!$BI$35,BI1='Input Tables'!$BJ$35,BI1='Input Tables'!$BK$35,BI1='Input Tables'!$BL$35),('Cost Budgets'!$H$11*BI13),0) -> 0 | BJ53: =IF(OR(BJ1='Input Tables'!$BA$35,BJ1='Input Tables'!$BB$35, BJ1='Input Tables'!$BC$35,BJ1='Input Tables'!$BD$35, BJ1='Input Tables'!$BE$35,BJ1='Input Tables'!$BF$35,BJ1='Input Tables'!$BG$35,BJ1='Input Tables'!$BH$35,BJ1='Input Tables'!$BI$35,BJ1='Input Tables'!$BJ$35,BJ1='Input Tables'!$BK$35,BJ1='Input Tables'!$BL$35),('Cost Budgets'!$H$11*BJ13),0) -> 0 | BK53: =IF(OR(BK1='Input Tables'!$BA$35,BK1='Input Tables'!$BB$35, BK1='Input Tables'!$BC$35,BK1='Input Tables'!$BD$35, BK1='Input Tables'!$BE$35,BK1='Input Tables'!$BF$35,BK1='Input Tables'!$BG$35,BK1='Input Tables'!$BH$35,BK1='Input Tables'!$BI$35,BK1='Input Tables'!$BJ$35,BK1='Input Tables'!$BK$35,BK1='Input Tables'!$BL$35),('Cost Budgets'!$H$11*BK13),0) -> 0 | BL53: =IF(OR(BL1='Input Tables'!$BA$35,BL1='Input Tables'!$BB$35, BL1='Input Tables'!$BC$35,BL1='Input Tables'!$BD$35, BL1='Input Tables'!$BE$35,BL1='Input Tables'!$BF$35,BL1='Input Tables'!$BG$35,BL1='Input Tables'!$BH$35,BL1='Input Tables'!$BI$35,BL1='Input Tables'!$BJ$35,BL1='Input Tables'!$BK$35,BL1='Input Tables'!$BL$35),('Cost Budgets'!$H$11*BL13),0) -> 0 | BM53: =IF(OR(BM1='Input Tables'!$BA$35,BM1='Input Tables'!$BB$35, BM1='Input Tables'!$BC$35,BM1='Input Tables'!$BD$35, BM1='Input Tables'!$BE$35,BM1='Input Tables'!$BF$35,BM1='Input Tables'!$BG$35,BM1='Input Tables'!$BH$35,BM1='Input Tables'!$BI$35,BM1='Input Tables'!$BJ$35,BM1='Input Tables'!$BK$35,BM1='Input Tables'!$BL$35),('Cost Budgets'!$H$11*BM13),0) -> 0 | BN53: =IF(OR(BN1='Input Tables'!$BA$35,BN1='Input Tables'!$BB$35, BN1='Input Tables'!$BC$35,BN1='Input Tables'!$BD$35, BN1='Input Tables'!$BE$35,BN1='Input Tables'!$BF$35,BN1='Input Tables'!$BG$35,BN1='Input Tables'!$BH$35,BN1='Input Tables'!$BI$35,BN1='Input Tables'!$BJ$35,BN1='Input Tables'!$BK$35,BN1='Input Tables'!$BL$35),('Cost Budgets'!$H$11*BN13),0) -> 0 | BO53: =IF(OR(BO1='Input Tables'!$BA$35,BO1='Input Tables'!$BB$35, BO1='Input Tables'!$BC$35,BO1='Input Tables'!$BD$35, BO1='Input Tables'!$BE$35,BO1='Input Tables'!$BF$35,BO1='Input Tables'!$BG$35,BO1='Input Tables'!$BH$35,BO1='Input Tables'!$BI$35,BO1='Input Tables'!$BJ$35,BO1='Input Tables'!$BK$35,BO1='Input Tables'!$BL$35),('Cost Budgets'!$H$11*BO13),0) -> 0 | BP53: =IF(OR(BP1='Input Tables'!$BA$35,BP1='Input Tables'!$BB$35, BP1='Input Tables'!$BC$35,BP1='Input Tables'!$BD$35, BP1='Input Tables'!$BE$35,BP1='Input Tables'!$BF$35,BP1='Input Tables'!$BG$35,BP1='Input Tables'!$BH$35,BP1='Input Tables'!$BI$35,BP1='Input Tables'!$BJ$35,BP1='Input Tables'!$BK$35,BP1='Input Tables'!$BL$35),('Cost Budgets'!$H$11*BP13),0) -> 0 | BQ53: =IF(OR(BQ1='Input Tables'!$BA$35,BQ1='Input Tables'!$BB$35, BQ1='Input Tables'!$BC$35,BQ1='Input Tables'!$BD$35, BQ1='Input Tables'!$BE$35,BQ1='Input Tables'!$BF$35,BQ1='Input Tables'!$BG$35,BQ1='Input Tables'!$BH$35,BQ1='Input Tables'!$BI$35,BQ1='Input Tables'!$BJ$35,BQ1='Input Tables'!$BK$35,BQ1='Input Tables'!$BL$35),('Cost Budgets'!$H$11*BQ13),0) -> 0 | BR53: =IF(OR(BR1='Input Tables'!$BA$35,BR1='Input Tables'!$BB$35, BR1='Input Tables'!$BC$35,BR1='Input Tables'!$BD$35, BR1='Input Tables'!$BE$35,BR1='Input Tables'!$BF$35,BR1='Input Tables'!$BG$35,BR1='Input Tables'!$BH$35,BR1='Input Tables'!$BI$35,BR1='Input Tables'!$BJ$35,BR1='Input Tables'!$BK$35,BR1='Input Tables'!$BL$35),('Cost Budgets'!$H$11*BR13),0) -> 0 | BS53: =IF(OR(BS1='Input Tables'!$BA$35,BS1='Input Tables'!$BB$35, BS1='Input Tables'!$BC$35,BS1='Input Tables'!$BD$35, BS1='Input Tables'!$BE$35,BS1='Input Tables'!$BF$35,BS1='Input Tables'!$BG$35,BS1='Input Tables'!$BH$35,BS1='Input Tables'!$BI$35,BS1='Input Tables'!$BJ$35,BS1='Input Tables'!$BK$35,BS1='Input Tables'!$BL$35),('Cost Budgets'!$H$11*BS13),0) -> 0 | BT53: =IF(OR(BT1='Input Tables'!$BA$35,BT1='Input Tables'!$BB$35, BT1='Input Tables'!$BC$35,BT1='Input Tables'!$BD$35, BT1='Input Tables'!$BE$35,BT1='Input Tables'!$BF$35,BT1='Input Tables'!$BG$35,BT1='Input Tables'!$BH$35,BT1='Input Tables'!$BI$35,BT1='Input Tables'!$BJ$35,BT1='Input Tables'!$BK$35,BT1='Input Tables'!$BL$35),('Cost Budgets'!$H$11*BT13),0) -> 0 | BU53: =IF(OR(BU1='Input Tables'!$BA$35,BU1='Input Tables'!$BB$35, BU1='Input Tables'!$BC$35,BU1='Input Tables'!$BD$35, BU1='Input Tables'!$BE$35,BU1='Input Tables'!$BF$35,BU1='Input Tables'!$BG$35,BU1='Input Tables'!$BH$35,BU1='Input Tables'!$BI$35,BU1='Input Tables'!$BJ$35,BU1='Input Tables'!$BK$35,BU1='Input Tables'!$BL$35),('Cost Budgets'!$H$11*BU13),0) -> 0
B55: Pruning | E55: =IF(OR(E1='Input Tables'!$BA$41, E1='Input Tables'!$BB$41,E1='Input Tables'!$BC$41, E1='Input Tables'!$BD$41,E1='Input Tables'!$BE$41,E1='Input Tables'!$BF$41,E1='Input Tables'!$BG$41,E1='Input Tables'!$BH$41,E1='Input Tables'!$BI$41,E1='Input Tables'!$BJ$41,E1='Input Tables'!$BK$41, E1='Input Tables'!$BL$41,E1='Input Tables'!$BM$41),('Cost Budgets'!$H$12*E13),0) -> 0 | F55: =IF(OR(F1='Input Tables'!$BA$41, F1='Input Tables'!$BB$41,F1='Input Tables'!$BC$41, F1='Input Tables'!$BD$41,F1='Input Tables'!$BE$41,F1='Input Tables'!$BF$41,F1='Input Tables'!$BG$41,F1='Input Tables'!$BH$41,F1='Input Tables'!$BI$41,F1='Input Tables'!$BJ$41,F1='Input Tables'!$BK$41, F1='Input Tables'!$BL$41,F1='Input Tables'!$BM$41),('Cost Budgets'!$H$12*F13),0) -> 0 | G55: =IF(OR(G1='Input Tables'!$BA$41, G1='Input Tables'!$BB$41,G1='Input Tables'!$BC$41, G1='Input Tables'!$BD$41,G1='Input Tables'!$BE$41,G1='Input Tables'!$BF$41,G1='Input Tables'!$BG$41,G1='Input Tables'!$BH$41,G1='Input Tables'!$BI$41,G1='Input Tables'!$BJ$41,G1='Input Tables'!$BK$41, G1='Input Tables'!$BL$41,G1='Input Tables'!$BM$41),('Cost Budgets'!$H$12*G13),0) -> 0 | H55: =IF(OR(H1='Input Tables'!$BA$41, H1='Input Tables'!$BB$41,H1='Input Tables'!$BC$41, H1='Input Tables'!$BD$41,H1='Input Tables'!$BE$41,H1='Input Tables'!$BF$41,H1='Input Tables'!$BG$41,H1='Input Tables'!$BH$41,H1='Input Tables'!$BI$41,H1='Input Tables'!$BJ$41,H1='Input Tables'!$BK$41, H1='Input Tables'!$BL$41,H1='Input Tables'!$BM$41),('Cost Budgets'!$H$12*H13),0) -> 23.69387755 | I55: =IF(OR(I1='Input Tables'!$BA$41, I1='Input Tables'!$BB$41,I1='Input Tables'!$BC$41, I1='Input Tables'!$BD$41,I1='Input Tables'!$BE$41,I1='Input Tables'!$BF$41,I1='Input Tables'!$BG$41,I1='Input Tables'!$BH$41,I1='Input Tables'!$BI$41,I1='Input Tables'!$BJ$41,I1='Input Tables'!$BK$41, I1='Input Tables'!$BL$41,I1='Input Tables'!$BM$41),('Cost Budgets'!$H$12*I13),0) -> 0 | J55: =IF(OR(J1='Input Tables'!$BA$41, J1='Input Tables'!$BB$41,J1='Input Tables'!$BC$41, J1='Input Tables'!$BD$41,J1='Input Tables'!$BE$41,J1='Input Tables'!$BF$41,J1='Input Tables'!$BG$41,J1='Input Tables'!$BH$41,J1='Input Tables'!$BI$41,J1='Input Tables'!$BJ$41,J1='Input Tables'!$BK$41, J1='Input Tables'!$BL$41,J1='Input Tables'!$BM$41),('Cost Budgets'!$H$12*J13),0) -> 22.69387755 | K55: =IF(OR(K1='Input Tables'!$BA$41, K1='Input Tables'!$BB$41,K1='Input Tables'!$BC$41, K1='Input Tables'!$BD$41,K1='Input Tables'!$BE$41,K1='Input Tables'!$BF$41,K1='Input Tables'!$BG$41,K1='Input Tables'!$BH$41,K1='Input Tables'!$BI$41,K1='Input Tables'!$BJ$41,K1='Input Tables'!$BK$41, K1='Input Tables'!$BL$41,K1='Input Tables'!$BM$41),('Cost Budgets'!$H$12*K13),0) -> 0 | L55: =IF(OR(L1='Input Tables'!$BA$41, L1='Input Tables'!$BB$41,L1='Input Tables'!$BC$41, L1='Input Tables'!$BD$41,L1='Input Tables'!$BE$41,L1='Input Tables'!$BF$41,L1='Input Tables'!$BG$41,L1='Input Tables'!$BH$41,L1='Input Tables'!$BI$41,L1='Input Tables'!$BJ$41,L1='Input Tables'!$BK$41, L1='Input Tables'!$BL$41,L1='Input Tables'!$BM$41),('Cost Budgets'!$H$12*L13),0) -> 20.69387755 | M55: =IF(OR(M1='Input Tables'!$BA$41, M1='Input Tables'!$BB$41,M1='Input Tables'!$BC$41, M1='Input Tables'!$BD$41,M1='Input Tables'!$BE$41,M1='Input Tables'!$BF$41,M1='Input Tables'!$BG$41,M1='Input Tables'!$BH$41,M1='Input Tables'!$BI$41,M1='Input Tables'!$BJ$41,M1='Input Tables'!$BK$41, M1='Input Tables'!$BL$41,M1='Input Tables'!$BM$41),('Cost Budgets'!$H$12*M13),0) -> 0 | N55: =IF(OR(N1='Input Tables'!$BA$41, N1='Input Tables'!$BB$41,N1='Input Tables'!$BC$41, N1='Input Tables'!$BD$41,N1='Input Tables'!$BE$41,N1='Input Tables'!$BF$41,N1='Input Tables'!$BG$41,N1='Input Tables'!$BH$41,N1='Input Tables'!$BI$41,N1='Input Tables'!$BJ$41,N1='Input Tables'!$BK$41, N1='Input Tables'!$BL$41,N1='Input Tables'!$BM$41),('Cost Budgets'!$H$12*N13),0) -> 20.69387755 | O55: =IF(OR(O1='Input Tables'!$BA$41, O1='Input Tables'!$BB$41,O1='Input Tables'!$BC$41, O1='Input Tables'!$BD$41,O1='Input Tables'!$BE$41,O1='Input Tables'!$BF$41,O1='Input Tables'!$BG$41,O1='Input Tables'!$BH$41,O1='Input Tables'!$BI$41,O1='Input Tables'!$BJ$41,O1='Input Tables'!$BK$41, O1='Input Tables'!$BL$41,O1='Input Tables'!$BM$41),('Cost Budgets'!$H$12*O13),0) -> 0 | P55: =IF(OR(P1='Input Tables'!$BA$41, P1='Input Tables'!$BB$41,P1='Input Tables'!$BC$41, P1='Input Tables'!$BD$41,P1='Input Tables'!$BE$41,P1='Input Tables'!$BF$41,P1='Input Tables'!$BG$41,P1='Input Tables'!$BH$41,P1='Input Tables'!$BI$41,P1='Input Tables'!$BJ$41,P1='Input Tables'!$BK$41, P1='Input Tables'!$BL$41,P1='Input Tables'!$BM$41),('Cost Budgets'!$H$12*P13),0) -> 0 | Q55: =IF(OR(Q1='Input Tables'!$BA$41, Q1='Input Tables'!$BB$41,Q1='Input Tables'!$BC$41, Q1='Input Tables'!$BD$41,Q1='Input Tables'!$BE$41,Q1='Input Tables'!$BF$41,Q1='Input Tables'!$BG$41,Q1='Input Tables'!$BH$41,Q1='Input Tables'!$BI$41,Q1='Input Tables'!$BJ$41,Q1='Input Tables'!$BK$41, Q1='Input Tables'!$BL$41,Q1='Input Tables'!$BM$41),('Cost Budgets'!$H$12*Q13),0) -> 0 | R55: =IF(OR(R1='Input Tables'!$BA$41, R1='Input Tables'!$BB$41,R1='Input Tables'!$BC$41, R1='Input Tables'!$BD$41,R1='Input Tables'!$BE$41,R1='Input Tables'!$BF$41,R1='Input Tables'!$BG$41,R1='Input Tables'!$BH$41,R1='Input Tables'!$BI$41,R1='Input Tables'!$BJ$41,R1='Input Tables'!$BK$41, R1='Input Tables'!$BL$41,R1='Input Tables'!$BM$41),('Cost Budgets'!$H$12*R13),0) -> 0 | S55: =IF(OR(S1='Input Tables'!$BA$41, S1='Input Tables'!$BB$41,S1='Input Tables'!$BC$41, S1='Input Tables'!$BD$41,S1='Input Tables'!$BE$41,S1='Input Tables'!$BF$41,S1='Input Tables'!$BG$41,S1='Input Tables'!$BH$41,S1='Input Tables'!$BI$41,S1='Input Tables'!$BJ$41,S1='Input Tables'!$BK$41, S1='Input Tables'!$BL$41,S1='Input Tables'!$BM$41),('Cost Budgets'!$H$12*S13),0) -> 0 | T55: =IF(OR(T1='Input Tables'!$BA$41, T1='Input Tables'!$BB$41,T1='Input Tables'!$BC$41, T1='Input Tables'!$BD$41,T1='Input Tables'!$BE$41,T1='Input Tables'!$BF$41,T1='Input Tables'!$BG$41,T1='Input Tables'!$BH$41,T1='Input Tables'!$BI$41,T1='Input Tables'!$BJ$41,T1='Input Tables'!$BK$41, T1='Input Tables'!$BL$41,T1='Input Tables'!$BM$41),('Cost Budgets'!$H$12*T13),0) -> 0 | U55: =IF(OR(U1='Input Tables'!$BA$41, U1='Input Tables'!$BB$41,U1='Input Tables'!$BC$41, U1='Input Tables'!$BD$41,U1='Input Tables'!$BE$41,U1='Input Tables'!$BF$41,U1='Input Tables'!$BG$41,U1='Input Tables'!$BH$41,U1='Input Tables'!$BI$41,U1='Input Tables'!$BJ$41,U1='Input Tables'!$BK$41, U1='Input Tables'!$BL$41,U1='Input Tables'!$BM$41),('Cost Budgets'!$H$12*U13),0) -> 0 | V55: =IF(OR(V1='Input Tables'!$BA$41, V1='Input Tables'!$BB$41,V1='Input Tables'!$BC$41, V1='Input Tables'!$BD$41,V1='Input Tables'!$BE$41,V1='Input Tables'!$BF$41,V1='Input Tables'!$BG$41,V1='Input Tables'!$BH$41,V1='Input Tables'!$BI$41,V1='Input Tables'!$BJ$41,V1='Input Tables'!$BK$41, V1='Input Tables'!$BL$41,V1='Input Tables'!$BM$41),('Cost Budgets'!$H$12*V13),0) -> 0 | W55: =IF(OR(W1='Input Tables'!$BA$41, W1='Input Tables'!$BB$41,W1='Input Tables'!$BC$41, W1='Input Tables'!$BD$41,W1='Input Tables'!$BE$41,W1='Input Tables'!$BF$41,W1='Input Tables'!$BG$41,W1='Input Tables'!$BH$41,W1='Input Tables'!$BI$41,W1='Input Tables'!$BJ$41,W1='Input Tables'!$BK$41, W1='Input Tables'!$BL$41,W1='Input Tables'!$BM$41),('Cost Budgets'!$H$12*W13),0) -> 0 | X55: =IF(OR(X1='Input Tables'!$BA$41, X1='Input Tables'!$BB$41,X1='Input Tables'!$BC$41, X1='Input Tables'!$BD$41,X1='Input Tables'!$BE$41,X1='Input Tables'!$BF$41,X1='Input Tables'!$BG$41,X1='Input Tables'!$BH$41,X1='Input Tables'!$BI$41,X1='Input Tables'!$BJ$41,X1='Input Tables'!$BK$41, X1='Input Tables'!$BL$41,X1='Input Tables'!$BM$41),('Cost Budgets'!$H$12*X13),0) -> 0 | Y55: =IF(OR(Y1='Input Tables'!$BA$41, Y1='Input Tables'!$BB$41,Y1='Input Tables'!$BC$41, Y1='Input Tables'!$BD$41,Y1='Input Tables'!$BE$41,Y1='Input Tables'!$BF$41,Y1='Input Tables'!$BG$41,Y1='Input Tables'!$BH$41,Y1='Input Tables'!$BI$41,Y1='Input Tables'!$BJ$41,Y1='Input Tables'!$BK$41, Y1='Input Tables'!$BL$41,Y1='Input Tables'!$BM$41),('Cost Budgets'!$H$12*Y13),0) -> 0 | Z55: =IF(OR(Z1='Input Tables'!$BA$41, Z1='Input Tables'!$BB$41,Z1='Input Tables'!$BC$41, Z1='Input Tables'!$BD$41,Z1='Input Tables'!$BE$41,Z1='Input Tables'!$BF$41,Z1='Input Tables'!$BG$41,Z1='Input Tables'!$BH$41,Z1='Input Tables'!$BI$41,Z1='Input Tables'!$BJ$41,Z1='Input Tables'!$BK$41, Z1='Input Tables'!$BL$41,Z1='Input Tables'!$BM$41),('Cost Budgets'!$H$12*Z13),0) -> 0 | AA55: =IF(OR(AA1='Input Tables'!$BA$41, AA1='Input Tables'!$BB$41,AA1='Input Tables'!$BC$41, AA1='Input Tables'!$BD$41,AA1='Input Tables'!$BE$41,AA1='Input Tables'!$BF$41,AA1='Input Tables'!$BG$41,AA1='Input Tables'!$BH$41,AA1='Input Tables'!$BI$41,AA1='Input Tables'!$BJ$41,AA1='Input Tables'!$BK$41, AA1='Input Tables'!$BL$41,AA1='Input Tables'!$BM$41),('Cost Budgets'!$H$12*AA13),0) -> 0 | AB55: =IF(OR(AB1='Input Tables'!$BA$41, AB1='Input Tables'!$BB$41,AB1='Input Tables'!$BC$41, AB1='Input Tables'!$BD$41,AB1='Input Tables'!$BE$41,AB1='Input Tables'!$BF$41,AB1='Input Tables'!$BG$41,AB1='Input Tables'!$BH$41,AB1='Input Tables'!$BI$41,AB1='Input Tables'!$BJ$41,AB1='Input Tables'!$BK$41, AB1='Input Tables'!$BL$41,AB1='Input Tables'!$BM$41),('Cost Budgets'!$H$12*AB13),0) -> 0 | AC55: =IF(OR(AC1='Input Tables'!$BA$41, AC1='Input Tables'!$BB$41,AC1='Input Tables'!$BC$41, AC1='Input Tables'!$BD$41,AC1='Input Tables'!$BE$41,AC1='Input Tables'!$BF$41,AC1='Input Tables'!$BG$41,AC1='Input Tables'!$BH$41,AC1='Input Tables'!$BI$41,AC1='Input Tables'!$BJ$41,AC1='Input Tables'!$BK$41, AC1='Input Tables'!$BL$41,AC1='Input Tables'!$BM$41),('Cost Budgets'!$H$12*AC13),0) -> 0 | AD55: =IF(OR(AD1='Input Tables'!$BA$41, AD1='Input Tables'!$BB$41,AD1='Input Tables'!$BC$41, AD1='Input Tables'!$BD$41,AD1='Input Tables'!$BE$41,AD1='Input Tables'!$BF$41,AD1='Input Tables'!$BG$41,AD1='Input Tables'!$BH$41,AD1='Input Tables'!$BI$41,AD1='Input Tables'!$BJ$41,AD1='Input Tables'!$BK$41, AD1='Input Tables'!$BL$41,AD1='Input Tables'!$BM$41),('Cost Budgets'!$H$12*AD13),0) -> 0 | AE55: =IF(OR(AE1='Input Tables'!$BA$41, AE1='Input Tables'!$BB$41,AE1='Input Tables'!$BC$41, AE1='Input Tables'!$BD$41,AE1='Input Tables'!$BE$41,AE1='Input Tables'!$BF$41,AE1='Input Tables'!$BG$41,AE1='Input Tables'!$BH$41,AE1='Input Tables'!$BI$41,AE1='Input Tables'!$BJ$41,AE1='Input Tables'!$BK$41, AE1='Input Tables'!$BL$41,AE1='Input Tables'!$BM$41),('Cost Budgets'!$H$12*AE13),0) -> 0 | AF55: =IF(OR(AF1='Input Tables'!$BA$41, AF1='Input Tables'!$BB$41,AF1='Input Tables'!$BC$41, AF1='Input Tables'!$BD$41,AF1='Input Tables'!$BE$41,AF1='Input Tables'!$BF$41,AF1='Input Tables'!$BG$41,AF1='Input Tables'!$BH$41,AF1='Input Tables'!$BI$41,AF1='Input Tables'!$BJ$41,AF1='Input Tables'!$BK$41, AF1='Input Tables'!$BL$41,AF1='Input Tables'!$BM$41),('Cost Budgets'!$H$12*AF13),0) -> 0 | AG55: =IF(OR(AG1='Input Tables'!$BA$41, AG1='Input Tables'!$BB$41,AG1='Input Tables'!$BC$41, AG1='Input Tables'!$BD$41,AG1='Input Tables'!$BE$41,AG1='Input Tables'!$BF$41,AG1='Input Tables'!$BG$41,AG1='Input Tables'!$BH$41,AG1='Input Tables'!$BI$41,AG1='Input Tables'!$BJ$41,AG1='Input Tables'!$BK$41, AG1='Input Tables'!$BL$41,AG1='Input Tables'!$BM$41),('Cost Budgets'!$H$12*AG13),0) -> 0 | AH55: =IF(OR(AH1='Input Tables'!$BA$41, AH1='Input Tables'!$BB$41,AH1='Input Tables'!$BC$41, AH1='Input Tables'!$BD$41,AH1='Input Tables'!$BE$41,AH1='Input Tables'!$BF$41,AH1='Input Tables'!$BG$41,AH1='Input Tables'!$BH$41,AH1='Input Tables'!$BI$41,AH1='Input Tables'!$BJ$41,AH1='Input Tables'!$BK$41, AH1='Input Tables'!$BL$41,AH1='Input Tables'!$BM$41),('Cost Budgets'!$H$12*AH13),0) -> 0 | AI55: =IF(OR(AI1='Input Tables'!$BA$41, AI1='Input Tables'!$BB$41,AI1='Input Tables'!$BC$41, AI1='Input Tables'!$BD$41,AI1='Input Tables'!$BE$41,AI1='Input Tables'!$BF$41,AI1='Input Tables'!$BG$41,AI1='Input Tables'!$BH$41,AI1='Input Tables'!$BI$41,AI1='Input Tables'!$BJ$41,AI1='Input Tables'!$BK$41, AI1='Input Tables'!$BL$41,AI1='Input Tables'!$BM$41),('Cost Budgets'!$H$12*AI13),0) -> 0 | AJ55: =IF(OR(AJ1='Input Tables'!$BA$41, AJ1='Input Tables'!$BB$41,AJ1='Input Tables'!$BC$41, AJ1='Input Tables'!$BD$41,AJ1='Input Tables'!$BE$41,AJ1='Input Tables'!$BF$41,AJ1='Input Tables'!$BG$41,AJ1='Input Tables'!$BH$41,AJ1='Input Tables'!$BI$41,AJ1='Input Tables'!$BJ$41,AJ1='Input Tables'!$BK$41, AJ1='Input Tables'!$BL$41,AJ1='Input Tables'!$BM$41),('Cost Budgets'!$H$12*AJ13),0) -> 0 | AK55: =IF(OR(AK1='Input Tables'!$BA$41, AK1='Input Tables'!$BB$41,AK1='Input Tables'!$BC$41, AK1='Input Tables'!$BD$41,AK1='Input Tables'!$BE$41,AK1='Input Tables'!$BF$41,AK1='Input Tables'!$BG$41,AK1='Input Tables'!$BH$41,AK1='Input Tables'!$BI$41,AK1='Input Tables'!$BJ$41,AK1='Input Tables'!$BK$41, AK1='Input Tables'!$BL$41,AK1='Input Tables'!$BM$41),('Cost Budgets'!$H$12*AK13),0) -> 0 | AL55: =IF(OR(AL1='Input Tables'!$BA$41, AL1='Input Tables'!$BB$41,AL1='Input Tables'!$BC$41, AL1='Input Tables'!$BD$41,AL1='Input Tables'!$BE$41,AL1='Input Tables'!$BF$41,AL1='Input Tables'!$BG$41,AL1='Input Tables'!$BH$41,AL1='Input Tables'!$BI$41,AL1='Input Tables'!$BJ$41,AL1='Input Tables'!$BK$41, AL1='Input Tables'!$BL$41,AL1='Input Tables'!$BM$41),('Cost Budgets'!$H$12*AL13),0) -> 0 | AM55: =IF(OR(AM1='Input Tables'!$BA$41, AM1='Input Tables'!$BB$41,AM1='Input Tables'!$BC$41, AM1='Input Tables'!$BD$41,AM1='Input Tables'!$BE$41,AM1='Input Tables'!$BF$41,AM1='Input Tables'!$BG$41,AM1='Input Tables'!$BH$41,AM1='Input Tables'!$BI$41,AM1='Input Tables'!$BJ$41,AM1='Input Tables'!$BK$41, AM1='Input Tables'!$BL$41,AM1='Input Tables'!$BM$41),('Cost Budgets'!$H$12*AM13),0) -> 0 | AN55: =IF(OR(AN1='Input Tables'!$BA$41, AN1='Input Tables'!$BB$41,AN1='Input Tables'!$BC$41, AN1='Input Tables'!$BD$41,AN1='Input Tables'!$BE$41,AN1='Input Tables'!$BF$41,AN1='Input Tables'!$BG$41,AN1='Input Tables'!$BH$41,AN1='Input Tables'!$BI$41,AN1='Input Tables'!$BJ$41,AN1='Input Tables'!$BK$41, AN1='Input Tables'!$BL$41,AN1='Input Tables'!$BM$41),('Cost Budgets'!$H$12*AN13),0) -> 0 | AO55: =IF(OR(AO1='Input Tables'!$BA$41, AO1='Input Tables'!$BB$41,AO1='Input Tables'!$BC$41, AO1='Input Tables'!$BD$41,AO1='Input Tables'!$BE$41,AO1='Input Tables'!$BF$41,AO1='Input Tables'!$BG$41,AO1='Input Tables'!$BH$41,AO1='Input Tables'!$BI$41,AO1='Input Tables'!$BJ$41,AO1='Input Tables'!$BK$41, AO1='Input Tables'!$BL$41,AO1='Input Tables'!$BM$41),('Cost Budgets'!$H$12*AO13),0) -> 0 | AP55: =IF(OR(AP1='Input Tables'!$BA$41, AP1='Input Tables'!$BB$41,AP1='Input Tables'!$BC$41, AP1='Input Tables'!$BD$41,AP1='Input Tables'!$BE$41,AP1='Input Tables'!$BF$41,AP1='Input Tables'!$BG$41,AP1='Input Tables'!$BH$41,AP1='Input Tables'!$BI$41,AP1='Input Tables'!$BJ$41,AP1='Input Tables'!$BK$41, AP1='Input Tables'!$BL$41,AP1='Input Tables'!$BM$41),('Cost Budgets'!$H$12*AP13),0) -> 0 | AQ55: =IF(OR(AQ1='Input Tables'!$BA$41, AQ1='Input Tables'!$BB$41,AQ1='Input Tables'!$BC$41, AQ1='Input Tables'!$BD$41,AQ1='Input Tables'!$BE$41,AQ1='Input Tables'!$BF$41,AQ1='Input Tables'!$BG$41,AQ1='Input Tables'!$BH$41,AQ1='Input Tables'!$BI$41,AQ1='Input Tables'!$BJ$41,AQ1='Input Tables'!$BK$41, AQ1='Input Tables'!$BL$41,AQ1='Input Tables'!$BM$41),('Cost Budgets'!$H$12*AQ13),0) -> 0 | AR55: =IF(OR(AR1='Input Tables'!$BA$41, AR1='Input Tables'!$BB$41,AR1='Input Tables'!$BC$41, AR1='Input Tables'!$BD$41,AR1='Input Tables'!$BE$41,AR1='Input Tables'!$BF$41,AR1='Input Tables'!$BG$41,AR1='Input Tables'!$BH$41,AR1='Input Tables'!$BI$41,AR1='Input Tables'!$BJ$41,AR1='Input Tables'!$BK$41, AR1='Input Tables'!$BL$41,AR1='Input Tables'!$BM$41),('Cost Budgets'!$H$12*AR13),0) -> 0 | AS55: =IF(OR(AS1='Input Tables'!$BA$41, AS1='Input Tables'!$BB$41,AS1='Input Tables'!$BC$41, AS1='Input Tables'!$BD$41,AS1='Input Tables'!$BE$41,AS1='Input Tables'!$BF$41,AS1='Input Tables'!$BG$41,AS1='Input Tables'!$BH$41,AS1='Input Tables'!$BI$41,AS1='Input Tables'!$BJ$41,AS1='Input Tables'!$BK$41, AS1='Input Tables'!$BL$41,AS1='Input Tables'!$BM$41),('Cost Budgets'!$H$12*AS13),0) -> 0 | AT55: =IF(OR(AT1='Input Tables'!$BA$41, AT1='Input Tables'!$BB$41,AT1='Input Tables'!$BC$41, AT1='Input Tables'!$BD$41,AT1='Input Tables'!$BE$41,AT1='Input Tables'!$BF$41,AT1='Input Tables'!$BG$41,AT1='Input Tables'!$BH$41,AT1='Input Tables'!$BI$41,AT1='Input Tables'!$BJ$41,AT1='Input Tables'!$BK$41, AT1='Input Tables'!$BL$41,AT1='Input Tables'!$BM$41),('Cost Budgets'!$H$12*AT13),0) -> 0 | AU55: =IF(OR(AU1='Input Tables'!$BA$41, AU1='Input Tables'!$BB$41,AU1='Input Tables'!$BC$41, AU1='Input Tables'!$BD$41,AU1='Input Tables'!$BE$41,AU1='Input Tables'!$BF$41,AU1='Input Tables'!$BG$41,AU1='Input Tables'!$BH$41,AU1='Input Tables'!$BI$41,AU1='Input Tables'!$BJ$41,AU1='Input Tables'!$BK$41, AU1='Input Tables'!$BL$41,AU1='Input Tables'!$BM$41),('Cost Budgets'!$H$12*AU13),0) -> 0 | AV55: =IF(OR(AV1='Input Tables'!$BA$41, AV1='Input Tables'!$BB$41,AV1='Input Tables'!$BC$41, AV1='Input Tables'!$BD$41,AV1='Input Tables'!$BE$41,AV1='Input Tables'!$BF$41,AV1='Input Tables'!$BG$41,AV1='Input Tables'!$BH$41,AV1='Input Tables'!$BI$41,AV1='Input Tables'!$BJ$41,AV1='Input Tables'!$BK$41, AV1='Input Tables'!$BL$41,AV1='Input Tables'!$BM$41),('Cost Budgets'!$H$12*AV13),0) -> 0 | AW55: =IF(OR(AW1='Input Tables'!$BA$41, AW1='Input Tables'!$BB$41,AW1='Input Tables'!$BC$41, AW1='Input Tables'!$BD$41,AW1='Input Tables'!$BE$41,AW1='Input Tables'!$BF$41,AW1='Input Tables'!$BG$41,AW1='Input Tables'!$BH$41,AW1='Input Tables'!$BI$41,AW1='Input Tables'!$BJ$41,AW1='Input Tables'!$BK$41, AW1='Input Tables'!$BL$41,AW1='Input Tables'!$BM$41),('Cost Budgets'!$H$12*AW13),0) -> 0 | AX55: =IF(OR(AX1='Input Tables'!$BA$41, AX1='Input Tables'!$BB$41,AX1='Input Tables'!$BC$41, AX1='Input Tables'!$BD$41,AX1='Input Tables'!$BE$41,AX1='Input Tables'!$BF$41,AX1='Input Tables'!$BG$41,AX1='Input Tables'!$BH$41,AX1='Input Tables'!$BI$41,AX1='Input Tables'!$BJ$41,AX1='Input Tables'!$BK$41, AX1='Input Tables'!$BL$41,AX1='Input Tables'!$BM$41),('Cost Budgets'!$H$12*AX13),0) -> 0 | AY55: =IF(OR(AY1='Input Tables'!$BA$41, AY1='Input Tables'!$BB$41,AY1='Input Tables'!$BC$41, AY1='Input Tables'!$BD$41,AY1='Input Tables'!$BE$41,AY1='Input Tables'!$BF$41,AY1='Input Tables'!$BG$41,AY1='Input Tables'!$BH$41,AY1='Input Tables'!$BI$41,AY1='Input Tables'!$BJ$41,AY1='Input Tables'!$BK$41, AY1='Input Tables'!$BL$41,AY1='Input Tables'!$BM$41),('Cost Budgets'!$H$12*AY13),0) -> 0 | AZ55: =IF(OR(AZ1='Input Tables'!$BA$41, AZ1='Input Tables'!$BB$41,AZ1='Input Tables'!$BC$41, AZ1='Input Tables'!$BD$41,AZ1='Input Tables'!$BE$41,AZ1='Input Tables'!$BF$41,AZ1='Input Tables'!$BG$41,AZ1='Input Tables'!$BH$41,AZ1='Input Tables'!$BI$41,AZ1='Input Tables'!$BJ$41,AZ1='Input Tables'!$BK$41, AZ1='Input Tables'!$BL$41,AZ1='Input Tables'!$BM$41),('Cost Budgets'!$H$12*AZ13),0) -> 0 | BA55: =IF(OR(BA1='Input Tables'!$BA$41, BA1='Input Tables'!$BB$41,BA1='Input Tables'!$BC$41, BA1='Input Tables'!$BD$41,BA1='Input Tables'!$BE$41,BA1='Input Tables'!$BF$41,BA1='Input Tables'!$BG$41,BA1='Input Tables'!$BH$41,BA1='Input Tables'!$BI$41,BA1='Input Tables'!$BJ$41,BA1='Input Tables'!$BK$41, BA1='Input Tables'!$BL$41,BA1='Input Tables'!$BM$41),('Cost Budgets'!$H$12*BA13),0) -> 0 | BB55: =IF(OR(BB1='Input Tables'!$BA$41, BB1='Input Tables'!$BB$41,BB1='Input Tables'!$BC$41, BB1='Input Tables'!$BD$41,BB1='Input Tables'!$BE$41,BB1='Input Tables'!$BF$41,BB1='Input Tables'!$BG$41,BB1='Input Tables'!$BH$41,BB1='Input Tables'!$BI$41,BB1='Input Tables'!$BJ$41,BB1='Input Tables'!$BK$41, BB1='Input Tables'!$BL$41,BB1='Input Tables'!$BM$41),('Cost Budgets'!$H$12*BB13),0) -> 0 | BC55: =IF(OR(BC1='Input Tables'!$BA$41, BC1='Input Tables'!$BB$41,BC1='Input Tables'!$BC$41, BC1='Input Tables'!$BD$41,BC1='Input Tables'!$BE$41,BC1='Input Tables'!$BF$41,BC1='Input Tables'!$BG$41,BC1='Input Tables'!$BH$41,BC1='Input Tables'!$BI$41,BC1='Input Tables'!$BJ$41,BC1='Input Tables'!$BK$41, BC1='Input Tables'!$BL$41,BC1='Input Tables'!$BM$41),('Cost Budgets'!$H$12*BC13),0) -> 0 | BD55: =IF(OR(BD1='Input Tables'!$BA$41, BD1='Input Tables'!$BB$41,BD1='Input Tables'!$BC$41, BD1='Input Tables'!$BD$41,BD1='Input Tables'!$BE$41,BD1='Input Tables'!$BF$41,BD1='Input Tables'!$BG$41,BD1='Input Tables'!$BH$41,BD1='Input Tables'!$BI$41,BD1='Input Tables'!$BJ$41,BD1='Input Tables'!$BK$41, BD1='Input Tables'!$BL$41,BD1='Input Tables'!$BM$41),('Cost Budgets'!$H$12*BD13),0) -> 0 | BE55: =IF(OR(BE1='Input Tables'!$BA$41, BE1='Input Tables'!$BB$41,BE1='Input Tables'!$BC$41, BE1='Input Tables'!$BD$41,BE1='Input Tables'!$BE$41,BE1='Input Tables'!$BF$41,BE1='Input Tables'!$BG$41,BE1='Input Tables'!$BH$41,BE1='Input Tables'!$BI$41,BE1='Input Tables'!$BJ$41,BE1='Input Tables'!$BK$41, BE1='Input Tables'!$BL$41,BE1='Input Tables'!$BM$41),('Cost Budgets'!$H$12*BE13),0) -> 0 | BF55: =IF(OR(BF1='Input Tables'!$BA$41, BF1='Input Tables'!$BB$41,BF1='Input Tables'!$BC$41, BF1='Input Tables'!$BD$41,BF1='Input Tables'!$BE$41,BF1='Input Tables'!$BF$41,BF1='Input Tables'!$BG$41,BF1='Input Tables'!$BH$41,BF1='Input Tables'!$BI$41,BF1='Input Tables'!$BJ$41,BF1='Input Tables'!$BK$41, BF1='Input Tables'!$BL$41,BF1='Input Tables'!$BM$41),('Cost Budgets'!$H$12*BF13),0) -> 0 | BG55: =IF(OR(BG1='Input Tables'!$BA$41, BG1='Input Tables'!$BB$41,BG1='Input Tables'!$BC$41, BG1='Input Tables'!$BD$41,BG1='Input Tables'!$BE$41,BG1='Input Tables'!$BF$41,BG1='Input Tables'!$BG$41,BG1='Input Tables'!$BH$41,BG1='Input Tables'!$BI$41,BG1='Input Tables'!$BJ$41,BG1='Input Tables'!$BK$41, BG1='Input Tables'!$BL$41,BG1='Input Tables'!$BM$41),('Cost Budgets'!$H$12*BG13),0) -> 0 | BH55: =IF(OR(BH1='Input Tables'!$BA$41, BH1='Input Tables'!$BB$41,BH1='Input Tables'!$BC$41, BH1='Input Tables'!$BD$41,BH1='Input Tables'!$BE$41,BH1='Input Tables'!$BF$41,BH1='Input Tables'!$BG$41,BH1='Input Tables'!$BH$41,BH1='Input Tables'!$BI$41,BH1='Input Tables'!$BJ$41,BH1='Input Tables'!$BK$41, BH1='Input Tables'!$BL$41,BH1='Input Tables'!$BM$41),('Cost Budgets'!$H$12*BH13),0) -> 0 | BI55: =IF(OR(BI1='Input Tables'!$BA$41, BI1='Input Tables'!$BB$41,BI1='Input Tables'!$BC$41, BI1='Input Tables'!$BD$41,BI1='Input Tables'!$BE$41,BI1='Input Tables'!$BF$41,BI1='Input Tables'!$BG$41,BI1='Input Tables'!$BH$41,BI1='Input Tables'!$BI$41,BI1='Input Tables'!$BJ$41,BI1='Input Tables'!$BK$41, BI1='Input Tables'!$BL$41,BI1='Input Tables'!$BM$41),('Cost Budgets'!$H$12*BI13),0) -> 0 | BJ55: =IF(OR(BJ1='Input Tables'!$BA$41, BJ1='Input Tables'!$BB$41,BJ1='Input Tables'!$BC$41, BJ1='Input Tables'!$BD$41,BJ1='Input Tables'!$BE$41,BJ1='Input Tables'!$BF$41,BJ1='Input Tables'!$BG$41,BJ1='Input Tables'!$BH$41,BJ1='Input Tables'!$BI$41,BJ1='Input Tables'!$BJ$41,BJ1='Input Tables'!$BK$41, BJ1='Input Tables'!$BL$41,BJ1='Input Tables'!$BM$41),('Cost Budgets'!$H$12*BJ13),0) -> 0 | BK55: =IF(OR(BK1='Input Tables'!$BA$41, BK1='Input Tables'!$BB$41,BK1='Input Tables'!$BC$41, BK1='Input Tables'!$BD$41,BK1='Input Tables'!$BE$41,BK1='Input Tables'!$BF$41,BK1='Input Tables'!$BG$41,BK1='Input Tables'!$BH$41,BK1='Input Tables'!$BI$41,BK1='Input Tables'!$BJ$41,BK1='Input Tables'!$BK$41, BK1='Input Tables'!$BL$41,BK1='Input Tables'!$BM$41),('Cost Budgets'!$H$12*BK13),0) -> 0 | BL55: =IF(OR(BL1='Input Tables'!$BA$41, BL1='Input Tables'!$BB$41,BL1='Input Tables'!$BC$41, BL1='Input Tables'!$BD$41,BL1='Input Tables'!$BE$41,BL1='Input Tables'!$BF$41,BL1='Input Tables'!$BG$41,BL1='Input Tables'!$BH$41,BL1='Input Tables'!$BI$41,BL1='Input Tables'!$BJ$41,BL1='Input Tables'!$BK$41, BL1='Input Tables'!$BL$41,BL1='Input Tables'!$BM$41),('Cost Budgets'!$H$12*BL13),0) -> 0 | BM55: =IF(OR(BM1='Input Tables'!$BA$41, BM1='Input Tables'!$BB$41,BM1='Input Tables'!$BC$41, BM1='Input Tables'!$BD$41,BM1='Input Tables'!$BE$41,BM1='Input Tables'!$BF$41,BM1='Input Tables'!$BG$41,BM1='Input Tables'!$BH$41,BM1='Input Tables'!$BI$41,BM1='Input Tables'!$BJ$41,BM1='Input Tables'!$BK$41, BM1='Input Tables'!$BL$41,BM1='Input Tables'!$BM$41),('Cost Budgets'!$H$12*BM13),0) -> 0 | BN55: =IF(OR(BN1='Input Tables'!$BA$41, BN1='Input Tables'!$BB$41,BN1='Input Tables'!$BC$41, BN1='Input Tables'!$BD$41,BN1='Input Tables'!$BE$41,BN1='Input Tables'!$BF$41,BN1='Input Tables'!$BG$41,BN1='Input Tables'!$BH$41,BN1='Input Tables'!$BI$41,BN1='Input Tables'!$BJ$41,BN1='Input Tables'!$BK$41, BN1='Input Tables'!$BL$41,BN1='Input Tables'!$BM$41),('Cost Budgets'!$H$12*BN13),0) -> 0 | BO55: =IF(OR(BO1='Input Tables'!$BA$41, BO1='Input Tables'!$BB$41,BO1='Input Tables'!$BC$41, BO1='Input Tables'!$BD$41,BO1='Input Tables'!$BE$41,BO1='Input Tables'!$BF$41,BO1='Input Tables'!$BG$41,BO1='Input Tables'!$BH$41,BO1='Input Tables'!$BI$41,BO1='Input Tables'!$BJ$41,BO1='Input Tables'!$BK$41, BO1='Input Tables'!$BL$41,BO1='Input Tables'!$BM$41),('Cost Budgets'!$H$12*BO13),0) -> 0 | BP55: =IF(OR(BP1='Input Tables'!$BA$41, BP1='Input Tables'!$BB$41,BP1='Input Tables'!$BC$41, BP1='Input Tables'!$BD$41,BP1='Input Tables'!$BE$41,BP1='Input Tables'!$BF$41,BP1='Input Tables'!$BG$41,BP1='Input Tables'!$BH$41,BP1='Input Tables'!$BI$41,BP1='Input Tables'!$BJ$41,BP1='Input Tables'!$BK$41, BP1='Input Tables'!$BL$41,BP1='Input Tables'!$BM$41),('Cost Budgets'!$H$12*BP13),0) -> 0 | BQ55: =IF(OR(BQ1='Input Tables'!$BA$41, BQ1='Input Tables'!$BB$41,BQ1='Input Tables'!$BC$41, BQ1='Input Tables'!$BD$41,BQ1='Input Tables'!$BE$41,BQ1='Input Tables'!$BF$41,BQ1='Input Tables'!$BG$41,BQ1='Input Tables'!$BH$41,BQ1='Input Tables'!$BI$41,BQ1='Input Tables'!$BJ$41,BQ1='Input Tables'!$BK$41, BQ1='Input Tables'!$BL$41,BQ1='Input Tables'!$BM$41),('Cost Budgets'!$H$12*BQ13),0) -> 0 | BR55: =IF(OR(BR1='Input Tables'!$BA$41, BR1='Input Tables'!$BB$41,BR1='Input Tables'!$BC$41, BR1='Input Tables'!$BD$41,BR1='Input Tables'!$BE$41,BR1='Input Tables'!$BF$41,BR1='Input Tables'!$BG$41,BR1='Input Tables'!$BH$41,BR1='Input Tables'!$BI$41,BR1='Input Tables'!$BJ$41,BR1='Input Tables'!$BK$41, BR1='Input Tables'!$BL$41,BR1='Input Tables'!$BM$41),('Cost Budgets'!$H$12*BR13),0) -> 0 | BS55: =IF(OR(BS1='Input Tables'!$BA$41, BS1='Input Tables'!$BB$41,BS1='Input Tables'!$BC$41, BS1='Input Tables'!$BD$41,BS1='Input Tables'!$BE$41,BS1='Input Tables'!$BF$41,BS1='Input Tables'!$BG$41,BS1='Input Tables'!$BH$41,BS1='Input Tables'!$BI$41,BS1='Input Tables'!$BJ$41,BS1='Input Tables'!$BK$41, BS1='Input Tables'!$BL$41,BS1='Input Tables'!$BM$41),('Cost Budgets'!$H$12*BS13),0) -> 0 | BT55: =IF(OR(BT1='Input Tables'!$BA$41, BT1='Input Tables'!$BB$41,BT1='Input Tables'!$BC$41, BT1='Input Tables'!$BD$41,BT1='Input Tables'!$BE$41,BT1='Input Tables'!$BF$41,BT1='Input Tables'!$BG$41,BT1='Input Tables'!$BH$41,BT1='Input Tables'!$BI$41,BT1='Input Tables'!$BJ$41,BT1='Input Tables'!$BK$41, BT1='Input Tables'!$BL$41,BT1='Input Tables'!$BM$41),('Cost Budgets'!$H$12*BT13),0) -> 0 | BU55: =IF(OR(BU1='Input Tables'!$BA$41, BU1='Input Tables'!$BB$41,BU1='Input Tables'!$BC$41, BU1='Input Tables'!$BD$41,BU1='Input Tables'!$BE$41,BU1='Input Tables'!$BF$41,BU1='Input Tables'!$BG$41,BU1='Input Tables'!$BH$41,BU1='Input Tables'!$BI$41,BU1='Input Tables'!$BJ$41,BU1='Input Tables'!$BK$41, BU1='Input Tables'!$BL$41,BU1='Input Tables'!$BM$41),('Cost Budgets'!$H$12*BU13),0) -> 0
B57: Weed Control | E57: =IF(OR(E1='Input Tables'!$BA$47, E1='Input Tables'!$BB$47,E1='Input Tables'!$BC$47, E1='Input Tables'!$BD$47,E1='Input Tables'!$BE$47,E1='Input Tables'!$BF$47,E1='Input Tables'!$BG$47,E1='Input Tables'!$BH$47,E1='Input Tables'!$BI$47,E1='Input Tables'!$BJ$47,E1='Input Tables'!$BK$47, E1='Input Tables'!$BL$47,'Input Tables'!$BM$47),('Cost Budgets'!$H$13*E13),0) -> 10 | F57: =IF(OR(F1='Input Tables'!$BA$47, F1='Input Tables'!$BB$47,F1='Input Tables'!$BC$47, F1='Input Tables'!$BD$47,F1='Input Tables'!$BE$47,F1='Input Tables'!$BF$47,F1='Input Tables'!$BG$47,F1='Input Tables'!$BH$47,F1='Input Tables'!$BI$47,F1='Input Tables'!$BJ$47,F1='Input Tables'!$BK$47, F1='Input Tables'!$BL$47,'Input Tables'!$BM$47),('Cost Budgets'!$H$13*F13),0) -> 0 | G57: =IF(OR(G1='Input Tables'!$BA$47, G1='Input Tables'!$BB$47,G1='Input Tables'!$BC$47, G1='Input Tables'!$BD$47,G1='Input Tables'!$BE$47,G1='Input Tables'!$BF$47,G1='Input Tables'!$BG$47,G1='Input Tables'!$BH$47,G1='Input Tables'!$BI$47,G1='Input Tables'!$BJ$47,G1='Input Tables'!$BK$47, G1='Input Tables'!$BL$47,'Input Tables'!$BM$47),('Cost Budgets'!$H$13*G13),0) -> 0 | H57: =IF(OR(H1='Input Tables'!$BA$47, H1='Input Tables'!$BB$47,H1='Input Tables'!$BC$47, H1='Input Tables'!$BD$47,H1='Input Tables'!$BE$47,H1='Input Tables'!$BF$47,H1='Input Tables'!$BG$47,H1='Input Tables'!$BH$47,H1='Input Tables'!$BI$47,H1='Input Tables'!$BJ$47,H1='Input Tables'!$BK$47, H1='Input Tables'!$BL$47,'Input Tables'!$BM$47),('Cost Budgets'!$H$13*H13),0) -> 0 | I57: =IF(OR(I1='Input Tables'!$BA$47, I1='Input Tables'!$BB$47,I1='Input Tables'!$BC$47, I1='Input Tables'!$BD$47,I1='Input Tables'!$BE$47,I1='Input Tables'!$BF$47,I1='Input Tables'!$BG$47,I1='Input Tables'!$BH$47,I1='Input Tables'!$BI$47,I1='Input Tables'!$BJ$47,I1='Input Tables'!$BK$47, I1='Input Tables'!$BL$47,'Input Tables'!$BM$47),('Cost Budgets'!$H$13*I13),0) -> 0 | J57: =IF(OR(J1='Input Tables'!$BA$47, J1='Input Tables'!$BB$47,J1='Input Tables'!$BC$47, J1='Input Tables'!$BD$47,J1='Input Tables'!$BE$47,J1='Input Tables'!$BF$47,J1='Input Tables'!$BG$47,J1='Input Tables'!$BH$47,J1='Input Tables'!$BI$47,J1='Input Tables'!$BJ$47,J1='Input Tables'!$BK$47, J1='Input Tables'!$BL$47,'Input Tables'!$BM$47),('Cost Budgets'!$H$13*J13),0) -> 9.190082645 | K57: =IF(OR(K1='Input Tables'!$BA$47, K1='Input Tables'!$BB$47,K1='Input Tables'!$BC$47, K1='Input Tables'!$BD$47,K1='Input Tables'!$BE$47,K1='Input Tables'!$BF$47,K1='Input Tables'!$BG$47,K1='Input Tables'!$BH$47,K1='Input Tables'!$BI$47,K1='Input Tables'!$BJ$47,K1='Input Tables'!$BK$47, K1='Input Tables'!$BL$47,'Input Tables'!$BM$47),('Cost Budgets'!$H$13*K13),0) -> 0 | L57: =IF(OR(L1='Input Tables'!$BA$47, L1='Input Tables'!$BB$47,L1='Input Tables'!$BC$47, L1='Input Tables'!$BD$47,L1='Input Tables'!$BE$47,L1='Input Tables'!$BF$47,L1='Input Tables'!$BG$47,L1='Input Tables'!$BH$47,L1='Input Tables'!$BI$47,L1='Input Tables'!$BJ$47,L1='Input Tables'!$BK$47, L1='Input Tables'!$BL$47,'Input Tables'!$BM$47),('Cost Budgets'!$H$13*L13),0) -> 0 | M57: =IF(OR(M1='Input Tables'!$BA$47, M1='Input Tables'!$BB$47,M1='Input Tables'!$BC$47, M1='Input Tables'!$BD$47,M1='Input Tables'!$BE$47,M1='Input Tables'!$BF$47,M1='Input Tables'!$BG$47,M1='Input Tables'!$BH$47,M1='Input Tables'!$BI$47,M1='Input Tables'!$BJ$47,M1='Input Tables'!$BK$47, M1='Input Tables'!$BL$47,'Input Tables'!$BM$47),('Cost Budgets'!$H$13*M13),0) -> 0 | N57: =IF(OR(N1='Input Tables'!$BA$47, N1='Input Tables'!$BB$47,N1='Input Tables'!$BC$47, N1='Input Tables'!$BD$47,N1='Input Tables'!$BE$47,N1='Input Tables'!$BF$47,N1='Input Tables'!$BG$47,N1='Input Tables'!$BH$47,N1='Input Tables'!$BI$47,N1='Input Tables'!$BJ$47,N1='Input Tables'!$BK$47, N1='Input Tables'!$BL$47,'Input Tables'!$BM$47),('Cost Budgets'!$H$13*N13),0) -> 0 | O57: =IF(OR(O1='Input Tables'!$BA$47, O1='Input Tables'!$BB$47,O1='Input Tables'!$BC$47, O1='Input Tables'!$BD$47,O1='Input Tables'!$BE$47,O1='Input Tables'!$BF$47,O1='Input Tables'!$BG$47,O1='Input Tables'!$BH$47,O1='Input Tables'!$BI$47,O1='Input Tables'!$BJ$47,O1='Input Tables'!$BK$47, O1='Input Tables'!$BL$47,'Input Tables'!$BM$47),('Cost Budgets'!$H$13*O13),0) -> 0 | P57: =IF(OR(P1='Input Tables'!$BA$47, P1='Input Tables'!$BB$47,P1='Input Tables'!$BC$47, P1='Input Tables'!$BD$47,P1='Input Tables'!$BE$47,P1='Input Tables'!$BF$47,P1='Input Tables'!$BG$47,P1='Input Tables'!$BH$47,P1='Input Tables'!$BI$47,P1='Input Tables'!$BJ$47,P1='Input Tables'!$BK$47, P1='Input Tables'!$BL$47,'Input Tables'!$BM$47),('Cost Budgets'!$H$13*P13),0) -> 0 | Q57: =IF(OR(Q1='Input Tables'!$BA$47, Q1='Input Tables'!$BB$47,Q1='Input Tables'!$BC$47, Q1='Input Tables'!$BD$47,Q1='Input Tables'!$BE$47,Q1='Input Tables'!$BF$47,Q1='Input Tables'!$BG$47,Q1='Input Tables'!$BH$47,Q1='Input Tables'!$BI$47,Q1='Input Tables'!$BJ$47,Q1='Input Tables'!$BK$47, Q1='Input Tables'!$BL$47,'Input Tables'!$BM$47),('Cost Budgets'!$H$13*Q13),0) -> 0 | R57: =IF(OR(R1='Input Tables'!$BA$47, R1='Input Tables'!$BB$47,R1='Input Tables'!$BC$47, R1='Input Tables'!$BD$47,R1='Input Tables'!$BE$47,R1='Input Tables'!$BF$47,R1='Input Tables'!$BG$47,R1='Input Tables'!$BH$47,R1='Input Tables'!$BI$47,R1='Input Tables'!$BJ$47,R1='Input Tables'!$BK$47, R1='Input Tables'!$BL$47,'Input Tables'!$BM$47),('Cost Budgets'!$H$13*R13),0) -> 0 | S57: =IF(OR(S1='Input Tables'!$BA$47, S1='Input Tables'!$BB$47,S1='Input Tables'!$BC$47, S1='Input Tables'!$BD$47,S1='Input Tables'!$BE$47,S1='Input Tables'!$BF$47,S1='Input Tables'!$BG$47,S1='Input Tables'!$BH$47,S1='Input Tables'!$BI$47,S1='Input Tables'!$BJ$47,S1='Input Tables'!$BK$47, S1='Input Tables'!$BL$47,'Input Tables'!$BM$47),('Cost Budgets'!$H$13*S13),0) -> 0 | T57: =IF(OR(T1='Input Tables'!$BA$47, T1='Input Tables'!$BB$47,T1='Input Tables'!$BC$47, T1='Input Tables'!$BD$47,T1='Input Tables'!$BE$47,T1='Input Tables'!$BF$47,T1='Input Tables'!$BG$47,T1='Input Tables'!$BH$47,T1='Input Tables'!$BI$47,T1='Input Tables'!$BJ$47,T1='Input Tables'!$BK$47, T1='Input Tables'!$BL$47,'Input Tables'!$BM$47),('Cost Budgets'!$H$13*T13),0) -> 0 | U57: =IF(OR(U1='Input Tables'!$BA$47, U1='Input Tables'!$BB$47,U1='Input Tables'!$BC$47, U1='Input Tables'!$BD$47,U1='Input Tables'!$BE$47,U1='Input Tables'!$BF$47,U1='Input Tables'!$BG$47,U1='Input Tables'!$BH$47,U1='Input Tables'!$BI$47,U1='Input Tables'!$BJ$47,U1='Input Tables'!$BK$47, U1='Input Tables'!$BL$47,'Input Tables'!$BM$47),('Cost Budgets'!$H$13*U13),0) -> 0 | V57: =IF(OR(V1='Input Tables'!$BA$47, V1='Input Tables'!$BB$47,V1='Input Tables'!$BC$47, V1='Input Tables'!$BD$47,V1='Input Tables'!$BE$47,V1='Input Tables'!$BF$47,V1='Input Tables'!$BG$47,V1='Input Tables'!$BH$47,V1='Input Tables'!$BI$47,V1='Input Tables'!$BJ$47,V1='Input Tables'!$BK$47, V1='Input Tables'!$BL$47,'Input Tables'!$BM$47),('Cost Budgets'!$H$13*V13),0) -> 0 | W57: =IF(OR(W1='Input Tables'!$BA$47, W1='Input Tables'!$BB$47,W1='Input Tables'!$BC$47, W1='Input Tables'!$BD$47,W1='Input Tables'!$BE$47,W1='Input Tables'!$BF$47,W1='Input Tables'!$BG$47,W1='Input Tables'!$BH$47,W1='Input Tables'!$BI$47,W1='Input Tables'!$BJ$47,W1='Input Tables'!$BK$47, W1='Input Tables'!$BL$47,'Input Tables'!$BM$47),('Cost Budgets'!$H$13*W13),0) -> 0 | X57: =IF(OR(X1='Input Tables'!$BA$47, X1='Input Tables'!$BB$47,X1='Input Tables'!$BC$47, X1='Input Tables'!$BD$47,X1='Input Tables'!$BE$47,X1='Input Tables'!$BF$47,X1='Input Tables'!$BG$47,X1='Input Tables'!$BH$47,X1='Input Tables'!$BI$47,X1='Input Tables'!$BJ$47,X1='Input Tables'!$BK$47, X1='Input Tables'!$BL$47,'Input Tables'!$BM$47),('Cost Budgets'!$H$13*X13),0) -> 0 | Y57: =IF(OR(Y1='Input Tables'!$BA$47, Y1='Input Tables'!$BB$47,Y1='Input Tables'!$BC$47, Y1='Input Tables'!$BD$47,Y1='Input Tables'!$BE$47,Y1='Input Tables'!$BF$47,Y1='Input Tables'!$BG$47,Y1='Input Tables'!$BH$47,Y1='Input Tables'!$BI$47,Y1='Input Tables'!$BJ$47,Y1='Input Tables'!$BK$47, Y1='Input Tables'!$BL$47,'Input Tables'!$BM$47),('Cost Budgets'!$H$13*Y13),0) -> 0 | Z57: =IF(OR(Z1='Input Tables'!$BA$47, Z1='Input Tables'!$BB$47,Z1='Input Tables'!$BC$47, Z1='Input Tables'!$BD$47,Z1='Input Tables'!$BE$47,Z1='Input Tables'!$BF$47,Z1='Input Tables'!$BG$47,Z1='Input Tables'!$BH$47,Z1='Input Tables'!$BI$47,Z1='Input Tables'!$BJ$47,Z1='Input Tables'!$BK$47, Z1='Input Tables'!$BL$47,'Input Tables'!$BM$47),('Cost Budgets'!$H$13*Z13),0) -> 0 | AA57: =IF(OR(AA1='Input Tables'!$BA$47, AA1='Input Tables'!$BB$47,AA1='Input Tables'!$BC$47, AA1='Input Tables'!$BD$47,AA1='Input Tables'!$BE$47,AA1='Input Tables'!$BF$47,AA1='Input Tables'!$BG$47,AA1='Input Tables'!$BH$47,AA1='Input Tables'!$BI$47,AA1='Input Tables'!$BJ$47,AA1='Input Tables'!$BK$47, AA1='Input Tables'!$BL$47,'Input Tables'!$BM$47),('Cost Budgets'!$H$13*AA13),0) -> 0 | AB57: =IF(OR(AB1='Input Tables'!$BA$47, AB1='Input Tables'!$BB$47,AB1='Input Tables'!$BC$47, AB1='Input Tables'!$BD$47,AB1='Input Tables'!$BE$47,AB1='Input Tables'!$BF$47,AB1='Input Tables'!$BG$47,AB1='Input Tables'!$BH$47,AB1='Input Tables'!$BI$47,AB1='Input Tables'!$BJ$47,AB1='Input Tables'!$BK$47, AB1='Input Tables'!$BL$47,'Input Tables'!$BM$47),('Cost Budgets'!$H$13*AB13),0) -> 0 | AC57: =IF(OR(AC1='Input Tables'!$BA$47, AC1='Input Tables'!$BB$47,AC1='Input Tables'!$BC$47, AC1='Input Tables'!$BD$47,AC1='Input Tables'!$BE$47,AC1='Input Tables'!$BF$47,AC1='Input Tables'!$BG$47,AC1='Input Tables'!$BH$47,AC1='Input Tables'!$BI$47,AC1='Input Tables'!$BJ$47,AC1='Input Tables'!$BK$47, AC1='Input Tables'!$BL$47,'Input Tables'!$BM$47),('Cost Budgets'!$H$13*AC13),0) -> 0 | AD57: =IF(OR(AD1='Input Tables'!$BA$47, AD1='Input Tables'!$BB$47,AD1='Input Tables'!$BC$47, AD1='Input Tables'!$BD$47,AD1='Input Tables'!$BE$47,AD1='Input Tables'!$BF$47,AD1='Input Tables'!$BG$47,AD1='Input Tables'!$BH$47,AD1='Input Tables'!$BI$47,AD1='Input Tables'!$BJ$47,AD1='Input Tables'!$BK$47, AD1='Input Tables'!$BL$47,'Input Tables'!$BM$47),('Cost Budgets'!$H$13*AD13),0) -> 0 | AE57: =IF(OR(AE1='Input Tables'!$BA$47, AE1='Input Tables'!$BB$47,AE1='Input Tables'!$BC$47, AE1='Input Tables'!$BD$47,AE1='Input Tables'!$BE$47,AE1='Input Tables'!$BF$47,AE1='Input Tables'!$BG$47,AE1='Input Tables'!$BH$47,AE1='Input Tables'!$BI$47,AE1='Input Tables'!$BJ$47,AE1='Input Tables'!$BK$47, AE1='Input Tables'!$BL$47,'Input Tables'!$BM$47),('Cost Budgets'!$H$13*AE13),0) -> 0 | AF57: =IF(OR(AF1='Input Tables'!$BA$47, AF1='Input Tables'!$BB$47,AF1='Input Tables'!$BC$47, AF1='Input Tables'!$BD$47,AF1='Input Tables'!$BE$47,AF1='Input Tables'!$BF$47,AF1='Input Tables'!$BG$47,AF1='Input Tables'!$BH$47,AF1='Input Tables'!$BI$47,AF1='Input Tables'!$BJ$47,AF1='Input Tables'!$BK$47, AF1='Input Tables'!$BL$47,'Input Tables'!$BM$47),('Cost Budgets'!$H$13*AF13),0) -> 0 | AG57: =IF(OR(AG1='Input Tables'!$BA$47, AG1='Input Tables'!$BB$47,AG1='Input Tables'!$BC$47, AG1='Input Tables'!$BD$47,AG1='Input Tables'!$BE$47,AG1='Input Tables'!$BF$47,AG1='Input Tables'!$BG$47,AG1='Input Tables'!$BH$47,AG1='Input Tables'!$BI$47,AG1='Input Tables'!$BJ$47,AG1='Input Tables'!$BK$47, AG1='Input Tables'!$BL$47,'Input Tables'!$BM$47),('Cost Budgets'!$H$13*AG13),0) -> 0 | AH57: =IF(OR(AH1='Input Tables'!$BA$47, AH1='Input Tables'!$BB$47,AH1='Input Tables'!$BC$47, AH1='Input Tables'!$BD$47,AH1='Input Tables'!$BE$47,AH1='Input Tables'!$BF$47,AH1='Input Tables'!$BG$47,AH1='Input Tables'!$BH$47,AH1='Input Tables'!$BI$47,AH1='Input Tables'!$BJ$47,AH1='Input Tables'!$BK$47, AH1='Input Tables'!$BL$47,'Input Tables'!$BM$47),('Cost Budgets'!$H$13*AH13),0) -> 0 | AI57: =IF(OR(AI1='Input Tables'!$BA$47, AI1='Input Tables'!$BB$47,AI1='Input Tables'!$BC$47, AI1='Input Tables'!$BD$47,AI1='Input Tables'!$BE$47,AI1='Input Tables'!$BF$47,AI1='Input Tables'!$BG$47,AI1='Input Tables'!$BH$47,AI1='Input Tables'!$BI$47,AI1='Input Tables'!$BJ$47,AI1='Input Tables'!$BK$47, AI1='Input Tables'!$BL$47,'Input Tables'!$BM$47),('Cost Budgets'!$H$13*AI13),0) -> 0 | AJ57: =IF(OR(AJ1='Input Tables'!$BA$47, AJ1='Input Tables'!$BB$47,AJ1='Input Tables'!$BC$47, AJ1='Input Tables'!$BD$47,AJ1='Input Tables'!$BE$47,AJ1='Input Tables'!$BF$47,AJ1='Input Tables'!$BG$47,AJ1='Input Tables'!$BH$47,AJ1='Input Tables'!$BI$47,AJ1='Input Tables'!$BJ$47,AJ1='Input Tables'!$BK$47, AJ1='Input Tables'!$BL$47,'Input Tables'!$BM$47),('Cost Budgets'!$H$13*AJ13),0) -> 0 | AK57: =IF(OR(AK1='Input Tables'!$BA$47, AK1='Input Tables'!$BB$47,AK1='Input Tables'!$BC$47, AK1='Input Tables'!$BD$47,AK1='Input Tables'!$BE$47,AK1='Input Tables'!$BF$47,AK1='Input Tables'!$BG$47,AK1='Input Tables'!$BH$47,AK1='Input Tables'!$BI$47,AK1='Input Tables'!$BJ$47,AK1='Input Tables'!$BK$47, AK1='Input Tables'!$BL$47,'Input Tables'!$BM$47),('Cost Budgets'!$H$13*AK13),0) -> 0 | AL57: =IF(OR(AL1='Input Tables'!$BA$47, AL1='Input Tables'!$BB$47,AL1='Input Tables'!$BC$47, AL1='Input Tables'!$BD$47,AL1='Input Tables'!$BE$47,AL1='Input Tables'!$BF$47,AL1='Input Tables'!$BG$47,AL1='Input Tables'!$BH$47,AL1='Input Tables'!$BI$47,AL1='Input Tables'!$BJ$47,AL1='Input Tables'!$BK$47, AL1='Input Tables'!$BL$47,'Input Tables'!$BM$47),('Cost Budgets'!$H$13*AL13),0) -> 0 | AM57: =IF(OR(AM1='Input Tables'!$BA$47, AM1='Input Tables'!$BB$47,AM1='Input Tables'!$BC$47, AM1='Input Tables'!$BD$47,AM1='Input Tables'!$BE$47,AM1='Input Tables'!$BF$47,AM1='Input Tables'!$BG$47,AM1='Input Tables'!$BH$47,AM1='Input Tables'!$BI$47,AM1='Input Tables'!$BJ$47,AM1='Input Tables'!$BK$47, AM1='Input Tables'!$BL$47,'Input Tables'!$BM$47),('Cost Budgets'!$H$13*AM13),0) -> 0 | AN57: =IF(OR(AN1='Input Tables'!$BA$47, AN1='Input Tables'!$BB$47,AN1='Input Tables'!$BC$47, AN1='Input Tables'!$BD$47,AN1='Input Tables'!$BE$47,AN1='Input Tables'!$BF$47,AN1='Input Tables'!$BG$47,AN1='Input Tables'!$BH$47,AN1='Input Tables'!$BI$47,AN1='Input Tables'!$BJ$47,AN1='Input Tables'!$BK$47, AN1='Input Tables'!$BL$47,'Input Tables'!$BM$47),('Cost Budgets'!$H$13*AN13),0) -> 0 | AO57: =IF(OR(AO1='Input Tables'!$BA$47, AO1='Input Tables'!$BB$47,AO1='Input Tables'!$BC$47, AO1='Input Tables'!$BD$47,AO1='Input Tables'!$BE$47,AO1='Input Tables'!$BF$47,AO1='Input Tables'!$BG$47,AO1='Input Tables'!$BH$47,AO1='Input Tables'!$BI$47,AO1='Input Tables'!$BJ$47,AO1='Input Tables'!$BK$47, AO1='Input Tables'!$BL$47,'Input Tables'!$BM$47),('Cost Budgets'!$H$13*AO13),0) -> 0 | AP57: =IF(OR(AP1='Input Tables'!$BA$47, AP1='Input Tables'!$BB$47,AP1='Input Tables'!$BC$47, AP1='Input Tables'!$BD$47,AP1='Input Tables'!$BE$47,AP1='Input Tables'!$BF$47,AP1='Input Tables'!$BG$47,AP1='Input Tables'!$BH$47,AP1='Input Tables'!$BI$47,AP1='Input Tables'!$BJ$47,AP1='Input Tables'!$BK$47, AP1='Input Tables'!$BL$47,'Input Tables'!$BM$47),('Cost Budgets'!$H$13*AP13),0) -> 0 | AQ57: =IF(OR(AQ1='Input Tables'!$BA$47, AQ1='Input Tables'!$BB$47,AQ1='Input Tables'!$BC$47, AQ1='Input Tables'!$BD$47,AQ1='Input Tables'!$BE$47,AQ1='Input Tables'!$BF$47,AQ1='Input Tables'!$BG$47,AQ1='Input Tables'!$BH$47,AQ1='Input Tables'!$BI$47,AQ1='Input Tables'!$BJ$47,AQ1='Input Tables'!$BK$47, AQ1='Input Tables'!$BL$47,'Input Tables'!$BM$47),('Cost Budgets'!$H$13*AQ13),0) -> 0 | AR57: =IF(OR(AR1='Input Tables'!$BA$47, AR1='Input Tables'!$BB$47,AR1='Input Tables'!$BC$47, AR1='Input Tables'!$BD$47,AR1='Input Tables'!$BE$47,AR1='Input Tables'!$BF$47,AR1='Input Tables'!$BG$47,AR1='Input Tables'!$BH$47,AR1='Input Tables'!$BI$47,AR1='Input Tables'!$BJ$47,AR1='Input Tables'!$BK$47, AR1='Input Tables'!$BL$47,'Input Tables'!$BM$47),('Cost Budgets'!$H$13*AR13),0) -> 0 | AS57: =IF(OR(AS1='Input Tables'!$BA$47, AS1='Input Tables'!$BB$47,AS1='Input Tables'!$BC$47, AS1='Input Tables'!$BD$47,AS1='Input Tables'!$BE$47,AS1='Input Tables'!$BF$47,AS1='Input Tables'!$BG$47,AS1='Input Tables'!$BH$47,AS1='Input Tables'!$BI$47,AS1='Input Tables'!$BJ$47,AS1='Input Tables'!$BK$47, AS1='Input Tables'!$BL$47,'Input Tables'!$BM$47),('Cost Budgets'!$H$13*AS13),0) -> 0 | AT57: =IF(OR(AT1='Input Tables'!$BA$47, AT1='Input Tables'!$BB$47,AT1='Input Tables'!$BC$47, AT1='Input Tables'!$BD$47,AT1='Input Tables'!$BE$47,AT1='Input Tables'!$BF$47,AT1='Input Tables'!$BG$47,AT1='Input Tables'!$BH$47,AT1='Input Tables'!$BI$47,AT1='Input Tables'!$BJ$47,AT1='Input Tables'!$BK$47, AT1='Input Tables'!$BL$47,'Input Tables'!$BM$47),('Cost Budgets'!$H$13*AT13),0) -> 0 | AU57: =IF(OR(AU1='Input Tables'!$BA$47, AU1='Input Tables'!$BB$47,AU1='Input Tables'!$BC$47, AU1='Input Tables'!$BD$47,AU1='Input Tables'!$BE$47,AU1='Input Tables'!$BF$47,AU1='Input Tables'!$BG$47,AU1='Input Tables'!$BH$47,AU1='Input Tables'!$BI$47,AU1='Input Tables'!$BJ$47,AU1='Input Tables'!$BK$47, AU1='Input Tables'!$BL$47,'Input Tables'!$BM$47),('Cost Budgets'!$H$13*AU13),0) -> 0 | AV57: =IF(OR(AV1='Input Tables'!$BA$47, AV1='Input Tables'!$BB$47,AV1='Input Tables'!$BC$47, AV1='Input Tables'!$BD$47,AV1='Input Tables'!$BE$47,AV1='Input Tables'!$BF$47,AV1='Input Tables'!$BG$47,AV1='Input Tables'!$BH$47,AV1='Input Tables'!$BI$47,AV1='Input Tables'!$BJ$47,AV1='Input Tables'!$BK$47, AV1='Input Tables'!$BL$47,'Input Tables'!$BM$47),('Cost Budgets'!$H$13*AV13),0) -> 0 | AW57: =IF(OR(AW1='Input Tables'!$BA$47, AW1='Input Tables'!$BB$47,AW1='Input Tables'!$BC$47, AW1='Input Tables'!$BD$47,AW1='Input Tables'!$BE$47,AW1='Input Tables'!$BF$47,AW1='Input Tables'!$BG$47,AW1='Input Tables'!$BH$47,AW1='Input Tables'!$BI$47,AW1='Input Tables'!$BJ$47,AW1='Input Tables'!$BK$47, AW1='Input Tables'!$BL$47,'Input Tables'!$BM$47),('Cost Budgets'!$H$13*AW13),0) -> 0 | AX57: =IF(OR(AX1='Input Tables'!$BA$47, AX1='Input Tables'!$BB$47,AX1='Input Tables'!$BC$47, AX1='Input Tables'!$BD$47,AX1='Input Tables'!$BE$47,AX1='Input Tables'!$BF$47,AX1='Input Tables'!$BG$47,AX1='Input Tables'!$BH$47,AX1='Input Tables'!$BI$47,AX1='Input Tables'!$BJ$47,AX1='Input Tables'!$BK$47, AX1='Input Tables'!$BL$47,'Input Tables'!$BM$47),('Cost Budgets'!$H$13*AX13),0) -> 0 | AY57: =IF(OR(AY1='Input Tables'!$BA$47, AY1='Input Tables'!$BB$47,AY1='Input Tables'!$BC$47, AY1='Input Tables'!$BD$47,AY1='Input Tables'!$BE$47,AY1='Input Tables'!$BF$47,AY1='Input Tables'!$BG$47,AY1='Input Tables'!$BH$47,AY1='Input Tables'!$BI$47,AY1='Input Tables'!$BJ$47,AY1='Input Tables'!$BK$47, AY1='Input Tables'!$BL$47,'Input Tables'!$BM$47),('Cost Budgets'!$H$13*AY13),0) -> 0 | AZ57: =IF(OR(AZ1='Input Tables'!$BA$47, AZ1='Input Tables'!$BB$47,AZ1='Input Tables'!$BC$47, AZ1='Input Tables'!$BD$47,AZ1='Input Tables'!$BE$47,AZ1='Input Tables'!$BF$47,AZ1='Input Tables'!$BG$47,AZ1='Input Tables'!$BH$47,AZ1='Input Tables'!$BI$47,AZ1='Input Tables'!$BJ$47,AZ1='Input Tables'!$BK$47, AZ1='Input Tables'!$BL$47,'Input Tables'!$BM$47),('Cost Budgets'!$H$13*AZ13),0) -> 0 | BA57: =IF(OR(BA1='Input Tables'!$BA$47, BA1='Input Tables'!$BB$47,BA1='Input Tables'!$BC$47, BA1='Input Tables'!$BD$47,BA1='Input Tables'!$BE$47,BA1='Input Tables'!$BF$47,BA1='Input Tables'!$BG$47,BA1='Input Tables'!$BH$47,BA1='Input Tables'!$BI$47,BA1='Input Tables'!$BJ$47,BA1='Input Tables'!$BK$47, BA1='Input Tables'!$BL$47,'Input Tables'!$BM$47),('Cost Budgets'!$H$13*BA13),0) -> 0 | BB57: =IF(OR(BB1='Input Tables'!$BA$47, BB1='Input Tables'!$BB$47,BB1='Input Tables'!$BC$47, BB1='Input Tables'!$BD$47,BB1='Input Tables'!$BE$47,BB1='Input Tables'!$BF$47,BB1='Input Tables'!$BG$47,BB1='Input Tables'!$BH$47,BB1='Input Tables'!$BI$47,BB1='Input Tables'!$BJ$47,BB1='Input Tables'!$BK$47, BB1='Input Tables'!$BL$47,'Input Tables'!$BM$47),('Cost Budgets'!$H$13*BB13),0) -> 0 | BC57: =IF(OR(BC1='Input Tables'!$BA$47, BC1='Input Tables'!$BB$47,BC1='Input Tables'!$BC$47, BC1='Input Tables'!$BD$47,BC1='Input Tables'!$BE$47,BC1='Input Tables'!$BF$47,BC1='Input Tables'!$BG$47,BC1='Input Tables'!$BH$47,BC1='Input Tables'!$BI$47,BC1='Input Tables'!$BJ$47,BC1='Input Tables'!$BK$47, BC1='Input Tables'!$BL$47,'Input Tables'!$BM$47),('Cost Budgets'!$H$13*BC13),0) -> 0 | BD57: =IF(OR(BD1='Input Tables'!$BA$47, BD1='Input Tables'!$BB$47,BD1='Input Tables'!$BC$47, BD1='Input Tables'!$BD$47,BD1='Input Tables'!$BE$47,BD1='Input Tables'!$BF$47,BD1='Input Tables'!$BG$47,BD1='Input Tables'!$BH$47,BD1='Input Tables'!$BI$47,BD1='Input Tables'!$BJ$47,BD1='Input Tables'!$BK$47, BD1='Input Tables'!$BL$47,'Input Tables'!$BM$47),('Cost Budgets'!$H$13*BD13),0) -> 0 | BE57: =IF(OR(BE1='Input Tables'!$BA$47, BE1='Input Tables'!$BB$47,BE1='Input Tables'!$BC$47, BE1='Input Tables'!$BD$47,BE1='Input Tables'!$BE$47,BE1='Input Tables'!$BF$47,BE1='Input Tables'!$BG$47,BE1='Input Tables'!$BH$47,BE1='Input Tables'!$BI$47,BE1='Input Tables'!$BJ$47,BE1='Input Tables'!$BK$47, BE1='Input Tables'!$BL$47,'Input Tables'!$BM$47),('Cost Budgets'!$H$13*BE13),0) -> 0 | BF57: =IF(OR(BF1='Input Tables'!$BA$47, BF1='Input Tables'!$BB$47,BF1='Input Tables'!$BC$47, BF1='Input Tables'!$BD$47,BF1='Input Tables'!$BE$47,BF1='Input Tables'!$BF$47,BF1='Input Tables'!$BG$47,BF1='Input Tables'!$BH$47,BF1='Input Tables'!$BI$47,BF1='Input Tables'!$BJ$47,BF1='Input Tables'!$BK$47, BF1='Input Tables'!$BL$47,'Input Tables'!$BM$47),('Cost Budgets'!$H$13*BF13),0) -> 0 | BG57: =IF(OR(BG1='Input Tables'!$BA$47, BG1='Input Tables'!$BB$47,BG1='Input Tables'!$BC$47, BG1='Input Tables'!$BD$47,BG1='Input Tables'!$BE$47,BG1='Input Tables'!$BF$47,BG1='Input Tables'!$BG$47,BG1='Input Tables'!$BH$47,BG1='Input Tables'!$BI$47,BG1='Input Tables'!$BJ$47,BG1='Input Tables'!$BK$47, BG1='Input Tables'!$BL$47,'Input Tables'!$BM$47),('Cost Budgets'!$H$13*BG13),0) -> 0 | BH57: =IF(OR(BH1='Input Tables'!$BA$47, BH1='Input Tables'!$BB$47,BH1='Input Tables'!$BC$47, BH1='Input Tables'!$BD$47,BH1='Input Tables'!$BE$47,BH1='Input Tables'!$BF$47,BH1='Input Tables'!$BG$47,BH1='Input Tables'!$BH$47,BH1='Input Tables'!$BI$47,BH1='Input Tables'!$BJ$47,BH1='Input Tables'!$BK$47, BH1='Input Tables'!$BL$47,'Input Tables'!$BM$47),('Cost Budgets'!$H$13*BH13),0) -> 0 | BI57: =IF(OR(BI1='Input Tables'!$BA$47, BI1='Input Tables'!$BB$47,BI1='Input Tables'!$BC$47, BI1='Input Tables'!$BD$47,BI1='Input Tables'!$BE$47,BI1='Input Tables'!$BF$47,BI1='Input Tables'!$BG$47,BI1='Input Tables'!$BH$47,BI1='Input Tables'!$BI$47,BI1='Input Tables'!$BJ$47,BI1='Input Tables'!$BK$47, BI1='Input Tables'!$BL$47,'Input Tables'!$BM$47),('Cost Budgets'!$H$13*BI13),0) -> 0 | BJ57: =IF(OR(BJ1='Input Tables'!$BA$47, BJ1='Input Tables'!$BB$47,BJ1='Input Tables'!$BC$47, BJ1='Input Tables'!$BD$47,BJ1='Input Tables'!$BE$47,BJ1='Input Tables'!$BF$47,BJ1='Input Tables'!$BG$47,BJ1='Input Tables'!$BH$47,BJ1='Input Tables'!$BI$47,BJ1='Input Tables'!$BJ$47,BJ1='Input Tables'!$BK$47, BJ1='Input Tables'!$BL$47,'Input Tables'!$BM$47),('Cost Budgets'!$H$13*BJ13),0) -> 0 | BK57: =IF(OR(BK1='Input Tables'!$BA$47, BK1='Input Tables'!$BB$47,BK1='Input Tables'!$BC$47, BK1='Input Tables'!$BD$47,BK1='Input Tables'!$BE$47,BK1='Input Tables'!$BF$47,BK1='Input Tables'!$BG$47,BK1='Input Tables'!$BH$47,BK1='Input Tables'!$BI$47,BK1='Input Tables'!$BJ$47,BK1='Input Tables'!$BK$47, BK1='Input Tables'!$BL$47,'Input Tables'!$BM$47),('Cost Budgets'!$H$13*BK13),0) -> 0 | BL57: =IF(OR(BL1='Input Tables'!$BA$47, BL1='Input Tables'!$BB$47,BL1='Input Tables'!$BC$47, BL1='Input Tables'!$BD$47,BL1='Input Tables'!$BE$47,BL1='Input Tables'!$BF$47,BL1='Input Tables'!$BG$47,BL1='Input Tables'!$BH$47,BL1='Input Tables'!$BI$47,BL1='Input Tables'!$BJ$47,BL1='Input Tables'!$BK$47, BL1='Input Tables'!$BL$47,'Input Tables'!$BM$47),('Cost Budgets'!$H$13*BL13),0) -> 0 | BM57: =IF(OR(BM1='Input Tables'!$BA$47, BM1='Input Tables'!$BB$47,BM1='Input Tables'!$BC$47, BM1='Input Tables'!$BD$47,BM1='Input Tables'!$BE$47,BM1='Input Tables'!$BF$47,BM1='Input Tables'!$BG$47,BM1='Input Tables'!$BH$47,BM1='Input Tables'!$BI$47,BM1='Input Tables'!$BJ$47,BM1='Input Tables'!$BK$47, BM1='Input Tables'!$BL$47,'Input Tables'!$BM$47),('Cost Budgets'!$H$13*BM13),0) -> 0 | BN57: =IF(OR(BN1='Input Tables'!$BA$47, BN1='Input Tables'!$BB$47,BN1='Input Tables'!$BC$47, BN1='Input Tables'!$BD$47,BN1='Input Tables'!$BE$47,BN1='Input Tables'!$BF$47,BN1='Input Tables'!$BG$47,BN1='Input Tables'!$BH$47,BN1='Input Tables'!$BI$47,BN1='Input Tables'!$BJ$47,BN1='Input Tables'!$BK$47, BN1='Input Tables'!$BL$47,'Input Tables'!$BM$47),('Cost Budgets'!$H$13*BN13),0) -> 0 | BO57: =IF(OR(BO1='Input Tables'!$BA$47, BO1='Input Tables'!$BB$47,BO1='Input Tables'!$BC$47, BO1='Input Tables'!$BD$47,BO1='Input Tables'!$BE$47,BO1='Input Tables'!$BF$47,BO1='Input Tables'!$BG$47,BO1='Input Tables'!$BH$47,BO1='Input Tables'!$BI$47,BO1='Input Tables'!$BJ$47,BO1='Input Tables'!$BK$47, BO1='Input Tables'!$BL$47,'Input Tables'!$BM$47),('Cost Budgets'!$H$13*BO13),0) -> 0 | BP57: =IF(OR(BP1='Input Tables'!$BA$47, BP1='Input Tables'!$BB$47,BP1='Input Tables'!$BC$47, BP1='Input Tables'!$BD$47,BP1='Input Tables'!$BE$47,BP1='Input Tables'!$BF$47,BP1='Input Tables'!$BG$47,BP1='Input Tables'!$BH$47,BP1='Input Tables'!$BI$47,BP1='Input Tables'!$BJ$47,BP1='Input Tables'!$BK$47, BP1='Input Tables'!$BL$47,'Input Tables'!$BM$47),('Cost Budgets'!$H$13*BP13),0) -> 0 | BQ57: =IF(OR(BQ1='Input Tables'!$BA$47, BQ1='Input Tables'!$BB$47,BQ1='Input Tables'!$BC$47, BQ1='Input Tables'!$BD$47,BQ1='Input Tables'!$BE$47,BQ1='Input Tables'!$BF$47,BQ1='Input Tables'!$BG$47,BQ1='Input Tables'!$BH$47,BQ1='Input Tables'!$BI$47,BQ1='Input Tables'!$BJ$47,BQ1='Input Tables'!$BK$47, BQ1='Input Tables'!$BL$47,'Input Tables'!$BM$47),('Cost Budgets'!$H$13*BQ13),0) -> 0 | BR57: =IF(OR(BR1='Input Tables'!$BA$47, BR1='Input Tables'!$BB$47,BR1='Input Tables'!$BC$47, BR1='Input Tables'!$BD$47,BR1='Input Tables'!$BE$47,BR1='Input Tables'!$BF$47,BR1='Input Tables'!$BG$47,BR1='Input Tables'!$BH$47,BR1='Input Tables'!$BI$47,BR1='Input Tables'!$BJ$47,BR1='Input Tables'!$BK$47, BR1='Input Tables'!$BL$47,'Input Tables'!$BM$47),('Cost Budgets'!$H$13*BR13),0) -> 0 | BS57: =IF(OR(BS1='Input Tables'!$BA$47, BS1='Input Tables'!$BB$47,BS1='Input Tables'!$BC$47, BS1='Input Tables'!$BD$47,BS1='Input Tables'!$BE$47,BS1='Input Tables'!$BF$47,BS1='Input Tables'!$BG$47,BS1='Input Tables'!$BH$47,BS1='Input Tables'!$BI$47,BS1='Input Tables'!$BJ$47,BS1='Input Tables'!$BK$47, BS1='Input Tables'!$BL$47,'Input Tables'!$BM$47),('Cost Budgets'!$H$13*BS13),0) -> 0 | BT57: =IF(OR(BT1='Input Tables'!$BA$47, BT1='Input Tables'!$BB$47,BT1='Input Tables'!$BC$47, BT1='Input Tables'!$BD$47,BT1='Input Tables'!$BE$47,BT1='Input Tables'!$BF$47,BT1='Input Tables'!$BG$47,BT1='Input Tables'!$BH$47,BT1='Input Tables'!$BI$47,BT1='Input Tables'!$BJ$47,BT1='Input Tables'!$BK$47, BT1='Input Tables'!$BL$47,'Input Tables'!$BM$47),('Cost Budgets'!$H$13*BT13),0) -> 0 | BU57: =IF(OR(BU1='Input Tables'!$BA$47, BU1='Input Tables'!$BB$47,BU1='Input Tables'!$BC$47, BU1='Input Tables'!$BD$47,BU1='Input Tables'!$BE$47,BU1='Input Tables'!$BF$47,BU1='Input Tables'!$BG$47,BU1='Input Tables'!$BH$47,BU1='Input Tables'!$BI$47,BU1='Input Tables'!$BJ$47,BU1='Input Tables'!$BK$47, BU1='Input Tables'!$BL$47,'Input Tables'!$BM$47),('Cost Budgets'!$H$13*BU13),0) -> 0
B59: Pest Control | E59: =IF(OR(E1='Input Tables'!$BA$54, E1='Input Tables'!$BB$54,E1='Input Tables'!$BC$54, E1='Input Tables'!$BD$54,E1='Input Tables'!$BE$54,E1='Input Tables'!$BF$54,E1='Input Tables'!$BG$54,E1='Input Tables'!$BH$54,E1='Input Tables'!$BI$54,E1='Input Tables'!$BJ$54,E1='Input Tables'!$BK$54, E1='Input Tables'!$BL$54,'Input Tables'!$BM$54),('Cost Budgets'!$H$14*E13),0) -> 0 | F59: =IF(OR(F1='Input Tables'!$BA$54, F1='Input Tables'!$BB$54,F1='Input Tables'!$BC$54, F1='Input Tables'!$BD$54,F1='Input Tables'!$BE$54,F1='Input Tables'!$BF$54,F1='Input Tables'!$BG$54,F1='Input Tables'!$BH$54,F1='Input Tables'!$BI$54,F1='Input Tables'!$BJ$54,F1='Input Tables'!$BK$54, F1='Input Tables'!$BL$54,'Input Tables'!$BM$54),('Cost Budgets'!$H$14*F13),0) -> 0 | G59: =IF(OR(G1='Input Tables'!$BA$54, G1='Input Tables'!$BB$54,G1='Input Tables'!$BC$54, G1='Input Tables'!$BD$54,G1='Input Tables'!$BE$54,G1='Input Tables'!$BF$54,G1='Input Tables'!$BG$54,G1='Input Tables'!$BH$54,G1='Input Tables'!$BI$54,G1='Input Tables'!$BJ$54,G1='Input Tables'!$BK$54, G1='Input Tables'!$BL$54,'Input Tables'!$BM$54),('Cost Budgets'!$H$14*G13),0) -> 0 | H59: =IF(OR(H1='Input Tables'!$BA$54, H1='Input Tables'!$BB$54,H1='Input Tables'!$BC$54, H1='Input Tables'!$BD$54,H1='Input Tables'!$BE$54,H1='Input Tables'!$BF$54,H1='Input Tables'!$BG$54,H1='Input Tables'!$BH$54,H1='Input Tables'!$BI$54,H1='Input Tables'!$BJ$54,H1='Input Tables'!$BK$54, H1='Input Tables'!$BL$54,'Input Tables'!$BM$54),('Cost Budgets'!$H$14*H13),0) -> 0 | I59: =IF(OR(I1='Input Tables'!$BA$54, I1='Input Tables'!$BB$54,I1='Input Tables'!$BC$54, I1='Input Tables'!$BD$54,I1='Input Tables'!$BE$54,I1='Input Tables'!$BF$54,I1='Input Tables'!$BG$54,I1='Input Tables'!$BH$54,I1='Input Tables'!$BI$54,I1='Input Tables'!$BJ$54,I1='Input Tables'!$BK$54, I1='Input Tables'!$BL$54,'Input Tables'!$BM$54),('Cost Budgets'!$H$14*I13),0) -> 0 | J59: =IF(OR(J1='Input Tables'!$BA$54, J1='Input Tables'!$BB$54,J1='Input Tables'!$BC$54, J1='Input Tables'!$BD$54,J1='Input Tables'!$BE$54,J1='Input Tables'!$BF$54,J1='Input Tables'!$BG$54,J1='Input Tables'!$BH$54,J1='Input Tables'!$BI$54,J1='Input Tables'!$BJ$54,J1='Input Tables'!$BK$54, J1='Input Tables'!$BL$54,'Input Tables'!$BM$54),('Cost Budgets'!$H$14*J13),0) -> 0 | K59: =IF(OR(K1='Input Tables'!$BA$54, K1='Input Tables'!$BB$54,K1='Input Tables'!$BC$54, K1='Input Tables'!$BD$54,K1='Input Tables'!$BE$54,K1='Input Tables'!$BF$54,K1='Input Tables'!$BG$54,K1='Input Tables'!$BH$54,K1='Input Tables'!$BI$54,K1='Input Tables'!$BJ$54,K1='Input Tables'!$BK$54, K1='Input Tables'!$BL$54,'Input Tables'!$BM$54),('Cost Budgets'!$H$14*K13),0) -> 0 | L59: =IF(OR(L1='Input Tables'!$BA$54, L1='Input Tables'!$BB$54,L1='Input Tables'!$BC$54, L1='Input Tables'!$BD$54,L1='Input Tables'!$BE$54,L1='Input Tables'!$BF$54,L1='Input Tables'!$BG$54,L1='Input Tables'!$BH$54,L1='Input Tables'!$BI$54,L1='Input Tables'!$BJ$54,L1='Input Tables'!$BK$54, L1='Input Tables'!$BL$54,'Input Tables'!$BM$54),('Cost Budgets'!$H$14*L13),0) -> 0 | M59: =IF(OR(M1='Input Tables'!$BA$54, M1='Input Tables'!$BB$54,M1='Input Tables'!$BC$54, M1='Input Tables'!$BD$54,M1='Input Tables'!$BE$54,M1='Input Tables'!$BF$54,M1='Input Tables'!$BG$54,M1='Input Tables'!$BH$54,M1='Input Tables'!$BI$54,M1='Input Tables'!$BJ$54,M1='Input Tables'!$BK$54, M1='Input Tables'!$BL$54,'Input Tables'!$BM$54),('Cost Budgets'!$H$14*M13),0) -> 0 | N59: =IF(OR(N1='Input Tables'!$BA$54, N1='Input Tables'!$BB$54,N1='Input Tables'!$BC$54, N1='Input Tables'!$BD$54,N1='Input Tables'!$BE$54,N1='Input Tables'!$BF$54,N1='Input Tables'!$BG$54,N1='Input Tables'!$BH$54,N1='Input Tables'!$BI$54,N1='Input Tables'!$BJ$54,N1='Input Tables'!$BK$54, N1='Input Tables'!$BL$54,'Input Tables'!$BM$54),('Cost Budgets'!$H$14*N13),0) -> 0 | O59: =IF(OR(O1='Input Tables'!$BA$54, O1='Input Tables'!$BB$54,O1='Input Tables'!$BC$54, O1='Input Tables'!$BD$54,O1='Input Tables'!$BE$54,O1='Input Tables'!$BF$54,O1='Input Tables'!$BG$54,O1='Input Tables'!$BH$54,O1='Input Tables'!$BI$54,O1='Input Tables'!$BJ$54,O1='Input Tables'!$BK$54, O1='Input Tables'!$BL$54,'Input Tables'!$BM$54),('Cost Budgets'!$H$14*O13),0) -> 0 | P59: =IF(OR(P1='Input Tables'!$BA$54, P1='Input Tables'!$BB$54,P1='Input Tables'!$BC$54, P1='Input Tables'!$BD$54,P1='Input Tables'!$BE$54,P1='Input Tables'!$BF$54,P1='Input Tables'!$BG$54,P1='Input Tables'!$BH$54,P1='Input Tables'!$BI$54,P1='Input Tables'!$BJ$54,P1='Input Tables'!$BK$54, P1='Input Tables'!$BL$54,'Input Tables'!$BM$54),('Cost Budgets'!$H$14*P13),0) -> 0 | Q59: =IF(OR(Q1='Input Tables'!$BA$54, Q1='Input Tables'!$BB$54,Q1='Input Tables'!$BC$54, Q1='Input Tables'!$BD$54,Q1='Input Tables'!$BE$54,Q1='Input Tables'!$BF$54,Q1='Input Tables'!$BG$54,Q1='Input Tables'!$BH$54,Q1='Input Tables'!$BI$54,Q1='Input Tables'!$BJ$54,Q1='Input Tables'!$BK$54, Q1='Input Tables'!$BL$54,'Input Tables'!$BM$54),('Cost Budgets'!$H$14*Q13),0) -> 0 | R59: =IF(OR(R1='Input Tables'!$BA$54, R1='Input Tables'!$BB$54,R1='Input Tables'!$BC$54, R1='Input Tables'!$BD$54,R1='Input Tables'!$BE$54,R1='Input Tables'!$BF$54,R1='Input Tables'!$BG$54,R1='Input Tables'!$BH$54,R1='Input Tables'!$BI$54,R1='Input Tables'!$BJ$54,R1='Input Tables'!$BK$54, R1='Input Tables'!$BL$54,'Input Tables'!$BM$54),('Cost Budgets'!$H$14*R13),0) -> 0 | S59: =IF(OR(S1='Input Tables'!$BA$54, S1='Input Tables'!$BB$54,S1='Input Tables'!$BC$54, S1='Input Tables'!$BD$54,S1='Input Tables'!$BE$54,S1='Input Tables'!$BF$54,S1='Input Tables'!$BG$54,S1='Input Tables'!$BH$54,S1='Input Tables'!$BI$54,S1='Input Tables'!$BJ$54,S1='Input Tables'!$BK$54, S1='Input Tables'!$BL$54,'Input Tables'!$BM$54),('Cost Budgets'!$H$14*S13),0) -> 0 | T59: =IF(OR(T1='Input Tables'!$BA$54, T1='Input Tables'!$BB$54,T1='Input Tables'!$BC$54, T1='Input Tables'!$BD$54,T1='Input Tables'!$BE$54,T1='Input Tables'!$BF$54,T1='Input Tables'!$BG$54,T1='Input Tables'!$BH$54,T1='Input Tables'!$BI$54,T1='Input Tables'!$BJ$54,T1='Input Tables'!$BK$54, T1='Input Tables'!$BL$54,'Input Tables'!$BM$54),('Cost Budgets'!$H$14*T13),0) -> 0 | U59: =IF(OR(U1='Input Tables'!$BA$54, U1='Input Tables'!$BB$54,U1='Input Tables'!$BC$54, U1='Input Tables'!$BD$54,U1='Input Tables'!$BE$54,U1='Input Tables'!$BF$54,U1='Input Tables'!$BG$54,U1='Input Tables'!$BH$54,U1='Input Tables'!$BI$54,U1='Input Tables'!$BJ$54,U1='Input Tables'!$BK$54, U1='Input Tables'!$BL$54,'Input Tables'!$BM$54),('Cost Budgets'!$H$14*U13),0) -> 0 | V59: =IF(OR(V1='Input Tables'!$BA$54, V1='Input Tables'!$BB$54,V1='Input Tables'!$BC$54, V1='Input Tables'!$BD$54,V1='Input Tables'!$BE$54,V1='Input Tables'!$BF$54,V1='Input Tables'!$BG$54,V1='Input Tables'!$BH$54,V1='Input Tables'!$BI$54,V1='Input Tables'!$BJ$54,V1='Input Tables'!$BK$54, V1='Input Tables'!$BL$54,'Input Tables'!$BM$54),('Cost Budgets'!$H$14*V13),0) -> 0 | W59: =IF(OR(W1='Input Tables'!$BA$54, W1='Input Tables'!$BB$54,W1='Input Tables'!$BC$54, W1='Input Tables'!$BD$54,W1='Input Tables'!$BE$54,W1='Input Tables'!$BF$54,W1='Input Tables'!$BG$54,W1='Input Tables'!$BH$54,W1='Input Tables'!$BI$54,W1='Input Tables'!$BJ$54,W1='Input Tables'!$BK$54, W1='Input Tables'!$BL$54,'Input Tables'!$BM$54),('Cost Budgets'!$H$14*W13),0) -> 0 | X59: =IF(OR(X1='Input Tables'!$BA$54, X1='Input Tables'!$BB$54,X1='Input Tables'!$BC$54, X1='Input Tables'!$BD$54,X1='Input Tables'!$BE$54,X1='Input Tables'!$BF$54,X1='Input Tables'!$BG$54,X1='Input Tables'!$BH$54,X1='Input Tables'!$BI$54,X1='Input Tables'!$BJ$54,X1='Input Tables'!$BK$54, X1='Input Tables'!$BL$54,'Input Tables'!$BM$54),('Cost Budgets'!$H$14*X13),0) -> 0 | Y59: =IF(OR(Y1='Input Tables'!$BA$54, Y1='Input Tables'!$BB$54,Y1='Input Tables'!$BC$54, Y1='Input Tables'!$BD$54,Y1='Input Tables'!$BE$54,Y1='Input Tables'!$BF$54,Y1='Input Tables'!$BG$54,Y1='Input Tables'!$BH$54,Y1='Input Tables'!$BI$54,Y1='Input Tables'!$BJ$54,Y1='Input Tables'!$BK$54, Y1='Input Tables'!$BL$54,'Input Tables'!$BM$54),('Cost Budgets'!$H$14*Y13),0) -> 0 | Z59: =IF(OR(Z1='Input Tables'!$BA$54, Z1='Input Tables'!$BB$54,Z1='Input Tables'!$BC$54, Z1='Input Tables'!$BD$54,Z1='Input Tables'!$BE$54,Z1='Input Tables'!$BF$54,Z1='Input Tables'!$BG$54,Z1='Input Tables'!$BH$54,Z1='Input Tables'!$BI$54,Z1='Input Tables'!$BJ$54,Z1='Input Tables'!$BK$54, Z1='Input Tables'!$BL$54,'Input Tables'!$BM$54),('Cost Budgets'!$H$14*Z13),0) -> 0 | AA59: =IF(OR(AA1='Input Tables'!$BA$54, AA1='Input Tables'!$BB$54,AA1='Input Tables'!$BC$54, AA1='Input Tables'!$BD$54,AA1='Input Tables'!$BE$54,AA1='Input Tables'!$BF$54,AA1='Input Tables'!$BG$54,AA1='Input Tables'!$BH$54,AA1='Input Tables'!$BI$54,AA1='Input Tables'!$BJ$54,AA1='Input Tables'!$BK$54, AA1='Input Tables'!$BL$54,'Input Tables'!$BM$54),('Cost Budgets'!$H$14*AA13),0) -> 0 | AB59: =IF(OR(AB1='Input Tables'!$BA$54, AB1='Input Tables'!$BB$54,AB1='Input Tables'!$BC$54, AB1='Input Tables'!$BD$54,AB1='Input Tables'!$BE$54,AB1='Input Tables'!$BF$54,AB1='Input Tables'!$BG$54,AB1='Input Tables'!$BH$54,AB1='Input Tables'!$BI$54,AB1='Input Tables'!$BJ$54,AB1='Input Tables'!$BK$54, AB1='Input Tables'!$BL$54,'Input Tables'!$BM$54),('Cost Budgets'!$H$14*AB13),0) -> 0 | AC59: =IF(OR(AC1='Input Tables'!$BA$54, AC1='Input Tables'!$BB$54,AC1='Input Tables'!$BC$54, AC1='Input Tables'!$BD$54,AC1='Input Tables'!$BE$54,AC1='Input Tables'!$BF$54,AC1='Input Tables'!$BG$54,AC1='Input Tables'!$BH$54,AC1='Input Tables'!$BI$54,AC1='Input Tables'!$BJ$54,AC1='Input Tables'!$BK$54, AC1='Input Tables'!$BL$54,'Input Tables'!$BM$54),('Cost Budgets'!$H$14*AC13),0) -> 0 | AD59: =IF(OR(AD1='Input Tables'!$BA$54, AD1='Input Tables'!$BB$54,AD1='Input Tables'!$BC$54, AD1='Input Tables'!$BD$54,AD1='Input Tables'!$BE$54,AD1='Input Tables'!$BF$54,AD1='Input Tables'!$BG$54,AD1='Input Tables'!$BH$54,AD1='Input Tables'!$BI$54,AD1='Input Tables'!$BJ$54,AD1='Input Tables'!$BK$54, AD1='Input Tables'!$BL$54,'Input Tables'!$BM$54),('Cost Budgets'!$H$14*AD13),0) -> 0 | AE59: =IF(OR(AE1='Input Tables'!$BA$54, AE1='Input Tables'!$BB$54,AE1='Input Tables'!$BC$54, AE1='Input Tables'!$BD$54,AE1='Input Tables'!$BE$54,AE1='Input Tables'!$BF$54,AE1='Input Tables'!$BG$54,AE1='Input Tables'!$BH$54,AE1='Input Tables'!$BI$54,AE1='Input Tables'!$BJ$54,AE1='Input Tables'!$BK$54, AE1='Input Tables'!$BL$54,'Input Tables'!$BM$54),('Cost Budgets'!$H$14*AE13),0) -> 0 | AF59: =IF(OR(AF1='Input Tables'!$BA$54, AF1='Input Tables'!$BB$54,AF1='Input Tables'!$BC$54, AF1='Input Tables'!$BD$54,AF1='Input Tables'!$BE$54,AF1='Input Tables'!$BF$54,AF1='Input Tables'!$BG$54,AF1='Input Tables'!$BH$54,AF1='Input Tables'!$BI$54,AF1='Input Tables'!$BJ$54,AF1='Input Tables'!$BK$54, AF1='Input Tables'!$BL$54,'Input Tables'!$BM$54),('Cost Budgets'!$H$14*AF13),0) -> 0 | AG59: =IF(OR(AG1='Input Tables'!$BA$54, AG1='Input Tables'!$BB$54,AG1='Input Tables'!$BC$54, AG1='Input Tables'!$BD$54,AG1='Input Tables'!$BE$54,AG1='Input Tables'!$BF$54,AG1='Input Tables'!$BG$54,AG1='Input Tables'!$BH$54,AG1='Input Tables'!$BI$54,AG1='Input Tables'!$BJ$54,AG1='Input Tables'!$BK$54, AG1='Input Tables'!$BL$54,'Input Tables'!$BM$54),('Cost Budgets'!$H$14*AG13),0) -> 0 | AH59: =IF(OR(AH1='Input Tables'!$BA$54, AH1='Input Tables'!$BB$54,AH1='Input Tables'!$BC$54, AH1='Input Tables'!$BD$54,AH1='Input Tables'!$BE$54,AH1='Input Tables'!$BF$54,AH1='Input Tables'!$BG$54,AH1='Input Tables'!$BH$54,AH1='Input Tables'!$BI$54,AH1='Input Tables'!$BJ$54,AH1='Input Tables'!$BK$54, AH1='Input Tables'!$BL$54,'Input Tables'!$BM$54),('Cost Budgets'!$H$14*AH13),0) -> 0 | AI59: =IF(OR(AI1='Input Tables'!$BA$54, AI1='Input Tables'!$BB$54,AI1='Input Tables'!$BC$54, AI1='Input Tables'!$BD$54,AI1='Input Tables'!$BE$54,AI1='Input Tables'!$BF$54,AI1='Input Tables'!$BG$54,AI1='Input Tables'!$BH$54,AI1='Input Tables'!$BI$54,AI1='Input Tables'!$BJ$54,AI1='Input Tables'!$BK$54, AI1='Input Tables'!$BL$54,'Input Tables'!$BM$54),('Cost Budgets'!$H$14*AI13),0) -> 0 | AJ59: =IF(OR(AJ1='Input Tables'!$BA$54, AJ1='Input Tables'!$BB$54,AJ1='Input Tables'!$BC$54, AJ1='Input Tables'!$BD$54,AJ1='Input Tables'!$BE$54,AJ1='Input Tables'!$BF$54,AJ1='Input Tables'!$BG$54,AJ1='Input Tables'!$BH$54,AJ1='Input Tables'!$BI$54,AJ1='Input Tables'!$BJ$54,AJ1='Input Tables'!$BK$54, AJ1='Input Tables'!$BL$54,'Input Tables'!$BM$54),('Cost Budgets'!$H$14*AJ13),0) -> 0 | AK59: =IF(OR(AK1='Input Tables'!$BA$54, AK1='Input Tables'!$BB$54,AK1='Input Tables'!$BC$54, AK1='Input Tables'!$BD$54,AK1='Input Tables'!$BE$54,AK1='Input Tables'!$BF$54,AK1='Input Tables'!$BG$54,AK1='Input Tables'!$BH$54,AK1='Input Tables'!$BI$54,AK1='Input Tables'!$BJ$54,AK1='Input Tables'!$BK$54, AK1='Input Tables'!$BL$54,'Input Tables'!$BM$54),('Cost Budgets'!$H$14*AK13),0) -> 0 | AL59: =IF(OR(AL1='Input Tables'!$BA$54, AL1='Input Tables'!$BB$54,AL1='Input Tables'!$BC$54, AL1='Input Tables'!$BD$54,AL1='Input Tables'!$BE$54,AL1='Input Tables'!$BF$54,AL1='Input Tables'!$BG$54,AL1='Input Tables'!$BH$54,AL1='Input Tables'!$BI$54,AL1='Input Tables'!$BJ$54,AL1='Input Tables'!$BK$54, AL1='Input Tables'!$BL$54,'Input Tables'!$BM$54),('Cost Budgets'!$H$14*AL13),0) -> 0 | AM59: =IF(OR(AM1='Input Tables'!$BA$54, AM1='Input Tables'!$BB$54,AM1='Input Tables'!$BC$54, AM1='Input Tables'!$BD$54,AM1='Input Tables'!$BE$54,AM1='Input Tables'!$BF$54,AM1='Input Tables'!$BG$54,AM1='Input Tables'!$BH$54,AM1='Input Tables'!$BI$54,AM1='Input Tables'!$BJ$54,AM1='Input Tables'!$BK$54, AM1='Input Tables'!$BL$54,'Input Tables'!$BM$54),('Cost Budgets'!$H$14*AM13),0) -> 0 | AN59: =IF(OR(AN1='Input Tables'!$BA$54, AN1='Input Tables'!$BB$54,AN1='Input Tables'!$BC$54, AN1='Input Tables'!$BD$54,AN1='Input Tables'!$BE$54,AN1='Input Tables'!$BF$54,AN1='Input Tables'!$BG$54,AN1='Input Tables'!$BH$54,AN1='Input Tables'!$BI$54,AN1='Input Tables'!$BJ$54,AN1='Input Tables'!$BK$54, AN1='Input Tables'!$BL$54,'Input Tables'!$BM$54),('Cost Budgets'!$H$14*AN13),0) -> 0 | AO59: =IF(OR(AO1='Input Tables'!$BA$54, AO1='Input Tables'!$BB$54,AO1='Input Tables'!$BC$54, AO1='Input Tables'!$BD$54,AO1='Input Tables'!$BE$54,AO1='Input Tables'!$BF$54,AO1='Input Tables'!$BG$54,AO1='Input Tables'!$BH$54,AO1='Input Tables'!$BI$54,AO1='Input Tables'!$BJ$54,AO1='Input Tables'!$BK$54, AO1='Input Tables'!$BL$54,'Input Tables'!$BM$54),('Cost Budgets'!$H$14*AO13),0) -> 0 | AP59: =IF(OR(AP1='Input Tables'!$BA$54, AP1='Input Tables'!$BB$54,AP1='Input Tables'!$BC$54, AP1='Input Tables'!$BD$54,AP1='Input Tables'!$BE$54,AP1='Input Tables'!$BF$54,AP1='Input Tables'!$BG$54,AP1='Input Tables'!$BH$54,AP1='Input Tables'!$BI$54,AP1='Input Tables'!$BJ$54,AP1='Input Tables'!$BK$54, AP1='Input Tables'!$BL$54,'Input Tables'!$BM$54),('Cost Budgets'!$H$14*AP13),0) -> 0 | AQ59: =IF(OR(AQ1='Input Tables'!$BA$54, AQ1='Input Tables'!$BB$54,AQ1='Input Tables'!$BC$54, AQ1='Input Tables'!$BD$54,AQ1='Input Tables'!$BE$54,AQ1='Input Tables'!$BF$54,AQ1='Input Tables'!$BG$54,AQ1='Input Tables'!$BH$54,AQ1='Input Tables'!$BI$54,AQ1='Input Tables'!$BJ$54,AQ1='Input Tables'!$BK$54, AQ1='Input Tables'!$BL$54,'Input Tables'!$BM$54),('Cost Budgets'!$H$14*AQ13),0) -> 0 | AR59: =IF(OR(AR1='Input Tables'!$BA$54, AR1='Input Tables'!$BB$54,AR1='Input Tables'!$BC$54, AR1='Input Tables'!$BD$54,AR1='Input Tables'!$BE$54,AR1='Input Tables'!$BF$54,AR1='Input Tables'!$BG$54,AR1='Input Tables'!$BH$54,AR1='Input Tables'!$BI$54,AR1='Input Tables'!$BJ$54,AR1='Input Tables'!$BK$54, AR1='Input Tables'!$BL$54,'Input Tables'!$BM$54),('Cost Budgets'!$H$14*AR13),0) -> 0 | AS59: =IF(OR(AS1='Input Tables'!$BA$54, AS1='Input Tables'!$BB$54,AS1='Input Tables'!$BC$54, AS1='Input Tables'!$BD$54,AS1='Input Tables'!$BE$54,AS1='Input Tables'!$BF$54,AS1='Input Tables'!$BG$54,AS1='Input Tables'!$BH$54,AS1='Input Tables'!$BI$54,AS1='Input Tables'!$BJ$54,AS1='Input Tables'!$BK$54, AS1='Input Tables'!$BL$54,'Input Tables'!$BM$54),('Cost Budgets'!$H$14*AS13),0) -> 0 | AT59: =IF(OR(AT1='Input Tables'!$BA$54, AT1='Input Tables'!$BB$54,AT1='Input Tables'!$BC$54, AT1='Input Tables'!$BD$54,AT1='Input Tables'!$BE$54,AT1='Input Tables'!$BF$54,AT1='Input Tables'!$BG$54,AT1='Input Tables'!$BH$54,AT1='Input Tables'!$BI$54,AT1='Input Tables'!$BJ$54,AT1='Input Tables'!$BK$54, AT1='Input Tables'!$BL$54,'Input Tables'!$BM$54),('Cost Budgets'!$H$14*AT13),0) -> 0 | AU59: =IF(OR(AU1='Input Tables'!$BA$54, AU1='Input Tables'!$BB$54,AU1='Input Tables'!$BC$54, AU1='Input Tables'!$BD$54,AU1='Input Tables'!$BE$54,AU1='Input Tables'!$BF$54,AU1='Input Tables'!$BG$54,AU1='Input Tables'!$BH$54,AU1='Input Tables'!$BI$54,AU1='Input Tables'!$BJ$54,AU1='Input Tables'!$BK$54, AU1='Input Tables'!$BL$54,'Input Tables'!$BM$54),('Cost Budgets'!$H$14*AU13),0) -> 0 | AV59: =IF(OR(AV1='Input Tables'!$BA$54, AV1='Input Tables'!$BB$54,AV1='Input Tables'!$BC$54, AV1='Input Tables'!$BD$54,AV1='Input Tables'!$BE$54,AV1='Input Tables'!$BF$54,AV1='Input Tables'!$BG$54,AV1='Input Tables'!$BH$54,AV1='Input Tables'!$BI$54,AV1='Input Tables'!$BJ$54,AV1='Input Tables'!$BK$54, AV1='Input Tables'!$BL$54,'Input Tables'!$BM$54),('Cost Budgets'!$H$14*AV13),0) -> 0 | AW59: =IF(OR(AW1='Input Tables'!$BA$54, AW1='Input Tables'!$BB$54,AW1='Input Tables'!$BC$54, AW1='Input Tables'!$BD$54,AW1='Input Tables'!$BE$54,AW1='Input Tables'!$BF$54,AW1='Input Tables'!$BG$54,AW1='Input Tables'!$BH$54,AW1='Input Tables'!$BI$54,AW1='Input Tables'!$BJ$54,AW1='Input Tables'!$BK$54, AW1='Input Tables'!$BL$54,'Input Tables'!$BM$54),('Cost Budgets'!$H$14*AW13),0) -> 0 | AX59: =IF(OR(AX1='Input Tables'!$BA$54, AX1='Input Tables'!$BB$54,AX1='Input Tables'!$BC$54, AX1='Input Tables'!$BD$54,AX1='Input Tables'!$BE$54,AX1='Input Tables'!$BF$54,AX1='Input Tables'!$BG$54,AX1='Input Tables'!$BH$54,AX1='Input Tables'!$BI$54,AX1='Input Tables'!$BJ$54,AX1='Input Tables'!$BK$54, AX1='Input Tables'!$BL$54,'Input Tables'!$BM$54),('Cost Budgets'!$H$14*AX13),0) -> 0 | AY59: =IF(OR(AY1='Input Tables'!$BA$54, AY1='Input Tables'!$BB$54,AY1='Input Tables'!$BC$54, AY1='Input Tables'!$BD$54,AY1='Input Tables'!$BE$54,AY1='Input Tables'!$BF$54,AY1='Input Tables'!$BG$54,AY1='Input Tables'!$BH$54,AY1='Input Tables'!$BI$54,AY1='Input Tables'!$BJ$54,AY1='Input Tables'!$BK$54, AY1='Input Tables'!$BL$54,'Input Tables'!$BM$54),('Cost Budgets'!$H$14*AY13),0) -> 0 | AZ59: =IF(OR(AZ1='Input Tables'!$BA$54, AZ1='Input Tables'!$BB$54,AZ1='Input Tables'!$BC$54, AZ1='Input Tables'!$BD$54,AZ1='Input Tables'!$BE$54,AZ1='Input Tables'!$BF$54,AZ1='Input Tables'!$BG$54,AZ1='Input Tables'!$BH$54,AZ1='Input Tables'!$BI$54,AZ1='Input Tables'!$BJ$54,AZ1='Input Tables'!$BK$54, AZ1='Input Tables'!$BL$54,'Input Tables'!$BM$54),('Cost Budgets'!$H$14*AZ13),0) -> 0 | BA59: =IF(OR(BA1='Input Tables'!$BA$54, BA1='Input Tables'!$BB$54,BA1='Input Tables'!$BC$54, BA1='Input Tables'!$BD$54,BA1='Input Tables'!$BE$54,BA1='Input Tables'!$BF$54,BA1='Input Tables'!$BG$54,BA1='Input Tables'!$BH$54,BA1='Input Tables'!$BI$54,BA1='Input Tables'!$BJ$54,BA1='Input Tables'!$BK$54, BA1='Input Tables'!$BL$54,'Input Tables'!$BM$54),('Cost Budgets'!$H$14*BA13),0) -> 0 | BB59: =IF(OR(BB1='Input Tables'!$BA$54, BB1='Input Tables'!$BB$54,BB1='Input Tables'!$BC$54, BB1='Input Tables'!$BD$54,BB1='Input Tables'!$BE$54,BB1='Input Tables'!$BF$54,BB1='Input Tables'!$BG$54,BB1='Input Tables'!$BH$54,BB1='Input Tables'!$BI$54,BB1='Input Tables'!$BJ$54,BB1='Input Tables'!$BK$54, BB1='Input Tables'!$BL$54,'Input Tables'!$BM$54),('Cost Budgets'!$H$14*BB13),0) -> 0 | BC59: =IF(OR(BC1='Input Tables'!$BA$54, BC1='Input Tables'!$BB$54,BC1='Input Tables'!$BC$54, BC1='Input Tables'!$BD$54,BC1='Input Tables'!$BE$54,BC1='Input Tables'!$BF$54,BC1='Input Tables'!$BG$54,BC1='Input Tables'!$BH$54,BC1='Input Tables'!$BI$54,BC1='Input Tables'!$BJ$54,BC1='Input Tables'!$BK$54, BC1='Input Tables'!$BL$54,'Input Tables'!$BM$54),('Cost Budgets'!$H$14*BC13),0) -> 0 | BD59: =IF(OR(BD1='Input Tables'!$BA$54, BD1='Input Tables'!$BB$54,BD1='Input Tables'!$BC$54, BD1='Input Tables'!$BD$54,BD1='Input Tables'!$BE$54,BD1='Input Tables'!$BF$54,BD1='Input Tables'!$BG$54,BD1='Input Tables'!$BH$54,BD1='Input Tables'!$BI$54,BD1='Input Tables'!$BJ$54,BD1='Input Tables'!$BK$54, BD1='Input Tables'!$BL$54,'Input Tables'!$BM$54),('Cost Budgets'!$H$14*BD13),0) -> 0 | BE59: =IF(OR(BE1='Input Tables'!$BA$54, BE1='Input Tables'!$BB$54,BE1='Input Tables'!$BC$54, BE1='Input Tables'!$BD$54,BE1='Input Tables'!$BE$54,BE1='Input Tables'!$BF$54,BE1='Input Tables'!$BG$54,BE1='Input Tables'!$BH$54,BE1='Input Tables'!$BI$54,BE1='Input Tables'!$BJ$54,BE1='Input Tables'!$BK$54, BE1='Input Tables'!$BL$54,'Input Tables'!$BM$54),('Cost Budgets'!$H$14*BE13),0) -> 0 | BF59: =IF(OR(BF1='Input Tables'!$BA$54, BF1='Input Tables'!$BB$54,BF1='Input Tables'!$BC$54, BF1='Input Tables'!$BD$54,BF1='Input Tables'!$BE$54,BF1='Input Tables'!$BF$54,BF1='Input Tables'!$BG$54,BF1='Input Tables'!$BH$54,BF1='Input Tables'!$BI$54,BF1='Input Tables'!$BJ$54,BF1='Input Tables'!$BK$54, BF1='Input Tables'!$BL$54,'Input Tables'!$BM$54),('Cost Budgets'!$H$14*BF13),0) -> 0 | BG59: =IF(OR(BG1='Input Tables'!$BA$54, BG1='Input Tables'!$BB$54,BG1='Input Tables'!$BC$54, BG1='Input Tables'!$BD$54,BG1='Input Tables'!$BE$54,BG1='Input Tables'!$BF$54,BG1='Input Tables'!$BG$54,BG1='Input Tables'!$BH$54,BG1='Input Tables'!$BI$54,BG1='Input Tables'!$BJ$54,BG1='Input Tables'!$BK$54, BG1='Input Tables'!$BL$54,'Input Tables'!$BM$54),('Cost Budgets'!$H$14*BG13),0) -> 0 | BH59: =IF(OR(BH1='Input Tables'!$BA$54, BH1='Input Tables'!$BB$54,BH1='Input Tables'!$BC$54, BH1='Input Tables'!$BD$54,BH1='Input Tables'!$BE$54,BH1='Input Tables'!$BF$54,BH1='Input Tables'!$BG$54,BH1='Input Tables'!$BH$54,BH1='Input Tables'!$BI$54,BH1='Input Tables'!$BJ$54,BH1='Input Tables'!$BK$54, BH1='Input Tables'!$BL$54,'Input Tables'!$BM$54),('Cost Budgets'!$H$14*BH13),0) -> 0 | BI59: =IF(OR(BI1='Input Tables'!$BA$54, BI1='Input Tables'!$BB$54,BI1='Input Tables'!$BC$54, BI1='Input Tables'!$BD$54,BI1='Input Tables'!$BE$54,BI1='Input Tables'!$BF$54,BI1='Input Tables'!$BG$54,BI1='Input Tables'!$BH$54,BI1='Input Tables'!$BI$54,BI1='Input Tables'!$BJ$54,BI1='Input Tables'!$BK$54, BI1='Input Tables'!$BL$54,'Input Tables'!$BM$54),('Cost Budgets'!$H$14*BI13),0) -> 0 | BJ59: =IF(OR(BJ1='Input Tables'!$BA$54, BJ1='Input Tables'!$BB$54,BJ1='Input Tables'!$BC$54, BJ1='Input Tables'!$BD$54,BJ1='Input Tables'!$BE$54,BJ1='Input Tables'!$BF$54,BJ1='Input Tables'!$BG$54,BJ1='Input Tables'!$BH$54,BJ1='Input Tables'!$BI$54,BJ1='Input Tables'!$BJ$54,BJ1='Input Tables'!$BK$54, BJ1='Input Tables'!$BL$54,'Input Tables'!$BM$54),('Cost Budgets'!$H$14*BJ13),0) -> 0 | BK59: =IF(OR(BK1='Input Tables'!$BA$54, BK1='Input Tables'!$BB$54,BK1='Input Tables'!$BC$54, BK1='Input Tables'!$BD$54,BK1='Input Tables'!$BE$54,BK1='Input Tables'!$BF$54,BK1='Input Tables'!$BG$54,BK1='Input Tables'!$BH$54,BK1='Input Tables'!$BI$54,BK1='Input Tables'!$BJ$54,BK1='Input Tables'!$BK$54, BK1='Input Tables'!$BL$54,'Input Tables'!$BM$54),('Cost Budgets'!$H$14*BK13),0) -> 0 | BL59: =IF(OR(BL1='Input Tables'!$BA$54, BL1='Input Tables'!$BB$54,BL1='Input Tables'!$BC$54, BL1='Input Tables'!$BD$54,BL1='Input Tables'!$BE$54,BL1='Input Tables'!$BF$54,BL1='Input Tables'!$BG$54,BL1='Input Tables'!$BH$54,BL1='Input Tables'!$BI$54,BL1='Input Tables'!$BJ$54,BL1='Input Tables'!$BK$54, BL1='Input Tables'!$BL$54,'Input Tables'!$BM$54),('Cost Budgets'!$H$14*BL13),0) -> 0 | BM59: =IF(OR(BM1='Input Tables'!$BA$54, BM1='Input Tables'!$BB$54,BM1='Input Tables'!$BC$54, BM1='Input Tables'!$BD$54,BM1='Input Tables'!$BE$54,BM1='Input Tables'!$BF$54,BM1='Input Tables'!$BG$54,BM1='Input Tables'!$BH$54,BM1='Input Tables'!$BI$54,BM1='Input Tables'!$BJ$54,BM1='Input Tables'!$BK$54, BM1='Input Tables'!$BL$54,'Input Tables'!$BM$54),('Cost Budgets'!$H$14*BM13),0) -> 0 | BN59: =IF(OR(BN1='Input Tables'!$BA$54, BN1='Input Tables'!$BB$54,BN1='Input Tables'!$BC$54, BN1='Input Tables'!$BD$54,BN1='Input Tables'!$BE$54,BN1='Input Tables'!$BF$54,BN1='Input Tables'!$BG$54,BN1='Input Tables'!$BH$54,BN1='Input Tables'!$BI$54,BN1='Input Tables'!$BJ$54,BN1='Input Tables'!$BK$54, BN1='Input Tables'!$BL$54,'Input Tables'!$BM$54),('Cost Budgets'!$H$14*BN13),0) -> 0 | BO59: =IF(OR(BO1='Input Tables'!$BA$54, BO1='Input Tables'!$BB$54,BO1='Input Tables'!$BC$54, BO1='Input Tables'!$BD$54,BO1='Input Tables'!$BE$54,BO1='Input Tables'!$BF$54,BO1='Input Tables'!$BG$54,BO1='Input Tables'!$BH$54,BO1='Input Tables'!$BI$54,BO1='Input Tables'!$BJ$54,BO1='Input Tables'!$BK$54, BO1='Input Tables'!$BL$54,'Input Tables'!$BM$54),('Cost Budgets'!$H$14*BO13),0) -> 0 | BP59: =IF(OR(BP1='Input Tables'!$BA$54, BP1='Input Tables'!$BB$54,BP1='Input Tables'!$BC$54, BP1='Input Tables'!$BD$54,BP1='Input Tables'!$BE$54,BP1='Input Tables'!$BF$54,BP1='Input Tables'!$BG$54,BP1='Input Tables'!$BH$54,BP1='Input Tables'!$BI$54,BP1='Input Tables'!$BJ$54,BP1='Input Tables'!$BK$54, BP1='Input Tables'!$BL$54,'Input Tables'!$BM$54),('Cost Budgets'!$H$14*BP13),0) -> 0 | BQ59: =IF(OR(BQ1='Input Tables'!$BA$54, BQ1='Input Tables'!$BB$54,BQ1='Input Tables'!$BC$54, BQ1='Input Tables'!$BD$54,BQ1='Input Tables'!$BE$54,BQ1='Input Tables'!$BF$54,BQ1='Input Tables'!$BG$54,BQ1='Input Tables'!$BH$54,BQ1='Input Tables'!$BI$54,BQ1='Input Tables'!$BJ$54,BQ1='Input Tables'!$BK$54, BQ1='Input Tables'!$BL$54,'Input Tables'!$BM$54),('Cost Budgets'!$H$14*BQ13),0) -> 0 | BR59: =IF(OR(BR1='Input Tables'!$BA$54, BR1='Input Tables'!$BB$54,BR1='Input Tables'!$BC$54, BR1='Input Tables'!$BD$54,BR1='Input Tables'!$BE$54,BR1='Input Tables'!$BF$54,BR1='Input Tables'!$BG$54,BR1='Input Tables'!$BH$54,BR1='Input Tables'!$BI$54,BR1='Input Tables'!$BJ$54,BR1='Input Tables'!$BK$54, BR1='Input Tables'!$BL$54,'Input Tables'!$BM$54),('Cost Budgets'!$H$14*BR13),0) -> 0 | BS59: =IF(OR(BS1='Input Tables'!$BA$54, BS1='Input Tables'!$BB$54,BS1='Input Tables'!$BC$54, BS1='Input Tables'!$BD$54,BS1='Input Tables'!$BE$54,BS1='Input Tables'!$BF$54,BS1='Input Tables'!$BG$54,BS1='Input Tables'!$BH$54,BS1='Input Tables'!$BI$54,BS1='Input Tables'!$BJ$54,BS1='Input Tables'!$BK$54, BS1='Input Tables'!$BL$54,'Input Tables'!$BM$54),('Cost Budgets'!$H$14*BS13),0) -> 0 | BT59: =IF(OR(BT1='Input Tables'!$BA$54, BT1='Input Tables'!$BB$54,BT1='Input Tables'!$BC$54, BT1='Input Tables'!$BD$54,BT1='Input Tables'!$BE$54,BT1='Input Tables'!$BF$54,BT1='Input Tables'!$BG$54,BT1='Input Tables'!$BH$54,BT1='Input Tables'!$BI$54,BT1='Input Tables'!$BJ$54,BT1='Input Tables'!$BK$54, BT1='Input Tables'!$BL$54,'Input Tables'!$BM$54),('Cost Budgets'!$H$14*BT13),0) -> 0 | BU59: =IF(OR(BU1='Input Tables'!$BA$54, BU1='Input Tables'!$BB$54,BU1='Input Tables'!$BC$54, BU1='Input Tables'!$BD$54,BU1='Input Tables'!$BE$54,BU1='Input Tables'!$BF$54,BU1='Input Tables'!$BG$54,BU1='Input Tables'!$BH$54,BU1='Input Tables'!$BI$54,BU1='Input Tables'!$BJ$54,BU1='Input Tables'!$BK$54, BU1='Input Tables'!$BL$54,'Input Tables'!$BM$54),('Cost Budgets'!$H$14*BU13),0) -> 0
B61: Disease Control | E61: =IF(OR(E1='Input Tables'!$BA$68, E1='Input Tables'!$BB$68,E1='Input Tables'!$BC$68, E1='Input Tables'!$BD$68,E1='Input Tables'!$BE$68,E1='Input Tables'!$BF$68,E1='Input Tables'!$BG$68,E1='Input Tables'!$BH$68,E1='Input Tables'!$BI$68,E1='Input Tables'!$BJ$68,E1='Input Tables'!$BK$68, E1='Input Tables'!$BL$68,'Input Tables'!$BM$68),('Cost Budgets'!$H$15*E13),0) -> 0 | F61: =IF(OR(F1='Input Tables'!$BA$68, F1='Input Tables'!$BB$68,F1='Input Tables'!$BC$68, F1='Input Tables'!$BD$68,F1='Input Tables'!$BE$68,F1='Input Tables'!$BF$68,F1='Input Tables'!$BG$68,F1='Input Tables'!$BH$68,F1='Input Tables'!$BI$68,F1='Input Tables'!$BJ$68,F1='Input Tables'!$BK$68, F1='Input Tables'!$BL$68,'Input Tables'!$BM$68),('Cost Budgets'!$H$15*F13),0) -> 0 | G61: =IF(OR(G1='Input Tables'!$BA$68, G1='Input Tables'!$BB$68,G1='Input Tables'!$BC$68, G1='Input Tables'!$BD$68,G1='Input Tables'!$BE$68,G1='Input Tables'!$BF$68,G1='Input Tables'!$BG$68,G1='Input Tables'!$BH$68,G1='Input Tables'!$BI$68,G1='Input Tables'!$BJ$68,G1='Input Tables'!$BK$68, G1='Input Tables'!$BL$68,'Input Tables'!$BM$68),('Cost Budgets'!$H$15*G13),0) -> 0 | H61: =IF(OR(H1='Input Tables'!$BA$68, H1='Input Tables'!$BB$68,H1='Input Tables'!$BC$68, H1='Input Tables'!$BD$68,H1='Input Tables'!$BE$68,H1='Input Tables'!$BF$68,H1='Input Tables'!$BG$68,H1='Input Tables'!$BH$68,H1='Input Tables'!$BI$68,H1='Input Tables'!$BJ$68,H1='Input Tables'!$BK$68, H1='Input Tables'!$BL$68,'Input Tables'!$BM$68),('Cost Budgets'!$H$15*H13),0) -> 0 | I61: =IF(OR(I1='Input Tables'!$BA$68, I1='Input Tables'!$BB$68,I1='Input Tables'!$BC$68, I1='Input Tables'!$BD$68,I1='Input Tables'!$BE$68,I1='Input Tables'!$BF$68,I1='Input Tables'!$BG$68,I1='Input Tables'!$BH$68,I1='Input Tables'!$BI$68,I1='Input Tables'!$BJ$68,I1='Input Tables'!$BK$68, I1='Input Tables'!$BL$68,'Input Tables'!$BM$68),('Cost Budgets'!$H$15*I13),0) -> 0 | J61: =IF(OR(J1='Input Tables'!$BA$68, J1='Input Tables'!$BB$68,J1='Input Tables'!$BC$68, J1='Input Tables'!$BD$68,J1='Input Tables'!$BE$68,J1='Input Tables'!$BF$68,J1='Input Tables'!$BG$68,J1='Input Tables'!$BH$68,J1='Input Tables'!$BI$68,J1='Input Tables'!$BJ$68,J1='Input Tables'!$BK$68, J1='Input Tables'!$BL$68,'Input Tables'!$BM$68),('Cost Budgets'!$H$15*J13),0) -> 0 | K61: =IF(OR(K1='Input Tables'!$BA$68, K1='Input Tables'!$BB$68,K1='Input Tables'!$BC$68, K1='Input Tables'!$BD$68,K1='Input Tables'!$BE$68,K1='Input Tables'!$BF$68,K1='Input Tables'!$BG$68,K1='Input Tables'!$BH$68,K1='Input Tables'!$BI$68,K1='Input Tables'!$BJ$68,K1='Input Tables'!$BK$68, K1='Input Tables'!$BL$68,'Input Tables'!$BM$68),('Cost Budgets'!$H$15*K13),0) -> 0 | L61: =IF(OR(L1='Input Tables'!$BA$68, L1='Input Tables'!$BB$68,L1='Input Tables'!$BC$68, L1='Input Tables'!$BD$68,L1='Input Tables'!$BE$68,L1='Input Tables'!$BF$68,L1='Input Tables'!$BG$68,L1='Input Tables'!$BH$68,L1='Input Tables'!$BI$68,L1='Input Tables'!$BJ$68,L1='Input Tables'!$BK$68, L1='Input Tables'!$BL$68,'Input Tables'!$BM$68),('Cost Budgets'!$H$15*L13),0) -> 0 | M61: =IF(OR(M1='Input Tables'!$BA$68, M1='Input Tables'!$BB$68,M1='Input Tables'!$BC$68, M1='Input Tables'!$BD$68,M1='Input Tables'!$BE$68,M1='Input Tables'!$BF$68,M1='Input Tables'!$BG$68,M1='Input Tables'!$BH$68,M1='Input Tables'!$BI$68,M1='Input Tables'!$BJ$68,M1='Input Tables'!$BK$68, M1='Input Tables'!$BL$68,'Input Tables'!$BM$68),('Cost Budgets'!$H$15*M13),0) -> 0 | N61: =IF(OR(N1='Input Tables'!$BA$68, N1='Input Tables'!$BB$68,N1='Input Tables'!$BC$68, N1='Input Tables'!$BD$68,N1='Input Tables'!$BE$68,N1='Input Tables'!$BF$68,N1='Input Tables'!$BG$68,N1='Input Tables'!$BH$68,N1='Input Tables'!$BI$68,N1='Input Tables'!$BJ$68,N1='Input Tables'!$BK$68, N1='Input Tables'!$BL$68,'Input Tables'!$BM$68),('Cost Budgets'!$H$15*N13),0) -> 0 | O61: =IF(OR(O1='Input Tables'!$BA$68, O1='Input Tables'!$BB$68,O1='Input Tables'!$BC$68, O1='Input Tables'!$BD$68,O1='Input Tables'!$BE$68,O1='Input Tables'!$BF$68,O1='Input Tables'!$BG$68,O1='Input Tables'!$BH$68,O1='Input Tables'!$BI$68,O1='Input Tables'!$BJ$68,O1='Input Tables'!$BK$68, O1='Input Tables'!$BL$68,'Input Tables'!$BM$68),('Cost Budgets'!$H$15*O13),0) -> 0 | P61: =IF(OR(P1='Input Tables'!$BA$68, P1='Input Tables'!$BB$68,P1='Input Tables'!$BC$68, P1='Input Tables'!$BD$68,P1='Input Tables'!$BE$68,P1='Input Tables'!$BF$68,P1='Input Tables'!$BG$68,P1='Input Tables'!$BH$68,P1='Input Tables'!$BI$68,P1='Input Tables'!$BJ$68,P1='Input Tables'!$BK$68, P1='Input Tables'!$BL$68,'Input Tables'!$BM$68),('Cost Budgets'!$H$15*P13),0) -> 0 | Q61: =IF(OR(Q1='Input Tables'!$BA$68, Q1='Input Tables'!$BB$68,Q1='Input Tables'!$BC$68, Q1='Input Tables'!$BD$68,Q1='Input Tables'!$BE$68,Q1='Input Tables'!$BF$68,Q1='Input Tables'!$BG$68,Q1='Input Tables'!$BH$68,Q1='Input Tables'!$BI$68,Q1='Input Tables'!$BJ$68,Q1='Input Tables'!$BK$68, Q1='Input Tables'!$BL$68,'Input Tables'!$BM$68),('Cost Budgets'!$H$15*Q13),0) -> 0 | R61: =IF(OR(R1='Input Tables'!$BA$68, R1='Input Tables'!$BB$68,R1='Input Tables'!$BC$68, R1='Input Tables'!$BD$68,R1='Input Tables'!$BE$68,R1='Input Tables'!$BF$68,R1='Input Tables'!$BG$68,R1='Input Tables'!$BH$68,R1='Input Tables'!$BI$68,R1='Input Tables'!$BJ$68,R1='Input Tables'!$BK$68, R1='Input Tables'!$BL$68,'Input Tables'!$BM$68),('Cost Budgets'!$H$15*R13),0) -> 0 | S61: =IF(OR(S1='Input Tables'!$BA$68, S1='Input Tables'!$BB$68,S1='Input Tables'!$BC$68, S1='Input Tables'!$BD$68,S1='Input Tables'!$BE$68,S1='Input Tables'!$BF$68,S1='Input Tables'!$BG$68,S1='Input Tables'!$BH$68,S1='Input Tables'!$BI$68,S1='Input Tables'!$BJ$68,S1='Input Tables'!$BK$68, S1='Input Tables'!$BL$68,'Input Tables'!$BM$68),('Cost Budgets'!$H$15*S13),0) -> 0 | T61: =IF(OR(T1='Input Tables'!$BA$68, T1='Input Tables'!$BB$68,T1='Input Tables'!$BC$68, T1='Input Tables'!$BD$68,T1='Input Tables'!$BE$68,T1='Input Tables'!$BF$68,T1='Input Tables'!$BG$68,T1='Input Tables'!$BH$68,T1='Input Tables'!$BI$68,T1='Input Tables'!$BJ$68,T1='Input Tables'!$BK$68, T1='Input Tables'!$BL$68,'Input Tables'!$BM$68),('Cost Budgets'!$H$15*T13),0) -> 0 | U61: =IF(OR(U1='Input Tables'!$BA$68, U1='Input Tables'!$BB$68,U1='Input Tables'!$BC$68, U1='Input Tables'!$BD$68,U1='Input Tables'!$BE$68,U1='Input Tables'!$BF$68,U1='Input Tables'!$BG$68,U1='Input Tables'!$BH$68,U1='Input Tables'!$BI$68,U1='Input Tables'!$BJ$68,U1='Input Tables'!$BK$68, U1='Input Tables'!$BL$68,'Input Tables'!$BM$68),('Cost Budgets'!$H$15*U13),0) -> 0 | V61: =IF(OR(V1='Input Tables'!$BA$68, V1='Input Tables'!$BB$68,V1='Input Tables'!$BC$68, V1='Input Tables'!$BD$68,V1='Input Tables'!$BE$68,V1='Input Tables'!$BF$68,V1='Input Tables'!$BG$68,V1='Input Tables'!$BH$68,V1='Input Tables'!$BI$68,V1='Input Tables'!$BJ$68,V1='Input Tables'!$BK$68, V1='Input Tables'!$BL$68,'Input Tables'!$BM$68),('Cost Budgets'!$H$15*V13),0) -> 0 | W61: =IF(OR(W1='Input Tables'!$BA$68, W1='Input Tables'!$BB$68,W1='Input Tables'!$BC$68, W1='Input Tables'!$BD$68,W1='Input Tables'!$BE$68,W1='Input Tables'!$BF$68,W1='Input Tables'!$BG$68,W1='Input Tables'!$BH$68,W1='Input Tables'!$BI$68,W1='Input Tables'!$BJ$68,W1='Input Tables'!$BK$68, W1='Input Tables'!$BL$68,'Input Tables'!$BM$68),('Cost Budgets'!$H$15*W13),0) -> 0 | X61: =IF(OR(X1='Input Tables'!$BA$68, X1='Input Tables'!$BB$68,X1='Input Tables'!$BC$68, X1='Input Tables'!$BD$68,X1='Input Tables'!$BE$68,X1='Input Tables'!$BF$68,X1='Input Tables'!$BG$68,X1='Input Tables'!$BH$68,X1='Input Tables'!$BI$68,X1='Input Tables'!$BJ$68,X1='Input Tables'!$BK$68, X1='Input Tables'!$BL$68,'Input Tables'!$BM$68),('Cost Budgets'!$H$15*X13),0) -> 0 | Y61: =IF(OR(Y1='Input Tables'!$BA$68, Y1='Input Tables'!$BB$68,Y1='Input Tables'!$BC$68, Y1='Input Tables'!$BD$68,Y1='Input Tables'!$BE$68,Y1='Input Tables'!$BF$68,Y1='Input Tables'!$BG$68,Y1='Input Tables'!$BH$68,Y1='Input Tables'!$BI$68,Y1='Input Tables'!$BJ$68,Y1='Input Tables'!$BK$68, Y1='Input Tables'!$BL$68,'Input Tables'!$BM$68),('Cost Budgets'!$H$15*Y13),0) -> 0 | Z61: =IF(OR(Z1='Input Tables'!$BA$68, Z1='Input Tables'!$BB$68,Z1='Input Tables'!$BC$68, Z1='Input Tables'!$BD$68,Z1='Input Tables'!$BE$68,Z1='Input Tables'!$BF$68,Z1='Input Tables'!$BG$68,Z1='Input Tables'!$BH$68,Z1='Input Tables'!$BI$68,Z1='Input Tables'!$BJ$68,Z1='Input Tables'!$BK$68, Z1='Input Tables'!$BL$68,'Input Tables'!$BM$68),('Cost Budgets'!$H$15*Z13),0) -> 0 | AA61: =IF(OR(AA1='Input Tables'!$BA$68, AA1='Input Tables'!$BB$68,AA1='Input Tables'!$BC$68, AA1='Input Tables'!$BD$68,AA1='Input Tables'!$BE$68,AA1='Input Tables'!$BF$68,AA1='Input Tables'!$BG$68,AA1='Input Tables'!$BH$68,AA1='Input Tables'!$BI$68,AA1='Input Tables'!$BJ$68,AA1='Input Tables'!$BK$68, AA1='Input Tables'!$BL$68,'Input Tables'!$BM$68),('Cost Budgets'!$H$15*AA13),0) -> 0 | AB61: =IF(OR(AB1='Input Tables'!$BA$68, AB1='Input Tables'!$BB$68,AB1='Input Tables'!$BC$68, AB1='Input Tables'!$BD$68,AB1='Input Tables'!$BE$68,AB1='Input Tables'!$BF$68,AB1='Input Tables'!$BG$68,AB1='Input Tables'!$BH$68,AB1='Input Tables'!$BI$68,AB1='Input Tables'!$BJ$68,AB1='Input Tables'!$BK$68, AB1='Input Tables'!$BL$68,'Input Tables'!$BM$68),('Cost Budgets'!$H$15*AB13),0) -> 0 | AC61: =IF(OR(AC1='Input Tables'!$BA$68, AC1='Input Tables'!$BB$68,AC1='Input Tables'!$BC$68, AC1='Input Tables'!$BD$68,AC1='Input Tables'!$BE$68,AC1='Input Tables'!$BF$68,AC1='Input Tables'!$BG$68,AC1='Input Tables'!$BH$68,AC1='Input Tables'!$BI$68,AC1='Input Tables'!$BJ$68,AC1='Input Tables'!$BK$68, AC1='Input Tables'!$BL$68,'Input Tables'!$BM$68),('Cost Budgets'!$H$15*AC13),0) -> 0 | AD61: =IF(OR(AD1='Input Tables'!$BA$68, AD1='Input Tables'!$BB$68,AD1='Input Tables'!$BC$68, AD1='Input Tables'!$BD$68,AD1='Input Tables'!$BE$68,AD1='Input Tables'!$BF$68,AD1='Input Tables'!$BG$68,AD1='Input Tables'!$BH$68,AD1='Input Tables'!$BI$68,AD1='Input Tables'!$BJ$68,AD1='Input Tables'!$BK$68, AD1='Input Tables'!$BL$68,'Input Tables'!$BM$68),('Cost Budgets'!$H$15*AD13),0) -> 0 | AE61: =IF(OR(AE1='Input Tables'!$BA$68, AE1='Input Tables'!$BB$68,AE1='Input Tables'!$BC$68, AE1='Input Tables'!$BD$68,AE1='Input Tables'!$BE$68,AE1='Input Tables'!$BF$68,AE1='Input Tables'!$BG$68,AE1='Input Tables'!$BH$68,AE1='Input Tables'!$BI$68,AE1='Input Tables'!$BJ$68,AE1='Input Tables'!$BK$68, AE1='Input Tables'!$BL$68,'Input Tables'!$BM$68),('Cost Budgets'!$H$15*AE13),0) -> 0 | AF61: =IF(OR(AF1='Input Tables'!$BA$68, AF1='Input Tables'!$BB$68,AF1='Input Tables'!$BC$68, AF1='Input Tables'!$BD$68,AF1='Input Tables'!$BE$68,AF1='Input Tables'!$BF$68,AF1='Input Tables'!$BG$68,AF1='Input Tables'!$BH$68,AF1='Input Tables'!$BI$68,AF1='Input Tables'!$BJ$68,AF1='Input Tables'!$BK$68, AF1='Input Tables'!$BL$68,'Input Tables'!$BM$68),('Cost Budgets'!$H$15*AF13),0) -> 0 | AG61: =IF(OR(AG1='Input Tables'!$BA$68, AG1='Input Tables'!$BB$68,AG1='Input Tables'!$BC$68, AG1='Input Tables'!$BD$68,AG1='Input Tables'!$BE$68,AG1='Input Tables'!$BF$68,AG1='Input Tables'!$BG$68,AG1='Input Tables'!$BH$68,AG1='Input Tables'!$BI$68,AG1='Input Tables'!$BJ$68,AG1='Input Tables'!$BK$68, AG1='Input Tables'!$BL$68,'Input Tables'!$BM$68),('Cost Budgets'!$H$15*AG13),0) -> 0 | AH61: =IF(OR(AH1='Input Tables'!$BA$68, AH1='Input Tables'!$BB$68,AH1='Input Tables'!$BC$68, AH1='Input Tables'!$BD$68,AH1='Input Tables'!$BE$68,AH1='Input Tables'!$BF$68,AH1='Input Tables'!$BG$68,AH1='Input Tables'!$BH$68,AH1='Input Tables'!$BI$68,AH1='Input Tables'!$BJ$68,AH1='Input Tables'!$BK$68, AH1='Input Tables'!$BL$68,'Input Tables'!$BM$68),('Cost Budgets'!$H$15*AH13),0) -> 0 | AI61: =IF(OR(AI1='Input Tables'!$BA$68, AI1='Input Tables'!$BB$68,AI1='Input Tables'!$BC$68, AI1='Input Tables'!$BD$68,AI1='Input Tables'!$BE$68,AI1='Input Tables'!$BF$68,AI1='Input Tables'!$BG$68,AI1='Input Tables'!$BH$68,AI1='Input Tables'!$BI$68,AI1='Input Tables'!$BJ$68,AI1='Input Tables'!$BK$68, AI1='Input Tables'!$BL$68,'Input Tables'!$BM$68),('Cost Budgets'!$H$15*AI13),0) -> 0 | AJ61: =IF(OR(AJ1='Input Tables'!$BA$68, AJ1='Input Tables'!$BB$68,AJ1='Input Tables'!$BC$68, AJ1='Input Tables'!$BD$68,AJ1='Input Tables'!$BE$68,AJ1='Input Tables'!$BF$68,AJ1='Input Tables'!$BG$68,AJ1='Input Tables'!$BH$68,AJ1='Input Tables'!$BI$68,AJ1='Input Tables'!$BJ$68,AJ1='Input Tables'!$BK$68, AJ1='Input Tables'!$BL$68,'Input Tables'!$BM$68),('Cost Budgets'!$H$15*AJ13),0) -> 0 | AK61: =IF(OR(AK1='Input Tables'!$BA$68, AK1='Input Tables'!$BB$68,AK1='Input Tables'!$BC$68, AK1='Input Tables'!$BD$68,AK1='Input Tables'!$BE$68,AK1='Input Tables'!$BF$68,AK1='Input Tables'!$BG$68,AK1='Input Tables'!$BH$68,AK1='Input Tables'!$BI$68,AK1='Input Tables'!$BJ$68,AK1='Input Tables'!$BK$68, AK1='Input Tables'!$BL$68,'Input Tables'!$BM$68),('Cost Budgets'!$H$15*AK13),0) -> 0 | AL61: =IF(OR(AL1='Input Tables'!$BA$68, AL1='Input Tables'!$BB$68,AL1='Input Tables'!$BC$68, AL1='Input Tables'!$BD$68,AL1='Input Tables'!$BE$68,AL1='Input Tables'!$BF$68,AL1='Input Tables'!$BG$68,AL1='Input Tables'!$BH$68,AL1='Input Tables'!$BI$68,AL1='Input Tables'!$BJ$68,AL1='Input Tables'!$BK$68, AL1='Input Tables'!$BL$68,'Input Tables'!$BM$68),('Cost Budgets'!$H$15*AL13),0) -> 0 | AM61: =IF(OR(AM1='Input Tables'!$BA$68, AM1='Input Tables'!$BB$68,AM1='Input Tables'!$BC$68, AM1='Input Tables'!$BD$68,AM1='Input Tables'!$BE$68,AM1='Input Tables'!$BF$68,AM1='Input Tables'!$BG$68,AM1='Input Tables'!$BH$68,AM1='Input Tables'!$BI$68,AM1='Input Tables'!$BJ$68,AM1='Input Tables'!$BK$68, AM1='Input Tables'!$BL$68,'Input Tables'!$BM$68),('Cost Budgets'!$H$15*AM13),0) -> 0 | AN61: =IF(OR(AN1='Input Tables'!$BA$68, AN1='Input Tables'!$BB$68,AN1='Input Tables'!$BC$68, AN1='Input Tables'!$BD$68,AN1='Input Tables'!$BE$68,AN1='Input Tables'!$BF$68,AN1='Input Tables'!$BG$68,AN1='Input Tables'!$BH$68,AN1='Input Tables'!$BI$68,AN1='Input Tables'!$BJ$68,AN1='Input Tables'!$BK$68, AN1='Input Tables'!$BL$68,'Input Tables'!$BM$68),('Cost Budgets'!$H$15*AN13),0) -> 0 | AO61: =IF(OR(AO1='Input Tables'!$BA$68, AO1='Input Tables'!$BB$68,AO1='Input Tables'!$BC$68, AO1='Input Tables'!$BD$68,AO1='Input Tables'!$BE$68,AO1='Input Tables'!$BF$68,AO1='Input Tables'!$BG$68,AO1='Input Tables'!$BH$68,AO1='Input Tables'!$BI$68,AO1='Input Tables'!$BJ$68,AO1='Input Tables'!$BK$68, AO1='Input Tables'!$BL$68,'Input Tables'!$BM$68),('Cost Budgets'!$H$15*AO13),0) -> 0 | AP61: =IF(OR(AP1='Input Tables'!$BA$68, AP1='Input Tables'!$BB$68,AP1='Input Tables'!$BC$68, AP1='Input Tables'!$BD$68,AP1='Input Tables'!$BE$68,AP1='Input Tables'!$BF$68,AP1='Input Tables'!$BG$68,AP1='Input Tables'!$BH$68,AP1='Input Tables'!$BI$68,AP1='Input Tables'!$BJ$68,AP1='Input Tables'!$BK$68, AP1='Input Tables'!$BL$68,'Input Tables'!$BM$68),('Cost Budgets'!$H$15*AP13),0) -> 0 | AQ61: =IF(OR(AQ1='Input Tables'!$BA$68, AQ1='Input Tables'!$BB$68,AQ1='Input Tables'!$BC$68, AQ1='Input Tables'!$BD$68,AQ1='Input Tables'!$BE$68,AQ1='Input Tables'!$BF$68,AQ1='Input Tables'!$BG$68,AQ1='Input Tables'!$BH$68,AQ1='Input Tables'!$BI$68,AQ1='Input Tables'!$BJ$68,AQ1='Input Tables'!$BK$68, AQ1='Input Tables'!$BL$68,'Input Tables'!$BM$68),('Cost Budgets'!$H$15*AQ13),0) -> 0 | AR61: =IF(OR(AR1='Input Tables'!$BA$68, AR1='Input Tables'!$BB$68,AR1='Input Tables'!$BC$68, AR1='Input Tables'!$BD$68,AR1='Input Tables'!$BE$68,AR1='Input Tables'!$BF$68,AR1='Input Tables'!$BG$68,AR1='Input Tables'!$BH$68,AR1='Input Tables'!$BI$68,AR1='Input Tables'!$BJ$68,AR1='Input Tables'!$BK$68, AR1='Input Tables'!$BL$68,'Input Tables'!$BM$68),('Cost Budgets'!$H$15*AR13),0) -> 0 | AS61: =IF(OR(AS1='Input Tables'!$BA$68, AS1='Input Tables'!$BB$68,AS1='Input Tables'!$BC$68, AS1='Input Tables'!$BD$68,AS1='Input Tables'!$BE$68,AS1='Input Tables'!$BF$68,AS1='Input Tables'!$BG$68,AS1='Input Tables'!$BH$68,AS1='Input Tables'!$BI$68,AS1='Input Tables'!$BJ$68,AS1='Input Tables'!$BK$68, AS1='Input Tables'!$BL$68,'Input Tables'!$BM$68),('Cost Budgets'!$H$15*AS13),0) -> 0 | AT61: =IF(OR(AT1='Input Tables'!$BA$68, AT1='Input Tables'!$BB$68,AT1='Input Tables'!$BC$68, AT1='Input Tables'!$BD$68,AT1='Input Tables'!$BE$68,AT1='Input Tables'!$BF$68,AT1='Input Tables'!$BG$68,AT1='Input Tables'!$BH$68,AT1='Input Tables'!$BI$68,AT1='Input Tables'!$BJ$68,AT1='Input Tables'!$BK$68, AT1='Input Tables'!$BL$68,'Input Tables'!$BM$68),('Cost Budgets'!$H$15*AT13),0) -> 0 | AU61: =IF(OR(AU1='Input Tables'!$BA$68, AU1='Input Tables'!$BB$68,AU1='Input Tables'!$BC$68, AU1='Input Tables'!$BD$68,AU1='Input Tables'!$BE$68,AU1='Input Tables'!$BF$68,AU1='Input Tables'!$BG$68,AU1='Input Tables'!$BH$68,AU1='Input Tables'!$BI$68,AU1='Input Tables'!$BJ$68,AU1='Input Tables'!$BK$68, AU1='Input Tables'!$BL$68,'Input Tables'!$BM$68),('Cost Budgets'!$H$15*AU13),0) -> 0 | AV61: =IF(OR(AV1='Input Tables'!$BA$68, AV1='Input Tables'!$BB$68,AV1='Input Tables'!$BC$68, AV1='Input Tables'!$BD$68,AV1='Input Tables'!$BE$68,AV1='Input Tables'!$BF$68,AV1='Input Tables'!$BG$68,AV1='Input Tables'!$BH$68,AV1='Input Tables'!$BI$68,AV1='Input Tables'!$BJ$68,AV1='Input Tables'!$BK$68, AV1='Input Tables'!$BL$68,'Input Tables'!$BM$68),('Cost Budgets'!$H$15*AV13),0) -> 0 | AW61: =IF(OR(AW1='Input Tables'!$BA$68, AW1='Input Tables'!$BB$68,AW1='Input Tables'!$BC$68, AW1='Input Tables'!$BD$68,AW1='Input Tables'!$BE$68,AW1='Input Tables'!$BF$68,AW1='Input Tables'!$BG$68,AW1='Input Tables'!$BH$68,AW1='Input Tables'!$BI$68,AW1='Input Tables'!$BJ$68,AW1='Input Tables'!$BK$68, AW1='Input Tables'!$BL$68,'Input Tables'!$BM$68),('Cost Budgets'!$H$15*AW13),0) -> 0 | AX61: =IF(OR(AX1='Input Tables'!$BA$68, AX1='Input Tables'!$BB$68,AX1='Input Tables'!$BC$68, AX1='Input Tables'!$BD$68,AX1='Input Tables'!$BE$68,AX1='Input Tables'!$BF$68,AX1='Input Tables'!$BG$68,AX1='Input Tables'!$BH$68,AX1='Input Tables'!$BI$68,AX1='Input Tables'!$BJ$68,AX1='Input Tables'!$BK$68, AX1='Input Tables'!$BL$68,'Input Tables'!$BM$68),('Cost Budgets'!$H$15*AX13),0) -> 0 | AY61: =IF(OR(AY1='Input Tables'!$BA$68, AY1='Input Tables'!$BB$68,AY1='Input Tables'!$BC$68, AY1='Input Tables'!$BD$68,AY1='Input Tables'!$BE$68,AY1='Input Tables'!$BF$68,AY1='Input Tables'!$BG$68,AY1='Input Tables'!$BH$68,AY1='Input Tables'!$BI$68,AY1='Input Tables'!$BJ$68,AY1='Input Tables'!$BK$68, AY1='Input Tables'!$BL$68,'Input Tables'!$BM$68),('Cost Budgets'!$H$15*AY13),0) -> 0 | AZ61: =IF(OR(AZ1='Input Tables'!$BA$68, AZ1='Input Tables'!$BB$68,AZ1='Input Tables'!$BC$68, AZ1='Input Tables'!$BD$68,AZ1='Input Tables'!$BE$68,AZ1='Input Tables'!$BF$68,AZ1='Input Tables'!$BG$68,AZ1='Input Tables'!$BH$68,AZ1='Input Tables'!$BI$68,AZ1='Input Tables'!$BJ$68,AZ1='Input Tables'!$BK$68, AZ1='Input Tables'!$BL$68,'Input Tables'!$BM$68),('Cost Budgets'!$H$15*AZ13),0) -> 0 | BA61: =IF(OR(BA1='Input Tables'!$BA$68, BA1='Input Tables'!$BB$68,BA1='Input Tables'!$BC$68, BA1='Input Tables'!$BD$68,BA1='Input Tables'!$BE$68,BA1='Input Tables'!$BF$68,BA1='Input Tables'!$BG$68,BA1='Input Tables'!$BH$68,BA1='Input Tables'!$BI$68,BA1='Input Tables'!$BJ$68,BA1='Input Tables'!$BK$68, BA1='Input Tables'!$BL$68,'Input Tables'!$BM$68),('Cost Budgets'!$H$15*BA13),0) -> 0 | BB61: =IF(OR(BB1='Input Tables'!$BA$68, BB1='Input Tables'!$BB$68,BB1='Input Tables'!$BC$68, BB1='Input Tables'!$BD$68,BB1='Input Tables'!$BE$68,BB1='Input Tables'!$BF$68,BB1='Input Tables'!$BG$68,BB1='Input Tables'!$BH$68,BB1='Input Tables'!$BI$68,BB1='Input Tables'!$BJ$68,BB1='Input Tables'!$BK$68, BB1='Input Tables'!$BL$68,'Input Tables'!$BM$68),('Cost Budgets'!$H$15*BB13),0) -> 0 | BC61: =IF(OR(BC1='Input Tables'!$BA$68, BC1='Input Tables'!$BB$68,BC1='Input Tables'!$BC$68, BC1='Input Tables'!$BD$68,BC1='Input Tables'!$BE$68,BC1='Input Tables'!$BF$68,BC1='Input Tables'!$BG$68,BC1='Input Tables'!$BH$68,BC1='Input Tables'!$BI$68,BC1='Input Tables'!$BJ$68,BC1='Input Tables'!$BK$68, BC1='Input Tables'!$BL$68,'Input Tables'!$BM$68),('Cost Budgets'!$H$15*BC13),0) -> 0 | BD61: =IF(OR(BD1='Input Tables'!$BA$68, BD1='Input Tables'!$BB$68,BD1='Input Tables'!$BC$68, BD1='Input Tables'!$BD$68,BD1='Input Tables'!$BE$68,BD1='Input Tables'!$BF$68,BD1='Input Tables'!$BG$68,BD1='Input Tables'!$BH$68,BD1='Input Tables'!$BI$68,BD1='Input Tables'!$BJ$68,BD1='Input Tables'!$BK$68, BD1='Input Tables'!$BL$68,'Input Tables'!$BM$68),('Cost Budgets'!$H$15*BD13),0) -> 0 | BE61: =IF(OR(BE1='Input Tables'!$BA$68, BE1='Input Tables'!$BB$68,BE1='Input Tables'!$BC$68, BE1='Input Tables'!$BD$68,BE1='Input Tables'!$BE$68,BE1='Input Tables'!$BF$68,BE1='Input Tables'!$BG$68,BE1='Input Tables'!$BH$68,BE1='Input Tables'!$BI$68,BE1='Input Tables'!$BJ$68,BE1='Input Tables'!$BK$68, BE1='Input Tables'!$BL$68,'Input Tables'!$BM$68),('Cost Budgets'!$H$15*BE13),0) -> 0 | BF61: =IF(OR(BF1='Input Tables'!$BA$68, BF1='Input Tables'!$BB$68,BF1='Input Tables'!$BC$68, BF1='Input Tables'!$BD$68,BF1='Input Tables'!$BE$68,BF1='Input Tables'!$BF$68,BF1='Input Tables'!$BG$68,BF1='Input Tables'!$BH$68,BF1='Input Tables'!$BI$68,BF1='Input Tables'!$BJ$68,BF1='Input Tables'!$BK$68, BF1='Input Tables'!$BL$68,'Input Tables'!$BM$68),('Cost Budgets'!$H$15*BF13),0) -> 0 | BG61: =IF(OR(BG1='Input Tables'!$BA$68, BG1='Input Tables'!$BB$68,BG1='Input Tables'!$BC$68, BG1='Input Tables'!$BD$68,BG1='Input Tables'!$BE$68,BG1='Input Tables'!$BF$68,BG1='Input Tables'!$BG$68,BG1='Input Tables'!$BH$68,BG1='Input Tables'!$BI$68,BG1='Input Tables'!$BJ$68,BG1='Input Tables'!$BK$68, BG1='Input Tables'!$BL$68,'Input Tables'!$BM$68),('Cost Budgets'!$H$15*BG13),0) -> 0 | BH61: =IF(OR(BH1='Input Tables'!$BA$68, BH1='Input Tables'!$BB$68,BH1='Input Tables'!$BC$68, BH1='Input Tables'!$BD$68,BH1='Input Tables'!$BE$68,BH1='Input Tables'!$BF$68,BH1='Input Tables'!$BG$68,BH1='Input Tables'!$BH$68,BH1='Input Tables'!$BI$68,BH1='Input Tables'!$BJ$68,BH1='Input Tables'!$BK$68, BH1='Input Tables'!$BL$68,'Input Tables'!$BM$68),('Cost Budgets'!$H$15*BH13),0) -> 0 | BI61: =IF(OR(BI1='Input Tables'!$BA$68, BI1='Input Tables'!$BB$68,BI1='Input Tables'!$BC$68, BI1='Input Tables'!$BD$68,BI1='Input Tables'!$BE$68,BI1='Input Tables'!$BF$68,BI1='Input Tables'!$BG$68,BI1='Input Tables'!$BH$68,BI1='Input Tables'!$BI$68,BI1='Input Tables'!$BJ$68,BI1='Input Tables'!$BK$68, BI1='Input Tables'!$BL$68,'Input Tables'!$BM$68),('Cost Budgets'!$H$15*BI13),0) -> 0 | BJ61: =IF(OR(BJ1='Input Tables'!$BA$68, BJ1='Input Tables'!$BB$68,BJ1='Input Tables'!$BC$68, BJ1='Input Tables'!$BD$68,BJ1='Input Tables'!$BE$68,BJ1='Input Tables'!$BF$68,BJ1='Input Tables'!$BG$68,BJ1='Input Tables'!$BH$68,BJ1='Input Tables'!$BI$68,BJ1='Input Tables'!$BJ$68,BJ1='Input Tables'!$BK$68, BJ1='Input Tables'!$BL$68,'Input Tables'!$BM$68),('Cost Budgets'!$H$15*BJ13),0) -> 0 | BK61: =IF(OR(BK1='Input Tables'!$BA$68, BK1='Input Tables'!$BB$68,BK1='Input Tables'!$BC$68, BK1='Input Tables'!$BD$68,BK1='Input Tables'!$BE$68,BK1='Input Tables'!$BF$68,BK1='Input Tables'!$BG$68,BK1='Input Tables'!$BH$68,BK1='Input Tables'!$BI$68,BK1='Input Tables'!$BJ$68,BK1='Input Tables'!$BK$68, BK1='Input Tables'!$BL$68,'Input Tables'!$BM$68),('Cost Budgets'!$H$15*BK13),0) -> 0 | BL61: =IF(OR(BL1='Input Tables'!$BA$68, BL1='Input Tables'!$BB$68,BL1='Input Tables'!$BC$68, BL1='Input Tables'!$BD$68,BL1='Input Tables'!$BE$68,BL1='Input Tables'!$BF$68,BL1='Input Tables'!$BG$68,BL1='Input Tables'!$BH$68,BL1='Input Tables'!$BI$68,BL1='Input Tables'!$BJ$68,BL1='Input Tables'!$BK$68, BL1='Input Tables'!$BL$68,'Input Tables'!$BM$68),('Cost Budgets'!$H$15*BL13),0) -> 0 | BM61: =IF(OR(BM1='Input Tables'!$BA$68, BM1='Input Tables'!$BB$68,BM1='Input Tables'!$BC$68, BM1='Input Tables'!$BD$68,BM1='Input Tables'!$BE$68,BM1='Input Tables'!$BF$68,BM1='Input Tables'!$BG$68,BM1='Input Tables'!$BH$68,BM1='Input Tables'!$BI$68,BM1='Input Tables'!$BJ$68,BM1='Input Tables'!$BK$68, BM1='Input Tables'!$BL$68,'Input Tables'!$BM$68),('Cost Budgets'!$H$15*BM13),0) -> 0 | BN61: =IF(OR(BN1='Input Tables'!$BA$68, BN1='Input Tables'!$BB$68,BN1='Input Tables'!$BC$68, BN1='Input Tables'!$BD$68,BN1='Input Tables'!$BE$68,BN1='Input Tables'!$BF$68,BN1='Input Tables'!$BG$68,BN1='Input Tables'!$BH$68,BN1='Input Tables'!$BI$68,BN1='Input Tables'!$BJ$68,BN1='Input Tables'!$BK$68, BN1='Input Tables'!$BL$68,'Input Tables'!$BM$68),('Cost Budgets'!$H$15*BN13),0) -> 0 | BO61: =IF(OR(BO1='Input Tables'!$BA$68, BO1='Input Tables'!$BB$68,BO1='Input Tables'!$BC$68, BO1='Input Tables'!$BD$68,BO1='Input Tables'!$BE$68,BO1='Input Tables'!$BF$68,BO1='Input Tables'!$BG$68,BO1='Input Tables'!$BH$68,BO1='Input Tables'!$BI$68,BO1='Input Tables'!$BJ$68,BO1='Input Tables'!$BK$68, BO1='Input Tables'!$BL$68,'Input Tables'!$BM$68),('Cost Budgets'!$H$15*BO13),0) -> 0 | BP61: =IF(OR(BP1='Input Tables'!$BA$68, BP1='Input Tables'!$BB$68,BP1='Input Tables'!$BC$68, BP1='Input Tables'!$BD$68,BP1='Input Tables'!$BE$68,BP1='Input Tables'!$BF$68,BP1='Input Tables'!$BG$68,BP1='Input Tables'!$BH$68,BP1='Input Tables'!$BI$68,BP1='Input Tables'!$BJ$68,BP1='Input Tables'!$BK$68, BP1='Input Tables'!$BL$68,'Input Tables'!$BM$68),('Cost Budgets'!$H$15*BP13),0) -> 0 | BQ61: =IF(OR(BQ1='Input Tables'!$BA$68, BQ1='Input Tables'!$BB$68,BQ1='Input Tables'!$BC$68, BQ1='Input Tables'!$BD$68,BQ1='Input Tables'!$BE$68,BQ1='Input Tables'!$BF$68,BQ1='Input Tables'!$BG$68,BQ1='Input Tables'!$BH$68,BQ1='Input Tables'!$BI$68,BQ1='Input Tables'!$BJ$68,BQ1='Input Tables'!$BK$68, BQ1='Input Tables'!$BL$68,'Input Tables'!$BM$68),('Cost Budgets'!$H$15*BQ13),0) -> 0 | BR61: =IF(OR(BR1='Input Tables'!$BA$68, BR1='Input Tables'!$BB$68,BR1='Input Tables'!$BC$68, BR1='Input Tables'!$BD$68,BR1='Input Tables'!$BE$68,BR1='Input Tables'!$BF$68,BR1='Input Tables'!$BG$68,BR1='Input Tables'!$BH$68,BR1='Input Tables'!$BI$68,BR1='Input Tables'!$BJ$68,BR1='Input Tables'!$BK$68, BR1='Input Tables'!$BL$68,'Input Tables'!$BM$68),('Cost Budgets'!$H$15*BR13),0) -> 0 | BS61: =IF(OR(BS1='Input Tables'!$BA$68, BS1='Input Tables'!$BB$68,BS1='Input Tables'!$BC$68, BS1='Input Tables'!$BD$68,BS1='Input Tables'!$BE$68,BS1='Input Tables'!$BF$68,BS1='Input Tables'!$BG$68,BS1='Input Tables'!$BH$68,BS1='Input Tables'!$BI$68,BS1='Input Tables'!$BJ$68,BS1='Input Tables'!$BK$68, BS1='Input Tables'!$BL$68,'Input Tables'!$BM$68),('Cost Budgets'!$H$15*BS13),0) -> 0 | BT61: =IF(OR(BT1='Input Tables'!$BA$68, BT1='Input Tables'!$BB$68,BT1='Input Tables'!$BC$68, BT1='Input Tables'!$BD$68,BT1='Input Tables'!$BE$68,BT1='Input Tables'!$BF$68,BT1='Input Tables'!$BG$68,BT1='Input Tables'!$BH$68,BT1='Input Tables'!$BI$68,BT1='Input Tables'!$BJ$68,BT1='Input Tables'!$BK$68, BT1='Input Tables'!$BL$68,'Input Tables'!$BM$68),('Cost Budgets'!$H$15*BT13),0) -> 0 | BU61: =IF(OR(BU1='Input Tables'!$BA$68, BU1='Input Tables'!$BB$68,BU1='Input Tables'!$BC$68, BU1='Input Tables'!$BD$68,BU1='Input Tables'!$BE$68,BU1='Input Tables'!$BF$68,BU1='Input Tables'!$BG$68,BU1='Input Tables'!$BH$68,BU1='Input Tables'!$BI$68,BU1='Input Tables'!$BJ$68,BU1='Input Tables'!$BK$68, BU1='Input Tables'!$BL$68,'Input Tables'!$BM$68),('Cost Budgets'!$H$15*BU13),0) -> 0
B63: Deer Control | E63: =IF(OR(E1='Input Tables'!$BA$76, E1='Input Tables'!$BB$76,E1='Input Tables'!$BC$76, E1='Input Tables'!$BD$76,E1='Input Tables'!$BE$76,E1='Input Tables'!$BF$76,E1='Input Tables'!$BG$76,E1='Input Tables'!$BH$76,E1='Input Tables'!$BI$76,E1='Input Tables'!$BJ$76,E1='Input Tables'!$BK$76, E1='Input Tables'!$BL$76,E1='Input Tables'!$BM$76),('Cost Budgets'!$H$16*E13),0) -> 0 | F63: =IF(OR(F1='Input Tables'!$BA$76, F1='Input Tables'!$BB$76,F1='Input Tables'!$BC$76, F1='Input Tables'!$BD$76,F1='Input Tables'!$BE$76,F1='Input Tables'!$BF$76,F1='Input Tables'!$BG$76,F1='Input Tables'!$BH$76,F1='Input Tables'!$BI$76,F1='Input Tables'!$BJ$76,F1='Input Tables'!$BK$76, F1='Input Tables'!$BL$76,F1='Input Tables'!$BM$76),('Cost Budgets'!$H$16*F13),0) -> 0 | G63: =IF(OR(G1='Input Tables'!$BA$76, G1='Input Tables'!$BB$76,G1='Input Tables'!$BC$76, G1='Input Tables'!$BD$76,G1='Input Tables'!$BE$76,G1='Input Tables'!$BF$76,G1='Input Tables'!$BG$76,G1='Input Tables'!$BH$76,G1='Input Tables'!$BI$76,G1='Input Tables'!$BJ$76,G1='Input Tables'!$BK$76, G1='Input Tables'!$BL$76,G1='Input Tables'!$BM$76),('Cost Budgets'!$H$16*G13),0) -> 0 | H63: =IF(OR(H1='Input Tables'!$BA$76, H1='Input Tables'!$BB$76,H1='Input Tables'!$BC$76, H1='Input Tables'!$BD$76,H1='Input Tables'!$BE$76,H1='Input Tables'!$BF$76,H1='Input Tables'!$BG$76,H1='Input Tables'!$BH$76,H1='Input Tables'!$BI$76,H1='Input Tables'!$BJ$76,H1='Input Tables'!$BK$76, H1='Input Tables'!$BL$76,H1='Input Tables'!$BM$76),('Cost Budgets'!$H$16*H13),0) -> 0 | I63: =IF(OR(I1='Input Tables'!$BA$76, I1='Input Tables'!$BB$76,I1='Input Tables'!$BC$76, I1='Input Tables'!$BD$76,I1='Input Tables'!$BE$76,I1='Input Tables'!$BF$76,I1='Input Tables'!$BG$76,I1='Input Tables'!$BH$76,I1='Input Tables'!$BI$76,I1='Input Tables'!$BJ$76,I1='Input Tables'!$BK$76, I1='Input Tables'!$BL$76,I1='Input Tables'!$BM$76),('Cost Budgets'!$H$16*I13),0) -> 0 | J63: =IF(OR(J1='Input Tables'!$BA$76, J1='Input Tables'!$BB$76,J1='Input Tables'!$BC$76, J1='Input Tables'!$BD$76,J1='Input Tables'!$BE$76,J1='Input Tables'!$BF$76,J1='Input Tables'!$BG$76,J1='Input Tables'!$BH$76,J1='Input Tables'!$BI$76,J1='Input Tables'!$BJ$76,J1='Input Tables'!$BK$76, J1='Input Tables'!$BL$76,J1='Input Tables'!$BM$76),('Cost Budgets'!$H$16*J13),0) -> 0 | K63: =IF(OR(K1='Input Tables'!$BA$76, K1='Input Tables'!$BB$76,K1='Input Tables'!$BC$76, K1='Input Tables'!$BD$76,K1='Input Tables'!$BE$76,K1='Input Tables'!$BF$76,K1='Input Tables'!$BG$76,K1='Input Tables'!$BH$76,K1='Input Tables'!$BI$76,K1='Input Tables'!$BJ$76,K1='Input Tables'!$BK$76, K1='Input Tables'!$BL$76,K1='Input Tables'!$BM$76),('Cost Budgets'!$H$16*K13),0) -> 0 | L63: =IF(OR(L1='Input Tables'!$BA$76, L1='Input Tables'!$BB$76,L1='Input Tables'!$BC$76, L1='Input Tables'!$BD$76,L1='Input Tables'!$BE$76,L1='Input Tables'!$BF$76,L1='Input Tables'!$BG$76,L1='Input Tables'!$BH$76,L1='Input Tables'!$BI$76,L1='Input Tables'!$BJ$76,L1='Input Tables'!$BK$76, L1='Input Tables'!$BL$76,L1='Input Tables'!$BM$76),('Cost Budgets'!$H$16*L13),0) -> 0 | M63: =IF(OR(M1='Input Tables'!$BA$76, M1='Input Tables'!$BB$76,M1='Input Tables'!$BC$76, M1='Input Tables'!$BD$76,M1='Input Tables'!$BE$76,M1='Input Tables'!$BF$76,M1='Input Tables'!$BG$76,M1='Input Tables'!$BH$76,M1='Input Tables'!$BI$76,M1='Input Tables'!$BJ$76,M1='Input Tables'!$BK$76, M1='Input Tables'!$BL$76,M1='Input Tables'!$BM$76),('Cost Budgets'!$H$16*M13),0) -> 0 | N63: =IF(OR(N1='Input Tables'!$BA$76, N1='Input Tables'!$BB$76,N1='Input Tables'!$BC$76, N1='Input Tables'!$BD$76,N1='Input Tables'!$BE$76,N1='Input Tables'!$BF$76,N1='Input Tables'!$BG$76,N1='Input Tables'!$BH$76,N1='Input Tables'!$BI$76,N1='Input Tables'!$BJ$76,N1='Input Tables'!$BK$76, N1='Input Tables'!$BL$76,N1='Input Tables'!$BM$76),('Cost Budgets'!$H$16*N13),0) -> 0 | O63: =IF(OR(O1='Input Tables'!$BA$76, O1='Input Tables'!$BB$76,O1='Input Tables'!$BC$76, O1='Input Tables'!$BD$76,O1='Input Tables'!$BE$76,O1='Input Tables'!$BF$76,O1='Input Tables'!$BG$76,O1='Input Tables'!$BH$76,O1='Input Tables'!$BI$76,O1='Input Tables'!$BJ$76,O1='Input Tables'!$BK$76, O1='Input Tables'!$BL$76,O1='Input Tables'!$BM$76),('Cost Budgets'!$H$16*O13),0) -> 0 | P63: =IF(OR(P1='Input Tables'!$BA$76, P1='Input Tables'!$BB$76,P1='Input Tables'!$BC$76, P1='Input Tables'!$BD$76,P1='Input Tables'!$BE$76,P1='Input Tables'!$BF$76,P1='Input Tables'!$BG$76,P1='Input Tables'!$BH$76,P1='Input Tables'!$BI$76,P1='Input Tables'!$BJ$76,P1='Input Tables'!$BK$76, P1='Input Tables'!$BL$76,P1='Input Tables'!$BM$76),('Cost Budgets'!$H$16*P13),0) -> 0 | Q63: =IF(OR(Q1='Input Tables'!$BA$76, Q1='Input Tables'!$BB$76,Q1='Input Tables'!$BC$76, Q1='Input Tables'!$BD$76,Q1='Input Tables'!$BE$76,Q1='Input Tables'!$BF$76,Q1='Input Tables'!$BG$76,Q1='Input Tables'!$BH$76,Q1='Input Tables'!$BI$76,Q1='Input Tables'!$BJ$76,Q1='Input Tables'!$BK$76, Q1='Input Tables'!$BL$76,Q1='Input Tables'!$BM$76),('Cost Budgets'!$H$16*Q13),0) -> 0 | R63: =IF(OR(R1='Input Tables'!$BA$76, R1='Input Tables'!$BB$76,R1='Input Tables'!$BC$76, R1='Input Tables'!$BD$76,R1='Input Tables'!$BE$76,R1='Input Tables'!$BF$76,R1='Input Tables'!$BG$76,R1='Input Tables'!$BH$76,R1='Input Tables'!$BI$76,R1='Input Tables'!$BJ$76,R1='Input Tables'!$BK$76, R1='Input Tables'!$BL$76,R1='Input Tables'!$BM$76),('Cost Budgets'!$H$16*R13),0) -> 0 | S63: =IF(OR(S1='Input Tables'!$BA$76, S1='Input Tables'!$BB$76,S1='Input Tables'!$BC$76, S1='Input Tables'!$BD$76,S1='Input Tables'!$BE$76,S1='Input Tables'!$BF$76,S1='Input Tables'!$BG$76,S1='Input Tables'!$BH$76,S1='Input Tables'!$BI$76,S1='Input Tables'!$BJ$76,S1='Input Tables'!$BK$76, S1='Input Tables'!$BL$76,S1='Input Tables'!$BM$76),('Cost Budgets'!$H$16*S13),0) -> 0 | T63: =IF(OR(T1='Input Tables'!$BA$76, T1='Input Tables'!$BB$76,T1='Input Tables'!$BC$76, T1='Input Tables'!$BD$76,T1='Input Tables'!$BE$76,T1='Input Tables'!$BF$76,T1='Input Tables'!$BG$76,T1='Input Tables'!$BH$76,T1='Input Tables'!$BI$76,T1='Input Tables'!$BJ$76,T1='Input Tables'!$BK$76, T1='Input Tables'!$BL$76,T1='Input Tables'!$BM$76),('Cost Budgets'!$H$16*T13),0) -> 0 | U63: =IF(OR(U1='Input Tables'!$BA$76, U1='Input Tables'!$BB$76,U1='Input Tables'!$BC$76, U1='Input Tables'!$BD$76,U1='Input Tables'!$BE$76,U1='Input Tables'!$BF$76,U1='Input Tables'!$BG$76,U1='Input Tables'!$BH$76,U1='Input Tables'!$BI$76,U1='Input Tables'!$BJ$76,U1='Input Tables'!$BK$76, U1='Input Tables'!$BL$76,U1='Input Tables'!$BM$76),('Cost Budgets'!$H$16*U13),0) -> 0 | V63: =IF(OR(V1='Input Tables'!$BA$76, V1='Input Tables'!$BB$76,V1='Input Tables'!$BC$76, V1='Input Tables'!$BD$76,V1='Input Tables'!$BE$76,V1='Input Tables'!$BF$76,V1='Input Tables'!$BG$76,V1='Input Tables'!$BH$76,V1='Input Tables'!$BI$76,V1='Input Tables'!$BJ$76,V1='Input Tables'!$BK$76, V1='Input Tables'!$BL$76,V1='Input Tables'!$BM$76),('Cost Budgets'!$H$16*V13),0) -> 0 | W63: =IF(OR(W1='Input Tables'!$BA$76, W1='Input Tables'!$BB$76,W1='Input Tables'!$BC$76, W1='Input Tables'!$BD$76,W1='Input Tables'!$BE$76,W1='Input Tables'!$BF$76,W1='Input Tables'!$BG$76,W1='Input Tables'!$BH$76,W1='Input Tables'!$BI$76,W1='Input Tables'!$BJ$76,W1='Input Tables'!$BK$76, W1='Input Tables'!$BL$76,W1='Input Tables'!$BM$76),('Cost Budgets'!$H$16*W13),0) -> 0 | X63: =IF(OR(X1='Input Tables'!$BA$76, X1='Input Tables'!$BB$76,X1='Input Tables'!$BC$76, X1='Input Tables'!$BD$76,X1='Input Tables'!$BE$76,X1='Input Tables'!$BF$76,X1='Input Tables'!$BG$76,X1='Input Tables'!$BH$76,X1='Input Tables'!$BI$76,X1='Input Tables'!$BJ$76,X1='Input Tables'!$BK$76, X1='Input Tables'!$BL$76,X1='Input Tables'!$BM$76),('Cost Budgets'!$H$16*X13),0) -> 0 | Y63: =IF(OR(Y1='Input Tables'!$BA$76, Y1='Input Tables'!$BB$76,Y1='Input Tables'!$BC$76, Y1='Input Tables'!$BD$76,Y1='Input Tables'!$BE$76,Y1='Input Tables'!$BF$76,Y1='Input Tables'!$BG$76,Y1='Input Tables'!$BH$76,Y1='Input Tables'!$BI$76,Y1='Input Tables'!$BJ$76,Y1='Input Tables'!$BK$76, Y1='Input Tables'!$BL$76,Y1='Input Tables'!$BM$76),('Cost Budgets'!$H$16*Y13),0) -> 0 | Z63: =IF(OR(Z1='Input Tables'!$BA$76, Z1='Input Tables'!$BB$76,Z1='Input Tables'!$BC$76, Z1='Input Tables'!$BD$76,Z1='Input Tables'!$BE$76,Z1='Input Tables'!$BF$76,Z1='Input Tables'!$BG$76,Z1='Input Tables'!$BH$76,Z1='Input Tables'!$BI$76,Z1='Input Tables'!$BJ$76,Z1='Input Tables'!$BK$76, Z1='Input Tables'!$BL$76,Z1='Input Tables'!$BM$76),('Cost Budgets'!$H$16*Z13),0) -> 0 | AA63: =IF(OR(AA1='Input Tables'!$BA$76, AA1='Input Tables'!$BB$76,AA1='Input Tables'!$BC$76, AA1='Input Tables'!$BD$76,AA1='Input Tables'!$BE$76,AA1='Input Tables'!$BF$76,AA1='Input Tables'!$BG$76,AA1='Input Tables'!$BH$76,AA1='Input Tables'!$BI$76,AA1='Input Tables'!$BJ$76,AA1='Input Tables'!$BK$76, AA1='Input Tables'!$BL$76,AA1='Input Tables'!$BM$76),('Cost Budgets'!$H$16*AA13),0) -> 0 | AB63: =IF(OR(AB1='Input Tables'!$BA$76, AB1='Input Tables'!$BB$76,AB1='Input Tables'!$BC$76, AB1='Input Tables'!$BD$76,AB1='Input Tables'!$BE$76,AB1='Input Tables'!$BF$76,AB1='Input Tables'!$BG$76,AB1='Input Tables'!$BH$76,AB1='Input Tables'!$BI$76,AB1='Input Tables'!$BJ$76,AB1='Input Tables'!$BK$76, AB1='Input Tables'!$BL$76,AB1='Input Tables'!$BM$76),('Cost Budgets'!$H$16*AB13),0) -> 0 | AC63: =IF(OR(AC1='Input Tables'!$BA$76, AC1='Input Tables'!$BB$76,AC1='Input Tables'!$BC$76, AC1='Input Tables'!$BD$76,AC1='Input Tables'!$BE$76,AC1='Input Tables'!$BF$76,AC1='Input Tables'!$BG$76,AC1='Input Tables'!$BH$76,AC1='Input Tables'!$BI$76,AC1='Input Tables'!$BJ$76,AC1='Input Tables'!$BK$76, AC1='Input Tables'!$BL$76,AC1='Input Tables'!$BM$76),('Cost Budgets'!$H$16*AC13),0) -> 0 | AD63: =IF(OR(AD1='Input Tables'!$BA$76, AD1='Input Tables'!$BB$76,AD1='Input Tables'!$BC$76, AD1='Input Tables'!$BD$76,AD1='Input Tables'!$BE$76,AD1='Input Tables'!$BF$76,AD1='Input Tables'!$BG$76,AD1='Input Tables'!$BH$76,AD1='Input Tables'!$BI$76,AD1='Input Tables'!$BJ$76,AD1='Input Tables'!$BK$76, AD1='Input Tables'!$BL$76,AD1='Input Tables'!$BM$76),('Cost Budgets'!$H$16*AD13),0) -> 0 | AE63: =IF(OR(AE1='Input Tables'!$BA$76, AE1='Input Tables'!$BB$76,AE1='Input Tables'!$BC$76, AE1='Input Tables'!$BD$76,AE1='Input Tables'!$BE$76,AE1='Input Tables'!$BF$76,AE1='Input Tables'!$BG$76,AE1='Input Tables'!$BH$76,AE1='Input Tables'!$BI$76,AE1='Input Tables'!$BJ$76,AE1='Input Tables'!$BK$76, AE1='Input Tables'!$BL$76,AE1='Input Tables'!$BM$76),('Cost Budgets'!$H$16*AE13),0) -> 0 | AF63: =IF(OR(AF1='Input Tables'!$BA$76, AF1='Input Tables'!$BB$76,AF1='Input Tables'!$BC$76, AF1='Input Tables'!$BD$76,AF1='Input Tables'!$BE$76,AF1='Input Tables'!$BF$76,AF1='Input Tables'!$BG$76,AF1='Input Tables'!$BH$76,AF1='Input Tables'!$BI$76,AF1='Input Tables'!$BJ$76,AF1='Input Tables'!$BK$76, AF1='Input Tables'!$BL$76,AF1='Input Tables'!$BM$76),('Cost Budgets'!$H$16*AF13),0) -> 0 | AG63: =IF(OR(AG1='Input Tables'!$BA$76, AG1='Input Tables'!$BB$76,AG1='Input Tables'!$BC$76, AG1='Input Tables'!$BD$76,AG1='Input Tables'!$BE$76,AG1='Input Tables'!$BF$76,AG1='Input Tables'!$BG$76,AG1='Input Tables'!$BH$76,AG1='Input Tables'!$BI$76,AG1='Input Tables'!$BJ$76,AG1='Input Tables'!$BK$76, AG1='Input Tables'!$BL$76,AG1='Input Tables'!$BM$76),('Cost Budgets'!$H$16*AG13),0) -> 0 | AH63: =IF(OR(AH1='Input Tables'!$BA$76, AH1='Input Tables'!$BB$76,AH1='Input Tables'!$BC$76, AH1='Input Tables'!$BD$76,AH1='Input Tables'!$BE$76,AH1='Input Tables'!$BF$76,AH1='Input Tables'!$BG$76,AH1='Input Tables'!$BH$76,AH1='Input Tables'!$BI$76,AH1='Input Tables'!$BJ$76,AH1='Input Tables'!$BK$76, AH1='Input Tables'!$BL$76,AH1='Input Tables'!$BM$76),('Cost Budgets'!$H$16*AH13),0) -> 0 | AI63: =IF(OR(AI1='Input Tables'!$BA$76, AI1='Input Tables'!$BB$76,AI1='Input Tables'!$BC$76, AI1='Input Tables'!$BD$76,AI1='Input Tables'!$BE$76,AI1='Input Tables'!$BF$76,AI1='Input Tables'!$BG$76,AI1='Input Tables'!$BH$76,AI1='Input Tables'!$BI$76,AI1='Input Tables'!$BJ$76,AI1='Input Tables'!$BK$76, AI1='Input Tables'!$BL$76,AI1='Input Tables'!$BM$76),('Cost Budgets'!$H$16*AI13),0) -> 0 | AJ63: =IF(OR(AJ1='Input Tables'!$BA$76, AJ1='Input Tables'!$BB$76,AJ1='Input Tables'!$BC$76, AJ1='Input Tables'!$BD$76,AJ1='Input Tables'!$BE$76,AJ1='Input Tables'!$BF$76,AJ1='Input Tables'!$BG$76,AJ1='Input Tables'!$BH$76,AJ1='Input Tables'!$BI$76,AJ1='Input Tables'!$BJ$76,AJ1='Input Tables'!$BK$76, AJ1='Input Tables'!$BL$76,AJ1='Input Tables'!$BM$76),('Cost Budgets'!$H$16*AJ13),0) -> 0 | AK63: =IF(OR(AK1='Input Tables'!$BA$76, AK1='Input Tables'!$BB$76,AK1='Input Tables'!$BC$76, AK1='Input Tables'!$BD$76,AK1='Input Tables'!$BE$76,AK1='Input Tables'!$BF$76,AK1='Input Tables'!$BG$76,AK1='Input Tables'!$BH$76,AK1='Input Tables'!$BI$76,AK1='Input Tables'!$BJ$76,AK1='Input Tables'!$BK$76, AK1='Input Tables'!$BL$76,AK1='Input Tables'!$BM$76),('Cost Budgets'!$H$16*AK13),0) -> 0 | AL63: =IF(OR(AL1='Input Tables'!$BA$76, AL1='Input Tables'!$BB$76,AL1='Input Tables'!$BC$76, AL1='Input Tables'!$BD$76,AL1='Input Tables'!$BE$76,AL1='Input Tables'!$BF$76,AL1='Input Tables'!$BG$76,AL1='Input Tables'!$BH$76,AL1='Input Tables'!$BI$76,AL1='Input Tables'!$BJ$76,AL1='Input Tables'!$BK$76, AL1='Input Tables'!$BL$76,AL1='Input Tables'!$BM$76),('Cost Budgets'!$H$16*AL13),0) -> 0 | AM63: =IF(OR(AM1='Input Tables'!$BA$76, AM1='Input Tables'!$BB$76,AM1='Input Tables'!$BC$76, AM1='Input Tables'!$BD$76,AM1='Input Tables'!$BE$76,AM1='Input Tables'!$BF$76,AM1='Input Tables'!$BG$76,AM1='Input Tables'!$BH$76,AM1='Input Tables'!$BI$76,AM1='Input Tables'!$BJ$76,AM1='Input Tables'!$BK$76, AM1='Input Tables'!$BL$76,AM1='Input Tables'!$BM$76),('Cost Budgets'!$H$16*AM13),0) -> 0 | AN63: =IF(OR(AN1='Input Tables'!$BA$76, AN1='Input Tables'!$BB$76,AN1='Input Tables'!$BC$76, AN1='Input Tables'!$BD$76,AN1='Input Tables'!$BE$76,AN1='Input Tables'!$BF$76,AN1='Input Tables'!$BG$76,AN1='Input Tables'!$BH$76,AN1='Input Tables'!$BI$76,AN1='Input Tables'!$BJ$76,AN1='Input Tables'!$BK$76, AN1='Input Tables'!$BL$76,AN1='Input Tables'!$BM$76),('Cost Budgets'!$H$16*AN13),0) -> 0 | AO63: =IF(OR(AO1='Input Tables'!$BA$76, AO1='Input Tables'!$BB$76,AO1='Input Tables'!$BC$76, AO1='Input Tables'!$BD$76,AO1='Input Tables'!$BE$76,AO1='Input Tables'!$BF$76,AO1='Input Tables'!$BG$76,AO1='Input Tables'!$BH$76,AO1='Input Tables'!$BI$76,AO1='Input Tables'!$BJ$76,AO1='Input Tables'!$BK$76, AO1='Input Tables'!$BL$76,AO1='Input Tables'!$BM$76),('Cost Budgets'!$H$16*AO13),0) -> 0 | AP63: =IF(OR(AP1='Input Tables'!$BA$76, AP1='Input Tables'!$BB$76,AP1='Input Tables'!$BC$76, AP1='Input Tables'!$BD$76,AP1='Input Tables'!$BE$76,AP1='Input Tables'!$BF$76,AP1='Input Tables'!$BG$76,AP1='Input Tables'!$BH$76,AP1='Input Tables'!$BI$76,AP1='Input Tables'!$BJ$76,AP1='Input Tables'!$BK$76, AP1='Input Tables'!$BL$76,AP1='Input Tables'!$BM$76),('Cost Budgets'!$H$16*AP13),0) -> 0 | AQ63: =IF(OR(AQ1='Input Tables'!$BA$76, AQ1='Input Tables'!$BB$76,AQ1='Input Tables'!$BC$76, AQ1='Input Tables'!$BD$76,AQ1='Input Tables'!$BE$76,AQ1='Input Tables'!$BF$76,AQ1='Input Tables'!$BG$76,AQ1='Input Tables'!$BH$76,AQ1='Input Tables'!$BI$76,AQ1='Input Tables'!$BJ$76,AQ1='Input Tables'!$BK$76, AQ1='Input Tables'!$BL$76,AQ1='Input Tables'!$BM$76),('Cost Budgets'!$H$16*AQ13),0) -> 0 | AR63: =IF(OR(AR1='Input Tables'!$BA$76, AR1='Input Tables'!$BB$76,AR1='Input Tables'!$BC$76, AR1='Input Tables'!$BD$76,AR1='Input Tables'!$BE$76,AR1='Input Tables'!$BF$76,AR1='Input Tables'!$BG$76,AR1='Input Tables'!$BH$76,AR1='Input Tables'!$BI$76,AR1='Input Tables'!$BJ$76,AR1='Input Tables'!$BK$76, AR1='Input Tables'!$BL$76,AR1='Input Tables'!$BM$76),('Cost Budgets'!$H$16*AR13),0) -> 0 | AS63: =IF(OR(AS1='Input Tables'!$BA$76, AS1='Input Tables'!$BB$76,AS1='Input Tables'!$BC$76, AS1='Input Tables'!$BD$76,AS1='Input Tables'!$BE$76,AS1='Input Tables'!$BF$76,AS1='Input Tables'!$BG$76,AS1='Input Tables'!$BH$76,AS1='Input Tables'!$BI$76,AS1='Input Tables'!$BJ$76,AS1='Input Tables'!$BK$76, AS1='Input Tables'!$BL$76,AS1='Input Tables'!$BM$76),('Cost Budgets'!$H$16*AS13),0) -> 0 | AT63: =IF(OR(AT1='Input Tables'!$BA$76, AT1='Input Tables'!$BB$76,AT1='Input Tables'!$BC$76, AT1='Input Tables'!$BD$76,AT1='Input Tables'!$BE$76,AT1='Input Tables'!$BF$76,AT1='Input Tables'!$BG$76,AT1='Input Tables'!$BH$76,AT1='Input Tables'!$BI$76,AT1='Input Tables'!$BJ$76,AT1='Input Tables'!$BK$76, AT1='Input Tables'!$BL$76,AT1='Input Tables'!$BM$76),('Cost Budgets'!$H$16*AT13),0) -> 0 | AU63: =IF(OR(AU1='Input Tables'!$BA$76, AU1='Input Tables'!$BB$76,AU1='Input Tables'!$BC$76, AU1='Input Tables'!$BD$76,AU1='Input Tables'!$BE$76,AU1='Input Tables'!$BF$76,AU1='Input Tables'!$BG$76,AU1='Input Tables'!$BH$76,AU1='Input Tables'!$BI$76,AU1='Input Tables'!$BJ$76,AU1='Input Tables'!$BK$76, AU1='Input Tables'!$BL$76,AU1='Input Tables'!$BM$76),('Cost Budgets'!$H$16*AU13),0) -> 0 | AV63: =IF(OR(AV1='Input Tables'!$BA$76, AV1='Input Tables'!$BB$76,AV1='Input Tables'!$BC$76, AV1='Input Tables'!$BD$76,AV1='Input Tables'!$BE$76,AV1='Input Tables'!$BF$76,AV1='Input Tables'!$BG$76,AV1='Input Tables'!$BH$76,AV1='Input Tables'!$BI$76,AV1='Input Tables'!$BJ$76,AV1='Input Tables'!$BK$76, AV1='Input Tables'!$BL$76,AV1='Input Tables'!$BM$76),('Cost Budgets'!$H$16*AV13),0) -> 0 | AW63: =IF(OR(AW1='Input Tables'!$BA$76, AW1='Input Tables'!$BB$76,AW1='Input Tables'!$BC$76, AW1='Input Tables'!$BD$76,AW1='Input Tables'!$BE$76,AW1='Input Tables'!$BF$76,AW1='Input Tables'!$BG$76,AW1='Input Tables'!$BH$76,AW1='Input Tables'!$BI$76,AW1='Input Tables'!$BJ$76,AW1='Input Tables'!$BK$76, AW1='Input Tables'!$BL$76,AW1='Input Tables'!$BM$76),('Cost Budgets'!$H$16*AW13),0) -> 0 | AX63: =IF(OR(AX1='Input Tables'!$BA$76, AX1='Input Tables'!$BB$76,AX1='Input Tables'!$BC$76, AX1='Input Tables'!$BD$76,AX1='Input Tables'!$BE$76,AX1='Input Tables'!$BF$76,AX1='Input Tables'!$BG$76,AX1='Input Tables'!$BH$76,AX1='Input Tables'!$BI$76,AX1='Input Tables'!$BJ$76,AX1='Input Tables'!$BK$76, AX1='Input Tables'!$BL$76,AX1='Input Tables'!$BM$76),('Cost Budgets'!$H$16*AX13),0) -> 0 | AY63: =IF(OR(AY1='Input Tables'!$BA$76, AY1='Input Tables'!$BB$76,AY1='Input Tables'!$BC$76, AY1='Input Tables'!$BD$76,AY1='Input Tables'!$BE$76,AY1='Input Tables'!$BF$76,AY1='Input Tables'!$BG$76,AY1='Input Tables'!$BH$76,AY1='Input Tables'!$BI$76,AY1='Input Tables'!$BJ$76,AY1='Input Tables'!$BK$76, AY1='Input Tables'!$BL$76,AY1='Input Tables'!$BM$76),('Cost Budgets'!$H$16*AY13),0) -> 0 | AZ63: =IF(OR(AZ1='Input Tables'!$BA$76, AZ1='Input Tables'!$BB$76,AZ1='Input Tables'!$BC$76, AZ1='Input Tables'!$BD$76,AZ1='Input Tables'!$BE$76,AZ1='Input Tables'!$BF$76,AZ1='Input Tables'!$BG$76,AZ1='Input Tables'!$BH$76,AZ1='Input Tables'!$BI$76,AZ1='Input Tables'!$BJ$76,AZ1='Input Tables'!$BK$76, AZ1='Input Tables'!$BL$76,AZ1='Input Tables'!$BM$76),('Cost Budgets'!$H$16*AZ13),0) -> 0 | BA63: =IF(OR(BA1='Input Tables'!$BA$76, BA1='Input Tables'!$BB$76,BA1='Input Tables'!$BC$76, BA1='Input Tables'!$BD$76,BA1='Input Tables'!$BE$76,BA1='Input Tables'!$BF$76,BA1='Input Tables'!$BG$76,BA1='Input Tables'!$BH$76,BA1='Input Tables'!$BI$76,BA1='Input Tables'!$BJ$76,BA1='Input Tables'!$BK$76, BA1='Input Tables'!$BL$76,BA1='Input Tables'!$BM$76),('Cost Budgets'!$H$16*BA13),0) -> 0 | BB63: =IF(OR(BB1='Input Tables'!$BA$76, BB1='Input Tables'!$BB$76,BB1='Input Tables'!$BC$76, BB1='Input Tables'!$BD$76,BB1='Input Tables'!$BE$76,BB1='Input Tables'!$BF$76,BB1='Input Tables'!$BG$76,BB1='Input Tables'!$BH$76,BB1='Input Tables'!$BI$76,BB1='Input Tables'!$BJ$76,BB1='Input Tables'!$BK$76, BB1='Input Tables'!$BL$76,BB1='Input Tables'!$BM$76),('Cost Budgets'!$H$16*BB13),0) -> 0 | BC63: =IF(OR(BC1='Input Tables'!$BA$76, BC1='Input Tables'!$BB$76,BC1='Input Tables'!$BC$76, BC1='Input Tables'!$BD$76,BC1='Input Tables'!$BE$76,BC1='Input Tables'!$BF$76,BC1='Input Tables'!$BG$76,BC1='Input Tables'!$BH$76,BC1='Input Tables'!$BI$76,BC1='Input Tables'!$BJ$76,BC1='Input Tables'!$BK$76, BC1='Input Tables'!$BL$76,BC1='Input Tables'!$BM$76),('Cost Budgets'!$H$16*BC13),0) -> 0 | BD63: =IF(OR(BD1='Input Tables'!$BA$76, BD1='Input Tables'!$BB$76,BD1='Input Tables'!$BC$76, BD1='Input Tables'!$BD$76,BD1='Input Tables'!$BE$76,BD1='Input Tables'!$BF$76,BD1='Input Tables'!$BG$76,BD1='Input Tables'!$BH$76,BD1='Input Tables'!$BI$76,BD1='Input Tables'!$BJ$76,BD1='Input Tables'!$BK$76, BD1='Input Tables'!$BL$76,BD1='Input Tables'!$BM$76),('Cost Budgets'!$H$16*BD13),0) -> 0 | BE63: =IF(OR(BE1='Input Tables'!$BA$76, BE1='Input Tables'!$BB$76,BE1='Input Tables'!$BC$76, BE1='Input Tables'!$BD$76,BE1='Input Tables'!$BE$76,BE1='Input Tables'!$BF$76,BE1='Input Tables'!$BG$76,BE1='Input Tables'!$BH$76,BE1='Input Tables'!$BI$76,BE1='Input Tables'!$BJ$76,BE1='Input Tables'!$BK$76, BE1='Input Tables'!$BL$76,BE1='Input Tables'!$BM$76),('Cost Budgets'!$H$16*BE13),0) -> 0 | BF63: =IF(OR(BF1='Input Tables'!$BA$76, BF1='Input Tables'!$BB$76,BF1='Input Tables'!$BC$76, BF1='Input Tables'!$BD$76,BF1='Input Tables'!$BE$76,BF1='Input Tables'!$BF$76,BF1='Input Tables'!$BG$76,BF1='Input Tables'!$BH$76,BF1='Input Tables'!$BI$76,BF1='Input Tables'!$BJ$76,BF1='Input Tables'!$BK$76, BF1='Input Tables'!$BL$76,BF1='Input Tables'!$BM$76),('Cost Budgets'!$H$16*BF13),0) -> 0 | BG63: =IF(OR(BG1='Input Tables'!$BA$76, BG1='Input Tables'!$BB$76,BG1='Input Tables'!$BC$76, BG1='Input Tables'!$BD$76,BG1='Input Tables'!$BE$76,BG1='Input Tables'!$BF$76,BG1='Input Tables'!$BG$76,BG1='Input Tables'!$BH$76,BG1='Input Tables'!$BI$76,BG1='Input Tables'!$BJ$76,BG1='Input Tables'!$BK$76, BG1='Input Tables'!$BL$76,BG1='Input Tables'!$BM$76),('Cost Budgets'!$H$16*BG13),0) -> 0 | BH63: =IF(OR(BH1='Input Tables'!$BA$76, BH1='Input Tables'!$BB$76,BH1='Input Tables'!$BC$76, BH1='Input Tables'!$BD$76,BH1='Input Tables'!$BE$76,BH1='Input Tables'!$BF$76,BH1='Input Tables'!$BG$76,BH1='Input Tables'!$BH$76,BH1='Input Tables'!$BI$76,BH1='Input Tables'!$BJ$76,BH1='Input Tables'!$BK$76, BH1='Input Tables'!$BL$76,BH1='Input Tables'!$BM$76),('Cost Budgets'!$H$16*BH13),0) -> 0 | BI63: =IF(OR(BI1='Input Tables'!$BA$76, BI1='Input Tables'!$BB$76,BI1='Input Tables'!$BC$76, BI1='Input Tables'!$BD$76,BI1='Input Tables'!$BE$76,BI1='Input Tables'!$BF$76,BI1='Input Tables'!$BG$76,BI1='Input Tables'!$BH$76,BI1='Input Tables'!$BI$76,BI1='Input Tables'!$BJ$76,BI1='Input Tables'!$BK$76, BI1='Input Tables'!$BL$76,BI1='Input Tables'!$BM$76),('Cost Budgets'!$H$16*BI13),0) -> 0 | BJ63: =IF(OR(BJ1='Input Tables'!$BA$76, BJ1='Input Tables'!$BB$76,BJ1='Input Tables'!$BC$76, BJ1='Input Tables'!$BD$76,BJ1='Input Tables'!$BE$76,BJ1='Input Tables'!$BF$76,BJ1='Input Tables'!$BG$76,BJ1='Input Tables'!$BH$76,BJ1='Input Tables'!$BI$76,BJ1='Input Tables'!$BJ$76,BJ1='Input Tables'!$BK$76, BJ1='Input Tables'!$BL$76,BJ1='Input Tables'!$BM$76),('Cost Budgets'!$H$16*BJ13),0) -> 0 | BK63: =IF(OR(BK1='Input Tables'!$BA$76, BK1='Input Tables'!$BB$76,BK1='Input Tables'!$BC$76, BK1='Input Tables'!$BD$76,BK1='Input Tables'!$BE$76,BK1='Input Tables'!$BF$76,BK1='Input Tables'!$BG$76,BK1='Input Tables'!$BH$76,BK1='Input Tables'!$BI$76,BK1='Input Tables'!$BJ$76,BK1='Input Tables'!$BK$76, BK1='Input Tables'!$BL$76,BK1='Input Tables'!$BM$76),('Cost Budgets'!$H$16*BK13),0) -> 0 | BL63: =IF(OR(BL1='Input Tables'!$BA$76, BL1='Input Tables'!$BB$76,BL1='Input Tables'!$BC$76, BL1='Input Tables'!$BD$76,BL1='Input Tables'!$BE$76,BL1='Input Tables'!$BF$76,BL1='Input Tables'!$BG$76,BL1='Input Tables'!$BH$76,BL1='Input Tables'!$BI$76,BL1='Input Tables'!$BJ$76,BL1='Input Tables'!$BK$76, BL1='Input Tables'!$BL$76,BL1='Input Tables'!$BM$76),('Cost Budgets'!$H$16*BL13),0) -> 0 | BM63: =IF(OR(BM1='Input Tables'!$BA$76, BM1='Input Tables'!$BB$76,BM1='Input Tables'!$BC$76, BM1='Input Tables'!$BD$76,BM1='Input Tables'!$BE$76,BM1='Input Tables'!$BF$76,BM1='Input Tables'!$BG$76,BM1='Input Tables'!$BH$76,BM1='Input Tables'!$BI$76,BM1='Input Tables'!$BJ$76,BM1='Input Tables'!$BK$76, BM1='Input Tables'!$BL$76,BM1='Input Tables'!$BM$76),('Cost Budgets'!$H$16*BM13),0) -> 0 | BN63: =IF(OR(BN1='Input Tables'!$BA$76, BN1='Input Tables'!$BB$76,BN1='Input Tables'!$BC$76, BN1='Input Tables'!$BD$76,BN1='Input Tables'!$BE$76,BN1='Input Tables'!$BF$76,BN1='Input Tables'!$BG$76,BN1='Input Tables'!$BH$76,BN1='Input Tables'!$BI$76,BN1='Input Tables'!$BJ$76,BN1='Input Tables'!$BK$76, BN1='Input Tables'!$BL$76,BN1='Input Tables'!$BM$76),('Cost Budgets'!$H$16*BN13),0) -> 0 | BO63: =IF(OR(BO1='Input Tables'!$BA$76, BO1='Input Tables'!$BB$76,BO1='Input Tables'!$BC$76, BO1='Input Tables'!$BD$76,BO1='Input Tables'!$BE$76,BO1='Input Tables'!$BF$76,BO1='Input Tables'!$BG$76,BO1='Input Tables'!$BH$76,BO1='Input Tables'!$BI$76,BO1='Input Tables'!$BJ$76,BO1='Input Tables'!$BK$76, BO1='Input Tables'!$BL$76,BO1='Input Tables'!$BM$76),('Cost Budgets'!$H$16*BO13),0) -> 0 | BP63: =IF(OR(BP1='Input Tables'!$BA$76, BP1='Input Tables'!$BB$76,BP1='Input Tables'!$BC$76, BP1='Input Tables'!$BD$76,BP1='Input Tables'!$BE$76,BP1='Input Tables'!$BF$76,BP1='Input Tables'!$BG$76,BP1='Input Tables'!$BH$76,BP1='Input Tables'!$BI$76,BP1='Input Tables'!$BJ$76,BP1='Input Tables'!$BK$76, BP1='Input Tables'!$BL$76,BP1='Input Tables'!$BM$76),('Cost Budgets'!$H$16*BP13),0) -> 0 | BQ63: =IF(OR(BQ1='Input Tables'!$BA$76, BQ1='Input Tables'!$BB$76,BQ1='Input Tables'!$BC$76, BQ1='Input Tables'!$BD$76,BQ1='Input Tables'!$BE$76,BQ1='Input Tables'!$BF$76,BQ1='Input Tables'!$BG$76,BQ1='Input Tables'!$BH$76,BQ1='Input Tables'!$BI$76,BQ1='Input Tables'!$BJ$76,BQ1='Input Tables'!$BK$76, BQ1='Input Tables'!$BL$76,BQ1='Input Tables'!$BM$76),('Cost Budgets'!$H$16*BQ13),0) -> 0 | BR63: =IF(OR(BR1='Input Tables'!$BA$76, BR1='Input Tables'!$BB$76,BR1='Input Tables'!$BC$76, BR1='Input Tables'!$BD$76,BR1='Input Tables'!$BE$76,BR1='Input Tables'!$BF$76,BR1='Input Tables'!$BG$76,BR1='Input Tables'!$BH$76,BR1='Input Tables'!$BI$76,BR1='Input Tables'!$BJ$76,BR1='Input Tables'!$BK$76, BR1='Input Tables'!$BL$76,BR1='Input Tables'!$BM$76),('Cost Budgets'!$H$16*BR13),0) -> 0 | BS63: =IF(OR(BS1='Input Tables'!$BA$76, BS1='Input Tables'!$BB$76,BS1='Input Tables'!$BC$76, BS1='Input Tables'!$BD$76,BS1='Input Tables'!$BE$76,BS1='Input Tables'!$BF$76,BS1='Input Tables'!$BG$76,BS1='Input Tables'!$BH$76,BS1='Input Tables'!$BI$76,BS1='Input Tables'!$BJ$76,BS1='Input Tables'!$BK$76, BS1='Input Tables'!$BL$76,BS1='Input Tables'!$BM$76),('Cost Budgets'!$H$16*BS13),0) -> 0 | BT63: =IF(OR(BT1='Input Tables'!$BA$76, BT1='Input Tables'!$BB$76,BT1='Input Tables'!$BC$76, BT1='Input Tables'!$BD$76,BT1='Input Tables'!$BE$76,BT1='Input Tables'!$BF$76,BT1='Input Tables'!$BG$76,BT1='Input Tables'!$BH$76,BT1='Input Tables'!$BI$76,BT1='Input Tables'!$BJ$76,BT1='Input Tables'!$BK$76, BT1='Input Tables'!$BL$76,BT1='Input Tables'!$BM$76),('Cost Budgets'!$H$16*BT13),0) -> 0 | BU63: =IF(OR(BU1='Input Tables'!$BA$76, BU1='Input Tables'!$BB$76,BU1='Input Tables'!$BC$76, BU1='Input Tables'!$BD$76,BU1='Input Tables'!$BE$76,BU1='Input Tables'!$BF$76,BU1='Input Tables'!$BG$76,BU1='Input Tables'!$BH$76,BU1='Input Tables'!$BI$76,BU1='Input Tables'!$BJ$76,BU1='Input Tables'!$BK$76, BU1='Input Tables'!$BL$76,BU1='Input Tables'!$BM$76),('Cost Budgets'!$H$16*BU13),0) -> 0
B65: Potential Revenue less Est. /Man. Costs | D65: =D48-D51-D53-D55-D57-D59-D61-D63 -> -593.8 | E65: =E48-E51-E53-E55-E57-E59-E61-E63 -> -33.13 | F65: -5.320647184 | G65: -10.56295543 | H65: 32.19743961 | I65: 46.99904261 | J65: 59.39292131 | K65: 79.36924164 | L65: 96.95687549 | M65: 108.5642407 | N65: 131.3749326 | O65: 141.4178407 | P65: 186.4868673 | Q65: 174.2714407 | R65: 220.9049245 | S65: 207.1250407 | T65: 255.3229816 | U65: 239.9786407 | V65: 289.7410388 | W65: 272.8322407 | X65: 322.3599064 | Y65: 301.7590586 | Z65: 139.3361636 | AA65: 164.0444274 | AB65: 190.9330346 | AC65: 190.076546 | AD65: 189.2200574 | AE65: 197.0423432 | AF65: 204.8646289 | AG65: 212.6869146 | AH65: 220.5092003 | AI65: 227.6502146 | AJ65: 234.5995986 | AK65: 241.3465692 | AL65: 247.8821988 | AM65: 85.58271377 | AN65: 130.1462064 | AO65: 134.0573492 | AP65: 137.9684921 | AQ65: 141.879635 | AR65: 145.7907778 | AS65: 149.7019207 | AT65: 153.6130635 | AU65: 157.5242064 | AV65: 161.4353492 | AW65: 165.3464921 | AX65: 169.257635 | AY65: 172.8432379 | AZ65: 176.3626528 | BA65: 179.8130034 | BB65: 183.1917496 | BC65: 186.4966749 | BD65: 189.7258733 | BE65: 51.48289173 | BF65: 97.97547296 | BG65: 99.93104439 | BH65: 101.8866158 | BI65: 103.8421872 | BJ65: 105.7977587 | BK65: 107.7533301 | BL65: 109.7089015 | BM65: 111.664473 | BN65: 113.6200444 | BO65: 115.5756158 | BP65: 117.5311872 | BQ65: =BQ48-BQ51-BQ53-BQ55-BQ57-BQ59-BQ61-BQ63 -> 119.4867587 | BR65: =BR48-BR51-BR53-BR55-BR57-BR59-BR61-BR63 -> 121.4423301 | BS65: =BS48-BS51-BS53-BS55-BS57-BS59-BS61-BS63 -> 123.3979015 | BT65: =BT48-BT51-BT53-BT55-BT57-BT59-BT61-BT63 -> 125.353473 | BU65: =BU48-BU51-BU53-BU55-BU57-BU59-BU61-BU63 -> 127.1638291
A68: Harvesting and Marketing Costs | B68: Harvesting Method (Potential) | D68: =IF(D24>0,'Cost Budgets'!$G$19,0) -> 0 | E68: =IF(E24>0,'Cost Budgets'!$G$19,0) -> 0 | F68: =IF(F24>0,'Cost Budgets'!$G$19,0) -> 20 | G68: =IF(G24>0,'Cost Budgets'!$G$19,0) -> 20 | H68: =IF(H24>0,'Cost Budgets'!$G$19,0) -> 20 | I68: =IF(I24>0,'Cost Budgets'!$G$19,0) -> 20 | J68: =IF(J24>0,'Cost Budgets'!$G$19,0) -> 20 | K68: =IF(K24>0,'Cost Budgets'!$G$19,0) -> 20 | L68: =IF(L24>0,'Cost Budgets'!$G$19,0) -> 20 | M68: =IF(M24>0,'Cost Budgets'!$G$19,0) -> 20 | N68: =IF(N24>0,'Cost Budgets'!$G$19,0) -> 20 | O68: =IF(O24>0,'Cost Budgets'!$G$19,0) -> 20 | P68: =IF(P24>0,'Cost Budgets'!$G$19,0) -> 20 | Q68: =IF(Q24>0,'Cost Budgets'!$G$19,0) -> 20 | R68: =IF(R24>0,'Cost Budgets'!$G$19,0) -> 20 | S68: =IF(S24>0,'Cost Budgets'!$G$19,0) -> 20 | T68: =IF(T24>0,'Cost Budgets'!$G$19,0) -> 20 | U68: =IF(U24>0,'Cost Budgets'!$G$19,0) -> 20 | V68: =IF(V24>0,'Cost Budgets'!$G$19,0) -> 20 | W68: =IF(W24>0,'Cost Budgets'!$G$19,0) -> 20 | X68: =IF(X24>0,'Cost Budgets'!$G$19,0) -> 20 | Y68: =IF(Y24>0,'Cost Budgets'!$G$19,0) -> 20 | Z68: =IF(Z24>0,'Cost Budgets'!$G$19,0) -> 20 | AA68: =IF(AA24>0,'Cost Budgets'!$G$19,0) -> 20 | AB68: =IF(AB24>0,'Cost Budgets'!$G$19,0) -> 20 | AC68: =IF(AC24>0,'Cost Budgets'!$G$19,0) -> 20 | AD68: =IF(AD24>0,'Cost Budgets'!$G$19,0) -> 20 | AE68: =IF(AE24>0,'Cost Budgets'!$G$19,0) -> 20 | AF68: =IF(AF24>0,'Cost Budgets'!$G$19,0) -> 20 | AG68: =IF(AG24>0,'Cost Budgets'!$G$19,0) -> 20 | AH68: =IF(AH24>0,'Cost Budgets'!$G$19,0) -> 20 | AI68: =IF(AI24>0,'Cost Budgets'!$G$19,0) -> 20 | AJ68: =IF(AJ24>0,'Cost Budgets'!$G$19,0) -> 20 | AK68: =IF(AK24>0,'Cost Budgets'!$G$19,0) -> 20 | AL68: =IF(AL24>0,'Cost Budgets'!$G$19,0) -> 20 | AM68: =IF(AM24>0,'Cost Budgets'!$G$19,0) -> 20 | AN68: =IF(AN24>0,'Cost Budgets'!$G$19,0) -> 20 | AO68: =IF(AO24>0,'Cost Budgets'!$G$19,0) -> 20 | AP68: =IF(AP24>0,'Cost Budgets'!$G$19,0) -> 20 | AQ68: =IF(AQ24>0,'Cost Budgets'!$G$19,0) -> 20 | AR68: =IF(AR24>0,'Cost Budgets'!$G$19,0) -> 20 | AS68: =IF(AS24>0,'Cost Budgets'!$G$19,0) -> 20 | AT68: =IF(AT24>0,'Cost Budgets'!$G$19,0) -> 20 | AU68: =IF(AU24>0,'Cost Budgets'!$G$19,0) -> 20 | AV68: =IF(AV24>0,'Cost Budgets'!$G$19,0) -> 20 | AW68: =IF(AW24>0,'Cost Budgets'!$G$19,0) -> 20 | AX68: =IF(AX24>0,'Cost Budgets'!$G$19,0) -> 20 | AY68: =IF(AY24>0,'Cost Budgets'!$G$19,0) -> 20 | AZ68: =IF(AZ24>0,'Cost Budgets'!$G$19,0) -> 20 | BA68: =IF(BA24>0,'Cost Budgets'!$G$19,0) -> 20 | BB68: =IF(BB24>0,'Cost Budgets'!$G$19,0) -> 20 | BC68: =IF(BC24>0,'Cost Budgets'!$G$19,0) -> 20 | BD68: =IF(BD24>0,'Cost Budgets'!$G$19,0) -> 20 | BE68: =IF(BE24>0,'Cost Budgets'!$G$19,0) -> 20 | BF68: =IF(BF24>0,'Cost Budgets'!$G$19,0) -> 20 | BG68: =IF(BG24>0,'Cost Budgets'!$G$19,0) -> 20 | BH68: =IF(BH24>0,'Cost Budgets'!$G$19,0) -> 20 | BI68: =IF(BI24>0,'Cost Budgets'!$G$19,0) -> 20 | BJ68: =IF(BJ24>0,'Cost Budgets'!$G$19,0) -> 20 | BK68: =IF(BK24>0,'Cost Budgets'!$G$19,0) -> 20 | BL68: =IF(BL24>0,'Cost Budgets'!$G$19,0) -> 20 | BM68: =IF(BM24>0,'Cost Budgets'!$G$19,0) -> 20 | BN68: =IF(BN24>0,'Cost Budgets'!$G$19,0) -> 20 | BO68: =IF(BO24>0,'Cost Budgets'!$G$19,0) -> 20 | BP68: =IF(BP24>0,'Cost Budgets'!$G$19,0) -> 20 | BQ68: =IF(BQ24>0,'Cost Budgets'!$G$19,0) -> 20 | BR68: =IF(BR24>0,'Cost Budgets'!$G$19,0) -> 20 | BS68: =IF(BS24>0,'Cost Budgets'!$G$19,0) -> 20 | BT68: =IF(BT24>0,'Cost Budgets'!$G$19,0) -> 20 | BU68: =IF(BU24>0,'Cost Budgets'!$G$19,0) -> 20
B70: Harvesting Method (Actual) | D70: =IF(D80>D33,0,D68) -> 0 | E70: =IF(E80>E33,0,E68) -> 0 | F70: 0 | G70: 20 | H70: 20 | I70: 20 | J70: 20 | K70: 20 | L70: 20 | M70: 20 | N70: 20 | O70: 20 | P70: 20 | Q70: 20 | R70: 20 | S70: 20 | T70: 20 | U70: 20 | V70: 20 | W70: 20 | X70: 20 | Y70: 20 | Z70: 20 | AA70: 20 | AB70: 20 | AC70: 20 | AD70: 20 | AE70: 20 | AF70: 20 | AG70: 20 | AH70: 20 | AI70: 20 | AJ70: 20 | AK70: 20 | AL70: 20 | AM70: 20 | AN70: 20 | AO70: 20 | AP70: 20 | AQ70: 20 | AR70: 20 | AS70: 20 | AT70: 20 | AU70: 20 | AV70: 20 | AW70: 20 | AX70: 20 | AY70: 20 | AZ70: 20 | BA70: 20 | BB70: 20 | BC70: 20 | BD70: 20 | BE70: 20 | BF70: 20 | BG70: 20 | BH70: 20 | BI70: 20 | BJ70: 20 | BK70: 20 | BL70: 20 | BM70: 20 | BN70: 20 | BO70: 20 | BP70: 20 | BQ70: =IF(BQ80>BQ33,0,BQ68) -> 20 | BR70: =IF(BR80>BR33,0,BR68) -> 20 | BS70: =IF(BS80>BS33,0,BS68) -> 20 | BT70: =IF(BT80>BT33,0,BT68) -> 20 | BU70: =IF(BU80>BU33,0,BU68) -> 20
B72: Hulling (Potential) | D72: =IF(D24>0,D24*D13*'Cost Budgets'!$H$20,0) -> 0 | E72: =IF(E24>0,E24*E13*'Cost Budgets'!$H$20,0) -> 0 | F72: =IF(F24>0,F24*F13*'Cost Budgets'!$H$20,0) -> 2.982526531 | G72: =IF(G24>0,G24*G13*'Cost Budgets'!$H$20,0) -> 6.088028571 | H72: =IF(H24>0,H24*H13*'Cost Budgets'!$H$20,0) -> 9.703353673 | I72: =IF(I24>0,I24*I13*'Cost Budgets'!$H$20,0) -> 11.84994857 | J72: =IF(J24>0,J24*J13*'Cost Budgets'!$H$20,0) -> 15.84668082 | K72: =IF(K24>0,K24*K13*'Cost Budgets'!$H$20,0) -> 17.30715857 | L72: =IF(L24>0,L24*L13*'Cost Budgets'!$H$20,0) -> 20.42547796 | M72: =IF(M24>0,M24*M13*'Cost Budgets'!$H$20,0) -> 22.21311857 | N72: =IF(N24>0,N24*N13*'Cost Budgets'!$H$20,0) -> 26.4008351 | O72: =IF(O24>0,O24*O13*'Cost Budgets'!$H$20,0) -> 27.91686857 | P72: =IF(P24>0,P24*P13*'Cost Budgets'!$H$20,0) -> 32.37619224 | Q72: =IF(Q24>0,Q24*Q13*'Cost Budgets'!$H$20,0) -> 33.62061857 | R72: =IF(R24>0,R24*R13*'Cost Budgets'!$H$20,0) -> 38.35154939 | S72: =IF(S24>0,S24*S13*'Cost Budgets'!$H$20,0) -> 39.32436857 | T72: =IF(T24>0,T24*T13*'Cost Budgets'!$H$20,0) -> 44.32690653 | U72: =IF(U24>0,U24*U13*'Cost Budgets'!$H$20,0) -> 45.02811857 | V72: =IF(V24>0,V24*V13*'Cost Budgets'!$H$20,0) -> 50.30226367 | W72: =IF(W24>0,W24*W13*'Cost Budgets'!$H$20,0) -> 50.73186857 | X72: =IF(X24>0,X24*X13*'Cost Budgets'!$H$20,0) -> 55.96526153 | Y72: =IF(Y24>0,Y24*Y13*'Cost Budgets'!$H$20,0) -> 55.75388558 | Z72: =IF(Z24>0,Z24*Z13*'Cost Budgets'!$H$20,0) -> 30.49019821 | AA72: =IF(AA24>0,AA24*AA13*'Cost Budgets'!$H$20,0) -> 30.16251538 | AB72: =IF(AB24>0,AB24*AB13*'Cost Budgets'!$H$20,0) -> 33.14809629 | AC72: =IF(AC24>0,AC24*AC13*'Cost Budgets'!$H$20,0) -> 32.99940035 | AD72: =IF(AD24>0,AD24*AD13*'Cost Budgets'!$H$20,0) -> 32.85070442 | AE72: =IF(AE24>0,AE24*AE13*'Cost Budgets'!$H$20,0) -> 34.20874013 | AF72: =IF(AF24>0,AF24*AF13*'Cost Budgets'!$H$20,0) -> 35.56677585 | AG72: =IF(AG24>0,AG24*AG13*'Cost Budgets'!$H$20,0) -> 36.92481156 | AH72: =IF(AH24>0,AH24*AH13*'Cost Budgets'!$H$20,0) -> 38.28284727 | AI72: =IF(AI24>0,AI24*AI13*'Cost Budgets'!$H$20,0) -> 39.52260671 | AJ72: =IF(AJ24>0,AJ24*AJ13*'Cost Budgets'!$H$20,0) -> 40.72909698 | AK72: =IF(AK24>0,AK24*AK13*'Cost Budgets'!$H$20,0) -> 41.90044604 | AL72: =IF(AL24>0,AL24*AL13*'Cost Budgets'!$H$20,0) -> 43.03510395 | AM72: =IF(AM24>0,AM24*AM13*'Cost Budgets'!$H$20,0) -> 22.06591292 | AN72: =IF(AN24>0,AN24*AN13*'Cost Budgets'!$H$20,0) -> 22.5948275 | AO72: =IF(AO24>0,AO24*AO13*'Cost Budgets'!$H$20,0) -> 23.27384535 | AP72: =IF(AP24>0,AP24*AP13*'Cost Budgets'!$H$20,0) -> 23.95286321 | AQ72: =IF(AQ24>0,AQ24*AQ13*'Cost Budgets'!$H$20,0) -> 24.63188107 | AR72: =IF(AR24>0,AR24*AR13*'Cost Budgets'!$H$20,0) -> 25.31089893 | AS72: =IF(AS24>0,AS24*AS13*'Cost Budgets'!$H$20,0) -> 25.98991678 | AT72: =IF(AT24>0,AT24*AT13*'Cost Budgets'!$H$20,0) -> 26.66893464 | AU72: =IF(AU24>0,AU24*AU13*'Cost Budgets'!$H$20,0) -> 27.3479525 | AV72: =IF(AV24>0,AV24*AV13*'Cost Budgets'!$H$20,0) -> 28.02697035 | AW72: =IF(AW24>0,AW24*AW13*'Cost Budgets'!$H$20,0) -> 28.70598821 | AX72: =IF(AX24>0,AX24*AX13*'Cost Budgets'!$H$20,0) -> 29.38500607 | AY72: =IF(AY24>0,AY24*AY13*'Cost Budgets'!$H$20,0) -> 30.00750659 | AZ72: =IF(AZ24>0,AZ24*AZ13*'Cost Budgets'!$H$20,0) -> 30.61851612 | BA72: =IF(BA24>0,BA24*BA13*'Cost Budgets'!$H$20,0) -> 31.21753531 | BB72: =IF(BB24>0,BB24*BB13*'Cost Budgets'!$H$20,0) -> 31.8041232 | BC72: =IF(BC24>0,BC24*BC13*'Cost Budgets'!$H$20,0) -> 32.37789495 | BD72: =IF(BD24>0,BD24*BD13*'Cost Budgets'!$H$20,0) -> 32.93851967 | BE72: =IF(BE24>0,BE24*BE13*'Cost Budgets'!$H$20,0) -> 16.74285915 | BF72: =IF(BF24>0,BF24*BF13*'Cost Budgets'!$H$20,0) -> 17.00963072 | BG72: =IF(BG24>0,BG24*BG13*'Cost Budgets'!$H$20,0) -> 17.34913965 | BH72: =IF(BH24>0,BH24*BH13*'Cost Budgets'!$H$20,0) -> 17.68864858 | BI72: =IF(BI24>0,BI24*BI13*'Cost Budgets'!$H$20,0) -> 18.02815751 | BJ72: =IF(BJ24>0,BJ24*BJ13*'Cost Budgets'!$H$20,0) -> 18.36766644 | BK72: =IF(BK24>0,BK24*BK13*'Cost Budgets'!$H$20,0) -> 18.70717536 | BL72: =IF(BL24>0,BL24*BL13*'Cost Budgets'!$H$20,0) -> 19.04668429 | BM72: =IF(BM24>0,BM24*BM13*'Cost Budgets'!$H$20,0) -> 19.38619322 | BN72: =IF(BN24>0,BN24*BN13*'Cost Budgets'!$H$20,0) -> 19.72570215 | BO72: =IF(BO24>0,BO24*BO13*'Cost Budgets'!$H$20,0) -> 20.06521108 | BP72: =IF(BP24>0,BP24*BP13*'Cost Budgets'!$H$20,0) -> 20.40472001 | BQ72: =IF(BQ24>0,BQ24*BQ13*'Cost Budgets'!$H$20,0) -> 20.74422894 | BR72: =IF(BR24>0,BR24*BR13*'Cost Budgets'!$H$20,0) -> 21.08373786 | BS72: =IF(BS24>0,BS24*BS13*'Cost Budgets'!$H$20,0) -> 21.42324679 | BT72: =IF(BT24>0,BT24*BT13*'Cost Budgets'!$H$20,0) -> 21.76275572 | BU72: =IF(BU24>0,BU24*BU13*'Cost Budgets'!$H$20,0) -> 22.07705366
B74: Hulling (Actual) | D74: =IF(D80>D33,0,D72) -> 0 | E74: 0 | F74: 0 | G74: 6.088028571 | H74: 9.703353673 | I74: 11.84994857 | J74: 15.84668082 | K74: 17.30715857 | L74: 20.42547796 | M74: 22.21311857 | N74: 26.4008351 | O74: 27.91686857 | P74: 32.37619224 | Q74: 33.62061857 | R74: 38.35154939 | S74: 39.32436857 | T74: 44.32690653 | U74: 45.02811857 | V74: 50.30226367 | W74: 50.73186857 | X74: 55.96526153 | Y74: 55.75388558 | Z74: 30.49019821 | AA74: 30.16251538 | AB74: 33.14809629 | AC74: 32.99940035 | AD74: 32.85070442 | AE74: 34.20874013 | AF74: 35.56677585 | AG74: 36.92481156 | AH74: 38.28284727 | AI74: 39.52260671 | AJ74: =IF(AJ80>AJ33,0,AJ72) -> 40.72909698 | AK74: 41.90044604 | AL74: 43.03510395 | AM74: 22.06591292 | AN74: 22.5948275 | AO74: 23.27384535 | AP74: 23.95286321 | AQ74: 24.63188107 | AR74: 25.31089893 | AS74: 25.98991678 | AT74: 26.66893464 | AU74: 27.3479525 | AV74: 28.02697035 | AW74: 28.70598821 | AX74: 29.38500607 | AY74: 30.00750659 | AZ74: 30.61851612 | BA74: 31.21753531 | BB74: 31.8041232 | BC74: 32.37789495 | BD74: 32.93851967 | BE74: 16.74285915 | BF74: 17.00963072 | BG74: 17.34913965 | BH74: 17.68864858 | BI74: 18.02815751 | BJ74: 18.36766644 | BK74: 18.70717536 | BL74: 19.04668429 | BM74: 19.38619322 | BN74: 19.72570215 | BO74: 20.06521108 | BP74: =IF(BP80>BP33,0,BP72) -> 20.40472001 | BQ74: 20.74422894 | BR74: 21.08373786 | BS74: 21.42324679 | BT74: 21.76275572 | BU74: 22.07705366
B76: Drying (Potential) | D76: =IF(D24>0,D24*D13*'Cost Budgets'!$H$21,0) -> 0 | E76: =IF(E24>0,E24*E13*'Cost Budgets'!$H$21,0) -> 0 | F76: =IF(F24>0,F24*F13*'Cost Budgets'!$H$21,0) -> 0.5965053061 | G76: =IF(G24>0,G24*G13*'Cost Budgets'!$H$21,0) -> 1.217605714 | H76: =IF(H24>0,H24*H13*'Cost Budgets'!$H$21,0) -> 1.940670735 | I76: =IF(I24>0,I24*I13*'Cost Budgets'!$H$21,0) -> 2.369989714 | J76: =IF(J24>0,J24*J13*'Cost Budgets'!$H$21,0) -> 3.169336163 | K76: =IF(K24>0,K24*K13*'Cost Budgets'!$H$21,0) -> 3.461431714 | L76: =IF(L24>0,L24*L13*'Cost Budgets'!$H$21,0) -> 4.085095592 | M76: =IF(M24>0,M24*M13*'Cost Budgets'!$H$21,0) -> 4.442623714 | N76: =IF(N24>0,N24*N13*'Cost Budgets'!$H$21,0) -> 5.28016702 | O76: =IF(O24>0,O24*O13*'Cost Budgets'!$H$21,0) -> 5.583373714 | P76: =IF(P24>0,P24*P13*'Cost Budgets'!$H$21,0) -> 6.475238449 | Q76: =IF(Q24>0,Q24*Q13*'Cost Budgets'!$H$21,0) -> 6.724123714 | R76: =IF(R24>0,R24*R13*'Cost Budgets'!$H$21,0) -> 7.670309878 | S76: =IF(S24>0,S24*S13*'Cost Budgets'!$H$21,0) -> 7.864873714 | T76: =IF(T24>0,T24*T13*'Cost Budgets'!$H$21,0) -> 8.865381306 | U76: =IF(U24>0,U24*U13*'Cost Budgets'!$H$21,0) -> 9.005623714 | V76: =IF(V24>0,V24*V13*'Cost Budgets'!$H$21,0) -> 10.06045273 | W76: =IF(W24>0,W24*W13*'Cost Budgets'!$H$21,0) -> 10.14637371 | X76: =IF(X24>0,X24*X13*'Cost Budgets'!$H$21,0) -> 11.19305231 | Y76: =IF(Y24>0,Y24*Y13*'Cost Budgets'!$H$21,0) -> 11.15077712 | Z76: =IF(Z24>0,Z24*Z13*'Cost Budgets'!$H$21,0) -> 6.098039642 | AA76: =IF(AA24>0,AA24*AA13*'Cost Budgets'!$H$21,0) -> 6.032503075 | AB76: =IF(AB24>0,AB24*AB13*'Cost Budgets'!$H$21,0) -> 6.629619258 | AC76: =IF(AC24>0,AC24*AC13*'Cost Budgets'!$H$21,0) -> 6.599880071 | AD76: =IF(AD24>0,AD24*AD13*'Cost Budgets'!$H$21,0) -> 6.570140884 | AE76: =IF(AE24>0,AE24*AE13*'Cost Budgets'!$H$21,0) -> 6.841748026 | AF76: =IF(AF24>0,AF24*AF13*'Cost Budgets'!$H$21,0) -> 7.113355169 | AG76: =IF(AG24>0,AG24*AG13*'Cost Budgets'!$H$21,0) -> 7.384962312 | AH76: =IF(AH24>0,AH24*AH13*'Cost Budgets'!$H$21,0) -> 7.656569455 | AI76: =IF(AI24>0,AI24*AI13*'Cost Budgets'!$H$21,0) -> 7.904521341 | AJ76: =IF(AJ24>0,AJ24*AJ13*'Cost Budgets'!$H$21,0) -> 8.145819397 | AK76: =IF(AK24>0,AK24*AK13*'Cost Budgets'!$H$21,0) -> 8.380089208 | AL76: =IF(AL24>0,AL24*AL13*'Cost Budgets'!$H$21,0) -> 8.607020791 | AM76: =IF(AM24>0,AM24*AM13*'Cost Budgets'!$H$21,0) -> 4.413182584 | AN76: =IF(AN24>0,AN24*AN13*'Cost Budgets'!$H$21,0) -> 4.518965499 | AO76: =IF(AO24>0,AO24*AO13*'Cost Budgets'!$H$21,0) -> 4.654769071 | AP76: =IF(AP24>0,AP24*AP13*'Cost Budgets'!$H$21,0) -> 4.790572642 | AQ76: =IF(AQ24>0,AQ24*AQ13*'Cost Budgets'!$H$21,0) -> 4.926376214 | AR76: =IF(AR24>0,AR24*AR13*'Cost Budgets'!$H$21,0) -> 5.062179785 | AS76: =IF(AS24>0,AS24*AS13*'Cost Budgets'!$H$21,0) -> 5.197983357 | AT76: =IF(AT24>0,AT24*AT13*'Cost Budgets'!$H$21,0) -> 5.333786928 | AU76: =IF(AU24>0,AU24*AU13*'Cost Budgets'!$H$21,0) -> 5.469590499 | AV76: =IF(AV24>0,AV24*AV13*'Cost Budgets'!$H$21,0) -> 5.605394071 | AW76: =IF(AW24>0,AW24*AW13*'Cost Budgets'!$H$21,0) -> 5.741197642 | AX76: =IF(AX24>0,AX24*AX13*'Cost Budgets'!$H$21,0) -> 5.877001214 | AY76: =IF(AY24>0,AY24*AY13*'Cost Budgets'!$H$21,0) -> 6.001501317 | AZ76: =IF(AZ24>0,AZ24*AZ13*'Cost Budgets'!$H$21,0) -> 6.123703224 | BA76: =IF(BA24>0,BA24*BA13*'Cost Budgets'!$H$21,0) -> 6.243507063 | BB76: =IF(BB24>0,BB24*BB13*'Cost Budgets'!$H$21,0) -> 6.36082464 | BC76: =IF(BC24>0,BC24*BC13*'Cost Budgets'!$H$21,0) -> 6.475578989 | BD76: =IF(BD24>0,BD24*BD13*'Cost Budgets'!$H$21,0) -> 6.587703935 | BE76: =IF(BE24>0,BE24*BE13*'Cost Budgets'!$H$21,0) -> 3.348571831 | BF76: =IF(BF24>0,BF24*BF13*'Cost Budgets'!$H$21,0) -> 3.401926144 | BG76: =IF(BG24>0,BG24*BG13*'Cost Budgets'!$H$21,0) -> 3.46982793 | BH76: =IF(BH24>0,BH24*BH13*'Cost Budgets'!$H$21,0) -> 3.537729716 | BI76: =IF(BI24>0,BI24*BI13*'Cost Budgets'!$H$21,0) -> 3.605631502 | BJ76: =IF(BJ24>0,BJ24*BJ13*'Cost Budgets'!$H$21,0) -> 3.673533287 | BK76: =IF(BK24>0,BK24*BK13*'Cost Budgets'!$H$21,0) -> 3.741435073 | BL76: =IF(BL24>0,BL24*BL13*'Cost Budgets'!$H$21,0) -> 3.809336859 | BM76: =IF(BM24>0,BM24*BM13*'Cost Budgets'!$H$21,0) -> 3.877238644 | BN76: =IF(BN24>0,BN24*BN13*'Cost Budgets'!$H$21,0) -> 3.94514043 | BO76: =IF(BO24>0,BO24*BO13*'Cost Budgets'!$H$21,0) -> 4.013042216 | BP76: =IF(BP24>0,BP24*BP13*'Cost Budgets'!$H$21,0) -> 4.080944002 | BQ76: =IF(BQ24>0,BQ24*BQ13*'Cost Budgets'!$H$21,0) -> 4.148845787 | BR76: =IF(BR24>0,BR24*BR13*'Cost Budgets'!$H$21,0) -> 4.216747573 | BS76: =IF(BS24>0,BS24*BS13*'Cost Budgets'!$H$21,0) -> 4.284649359 | BT76: =IF(BT24>0,BT24*BT13*'Cost Budgets'!$H$21,0) -> 4.352551144 | BU76: =IF(BU24>0,BU24*BU13*'Cost Budgets'!$H$21,0) -> 4.415410732
B78: Drying (Actual) | D78: =IF(D80>D33,0,D76) -> 0 | E78: 0 | F78: 0 | G78: 1.217605714 | H78: 1.940670735 | I78: 2.369989714 | J78: 3.169336163 | K78: 3.461431714 | L78: 4.085095592 | M78: 4.442623714 | N78: 5.28016702 | O78: 5.583373714 | P78: 6.475238449 | Q78: 6.724123714 | R78: 7.670309878 | S78: 7.864873714 | T78: 8.865381306 | U78: 9.005623714 | V78: 10.06045273 | W78: 10.14637371 | X78: 11.19305231 | Y78: 11.15077712 | Z78: 6.098039642 | AA78: 6.032503075 | AB78: 6.629619258 | AC78: 6.599880071 | AD78: 6.570140884 | AE78: 6.841748026 | AF78: 7.113355169 | AG78: 7.384962312 | AH78: 7.656569455 | AI78: 7.904521341 | AJ78: =IF(AJ80>AJ33,0,AJ76) -> 8.145819397 | AK78: 8.380089208 | AL78: 8.607020791 | AM78: 4.413182584 | AN78: 4.518965499 | AO78: 4.654769071 | AP78: 4.790572642 | AQ78: 4.926376214 | AR78: 5.062179785 | AS78: 5.197983357 | AT78: 5.333786928 | AU78: 5.469590499 | AV78: 5.605394071 | AW78: 5.741197642 | AX78: 5.877001214 | AY78: 6.001501317 | AZ78: 6.123703224 | BA78: 6.243507063 | BB78: 6.36082464 | BC78: 6.475578989 | BD78: 6.587703935 | BE78: 3.348571831 | BF78: 3.401926144 | BG78: 3.46982793 | BH78: 3.537729716 | BI78: 3.605631502 | BJ78: 3.673533287 | BK78: 3.741435073 | BL78: 3.809336859 | BM78: 3.877238644 | BN78: 3.94514043 | BO78: 4.013042216 | BP78: =IF(BP80>BP33,0,BP76) -> 4.080944002 | BQ78: 4.148845787 | BR78: 4.216747573 | BS78: 4.284649359 | BT78: 4.352551144 | BU78: 4.415410732
B80: Total Potential Costs (Harv.,Hull,Dry) | D80: =D68+D72+D76 -> 0 | E80: =E68+E72+E76 -> 0 | F80: 23.57903184 | G80: 27.30563429 | H80: 31.64402441 | I80: 34.21993829 | J80: 39.01601698 | K80: 40.76859029 | L80: 44.51057355 | M80: 46.65574229 | N80: 51.68100212 | O80: 53.50024229 | P80: 58.85143069 | Q80: 60.34474229 | R80: 66.02185927 | S80: 67.18924229 | T80: 73.19228784 | U80: 74.03374229 | V80: 80.36271641 | W80: 80.87824229 | X80: 87.15831383 | Y80: 86.9046627 | Z80: 56.58823785 | AA80: 56.19501845 | AB80: 59.77771555 | AC80: 59.59928042 | AD80: 59.4208453 | AE80: 61.05048816 | AF80: 62.68013102 | AG80: 64.30977387 | AH80: 65.93941673 | AI80: 67.42712805 | AJ80: 68.87491638 | AK80: 70.28053525 | AL80: 71.64212474 | AM80: 46.4790955 | AN80: 47.113793 | AO80: 47.92861443 | AP80: 48.74343585 | AQ80: 49.55825728 | AR80: 50.37307871 | AS80: 51.18790014 | AT80: 52.00272157 | AU80: 52.817543 | AV80: 53.63236443 | AW80: 54.44718585 | AX80: 55.26200728 | AY80: 56.0090079 | AZ80: 56.74221934 | BA80: 57.46104238 | BB80: 58.16494784 | BC80: 58.85347394 | BD80: 59.52622361 | BE80: 40.09143098 | BF80: 40.41155687 | BG80: 40.81896758 | BH80: 41.2263783 | BI80: 41.63378901 | BJ80: 42.04119972 | BK80: 42.44861044 | BL80: 42.85602115 | BM80: 43.26343187 | BN80: 43.67084258 | BO80: 44.0782533 | BP80: 44.48566401 | BQ80: =BQ68+BQ72+BQ76 -> 44.89307472 | BR80: =BR68+BR72+BR76 -> 45.30048544 | BS80: =BS68+BS72+BS76 -> 45.70789615 | BT80: =BT68+BT72+BT76 -> 46.11530687 | BU80: =BU68+BU72+BU76 -> 46.49246439
B82: Total Actual Costs (Harv., Hull, Dry) | D82: =D70+D74+D78 -> 0 | E82: =E70+E74+E78 -> 0 | F82: 0 | G82: 27.30563429 | H82: 31.64402441 | I82: 34.21993829 | J82: 39.01601698 | K82: 40.76859029 | L82: 44.51057355 | M82: 46.65574229 | N82: 51.68100212 | O82: 53.50024229 | P82: 58.85143069 | Q82: 60.34474229 | R82: 66.02185927 | S82: 67.18924229 | T82: 73.19228784 | U82: 74.03374229 | V82: 80.36271641 | W82: 80.87824229 | X82: 87.15831383 | Y82: 86.9046627 | Z82: 56.58823785 | AA82: 56.19501845 | AB82: 59.77771555 | AC82: 59.59928042 | AD82: 59.4208453 | AE82: 61.05048816 | AF82: 62.68013102 | AG82: 64.30977387 | AH82: 65.93941673 | AI82: 67.42712805 | AJ82: 68.87491638 | AK82: 70.28053525 | AL82: 71.64212474 | AM82: 46.4790955 | AN82: 47.113793 | AO82: 47.92861443 | AP82: 48.74343585 | AQ82: 49.55825728 | AR82: 50.37307871 | AS82: 51.18790014 | AT82: 52.00272157 | AU82: 52.817543 | AV82: 53.63236443 | AW82: 54.44718585 | AX82: 55.26200728 | AY82: 56.0090079 | AZ82: 56.74221934 | BA82: 57.46104238 | BB82: 58.16494784 | BC82: 58.85347394 | BD82: 59.52622361 | BE82: 40.09143098 | BF82: 40.41155687 | BG82: 40.81896758 | BH82: 41.2263783 | BI82: 41.63378901 | BJ82: 42.04119972 | BK82: 42.44861044 | BL82: 42.85602115 | BM82: 43.26343187 | BN82: 43.67084258 | BO82: 44.0782533 | BP82: 44.48566401 | BQ82: =BQ70+BQ74+BQ78 -> 44.89307472 | BR82: =BR70+BR74+BR78 -> 45.30048544 | BS82: =BS70+BS74+BS78 -> 45.70789615 | BT82: =BT70+BT74+BT78 -> 46.11530687 | BU82: =BU70+BU74+BU78 -> 46.49246439
B84: Transportation Costs | D84: =IF(D82>0,'Cost Budgets'!$H$24*((D24*D13)/1000),0) -> 0 | E84: =IF(E82>0,'Cost Budgets'!$H$24*((E24*E13)/1000),0) -> 0 | F84: =IF(F82>0,'Cost Budgets'!$H$24*((F24*F13)/1000),0) -> 0 | G84: =IF(G82>0,'Cost Budgets'!$H$24*((G24*G13)/1000),0) -> 0.5113944 | H84: =IF(H82>0,'Cost Budgets'!$H$24*((H24*H13)/1000),0) -> 0.8150817086 | I84: =IF(I82>0,'Cost Budgets'!$H$24*((I24*I13)/1000),0) -> 0.99539568 | J84: =IF(J82>0,'Cost Budgets'!$H$24*((J24*J13)/1000),0) -> 1.331121189 | K84: =IF(K82>0,'Cost Budgets'!$H$24*((K24*K13)/1000),0) -> 1.45380132 | L84: =IF(L82>0,'Cost Budgets'!$H$24*((L24*L13)/1000),0) -> 1.715740149 | M84: =IF(M82>0,'Cost Budgets'!$H$24*((M24*M13)/1000),0) -> 1.86590196 | N84: =IF(N82>0,'Cost Budgets'!$H$24*((N24*N13)/1000),0) -> 2.217670149 | O84: =IF(O82>0,'Cost Budgets'!$H$24*((O24*O13)/1000),0) -> 2.34501696 | P84: =IF(P82>0,'Cost Budgets'!$H$24*((P24*P13)/1000),0) -> 2.719600149 | Q84: =IF(Q82>0,'Cost Budgets'!$H$24*((Q24*Q13)/1000),0) -> 2.82413196 | R84: =IF(R82>0,'Cost Budgets'!$H$24*((R24*R13)/1000),0) -> 3.221530149 | S84: =IF(S82>0,'Cost Budgets'!$H$24*((S24*S13)/1000),0) -> 3.30324696 | T84: =IF(T82>0,'Cost Budgets'!$H$24*((T24*T13)/1000),0) -> 3.723460149 | U84: =IF(U82>0,'Cost Budgets'!$H$24*((U24*U13)/1000),0) -> 3.78236196 | V84: =IF(V82>0,'Cost Budgets'!$H$24*((V24*V13)/1000),0) -> 4.225390149 | W84: =IF(W82>0,'Cost Budgets'!$H$24*((W24*W13)/1000),0) -> 4.26147696 | X84: =IF(X82>0,'Cost Budgets'!$H$24*((X24*X13)/1000),0) -> 4.701081968 | Y84: =IF(Y82>0,'Cost Budgets'!$H$24*((Y24*Y13)/1000),0) -> 4.683326389 | Z84: =IF(Z82>0,'Cost Budgets'!$H$24*((Z24*Z13)/1000),0) -> 2.56117665 | AA84: =IF(AA82>0,'Cost Budgets'!$H$24*((AA24*AA13)/1000),0) -> 2.533651292 | AB84: =IF(AB82>0,'Cost Budgets'!$H$24*((AB24*AB13)/1000),0) -> 2.784440088 | AC84: =IF(AC82>0,'Cost Budgets'!$H$24*((AC24*AC13)/1000),0) -> 2.77194963 | AD84: =IF(AD82>0,'Cost Budgets'!$H$24*((AD24*AD13)/1000),0) -> 2.759459171 | AE84: =IF(AE82>0,'Cost Budgets'!$H$24*((AE24*AE13)/1000),0) -> 2.873534171 | AF84: =IF(AF82>0,'Cost Budgets'!$H$24*((AF24*AF13)/1000),0) -> 2.987609171 | AG84: =IF(AG82>0,'Cost Budgets'!$H$24*((AG24*AG13)/1000),0) -> 3.101684171 | AH84: =IF(AH82>0,'Cost Budgets'!$H$24*((AH24*AH13)/1000),0) -> 3.215759171 | AI84: =IF(AI82>0,'Cost Budgets'!$H$24*((AI24*AI13)/1000),0) -> 3.319898963 | AJ84: =IF(AJ82>0,'Cost Budgets'!$H$24*((AJ24*AJ13)/1000),0) -> 3.421244147 | AK84: =IF(AK82>0,'Cost Budgets'!$H$24*((AK24*AK13)/1000),0) -> 3.519637467 | AL84: =IF(AL82>0,'Cost Budgets'!$H$24*((AL24*AL13)/1000),0) -> 3.614948732 | AM84: =IF(AM82>0,'Cost Budgets'!$H$24*((AM24*AM13)/1000),0) -> 1.853536685 | AN84: =IF(AN82>0,'Cost Budgets'!$H$24*((AN24*AN13)/1000),0) -> 1.89796551 | AO84: =IF(AO82>0,'Cost Budgets'!$H$24*((AO24*AO13)/1000),0) -> 1.95500301 | AP84: =IF(AP82>0,'Cost Budgets'!$H$24*((AP24*AP13)/1000),0) -> 2.01204051 | AQ84: =IF(AQ82>0,'Cost Budgets'!$H$24*((AQ24*AQ13)/1000),0) -> 2.06907801 | AR84: =IF(AR82>0,'Cost Budgets'!$H$24*((AR24*AR13)/1000),0) -> 2.12611551 | AS84: =IF(AS82>0,'Cost Budgets'!$H$24*((AS24*AS13)/1000),0) -> 2.18315301 | AT84: =IF(AT82>0,'Cost Budgets'!$H$24*((AT24*AT13)/1000),0) -> 2.24019051 | AU84: =IF(AU82>0,'Cost Budgets'!$H$24*((AU24*AU13)/1000),0) -> 2.29722801 | AV84: =IF(AV82>0,'Cost Budgets'!$H$24*((AV24*AV13)/1000),0) -> 2.35426551 | AW84: =IF(AW82>0,'Cost Budgets'!$H$24*((AW24*AW13)/1000),0) -> 2.41130301 | AX84: =IF(AX82>0,'Cost Budgets'!$H$24*((AX24*AX13)/1000),0) -> 2.46834051 | AY84: =IF(AY82>0,'Cost Budgets'!$H$24*((AY24*AY13)/1000),0) -> 2.520630553 | AZ84: =IF(AZ82>0,'Cost Budgets'!$H$24*((AZ24*AZ13)/1000),0) -> 2.571955354 | BA84: =IF(BA82>0,'Cost Budgets'!$H$24*((BA24*BA13)/1000),0) -> 2.622272966 | BB84: =IF(BB82>0,'Cost Budgets'!$H$24*((BB24*BB13)/1000),0) -> 2.671546349 | BC84: =IF(BC82>0,'Cost Budgets'!$H$24*((BC24*BC13)/1000),0) -> 2.719743176 | BD84: =IF(BD82>0,'Cost Budgets'!$H$24*((BD24*BD13)/1000),0) -> 2.766835653 | BE84: =IF(BE82>0,'Cost Budgets'!$H$24*((BE24*BE13)/1000),0) -> 1.406400169 | BF84: =IF(BF82>0,'Cost Budgets'!$H$24*((BF24*BF13)/1000),0) -> 1.428808981 | BG84: =IF(BG82>0,'Cost Budgets'!$H$24*((BG24*BG13)/1000),0) -> 1.457327731 | BH84: =IF(BH82>0,'Cost Budgets'!$H$24*((BH24*BH13)/1000),0) -> 1.485846481 | BI84: =IF(BI82>0,'Cost Budgets'!$H$24*((BI24*BI13)/1000),0) -> 1.514365231 | BJ84: =IF(BJ82>0,'Cost Budgets'!$H$24*((BJ24*BJ13)/1000),0) -> 1.542883981 | BK84: =IF(BK82>0,'Cost Budgets'!$H$24*((BK24*BK13)/1000),0) -> 1.571402731 | BL84: =IF(BL82>0,'Cost Budgets'!$H$24*((BL24*BL13)/1000),0) -> 1.599921481 | BM84: =IF(BM82>0,'Cost Budgets'!$H$24*((BM24*BM13)/1000),0) -> 1.628440231 | BN84: =IF(BN82>0,'Cost Budgets'!$H$24*((BN24*BN13)/1000),0) -> 1.656958981 | BO84: =IF(BO82>0,'Cost Budgets'!$H$24*((BO24*BO13)/1000),0) -> 1.685477731 | BP84: =IF(BP82>0,'Cost Budgets'!$H$24*((BP24*BP13)/1000),0) -> 1.713996481 | BQ84: =IF(BQ82>0,'Cost Budgets'!$H$24*((BQ24*BQ13)/1000),0) -> 1.742515231 | BR84: =IF(BR82>0,'Cost Budgets'!$H$24*((BR24*BR13)/1000),0) -> 1.771033981 | BS84: =IF(BS82>0,'Cost Budgets'!$H$24*((BS24*BS13)/1000),0) -> 1.799552731 | BT84: =IF(BT82>0,'Cost Budgets'!$H$24*((BT24*BT13)/1000),0) -> 1.828071481 | BU84: =IF(BU82>0,'Cost Budgets'!$H$24*((BU24*BU13)/1000),0) -> 1.854472507
B87: Total Revenues | D87: =D35 -> 0 | E87: =E35 -> 0 | F87: 0 | G87: 35.06704457 | H87: 55.89131716 | I87: 68.25570377 | J87: 91.2768815 | K87: 99.68923337 | L87: 117.650753 | M87: 127.947563 | N87: 152.0688102 | O87: 160.801163 | P87: 186.4868673 | Q87: 193.654763 | R87: 220.9049245 | S87: 226.508363 | T87: 255.3229816 | U87: 259.361963 | V87: 289.7410388 | W87: 292.215563 | X87: 322.3599064 | Y87: 321.142381 | Z87: 175.6235417 | AA87: 173.7360886 | AB87: 190.9330346 | AC87: 190.076546 | AD87: 189.2200574 | AE87: 197.0423432 | AF87: 204.8646289 | AG87: 212.6869146 | AH87: 220.5092003 | AI87: 227.6502146 | AJ87: 234.5995986 | AK87: 241.3465692 | AL87: 247.8821988 | AM87: 127.0996584 | AN87: 130.1462064 | AO87: 134.0573492 | AP87: 137.9684921 | AQ87: 141.879635 | AR87: 145.7907778 | AS87: 149.7019207 | AT87: 153.6130635 | AU87: 157.5242064 | AV87: 161.4353492 | AW87: 165.3464921 | AX87: 169.257635 | AY87: 172.8432379 | AZ87: 176.3626528 | BA87: 179.8130034 | BB87: 183.1917496 | BC87: 186.4966749 | BD87: 189.7258733 | BE87: 96.43886872 | BF87: 97.97547296 | BG87: 99.93104439 | BH87: 101.8866158 | BI87: 103.8421872 | BJ87: 105.7977587 | BK87: 107.7533301 | BL87: 109.7089015 | BM87: 111.664473 | BN87: 113.6200444 | BO87: 115.5756158 | BP87: 117.5311872 | BQ87: =BQ35 -> 119.4867587 | BR87: =BR35 -> 121.4423301 | BS87: =BS35 -> 123.3979015 | BT87: =BT35 -> 125.353473 | BU87: =BU35 -> 127.1638291
B89: Total Costs | D89: =D39+D41+D43+D45+D47+D82+D84 -> 593.8 | E89: =E39+E41+E43+E45+E47+E51+E53+E55+E57+E59+E61+E63+E82+E84 -> 33.13 | F89: =F39+F41+F43+F45+F47+F51+F53+F55+F57+F59+F61+F63+F82+F84 -> 22.5 | G89: 73.44702869 | H89: 56.15298367 | I89: 56.47199512 | J89: 72.23109836 | K89: 62.54238334 | L89: 66.92019125 | M89: 67.90496656 | N89: 74.59254982 | O89: 75.22858156 | P89: 61.57103084 | Q89: 82.55219656 | R89: 69.24338941 | S89: 89.87581156 | T89: 76.91574799 | U89: 97.19942656 | V89: 84.58810656 | W89: 104.5230416 | X89: 91.8593958 | Y89: 110.9713114 | Z89: 95.43679264 | AA89: 68.4203309 | AB89: 62.56215563 | AC89: 62.37123005 | AD89: 62.18030447 | AE89: 63.92402233 | AF89: 65.66774019 | AG89: 67.41145804 | AH89: 69.1551759 | AI89: 70.74702701 | AJ89: 72.29616053 | AK89: =AK39+AK41+AK43+AK45+AK47+AK51+AK53+AK55+AK57+AK59+AK61+AK63+AK82+AK84 -> 73.80017272 | AL89: 75.25707348 | AM89: 89.84957683 | AN89: 49.01175851 | AO89: 49.88361743 | AP89: 50.75547636 | AQ89: 51.62733529 | AR89: 52.49919422 | AS89: 53.37105315 | AT89: 54.24291208 | AU89: 55.11477101 | AV89: 55.98662993 | AW89: 56.85848886 | AX89: 57.73034779 | AY89: 58.52963846 | AZ89: 59.3141747 | BA89: 60.08331534 | BB89: 60.83649419 | BC89: 61.57321711 | BD89: 62.29305926 | BE89: 86.45380814 | BF89: 41.84036585 | BG89: 42.27629531 | BH89: 42.71222478 | BI89: 43.14815424 | BJ89: 43.5840837 | BK89: 44.02001317 | BL89: 44.45594263 | BM89: 44.8918721 | BN89: 45.32780156 | BO89: 45.76373103 | BP89: 46.19966049 | BQ89: 46.63558995 | BR89: 47.07151942 | BS89: 47.50744888 | BT89: 47.94337835 | BU89: 48.3469369
B91: Net Revenues | D91: =D87-D89 -> -593.8 | E91: =E87-E89 -> -33.13 | F91: -22.5 | G91: -38.37998411 | H91: -0.2616665086 | I91: 11.78370865 | J91: 19.04578314 | K91: 37.14685003 | L91: 50.73056179 | M91: 60.04259641 | N91: 77.47626037 | O91: 85.57258141 | P91: 124.9158365 | Q91: 111.1025664 | R91: 151.6615351 | S91: 136.6325514 | T91: 178.4072336 | U91: 162.1625364 | V91: 205.1529322 | W91: 187.6925214 | X91: 230.5005106 | Y91: 210.1710696 | Z91: 80.18674906 | AA91: 105.3157577 | AB91: 128.370879 | AC91: 127.705316 | AD91: 127.039753 | AE91: 133.1183208 | AF91: 139.1968887 | AG91: 145.2754565 | AH91: 151.3540244 | AI91: 156.9031876 | AJ91: 162.3034381 | AK91: 167.5463965 | AL91: 172.6251253 | AM91: 37.25008158 | AN91: 81.13444788 | AO91: 84.17373181 | AP91: 87.21301573 | AQ91: 90.25229966 | AR91: 93.29158359 | AS91: 96.33086752 | AT91: 99.37015145 | AU91: 102.4094354 | AV91: 105.4487193 | AW91: 108.4880032 | AX91: 111.5272872 | AY91: 114.3135995 | AZ91: 117.0484781 | BA91: 119.7296881 | BB91: 122.3552554 | BC91: 124.9234578 | BD91: 127.4328141 | BE91: 9.985060577 | BF91: 56.13510711 | BG91: 57.65474908 | BH91: 59.17439104 | BI91: 60.694033 | BJ91: 62.21367497 | BK91: 63.73331693 | BL91: 65.2529589 | BM91: 66.77260086 | BN91: 68.29224283 | BO91: 69.81188479 | BP91: 71.33152675 | BQ91: =BQ87-BQ89 -> 72.85116872 | BR91: =BR87-BR89 -> 74.37081068 | BS91: =BS87-BS89 -> 75.89045265 | BT91: =BT87-BT89 -> 77.41009461 | BU91: =BU87-BU89 -> 78.81689218
D92: =NPV('Management Input'!$O$16,'Financial Analysis'!D91) -> -576.5048544 | E92: =NPV('Management Input'!$O$16,$D$91:E91) -> -607.7330568 | F92: =NPV('Management Input'!$O$16,$D$91:F91) -> -628.3237442 | G92: =NPV('Management Input'!$O$16,$D$91:G91) -> -662.423863 | H92: =NPV('Management Input'!$O$16,$D$91:H91) -> -662.6495788 | I92: =NPV('Management Input'!$O$16,$D$91:I91) -> -652.7809083 | J92: =NPV('Management Input'!$O$16,$D$91:J91) -> -637.2949437 | K92: =NPV('Management Input'!$O$16,$D$91:K91) -> -607.9708773 | L92: =NPV('Management Input'!$O$16,$D$91:L91) -> -569.0901259 | M92: =NPV('Management Input'!$O$16,$D$91:M91) -> -524.4127952 | N92: =NPV('Management Input'!$O$16,$D$91:N91) -> -468.4422963 | O92: =NPV('Management Input'!$O$16,$D$91:O91) -> -408.4234094 | P92: =NPV('Management Input'!$O$16,$D$91:P91) -> -323.3618032 | Q92: =NPV('Management Input'!$O$16,$D$91:Q91) -> -249.9099183 | R92: =NPV('Management Input'!$O$16,$D$91:R91) -> -152.56415 | S92: =NPV('Management Input'!$O$16,$D$91:S91) -> -67.41926116 | T92: =NPV('Management Input'!$O$16,$D$91:T91) -> 40.52004924 | U92: =NPV('Management Input'!$O$16,$D$91:U91) -> 135.7734487 | V92: =NPV('Management Input'!$O$16,$D$91:V91) -> 252.7692993 | W92: =NPV('Management Input'!$O$16,$D$91:W91) -> 356.6900976 | X92: =NPV('Management Input'!$O$16,$D$91:X91) -> 480.5954802 | Y92: =NPV('Management Input'!$O$16,$D$91:Y91) -> 590.2821853 | Z92: =NPV('Management Input'!$O$16,$D$91:Z91) -> 630.9121494 | AA92: =NPV('Management Input'!$O$16,$D$91:AA91) -> 682.7205235 | AB92: =NPV('Management Input'!$O$16,$D$91:AB91) -> 744.0311703 | AC92: =NPV('Management Input'!$O$16,$D$91:AC91) -> 803.247452 | AD92: =NPV('Management Input'!$O$16,$D$91:AD91) -> 860.4393584 | AE92: =NPV('Management Input'!$O$16,$D$91:AE91) -> 918.6222819 | AF92: =NPV('Management Input'!$O$16,$D$91:AF91) -> 977.6899752 | AG92: =NPV('Management Input'!$O$16,$D$91:AG91) -> 1037.54154 | AH92: =NPV('Management Input'!$O$16,$D$91:AH91) -> 1098.081204 | AI92: =NPV('Management Input'!$O$16,$D$91:AI91) -> 1159.012522 | AJ92: =NPV('Management Input'!$O$16,$D$91:AJ91) -> 1220.205179 | AK92: =NPV('Management Input'!$O$16,$D$91:AK91) -> 1281.534682 | AL92: =NPV('Management Input'!$O$16,$D$91:AL91) -> 1342.882786 | AM92: =NPV('Management Input'!$O$16,$D$91:AM91) -> 1355.735272 | AN92: =NPV('Management Input'!$O$16,$D$91:AN91) -> 1382.913928 | AO92: =NPV('Management Input'!$O$16,$D$91:AO91) -> 1410.289427 | AP92: =NPV('Management Input'!$O$16,$D$91:AP91) -> 1437.827246 | AQ92: =NPV('Management Input'!$O$16,$D$91:AQ91) -> 1465.494705 | AR92: =NPV('Management Input'!$O$16,$D$91:AR91) -> 1493.260893 | AS92: =NPV('Management Input'!$O$16,$D$91:AS91) -> 1521.096586 | AT92: =NPV('Management Input'!$O$16,$D$91:AT91) -> 1548.97418 | AU92: =NPV('Management Input'!$O$16,$D$91:AU91) -> 1576.86762 | AV92: =NPV('Management Input'!$O$16,$D$91:AV91) -> 1604.752334 | AW92: =NPV('Management Input'!$O$16,$D$91:AW91) -> 1632.605168 | AX92: =NPV('Management Input'!$O$16,$D$91:AX91) -> 1660.404321 | AY92: =NPV('Management Input'!$O$16,$D$91:AY91) -> 1688.068075 | AZ92: =NPV('Management Input'!$O$16,$D$91:AZ91) -> 1715.56865 | BA92: =NPV('Management Input'!$O$16,$D$91:BA91) -> 1742.879839 | BB92: =NPV('Management Input'!$O$16,$D$91:BB91) -> 1769.977024 | BC92: =NPV('Management Input'!$O$16,$D$91:BC91) -> 1796.837166 | BD92: =NPV('Management Input'!$O$16,$D$91:BD91) -> 1823.438803 | BE92: =NPV('Management Input'!$O$16,$D$91:BE91) -> 1825.462477 | BF92: =NPV('Management Input'!$O$16,$D$91:BF91) -> 1836.508023 | BG92: =NPV('Management Input'!$O$16,$D$91:BG91) -> 1847.522161 | BH92: =NPV('Management Input'!$O$16,$D$91:BH91) -> 1858.49735 | BI92: =NPV('Management Input'!$O$16,$D$91:BI91) -> 1869.426514 | BJ92: =NPV('Management Input'!$O$16,$D$91:BJ91) -> 1880.303025 | BK92: =NPV('Management Input'!$O$16,$D$91:BK91) -> 1891.120678 | BL92: =NPV('Management Input'!$O$16,$D$91:BL91) -> 1901.873674 | BM92: =NPV('Management Input'!$O$16,$D$91:BM91) -> 1912.556604 | BN92: =NPV('Management Input'!$O$16,$D$91:BN91) -> 1923.164426 | BO92: =NPV('Management Input'!$O$16,$D$91:BO91) -> 1933.692453 | BP92: =NPV('Management Input'!$O$16,$D$91:BP91) -> 1944.136334 | BQ92: =NPV('Management Input'!$O$16,$D$91:BQ91) -> 1954.492039 | BR92: =NPV('Management Input'!$O$16,$D$91:BR91) -> 1964.755846 | BS92: =NPV('Management Input'!$O$16,$D$91:BS91) -> 1974.924322 | BT92: =NPV('Management Input'!$O$16,$D$91:BT91) -> 1984.994313 | BU92: =NPV('Management Input'!$O$16,$D$91:BU91) -> 1994.948678
D93: =MIRR(D91,'Management Input'!$O$16+0.01,'Management Input'!$O$16) ->  | E93: =MIRR($D$91:E91,'Management Input'!$O$16+0.01,'Management Input'!$O$16) -> -1 | F93: =MIRR($D$91:F91,'Management Input'!$O$16+0.01,'Management Input'!$O$16) -> -1 | G93: =MIRR($D$91:G91,'Management Input'!$O$16+0.01,'Management Input'!$O$16) -> -1 | H93: =MIRR($D$91:H91,'Management Input'!$O$16+0.01,'Management Input'!$O$16) -> -1 | I93: =MIRR($D$91:I91,'Management Input'!$O$16+0.01,'Management Input'!$O$16) -> -0.5557245836 | J93: =MIRR($D$91:J91,'Management Input'!$O$16+0.01,'Management Input'!$O$16) -> -0.4018415728 | K93: =MIRR($D$91:K91,'Management Input'!$O$16+0.01,'Management Input'!$O$16) -> -0.2785377205 | L93: =MIRR($D$91:L91,'Management Input'!$O$16+0.01,'Management Input'!$O$16) -> -0.1933219048 | M93: =MIRR($D$91:M91,'Management Input'!$O$16+0.01,'Management Input'!$O$16) -> -0.1343734126 | N93: =MIRR($D$91:N91,'Management Input'!$O$16+0.01,'Management Input'!$O$16) -> -0.0887334266 | O93: =MIRR($D$91:O91,'Management Input'!$O$16+0.01,'Management Input'!$O$16) -> -0.05569278898 | P93: =MIRR($D$91:P91,'Management Input'!$O$16+0.01,'Management Input'!$O$16) -> -0.02567773015 | Q93: =MIRR($D$91:Q91,'Management Input'!$O$16+0.01,'Management Input'!$O$16) -> -0.006641745358 | R93: =MIRR($D$91:R91,'Management Input'!$O$16+0.01,'Management Input'!$O$16) -> 0.01111050327 | S93: =MIRR($D$91:S91,'Management Input'!$O$16+0.01,'Management Input'!$O$16) -> 0.0228312863 | T93: =MIRR($D$91:T91,'Management Input'!$O$16+0.01,'Management Input'!$O$16) -> 0.03399162546 | U93: =MIRR($D$91:U91,'Management Input'!$O$16+0.01,'Management Input'!$O$16) -> 0.04151055936 | V93: =MIRR($D$91:V91,'Management Input'!$O$16+0.01,'Management Input'!$O$16) -> 0.04880514313 | W93: =MIRR($D$91:W91,'Management Input'!$O$16+0.01,'Management Input'!$O$16) -> 0.05375366188 | X93: =MIRR($D$91:X91,'Management Input'!$O$16+0.01,'Management Input'!$O$16) -> 0.0586076387 | Y93: =MIRR($D$91:Y91,'Management Input'!$O$16+0.01,'Management Input'!$O$16) -> 0.06184990465 | Z93: =MIRR($D$91:Z91,'Management Input'!$O$16+0.01,'Management Input'!$O$16) -> 0.06192034862 | AA93: =MIRR($D$91:AA91,'Management Input'!$O$16+0.01,'Management Input'!$O$16) -> 0.06232439772 | AB93: =MIRR($D$91:AB91,'Management Input'!$O$16+0.01,'Management Input'!$O$16) -> 0.06292934999 | AC93: =MIRR($D$91:AC91,'Management Input'!$O$16+0.01,'Management Input'!$O$16) -> 0.06334459769 | AD93: =MIRR($D$91:AD91,'Management Input'!$O$16+0.01,'Management Input'!$O$16) -> 0.06360689523 | AE93: =MIRR($D$91:AE91,'Management Input'!$O$16+0.01,'Management Input'!$O$16) -> 0.06381892745 | AF93: =MIRR($D$91:AF91,'Management Input'!$O$16+0.01,'Management Input'!$O$16) -> 0.06398487236 | AG93: =MIRR($D$91:AG91,'Management Input'!$O$16+0.01,'Management Input'!$O$16) -> 0.06410870653 | AH93: =MIRR($D$91:AH91,'Management Input'!$O$16+0.01,'Management Input'!$O$16) -> 0.0641941764 | AI93: =MIRR($D$91:AI91,'Management Input'!$O$16+0.01,'Management Input'!$O$16) -> 0.06424090989 | AJ93: =MIRR($D$91:AJ91,'Management Input'!$O$16+0.01,'Management Input'!$O$16) -> 0.06425211122 | AK93: =MIRR($D$91:AK91,'Management Input'!$O$16+0.01,'Management Input'!$O$16) -> 0.06423082207 | AL93: =MIRR($D$91:AL91,'Management Input'!$O$16+0.01,'Management Input'!$O$16) -> 0.06417991407 | AM93: =MIRR($D$91:AM91,'Management Input'!$O$16+0.01,'Management Input'!$O$16) -> 0.06338184752 | AN93: =MIRR($D$91:AN91,'Management Input'!$O$16+0.01,'Management Input'!$O$16) -> 0.06283494449 | AO93: =MIRR($D$91:AO91,'Management Input'!$O$16+0.01,'Management Input'!$O$16) -> 0.06231552019 | AP93: =MIRR($D$91:AP91,'Management Input'!$O$16+0.01,'Management Input'!$O$16) -> 0.06182095393 | AQ93: =MIRR($D$91:AQ91,'Management Input'!$O$16+0.01,'Management Input'!$O$16) -> 0.0613489428 | AR93: =MIRR($D$91:AR91,'Management Input'!$O$16+0.01,'Management Input'!$O$16) -> 0.06089745799 | AS93: =MIRR($D$91:AS91,'Management Input'!$O$16+0.01,'Management Input'!$O$16) -> 0.06046470769 | AT93: =MIRR($D$91:AT91,'Management Input'!$O$16+0.01,'Management Input'!$O$16) -> 0.06004910563 | AU93: =MIRR($D$91:AU91,'Management Input'!$O$16+0.01,'Management Input'!$O$16) -> 0.0596492442 | AV93: =MIRR($D$91:AV91,'Management Input'!$O$16+0.01,'Management Input'!$O$16) -> 0.05926387142 | AW93: =MIRR($D$91:AW91,'Management Input'!$O$16+0.01,'Management Input'!$O$16) -> 0.05889187126 | AX93: =MIRR($D$91:AX91,'Management Input'!$O$16+0.01,'Management Input'!$O$16) -> 0.05853224666 | AY93: =MIRR($D$91:AY91,'Management Input'!$O$16+0.01,'Management Input'!$O$16) -> 0.05818351856 | AZ93: =MIRR($D$91:AZ91,'Management Input'!$O$16+0.01,'Management Input'!$O$16) -> 0.05784486417 | BA93: =MIRR($D$91:BA91,'Management Input'!$O$16+0.01,'Management Input'!$O$16) -> 0.05751554915 | BB93: =MIRR($D$91:BB91,'Management Input'!$O$16+0.01,'Management Input'!$O$16) -> 0.05719491749 | BC93: =MIRR($D$91:BC91,'Management Input'!$O$16+0.01,'Management Input'!$O$16) -> 0.05688238254 | BD93: =MIRR($D$91:BD91,'Management Input'!$O$16+0.01,'Management Input'!$O$16) -> 0.05657741909 | BE93: =MIRR($D$91:BE91,'Management Input'!$O$16+0.01,'Management Input'!$O$16) -> 0.05608587881 | BF93: =MIRR($D$91:BF91,'Management Input'!$O$16+0.01,'Management Input'!$O$16) -> 0.05568344596 | BG93: =MIRR($D$91:BG91,'Management Input'!$O$16+0.01,'Management Input'!$O$16) -> 0.05529517723 | BH93: =MIRR($D$91:BH91,'Management Input'!$O$16+0.01,'Management Input'!$O$16) -> 0.05492025678 | BI93: =MIRR($D$91:BI91,'Management Input'!$O$16+0.01,'Management Input'!$O$16) -> 0.05455793082 | BJ93: =MIRR($D$91:BJ91,'Management Input'!$O$16+0.01,'Management Input'!$O$16) -> 0.05420750196 | BK93: =MIRR($D$91:BK91,'Management Input'!$O$16+0.01,'Management Input'!$O$16) -> 0.05386832421 | BL93: =MIRR($D$91:BL91,'Management Input'!$O$16+0.01,'Management Input'!$O$16) -> 0.05353979834 | BM93: =MIRR($D$91:BM91,'Management Input'!$O$16+0.01,'Management Input'!$O$16) -> 0.05322136793 | BN93: =MIRR($D$91:BN91,'Management Input'!$O$16+0.01,'Management Input'!$O$16) -> 0.05291251557 | BO93: =MIRR($D$91:BO91,'Management Input'!$O$16+0.01,'Management Input'!$O$16) -> 0.05261275968 | BP93: =MIRR($D$91:BP91,'Management Input'!$O$16+0.01,'Management Input'!$O$16) -> 0.05232165144 | BQ93: =MIRR($D$91:BQ91,'Management Input'!$O$16+0.01,'Management Input'!$O$16) -> 0.05203877211 | BR93: =MIRR($D$91:BR91,'Management Input'!$O$16+0.01,'Management Input'!$O$16) -> 0.05176373061 | BS93: =MIRR($D$91:BS91,'Management Input'!$O$16+0.01,'Management Input'!$O$16) -> 0.05149616131 | BT93: =MIRR($D$91:BT91,'Management Input'!$O$16+0.01,'Management Input'!$O$16) -> 0.05123572198 | BU93: =MIRR($D$91:BU91,'Management Input'!$O$16+0.01,'Management Input'!$O$16) -> 0.05098201034
D94: =PMT('Management Input'!$O$16,70,-D92) -> -19.79523104 | E94: =PMT('Management Input'!$O$16,70,-E92) -> -20.86750212 | F94: =PMT('Management Input'!$O$16,70,-F92) -> -21.57451683 | G94: =PMT('Management Input'!$O$16,70,-G92) -> -22.74539983 | H94: =PMT('Management Input'!$O$16,70,-H92) -> -22.75315015 | I94: =PMT('Management Input'!$O$16,70,-I92) -> -22.41429331 | J94: =PMT('Management Input'!$O$16,70,-J92) -> -21.88255755 | K94: =PMT('Management Input'!$O$16,70,-K92) -> -20.87566807 | L94: =PMT('Management Input'!$O$16,70,-L92) -> -19.54063429 | M94: =PMT('Management Input'!$O$16,70,-M92) -> -18.00656554 | N94: =PMT('Management Input'!$O$16,70,-N92) -> -16.0847275 | O94: =PMT('Management Input'!$O$16,70,-O92) -> -14.02388148 | P94: =PMT('Management Input'!$O$16,70,-P92) -> -11.103153 | Q94: =PMT('Management Input'!$O$16,70,-Q92) -> -8.581063167 | R94: =PMT('Management Input'!$O$16,70,-R92) -> -5.23853802 | S94: =PMT('Management Input'!$O$16,70,-S92) -> -2.314949894 | T94: =PMT('Management Input'!$O$16,70,-T92) -> 1.391321739 | U94: =PMT('Management Input'!$O$16,70,-U92) -> 4.662002003 | V94: =PMT('Management Input'!$O$16,70,-V92) -> 8.679244661 | W94: =PMT('Management Input'!$O$16,70,-W92) -> 12.24753415 | X94: =PMT('Management Input'!$O$16,70,-X92) -> 16.50202682 | Y94: =PMT('Management Input'!$O$16,70,-Y92) -> 20.26829809 | Z94: =PMT('Management Input'!$O$16,70,-Z92) -> 21.66339393 | AA94: =PMT('Management Input'!$O$16,70,-AA92) -> 23.44231865 | AB94: =PMT('Management Input'!$O$16,70,-AB92) -> 25.54751934 | AC94: =PMT('Management Input'!$O$16,70,-AC92) -> 27.5808066 | AD94: =PMT('Management Input'!$O$16,70,-AD92) -> 29.54458365 | AE94: =PMT('Management Input'!$O$16,70,-AE92) -> 31.54238888 | AF94: =PMT('Management Input'!$O$16,70,-AF92) -> 33.57057412 | AG94: =PMT('Management Input'!$O$16,70,-AG92) -> 35.62567486 | AH94: =PMT('Management Input'!$O$16,70,-AH92) -> 37.70440261 | AI94: =PMT('Management Input'!$O$16,70,-AI92) -> 39.79657845 | AJ94: =PMT('Management Input'!$O$16,70,-AJ92) -> 41.89772774 | AK94: =PMT('Management Input'!$O$16,70,-AK92) -> 44.00357592 | AL94: =PMT('Management Input'!$O$16,70,-AL92) -> 46.11006275 | AM94: =PMT('Management Input'!$O$16,70,-AM92) -> 46.55137374 | AN94: =PMT('Management Input'!$O$16,70,-AN92) -> 47.48459705 | AO94: =PMT('Management Input'!$O$16,70,-AO92) -> 48.42457929 | AP94: =PMT('Management Input'!$O$16,70,-AP92) -> 49.37013506 | AQ94: =PMT('Management Input'!$O$16,70,-AQ92) -> 50.32014226 | AR94: =PMT('Management Input'!$O$16,70,-AR92) -> 51.27353943 | AS94: =PMT('Management Input'!$O$16,70,-AS92) -> 52.22932317 | AT94: =PMT('Management Input'!$O$16,70,-AT92) -> 53.18654567 | AU94: =PMT('Management Input'!$O$16,70,-AU92) -> 54.14431227 | AV94: =PMT('Management Input'!$O$16,70,-AV92) -> 55.10177925 | AW94: =PMT('Management Input'!$O$16,70,-AW92) -> 56.05815154 | AX94: =PMT('Management Input'!$O$16,70,-AX92) -> 57.01268067 | AY94: =PMT('Management Input'!$O$16,70,-AY92) -> 57.96256062 | AZ94: =PMT('Management Input'!$O$16,70,-AZ92) -> 58.90683752 | BA94: =PMT('Management Input'!$O$16,70,-BA92) -> 59.84461159 | BB94: =PMT('Management Input'!$O$16,70,-BB92) -> 60.77503746 | BC94: =PMT('Management Input'!$O$16,70,-BC92) -> 61.6973241 | BD94: =PMT('Management Input'!$O$16,70,-BD92) -> 62.61073454 | BE94: =PMT('Management Input'!$O$16,70,-BE92) -> 62.68022068 | BF94: =PMT('Management Input'!$O$16,70,-BF92) -> 63.05948746 | BG94: =PMT('Management Input'!$O$16,70,-BG92) -> 63.43767577 | BH94: =PMT('Management Input'!$O$16,70,-BH92) -> 63.81452671 | BI94: =PMT('Management Input'!$O$16,70,-BI92) -> 64.18979733 | BJ94: =PMT('Management Input'!$O$16,70,-BJ92) -> 64.56326001 | BK94: =PMT('Management Input'!$O$16,70,-BK92) -> 64.9347017 | BL94: =PMT('Management Input'!$O$16,70,-BL92) -> 65.30392331 | BM94: =PMT('Management Input'!$O$16,70,-BM92) -> 65.67073905 | BN94: =PMT('Management Input'!$O$16,70,-BN92) -> 66.03497585 | BO94: =PMT('Management Input'!$O$16,70,-BO92) -> 66.39647276 | BP94: =PMT('Management Input'!$O$16,70,-BP92) -> 66.75508039 | BQ94: =PMT('Management Input'!$O$16,70,-BQ92) -> 67.11066037 | BR94: =PMT('Management Input'!$O$16,70,-BR92) -> 67.46308485 | BS94: =PMT('Management Input'!$O$16,70,-BS92) -> 67.81223599 | BT94: =PMT('Management Input'!$O$16,70,-BT92) -> 68.1580055 | BU94: =PMT('Management Input'!$O$16,70,-BU92) -> 68.49980482
D95: =IRR(D92,1) ->  | E95: =IRR($D$92:E92,1) ->  | F95: =IRR($D$92:F92,1) ->  | G95: =IRR($D$92:G92,1) ->  | H95: =IRR($D$92:H92,1) ->  | I95: =IRR($D$92:I92,1) ->  | J95: =IRR($D$92:J92,1) ->  | K95: =IRR($D$92:K92,1) ->  | L95: =IRR($D$92:L92,1) ->  | M95: =IRR($D$92:M92,1) ->  | N95: =IRR($D$92:N92,1) ->  | O95: =IRR($D$92:O92,1) ->  | P95: =IRR($D$92:P92,1) ->  | Q95: =IRR($D$92:Q92,1) ->  | R95: =IRR($D$92:R92,1) ->  | S95: =IRR($D$92:S92,1) ->  | T95: =IRR($D$92:T92,1) ->  | U95: =IRR($D$92:U92,1) ->  | V95: =IRR($D$92:V92,1) ->  | W95: =IRR($D$92:W92,1) ->  | X95: =IRR($D$92:X92,1) ->  | Y95: =IRR($D$92:Y92,1) ->  | Z95: =IRR($D$92:Z92,1) ->  | AA95: =IRR($D$92:AA92,1) ->  | AB95: =IRR($D$92:AB92,1) ->  | AC95: =IRR($D$92:AC92,1) ->  | AD95: =IRR($D$92:AD92,1) ->  | AE95: =IRR($D$92:AE92,1) ->  | AF95: =IRR($D$92:AF92,1) ->  | AG95: =IRR($D$92:AG92,1) ->  | AH95: =IRR($D$92:AH92,1) ->  | AI95: =IRR($D$92:AI92,1) ->  | AJ95: =IRR($D$92:AJ92,1) ->  | AK95: =IRR($D$92:AK92,1) ->  | AL95: =IRR($D$92:AL92,1) ->  | AM95: =IRR($D$92:AM92,1) ->  | AN95: =IRR($D$92:AN92,1) ->  | AO95: =IRR($D$92:AO92,1) ->  | AP95: =IRR($D$92:AP92,1) ->  | AQ95: =IRR($D$92:AQ92,1) ->  | AR95: =IRR($D$92:AR92,1) ->  | AS95: =IRR($D$92:AS92,1) ->  | AT95: =IRR($D$92:AT92,1) ->  | AU95: =IRR($D$92:AU92,1) ->  | AV95: =IRR($D$92:AV92,1) ->  | AW95: =IRR($D$92:AW92,1) ->  | AX95: =IRR($D$92:AX92,1) ->  | AY95: =IRR($D$92:AY92,1) ->  | AZ95: =IRR($D$92:AZ92,1) ->  | BA95: =IRR($D$92:BA92,1) ->  | BB95: =IRR($D$92:BB92,1) ->  | BC95: =IRR($D$92:BC92,1) ->  | BD95: =IRR($D$92:BD92,1) ->  | BE95: =IRR($D$92:BE92,1) ->  | BF95: =IRR($D$92:BF92,1) ->  | BG95: =IRR($D$92:BG92,1) ->  | BH95: =IRR($D$92:BH92,1) ->  | BI95: =IRR($D$92:BI92,1) ->  | BJ95: =IRR($D$92:BJ92,1) ->  | BK95: =IRR($D$92:BK92,1) ->  | BL95: =IRR($D$92:BL92,1) ->  | BM95: =IRR($D$92:BM92,1) ->  | BN95: =IRR($D$92:BN92,1) ->  | BO95: =IRR($D$92:BO92,1) ->  | BP95: =IRR($D$92:BP92,1) ->  | BQ95: =IRR($D$92:BQ92,1) ->  | BR95: =IRR($D$92:BR92,1) ->  | BS95: =IRR($D$92:BS92,1) ->  | BT95: =IRR($D$92:BT92,1) ->  | BU95: =IRR($D$92:BU92,1) -> 
B97: ="PV of Revenues @ "&TEXT('Management Input'!O16,"0%") -> PV of Revenues @ 3% | D97: =NPV('Management Input'!$O$16,D87:BU87) -> 4417.108998
B99: ="PV of Costs @ "&TEXT('Management Input'!O16,"0%") -> PV of Costs @ 3% | D99: =NPV('Management Input'!$O$16,D89:BU89) -> 2422.160319
B101: ="NPV @ "&TEXT('Management Input'!O16,"0%") -> NPV @ 3% | D101: =D97-D99 -> 1994.948678
B103: Rate of Return (MIRR) | D103: =MIRR(D91:BU91,'Management Input'!O16+0.01,'Management Input'!O16) -> 0.05098201034
B105: Years to Break Even | D105: =MATCH(0,D93:BU93,1) -> 14
B107: ="AEV @ "&TEXT('Management Input'!O16,"0%") -> AEV @ 3% | D107: =BU94 -> 68.49980482
B109: ="IRR @ "&TEXT('Management Input'!O16,"0%") -> IRR @ 3% | D109: =BU95 -> 
B111: Number of Acres needed for a mechanical harvestor
D112: =('Input Tables'!G101/$K$130)*-1 -> 6.337460123
B115: Number of miles from market | D115: =K132 -> 2731.511194
J126: AVE. Rev without Trans cost | K126: AVE. Gross Rev without Harvesting Cost
E129: Loads | F129: Miles | G129: Ave Cost | I129: AVE Rev.
E130: =(AVERAGE(D27:BU27)/1000) -> 0.5423250843 | F130: =(E130*'Management Input'!N14)*2 -> 75.92551181 | G130: =F130*'Cost Budgets'!C25 -> 2.277765354 | I130: =AVERAGE(D91:BU91) -> 86.60215943 | J130: =I130+(AVERAGE(D84:BU84)) -> 88.88202233 | K130: =AVERAGE(D65:BU65)-AVERAGE(D72:BU72)-AVERAGE(D76:BU76) -> 108.2191698
F132: =(I130/'Cost Budgets'!C25)/2 -> 1443.369324 | G132: =(F132/E130) -> 2661.446733 | I132: =J130/'Cost Budgets'!C25 -> 2962.734078 | J132: =I132/E130 -> 5463.022389 | K132: =J132/2 -> 2731.511194

Sheet Chemical costs (hidden)
A1: Name | B1: Low App Rate/ac | C1: Hi App Rate/ac | D1: Ave Rate | E1: unit | F1: cost | G1: unit | H1: cost/acre | CD1: oz | CE1: pt | CF1: qt | CG1: gal
A2: Asana XL | B2: 4.8 | C2: 14.5 | D2: =AVERAGE(B2:C2) -> 9.65 | E2: oz | F2: 98.2 | G2: gal | H2: =D2*(HLOOKUP(E2,$CD$1:$CG$5,IF(G2="oz", 2, IF(G2="pt",3, IF(G2="qt", 4,5)))))*F2 -> 7.40383319 | CC2: oz | CD2: 1 | CE2: 16 | CF2: 32 | CG2: 128
A3: Confirm 2F | B3: 8 | C3: 16 | D3: =AVERAGE(B3:C3) -> 12 | E3: oz | H3: =D3*(HLOOKUP(E3,$CD$1:$CG$5,IF(G3="oz", 2, IF(G3="pt",3, IF(G3="qt", 4,5)))))*F3 -> 0 | CC3: pt | CD3: 0.0625 | CE3: 1 | CF3: 2 | CG3: 8
A4: Lorsban 4E/Nufos 4E | B4: 1.4 | C4: 5 | D4: 3.2 | E4: pt | F4: 37.4 | G4: gal | H4: 14.96 | CC4: qt | CD4: 0.0312 | CE4: 0.5 | CF4: 1 | CG4: 4
A5: Warrior | B5: 2.56 | C5: 5.12 | D5: 3.84 | E5: oz | F5: 2.23 | G5: oz | H5: 8.5632 | CC5: gal | CD5: 0.007813 | CE5: 0.125 | CF5: 0.25 | CG5: 1
A6: Imidian 70WSB | B6: 1 | C6: 3.125 | D6: 2.0625 | E6: pt | F6: 8.92 | G6: pt | H6: =D6*F6 -> 18.3975
A7: Sevin 80W | B7: 2.5 | C7: 6.25 | D7: 4.375 | E7: pt | F7: 7.12 | G7: pt | H7: =D7*F7 -> 31.15
A8: Dipel ES | B8: 1 | C8: 4 | D8: 2.5 | E8: pt | F8: 12 | G8: pt | H8: 30
A9: Javelin WG | B9: 0.25 | C9: 4 | D9: 2.125 | E9: pt | H9: 0
A10: Guthion 2L | B10: 6 | C10: 8 | D10: 7 | E10: pt | F10: 11.6 | G10: pt | H10: 81.2 | CD10: this is read: Vertical/horizontal
A11: Sniper 2E | B11: 1.5 | C11: 2.25 | D11: 1.875 | E11: pt | H11: 0
A12: Abound | B12: 9.2 | C12: 12.3 | D12: 10.75 | E12: oz | H12: 0 | CD12: i.e., oz/qt = 32
A13: Flint | B13: 2 | C13: 4 | D13: 3 | E13: oz | H13: 0
A14: Pristine | B14: 10.5 | C14: 14.5 | D14: 12.5 | E14: oz | H14: 0
A15: Syllit | B15: 4 | C15: 4 | D15: 4 | E15: pt | F15: 12.7 | G15: pt | H15: 50.8
A16: Roundup ™

Sheet Nut Price
A1: This table shows how % yield and nut quality affect the total price per pound received by the grower.
A3: These prices are for dry in- shell nuts delivered to the Hammons Plant in Stockton, Missouri.
F4: Somewhat shriveled or off- color nutmeats | G4: Somewhat variable color nutmeats or veins present | I4: Light colored, uniform, plump kernels,
C5: Dark or shriveled nutmeats | I5: Minimal veins | J5: No veins
B6: $ / POINT ---> | C6: 0.01 | D6: 0.012 | E6: 0.014 | F6: 0.016 | G6: 0.018 | H6: 0.02 | I6: 0.022 | J6: 0.024
A7: % YIELD | DA7: Grade 1 | DB7: Highest Quality: Light colored, uniform, plump kernel, good natural aroma
A8: 16 | C8: =C$6*$A8 -> 0.16 | D8: 0.192 | E8: 0.224 | F8: 0.256 | G8: 0.288 | H8: 0.32 | I8: 0.352 | J8: 0.384 | CA8: =A8/100 -> 0.16
A9: 18 | C9: 0.18 | D9: 0.216 | E9: 0.252 | F9: 0.288 | G9: 0.324 | H9: 0.36 | I9: 0.396 | J9: 0.432 | CA9: =A9/100 -> 0.18
A10: 20 | C10: 0.2 | D10: 0.24 | E10: 0.28 | F10: 0.32 | G10: 0.36 | H10: 0.4 | I10: 0.44 | J10: 0.48 | CA10: 0.2 | DA10: Grade 2 | DB10: High Quality: Light colored, uniform, plump kernel, minimal veins
A11: 22 | C11: 0.22 | D11: 0.264 | E11: 0.308 | F11: 0.352 | G11: 0.396 | H11: 0.44 | I11: 0.484 | J11: 0.528 | CA11: 0.22
A12: 24 | C12: 0.24 | D12: 0.288 | E12: 0.336 | F12: 0.384 | G12: 0.432 | H12: 0.48 | I12: 0.528 | J12: 0.576 | CA12: 0.24
A13: 26 | C13: 0.26 | D13: 0.312 | E13: 0.364 | F13: 0.416 | G13: 0.468 | H13: 0.52 | I13: 0.572 | J13: 0.624 | CA13: 0.26 | DA13: Grade 3 | DB13: Excellent Quality: Somewhat variable color nutmeats or veins present
A14: 28 | C14: 0.28 | D14: 0.336 | E14: 0.392 | F14: 0.448 | G14: 0.504 | H14: 0.56 | I14: 0.616 | J14: 0.672 | CA14: 0.28
A15: 30 | C15: 0.3 | D15: 0.36 | E15: 0.42 | F15: 0.48 | G15: 0.54 | H15: 0.6 | I15: 0.66 | J15: 0.72 | CA15: 0.3
A16: 32 | C16: 0.32 | D16: 0.384 | E16: 0.448 | F16: 0.512 | G16: 0.576 | H16: 0.64 | I16: 0.704 | J16: 0.768 | CA16: 0.32 | DA16: Grade 4 | DB16: Prime Quality: Somewhat variable color nutmeats or veins present
A17: 34 | C17: 0.34 | D17: 0.408 | E17: 0.476 | F17: 0.544 | G17: 0.612 | H17: 0.68 | I17: 0.748 | J17: 0.816 | CA17: 0.34
A18: 36 | C18: 0.36 | D18: 0.432 | E18: 0.504 | F18: 0.576 | G18: 0.648 | H18: 0.72 | I18: 0.792 | J18: 0.864 | CA18: 0.36
A19: 38 | C19: 0.38 | D19: 0.456 | E19: 0.532 | F19: 0.608 | G19: 0.684 | H19: 0.76 | I19: 0.836 | J19: 0.912 | CA19: 0.38 | DA19: Grade 5 | DB19: Good Quality: Somewhat shriveled or off- color nutmeats
A20: 40 | C20: 0.4 | D20: 0.48 | E20: 0.56 | F20: 0.64 | G20: 0.72 | H20: 0.8 | I20: 0.88 | J20: 0.96 | CA20: 0.4
A21: 42 | C21: 0.42 | D21: 0.504 | E21: 0.588 | F21: 0.672 | G21: 0.756 | H21: 0.84 | I21: 0.924 | J21: 1.008 | CA21: 0.42
DA22: Grade 6 | DB22: Top Quality: Somewhat shriveled or off- color nutmeats
DA25: Grade 7 | DB25: Quality: Dark or shriveled nutmeats
DA28: Grade 8 | DB28: Dark or shriveled nutmeats
